Workbook

Sheet TITLE
D7: SHEET NAME | E7: TYPE | F7: USAGE | G7: HIDE | I7: PARAMETER NAME | K7: TYPE | L7: USAGE | M7: INTERNAL
D8: TITLE | E8: DESCRIPTION | F8: This Sheet | G8: N | I8: Temperature Range | J8: Upper | K8: DRAWING SCALE | L8: MAX TEMPERATURE OF GLOBAL TEMP | M8: N
D9: CA | E9: OUTPUT | F9: Dynamic output | G9: N | J9: Lower | K9: DRAWING SCALE | L9: MIN TEMPERATURE OF GLOBAL TEMP | M9: N
D10: CoolingCurve_out | E10: OUTPUT | F10: Histrical output | G10: N | I10: Minimum Heat Flux | K10: COOLANT | L10: MHF | M10: N
D11: Parameter | E11: INPUT | F11: Calculation and Coolant Parameter | G11: N | I11: Boiling Temperature | K11: COOLANT | L11: Boiling Temperature | M11: N
D12: Shape_edge | E12: INPUT | F12: Shape edge effect for vapor blanket broking down | G12: N | I12: Coolant Temperature | K12: COOLANT | L12: Coolant temperature | M12: N
D13: Shape_round | E13: INPUT | F13: Round shape effect for cooling | G13: N | I13: Vapor Blanket Stage | K13: COOLANT | L13: HTC of Vapor Blanket Stage | M13: N
D14: Vapor_Fluctuation | E14: INPUT | F14: Vapor film thicness fluctuation | G14: N | I14: Boiling Stage | K14: COOLANT | L14: HTC of Boiling Stage | M14: N
D15: Tilt | E15: INPUT | F15: Tilt angle | G15: N | I15: Convection Stage | K15: COOLANT | L15: HTC of Convection Stage | M15: N
D16: Update | E16: AUXIALLY | F16: NEXT CA | G16: Y | I16: Heat Transfer with Neighborhood Cells | K16: CALCULATION | L16: Magnitude of Heat Transfer form Neighborhood | M16: N
D17: S | E17: AUXIALLY | F17: Motivation for vapor film broking down | G17: Y | I17: Propagation of vapor film collapse from Neighborhood cells | K17: CALCULATION | L17: Effect of Vapor Film Thicnness of Neighborhood Cells | M17: N
D18: T1 | E18: AUXIALLY | F18: Cooling by phase transformation of Coolant | G18: Y | I18: Effect of Latent Heat | K18: CALCULATION | L18: Effect of Latent Heat | M18: N
D19: T2 | E19: AUXIALLY | F19: Cooling for plane direction | G19: Y | I19: Iteration Number | K19: CALCULATION | L19: Iteration Number | M19: N
D20: T3 | E20: AUXIALLY | F20: Heat insulation by vapor blanket | G20: Y | I20: Fitting Parameter | K20: CALCULATION | L20: Fitting Parameter for Timle Scale & Cooling Speed | M20: Y
I21: Time Increment | K21: CALCULATION | L21: Time increment for 1Step | M21: N
I22: Rotation(Upper/Lower) | K22: SHAPE | L22: Rotational Shape for vertical direction | M22: N
I23: Rotation(Left/Right) | K23: SHAPE | L23: Rotational Shape for horizontal direction | M23: N
D24: sheet & book password:
D26: History
D27: 0.90a 25th/Apr./2022 Ver0.90a Releas 0.90b 01st/May/2022 Ver0.91a Increase Drawing Speed 1.00a 6th/May/2022 Alignment with Real Cooling Phenomena by Additional Parameters, Add Rotational Shape ON/OFF 1.10a 7th/Jan/2023 Add Control Parameter for Effect of Neighborhood Cells 1.20a 9th/Jan/2023 Take into Account about Marcov Propertied for Vapor Film Propagation 1.21a 17th/Mar/2023 Modify Time Evolution of Marcov Property for Vapor Film Propagation 1.22a-1.24a 26th/Apr/2023 Add Wave function of Vapor File 2.00 27th/Apr/2023 Release Candidate with Caostic phenomena of Vapor Film 2.10 2nd/May/2023 Add Randomize Function

Sheet CA
A1: =IF(AND(Parameter!$D$19="Y", Parameter!$D$20="Y"), CA!A31, B2) -> 0 | B1: =IF(Parameter!$D$19="Y", CA!B31, B2) -> 0 | C1: =IF(Parameter!$D$19="Y", CA!C31, C2) -> 0 | D1: =IF(Parameter!$D$19="Y", CA!D31, D2) -> 0 | E1: =IF(Parameter!$D$19="Y", CA!E31, E2) -> 0 | F1: =IF(Parameter!$D$19="Y", CA!F31, F2) -> 0 | G1: =IF(Parameter!$D$19="Y", CA!G31, G2) -> 0 | H1: =IF(Parameter!$D$19="Y", CA!H31, H2) -> 0 | I1: =IF(Parameter!$D$19="Y", CA!I31, I2) -> 0 | J1: =IF(Parameter!$D$19="Y", CA!J31, J2) -> 0 | K1: =IF(Parameter!$D$19="Y", CA!K31, K2) -> 0 | L1: =IF(Parameter!$D$19="Y", CA!L31, L2) -> 0 | M1: =IF(Parameter!$D$19="Y", CA!M31, M2) -> 0 | N1: =IF(Parameter!$D$19="Y", CA!N31, N2) -> 0 | O1: =IF(Parameter!$D$19="Y", CA!O31, O2) -> 0 | P1: =IF(Parameter!$D$19="Y", CA!P31, P2) -> 0 | Q1: =IF(Parameter!$D$19="Y", CA!Q31, Q2) -> 0 | R1: =IF(Parameter!$D$19="Y", CA!R31, R2) -> 0 | S1: =IF(Parameter!$D$19="Y", CA!S31, S2) -> 0 | T1: =IF(Parameter!$D$19="Y", CA!T31, T2) -> 0 | U1: =IF(Parameter!$D$19="Y", CA!U31, U2) -> 0 | V1: =IF(Parameter!$D$19="Y", CA!V31, V2) -> 0 | W1: =IF(Parameter!$D$19="Y", CA!W31, W2) -> 0 | X1: =IF(Parameter!$D$19="Y", CA!X31, X2) -> 0 | Y1: =IF(Parameter!$D$19="Y", CA!Y31, Y2) -> 0 | Z1: =IF(Parameter!$D$19="Y", CA!Z31, Z2) -> 0 | AA1: =IF(Parameter!$D$19="Y", CA!AA31, AA2) -> 0 | AB1: =IF(Parameter!$D$19="Y", CA!AB31, AB2) -> 0 | AC1: =IF(Parameter!$D$19="Y", CA!AC31, AC2) -> 0 | AD1: =IF(Parameter!$D$19="Y", CA!AD31, AD2) -> 0 | AE1: =IF(Parameter!$D$19="Y", CA!AE31, AE2) -> 0 | AF1: =IF(AND(Parameter!$D$19="Y", Parameter!$D$20="Y"), CA!AF31, AE2) -> 0
A2: =IF(Parameter!$D$20="Y",AE2,B2) -> 0 | B2: 0 | C2: 0 | D2: 0 | E2: 0 | F2: 0 | G2: 0 | H2: 0 | I2: 0 | J2: 0 | K2: 0 | L2: 0 | M2: 0 | N2: 0 | O2: 0 | P2: 0 | Q2: 0 | R2: 0 | S2: 0 | T2: 0 | U2: 0 | V2: 0 | W2: 0 | X2: 0 | Y2: 0 | Z2: 0 | AA2: 0 | AB2: 0 | AC2: 0 | AD2: 0 | AE2: 0 | AF2: =IF(Parameter!$D$20="Y",B2, AE2) -> 0 | AQ2: X | AR2: Y
A3: =IF(Parameter!$D$20="Y",AE3,B3) -> 0 | B3: 0 | C3: 0 | D3: 0 | E3: 0 | F3: 0 | G3: 0 | H3: 0 | I3: 0 | J3: 0 | K3: 0 | L3: 0 | M3: 0 | N3: 0 | O3: 0 | P3: 0 | Q3: 0 | R3: 0 | S3: 0 | T3: 0 | U3: 0 | V3: 0 | W3: 0 | X3: 0 | Y3: 0 | Z3: 0 | AA3: 0 | AB3: 0 | AC3: 0 | AD3: 0 | AE3: 0 | AF3: =IF(Parameter!$D$20="Y",B3, AE3) -> 0 | AP3: P1 | AQ3: 5 | AR3: 30
A4: =IF(Parameter!$D$20="Y",AE4,B4) -> 0 | B4: 0 | C4: 0 | D4: 0 | E4: 0 | F4: 0 | G4: 0 | H4: 0 | I4: 0 | J4: 0 | K4: 0 | L4: 0 | M4: 0 | N4: 0 | O4: 0 | P4: 0 | Q4: 0 | R4: 0 | S4: 0 | T4: 0 | U4: 0 | V4: 0 | W4: 0 | X4: 0 | Y4: 0 | Z4: 0 | AA4: 0 | AB4: 0 | AC4: 0 | AD4: 0 | AE4: 0 | AF4: =IF(Parameter!$D$20="Y",B4, AE4) -> 0
A5: =IF(Parameter!$D$20="Y",AE5,B5) -> 0 | B5: 0 | C5: 0 | D5: 0 | E5: 0 | F5: 0 | G5: 0 | H5: 0 | I5: 0 | J5: 0 | K5: 0 | L5: 0 | M5: 0 | N5: 0 | O5: 0 | P5: 0 | Q5: 0 | R5: 0 | S5: 0 | T5: 0 | U5: 0 | V5: 0 | W5: 0 | X5: 0 | Y5: 0 | Z5: 0 | AA5: 0 | AB5: 0 | AC5: 0 | AD5: 0 | AE5: 0 | AF5: =IF(Parameter!$D$20="Y",B5, AE5) -> 0 | AP5: P2 | AQ5: 11 | AR5: 30
A6: =IF(Parameter!$D$20="Y",AE6,B6) -> 0 | B6: 0 | C6: 0 | D6: 0 | E6: 0 | F6: 0 | G6: 0 | H6: 0 | I6: 0 | J6: 0 | K6: 0 | L6: 0 | M6: 0 | N6: 0 | O6: 0 | P6: 0 | Q6: 0 | R6: 0 | S6: 0 | T6: 0 | U6: 0 | V6: 0 | W6: 0 | X6: 0 | Y6: 0 | Z6: 0 | AA6: 0 | AB6: 0 | AC6: 0 | AD6: 0 | AE6: 0 | AF6: =IF(Parameter!$D$20="Y",B6, AE6) -> 0
A7: =IF(Parameter!$D$20="Y",AE7,B7) -> 0 | B7: 0 | C7: 0 | D7: 0 | E7: 0 | F7: 0 | G7: 0 | H7: 0 | I7: 0 | J7: 0 | K7: 0 | L7: 0 | M7: 0 | N7: 0 | O7: 0 | P7: 0 | Q7: 0 | R7: 0 | S7: 0 | T7: 0 | U7: 0 | V7: 0 | W7: 0 | X7: 0 | Y7: 0 | Z7: 0 | AA7: 0 | AB7: 0 | AC7: 0 | AD7: 0 | AE7: 0 | AF7: =IF(Parameter!$D$20="Y",B7, AE7) -> 0 | AP7: P3 | AQ7: 17 | AR7: 30
A8: =IF(Parameter!$D$20="Y",AE8,B8) -> 0 | B8: 0 | C8: 0 | D8: 0 | E8: 0 | F8: 0 | G8: 0 | H8: 0 | I8: 0 | J8: 0 | K8: 0 | L8: 0 | M8: 0 | N8: 0 | O8: 0 | P8: 0 | Q8: 0 | R8: 0 | S8: 0 | T8: 0 | U8: 0 | V8: 0 | W8: 0 | X8: 0 | Y8: 0 | Z8: 0 | AA8: 0 | AB8: 0 | AC8: 0 | AD8: 0 | AE8: 0 | AF8: =IF(Parameter!$D$20="Y",B8, AE8) -> 0
A9: =IF(Parameter!$D$20="Y",AE9,B9) -> 0 | B9: 0 | C9: 0 | D9: 0 | E9: 0 | F9: 0 | G9: 0 | H9: 0 | I9: 0 | J9: 0 | K9: 0 | L9: 0 | M9: 0 | N9: 0 | O9: 0 | P9: 0 | Q9: 0 | R9: 0 | S9: 0 | T9: 0 | U9: 0 | V9: 0 | W9: 0 | X9: 0 | Y9: 0 | Z9: 0 | AA9: 0 | AB9: 0 | AC9: 0 | AD9: 0 | AE9: 0 | AF9: =IF(Parameter!$D$20="Y",B9, AE9) -> 0 | AP9: P4 | AQ9: 23 | AR9: 30
A10: =IF(Parameter!$D$20="Y",AE10,B10) -> 0 | B10: 0 | C10: 0 | D10: 0 | E10: 0 | F10: 0 | G10: 0 | H10: 0 | I10: 0 | J10: 0 | K10: 0 | L10: 0 | M10: 0 | N10: 0 | O10: 0 | P10: 0 | Q10: 0 | R10: 0 | S10: 0 | T10: 0 | U10: 0 | V10: 0 | W10: 0 | X10: 0 | Y10: 0 | Z10: 0 | AA10: 0 | AB10: 0 | AC10: 0 | AD10: 0 | AE10: 0 | AF10: =IF(Parameter!$D$20="Y",B10, AE10) -> 0
A11: =IF(Parameter!$D$20="Y",AE11,B11) -> 0 | B11: 0 | C11: 0 | D11: 0 | E11: 0 | F11: 0 | G11: 0 | H11: 0 | I11: 0 | J11: 0 | K11: 0 | L11: 0 | M11: 0 | N11: 0 | O11: 0 | P11: 0 | Q11: 0 | R11: 0 | S11: 0 | T11: 0 | U11: 0 | V11: 0 | W11: 0 | X11: 0 | Y11: 0 | Z11: 0 | AA11: 0 | AB11: 0 | AC11: 0 | AD11: 0 | AE11: 0 | AF11: =IF(Parameter!$D$20="Y",B11, AE11) -> 0 | AP11: P5 | AQ11: 29 | AR11: 30
A12: =IF(Parameter!$D$20="Y",AE12,B12) -> 0 | B12: 0 | C12: 0 | D12: 0 | E12: 0 | F12: 0 | G12: 0 | H12: 0 | I12: 0 | J12: 0 | K12: 0 | L12: 0 | M12: 0 | N12: 0 | O12: 0 | P12: 0 | Q12: 0 | R12: 0 | S12: 0 | T12: 0 | U12: 0 | V12: 0 | W12: 0 | X12: 0 | Y12: 0 | Z12: 0 | AA12: 0 | AB12: 0 | AC12: 0 | AD12: 0 | AE12: 0 | AF12: =IF(Parameter!$D$20="Y",B12, AE12) -> 0
A13: =IF(Parameter!$D$20="Y",AE13,B13) -> 0 | B13: 0 | C13: 0 | D13: 0 | E13: 0 | F13: 0 | G13: 0 | H13: 0 | I13: 0 | J13: 0 | K13: 0 | L13: 0 | M13: 0 | N13: 0 | O13: 0 | P13: 0 | Q13: 0 | R13: 0 | S13: 0 | T13: 0 | U13: 0 | V13: 0 | W13: 0 | X13: 0 | Y13: 0 | Z13: 0 | AA13: 0 | AB13: 0 | AC13: 0 | AD13: 0 | AE13: 0 | AF13: =IF(Parameter!$D$20="Y",B13, AE13) -> 0
A14: =IF(Parameter!$D$20="Y",AE14,B14) -> 0 | B14: 0 | C14: 0 | D14: 0 | E14: 0 | F14: 0 | G14: 0 | H14: 0 | I14: 0 | J14: 0 | K14: 0 | L14: 0 | M14: 0 | N14: 0 | O14: 0 | P14: 0 | Q14: 0 | R14: 0 | S14: 0 | T14: 0 | U14: 0 | V14: 0 | W14: 0 | X14: 0 | Y14: 0 | Z14: 0 | AA14: 0 | AB14: 0 | AC14: 0 | AD14: 0 | AE14: 0 | AF14: =IF(Parameter!$D$20="Y",B14, AE14) -> 0
A15: =IF(Parameter!$D$20="Y",AE15,B15) -> 0 | B15: 0 | C15: 0 | D15: 0 | E15: 0 | F15: 0 | G15: 0 | H15: 0 | I15: 0 | J15: 0 | K15: 0 | L15: 0 | M15: 0 | N15: 0 | O15: 0 | P15: 0 | Q15: 0 | R15: 0 | S15: 0 | T15: 0 | U15: 0 | V15: 0 | W15: 0 | X15: 0 | Y15: 0 | Z15: 0 | AA15: 0 | AB15: 0 | AC15: 0 | AD15: 0 | AE15: 0 | AF15: =IF(Parameter!$D$20="Y",B15, AE15) -> 0
A16: =IF(Parameter!$D$20="Y",AE16,B16) -> 0 | B16: 0 | C16: 0 | D16: 0 | E16: 0 | F16: 0 | G16: 0 | H16: 0 | I16: 0 | J16: 0 | K16: 0 | L16: 0 | M16: 0 | N16: 0 | O16: 0 | P16: 0 | Q16: 0 | R16: 0 | S16: 0 | T16: 0 | U16: 0 | V16: 0 | W16: 0 | X16: 0 | Y16: 0 | Z16: 0 | AA16: 0 | AB16: 0 | AC16: 0 | AD16: 0 | AE16: 0 | AF16: =IF(Parameter!$D$20="Y",B16, AE16) -> 0
A17: =IF(Parameter!$D$20="Y",AE17,B17) -> 0 | B17: 0 | C17: 0 | D17: 0 | E17: 0 | F17: 0 | G17: 0 | H17: 0 | I17: 0 | J17: 0 | K17: 0 | L17: 0 | M17: 0 | N17: 0 | O17: 0 | P17: 0 | Q17: 0 | R17: 0 | S17: 0 | T17: 0 | U17: 0 | V17: 0 | W17: 0 | X17: 0 | Y17: 0 | Z17: 0 | AA17: 0 | AB17: 0 | AC17: 0 | AD17: 0 | AE17: 0 | AF17: =IF(Parameter!$D$20="Y",B17, AE17) -> 0
A18: =IF(Parameter!$D$20="Y",AE18,B18) -> 0 | B18: 0 | C18: 0 | D18: 0 | E18: 0 | F18: 0 | G18: 0 | H18: 0 | I18: 0 | J18: 0 | K18: 0 | L18: 0 | M18: 0 | N18: 0 | O18: 0 | P18: 0 | Q18: 0 | R18: 0 | S18: 0 | T18: 0 | U18: 0 | V18: 0 | W18: 0 | X18: 0 | Y18: 0 | Z18: 0 | AA18: 0 | AB18: 0 | AC18: 0 | AD18: 0 | AE18: 0 | AF18: =IF(Parameter!$D$20="Y",B18, AE18) -> 0
A19: =IF(Parameter!$D$20="Y",AE19,B19) -> 0 | B19: 0 | C19: 0 | D19: 0 | E19: 0 | F19: 0 | G19: 0 | H19: 0 | I19: 0 | J19: 0 | K19: 0 | L19: 0 | M19: 0 | N19: 0 | O19: 0 | P19: 0 | Q19: 0 | R19: 0 | S19: 0 | T19: 0 | U19: 0 | V19: 0 | W19: 0 | X19: 0 | Y19: 0 | Z19: 0 | AA19: 0 | AB19: 0 | AC19: 0 | AD19: 0 | AE19: 0 | AF19: =IF(Parameter!$D$20="Y",B19, AE19) -> 0
A20: =IF(Parameter!$D$20="Y",AE20,B20) -> 0 | B20: 0 | C20: 0 | D20: 0 | E20: 0 | F20: 0 | G20: 0 | H20: 0 | I20: 0 | J20: 0 | K20: 0 | L20: 0 | M20: 0 | N20: 0 | O20: 0 | P20: 0 | Q20: 0 | R20: 0 | S20: 0 | T20: 0 | U20: 0 | V20: 0 | W20: 0 | X20: 0 | Y20: 0 | Z20: 0 | AA20: 0 | AB20: 0 | AC20: 0 | AD20: 0 | AE20: 0 | AF20: =IF(Parameter!$D$20="Y",B20, AE20) -> 0
A21: =IF(Parameter!$D$20="Y",AE21,B21) -> 0 | B21: 0 | C21: 0 | D21: 0 | E21: 0 | F21: 0 | G21: 0 | H21: 0 | I21: 0 | J21: 0 | K21: 0 | L21: 0 | M21: 0 | N21: 0 | O21: 0 | P21: 0 | Q21: 0 | R21: 0 | S21: 0 | T21: 0 | U21: 0 | V21: 0 | W21: 0 | X21: 0 | Y21: 0 | Z21: 0 | AA21: 0 | AB21: 0 | AC21: 0 | AD21: 0 | AE21: 0 | AF21: =IF(Parameter!$D$20="Y",B21, AE21) -> 0
A22: =IF(Parameter!$D$20="Y",AE22,B22) -> 0 | B22: 0 | C22: 0 | D22: 0 | E22: 0 | F22: 0 | G22: 0 | H22: 0 | I22: 0 | J22: 0 | K22: 0 | L22: 0 | M22: 0 | N22: 0 | O22: 0 | P22: 0 | Q22: 0 | R22: 0 | S22: 0 | T22: 0 | U22: 0 | V22: 0 | W22: 0 | X22: 0 | Y22: 0 | Z22: 0 | AA22: 0 | AB22: 0 | AC22: 0 | AD22: 0 | AE22: 0 | AF22: =IF(Parameter!$D$20="Y",B22, AE22) -> 0
A23: =IF(Parameter!$D$20="Y",AE23,B23) -> 0 | B23: 0 | C23: 0 | D23: 0 | E23: 0 | F23: 0 | G23: 0 | H23: 0 | I23: 0 | J23: 0 | K23: 0 | L23: 0 | M23: 0 | N23: 0 | O23: 0 | P23: 0 | Q23: 0 | R23: 0 | S23: 0 | T23: 0 | U23: 0 | V23: 0 | W23: 0 | X23: 0 | Y23: 0 | Z23: 0 | AA23: 0 | AB23: 0 | AC23: 0 | AD23: 0 | AE23: 0 | AF23: =IF(Parameter!$D$20="Y",B23, AE23) -> 0
A24: =IF(Parameter!$D$20="Y",AE24,B24) -> 0 | B24: 0 | C24: 0 | D24: 0 | E24: 0 | F24: 0 | G24: 0 | H24: 0 | I24: 0 | J24: 0 | K24: 0 | L24: 0 | M24: 0 | N24: 0 | O24: 0 | P24: 0 | Q24: 0 | R24: 0 | S24: 0 | T24: 0 | U24: 0 | V24: 0 | W24: 0 | X24: 0 | Y24: 0 | Z24: 0 | AA24: 0 | AB24: 0 | AC24: 0 | AD24: 0 | AE24: 0 | AF24: =IF(Parameter!$D$20="Y",B24, AE24) -> 0
A25: =IF(Parameter!$D$20="Y",AE25,B25) -> 0 | B25: 0 | C25: 0 | D25: 0 | E25: 0 | F25: 0 | G25: 0 | H25: 0 | I25: 0 | J25: 0 | K25: 0 | L25: 0 | M25: 0 | N25: 0 | O25: 0 | P25: 0 | Q25: 0 | R25: 0 | S25: 0 | T25: 0 | U25: 0 | V25: 0 | W25: 0 | X25: 0 | Y25: 0 | Z25: 0 | AA25: 0 | AB25: 0 | AC25: 0 | AD25: 0 | AE25: 0 | AF25: =IF(Parameter!$D$20="Y",B25, AE25) -> 0
A26: =IF(Parameter!$D$20="Y",AE26,B26) -> 0 | B26: 0 | C26: 0 | D26: 0 | E26: 0 | F26: 0 | G26: 0 | H26: 0 | I26: 0 | J26: 0 | K26: 0 | L26: 0 | M26: 0 | N26: 0 | O26: 0 | P26: 0 | Q26: 0 | R26: 0 | S26: 0 | T26: 0 | U26: 0 | V26: 0 | W26: 0 | X26: 0 | Y26: 0 | Z26: 0 | AA26: 0 | AB26: 0 | AC26: 0 | AD26: 0 | AE26: 0 | AF26: =IF(Parameter!$D$20="Y",B26, AE26) -> 0
A27: =IF(Parameter!$D$20="Y",AE27,B27) -> 0 | B27: 0 | C27: 0 | D27: 0 | E27: 0 | F27: 0 | G27: 0 | H27: 0 | I27: 0 | J27: 0 | K27: 0 | L27: 0 | M27: 0 | N27: 0 | O27: 0 | P27: 0 | Q27: 0 | R27: 0 | S27: 0 | T27: 0 | U27: 0 | V27: 0 | W27: 0 | X27: 0 | Y27: 0 | Z27: 0 | AA27: 0 | AB27: 0 | AC27: 0 | AD27: 0 | AE27: 0 | AF27: =IF(Parameter!$D$20="Y",B27, AE27) -> 0
A28: =IF(Parameter!$D$20="Y",AE28,B28) -> 0 | B28: 0 | C28: 0 | D28: 0 | E28: 0 | F28: 0 | G28: 0 | H28: 0 | I28: 0 | J28: 0 | K28: 0 | L28: 0 | M28: 0 | N28: 0 | O28: 0 | P28: 0 | Q28: 0 | R28: 0 | S28: 0 | T28: 0 | U28: 0 | V28: 0 | W28: 0 | X28: 0 | Y28: 0 | Z28: 0 | AA28: 0 | AB28: 0 | AC28: 0 | AD28: 0 | AE28: 0 | AF28: =IF(Parameter!$D$20="Y",B28, AE28) -> 0
A29: =IF(Parameter!$D$20="Y",AE29,B29) -> 0 | B29: 0 | C29: 0 | D29: 0 | E29: 0 | F29: 0 | G29: 0 | H29: 0 | I29: 0 | J29: 0 | K29: 0 | L29: 0 | M29: 0 | N29: 0 | O29: 0 | P29: 0 | Q29: 0 | R29: 0 | S29: 0 | T29: 0 | U29: 0 | V29: 0 | W29: 0 | X29: 0 | Y29: 0 | Z29: 0 | AA29: 0 | AB29: 0 | AC29: 0 | AD29: 0 | AE29: 0 | AF29: =IF(Parameter!$D$20="Y",B29, AE29) -> 0
A30: =IF(Parameter!$D$20="Y",AE30,B30) -> 0 | B30: 0 | C30: 0 | D30: 0 | E30: 0 | F30: 0 | G30: 0 | H30: 0 | I30: 0 | J30: 0 | K30: 0 | L30: 0 | M30: 0 | N30: 0 | O30: 0 | P30: 0 | Q30: 0 | R30: 0 | S30: 0 | T30: 0 | U30: 0 | V30: 0 | W30: 0 | X30: 0 | Y30: 0 | Z30: 0 | AA30: 0 | AB30: 0 | AC30: 0 | AD30: 0 | AE30: 0 | AF30: =IF(Parameter!$D$20="Y",B30, AE30) -> 0
A31: =IF(Parameter!$D$20="Y",AE31,B31) -> 0 | B31: 0 | C31: 0 | D31: 0 | E31: 0 | F31: 0 | G31: 0 | H31: 0 | I31: 0 | J31: 0 | K31: 0 | L31: 0 | M31: 0 | N31: 0 | O31: 0 | P31: 0 | Q31: 0 | R31: 0 | S31: 0 | T31: 0 | U31: 0 | V31: 0 | W31: 0 | X31: 0 | Y31: 0 | Z31: 0 | AA31: 0 | AB31: 0 | AC31: 0 | AD31: 0 | AE31: 0 | AF31: =IF(Parameter!$D$20="Y",B31, AE31) -> 0
A32: =IF(AND(Parameter!$D$19="Y", Parameter!$D$20="Y"), CA!A2, B31) -> 0 | B32: =IF(Parameter!$D$19="Y", CA!B2, B31) -> 0 | C32: =IF(Parameter!$D$19="Y", CA!C2, C31) -> 0 | D32: =IF(Parameter!$D$19="Y", CA!D2, D31) -> 0 | E32: =IF(Parameter!$D$19="Y", CA!E2, E31) -> 0 | F32: =IF(Parameter!$D$19="Y", CA!F2, F31) -> 0 | G32: =IF(Parameter!$D$19="Y", CA!G2, G31) -> 0 | H32: =IF(Parameter!$D$19="Y", CA!H2, H31) -> 0 | I32: =IF(Parameter!$D$19="Y", CA!I2, I31) -> 0 | J32: =IF(Parameter!$D$19="Y", CA!J2, J31) -> 0 | K32: =IF(Parameter!$D$19="Y", CA!K2, K31) -> 0 | L32: =IF(Parameter!$D$19="Y", CA!L2, L31) -> 0 | M32: =IF(Parameter!$D$19="Y", CA!M2, M31) -> 0 | N32: =IF(Parameter!$D$19="Y", CA!N2, N31) -> 0 | O32: =IF(Parameter!$D$19="Y", CA!O2, O31) -> 0 | P32: =IF(Parameter!$D$19="Y", CA!P2, P31) -> 0 | Q32: =IF(Parameter!$D$19="Y", CA!Q2, Q31) -> 0 | R32: =IF(Parameter!$D$19="Y", CA!R2, R31) -> 0 | S32: =IF(Parameter!$D$19="Y", CA!S2, S31) -> 0 | T32: =IF(Parameter!$D$19="Y", CA!T2, T31) -> 0 | U32: =IF(Parameter!$D$19="Y", CA!U2, U31) -> 0 | V32: =IF(Parameter!$D$19="Y", CA!V2, V31) -> 0 | W32: =IF(Parameter!$D$19="Y", CA!W2, W31) -> 0 | X32: =IF(Parameter!$D$19="Y", CA!X2, X31) -> 0 | Y32: =IF(Parameter!$D$19="Y", CA!Y2, Y31) -> 0 | Z32: =IF(Parameter!$D$19="Y", CA!Z2, Z31) -> 0 | AA32: =IF(Parameter!$D$19="Y", CA!AA2, AA31) -> 0 | AB32: =IF(Parameter!$D$19="Y", CA!AB2, AB31) -> 0 | AC32: =IF(Parameter!$D$19="Y", CA!AC2, AC31) -> 0 | AD32: =IF(Parameter!$D$19="Y", CA!AD2, AD31) -> 0 | AE32: =IF(Parameter!$D$19="Y", CA!AE2, AE31) -> 0 | AF32: =IF(AND(Parameter!$D$19="Y", Parameter!$D$20="Y"), CA!AF2, AE31) -> 0
A34: =IF(AND(Parameter!$D$19="Y", Parameter!$D$20="Y"), CA!A64, B35) -> -0.1 | B34: =IF(Parameter!$D$19="Y", CA!B64, CA!B35) -> -0.1 | C34: =IF(Parameter!$D$19="Y", CA!C64, CA!C35) -> -0.1 | D34: =IF(Parameter!$D$19="Y", CA!D64, CA!D35) -> -0.1 | E34: =IF(Parameter!$D$19="Y", CA!E64, CA!E35) -> -0.1 | F34: =IF(Parameter!$D$19="Y", CA!F64, CA!F35) -> -0.1 | G34: =IF(Parameter!$D$19="Y", CA!G64, CA!G35) -> -0.1 | H34: =IF(Parameter!$D$19="Y", CA!H64, CA!H35) -> -0.1 | I34: =IF(Parameter!$D$19="Y", CA!I64, CA!I35) -> -0.1 | J34: =IF(Parameter!$D$19="Y", CA!J64, CA!J35) -> -0.1 | K34: =IF(Parameter!$D$19="Y", CA!K64, CA!K35) -> -0.1 | L34: =IF(Parameter!$D$19="Y", CA!L64, CA!L35) -> -0.1 | M34: =IF(Parameter!$D$19="Y", CA!M64, CA!M35) -> -0.1 | N34: =IF(Parameter!$D$19="Y", CA!N64, CA!N35) -> -0.1 | O34: =IF(Parameter!$D$19="Y", CA!O64, CA!O35) -> -0.1 | P34: =IF(Parameter!$D$19="Y", CA!P64, CA!P35) -> -0.1 | Q34: =IF(Parameter!$D$19="Y", CA!Q64, CA!Q35) -> -0.1 | R34: =IF(Parameter!$D$19="Y", CA!R64, CA!R35) -> -0.1 | S34: =IF(Parameter!$D$19="Y", CA!S64, CA!S35) -> -0.1 | T34: =IF(Parameter!$D$19="Y", CA!T64, CA!T35) -> -0.1 | U34: =IF(Parameter!$D$19="Y", CA!U64, CA!U35) -> -0.1 | V34: =IF(Parameter!$D$19="Y", CA!V64, CA!V35) -> -0.1 | W34: =IF(Parameter!$D$19="Y", CA!W64, CA!W35) -> -0.1 | X34: =IF(Parameter!$D$19="Y", CA!X64, CA!X35) -> -0.1 | Y34: =IF(Parameter!$D$19="Y", CA!Y64, CA!Y35) -> -0.1 | Z34: =IF(Parameter!$D$19="Y", CA!Z64, CA!Z35) -> -0.1 | AA34: =IF(Parameter!$D$19="Y", CA!AA64, CA!AA35) -> -0.1 | AB34: =IF(Parameter!$D$19="Y", CA!AB64, CA!AB35) -> -0.1 | AC34: =IF(Parameter!$D$19="Y", CA!AC64, CA!AC35) -> -0.1 | AD34: =IF(Parameter!$D$19="Y", CA!AD64, CA!AD35) -> -0.1 | AE34: =IF(Parameter!$D$19="Y", CA!AE64, CA!AE35) -> -0.1 | AF34: =IF(AND(Parameter!$D$19="Y", Parameter!$D$20="Y"), CA!AF64, AE35) -> -0.1
A35: =IF(Parameter!$D$20="Y",AE35,B35) -> -0.1 | B35: -0.1 | C35: -0.1 | D35: -0.1 | E35: -0.1 | F35: -0.1 | G35: -0.1 | H35: -0.1 | I35: -0.1 | J35: -0.1 | K35: -0.1 | L35: -0.1 | M35: -0.1 | N35: -0.1 | O35: -0.1 | P35: -0.1 | Q35: -0.1 | R35: -0.1 | S35: -0.1 | T35: -0.1 | U35: -0.1 | V35: -0.1 | W35: -0.1 | X35: -0.1 | Y35: -0.1 | Z35: -0.1 | AA35: -0.1 | AB35: -0.1 | AC35: -0.1 | AD35: -0.1 | AE35: -0.1 | AF35: =IF(Parameter!$D$20="Y",B35, AE35) -> -0.1 | AK35: =(0.1-B35)/0.2*(Parameter!$D$2-Parameter!$D$3)+Parameter!$D$3 -> 800 | AL35: =(0.1-C35)/0.2*(Parameter!$D$2-Parameter!$D$3)+Parameter!$D$3 -> 800 | AM35: =(0.1-D35)/0.2*(Parameter!$D$2-Parameter!$D$3)+Parameter!$D$3 -> 800 | AN35: =(0.1-E35)/0.2*(Parameter!$D$2-Parameter!$D$3)+Parameter!$D$3 -> 800 | AO35: =(0.1-F35)/0.2*(Parameter!$D$2-Parameter!$D$3)+Parameter!$D$3 -> 800 | AP35: =(0.1-G35)/0.2*(Parameter!$D$2-Parameter!$D$3)+Parameter!$D$3 -> 800 | AQ35: =(0.1-H35)/0.2*(Parameter!$D$2-Parameter!$D$3)+Parameter!$D$3 -> 800 | AR35: =(0.1-I35)/0.2*(Parameter!$D$2-Parameter!$D$3)+Parameter!$D$3 -> 800 | AS35: =(0.1-J35)/0.2*(Parameter!$D$2-Parameter!$D$3)+Parameter!$D$3 -> 800 | AT35: =(0.1-K35)/0.2*(Parameter!$D$2-Parameter!$D$3)+Parameter!$D$3 -> 800 | AU35: =(0.1-L35)/0.2*(Parameter!$D$2-Parameter!$D$3)+Parameter!$D$3 -> 800 | AV35: =(0.1-M35)/0.2*(Parameter!$D$2-Parameter!$D$3)+Parameter!$D$3 -> 800 | AW35: =(0.1-N35)/0.2*(Parameter!$D$2-Parameter!$D$3)+Parameter!$D$3 -> 800 | AX35: =(0.1-O35)/0.2*(Parameter!$D$2-Parameter!$D$3)+Parameter!$D$3 -> 800 | AY35: =(0.1-P35)/0.2*(Parameter!$D$2-Parameter!$D$3)+Parameter!$D$3 -> 800 | AZ35: =(0.1-Q35)/0.2*(Parameter!$D$2-Parameter!$D$3)+Parameter!$D$3 -> 800 | BA35: =(0.1-R35)/0.2*(Parameter!$D$2-Parameter!$D$3)+Parameter!$D$3 -> 800 | BB35: =(0.1-S35)/0.2*(Parameter!$D$2-Parameter!$D$3)+Parameter!$D$3 -> 800 | BC35: =(0.1-T35)/0.2*(Parameter!$D$2-Parameter!$D$3)+Parameter!$D$3 -> 800 | BD35: =(0.1-U35)/0.2*(Parameter!$D$2-Parameter!$D$3)+Parameter!$D$3 -> 800 | BE35: =(0.1-V35)/0.2*(Parameter!$D$2-Parameter!$D$3)+Parameter!$D$3 -> 800 | BF35: =(0.1-W35)/0.2*(Parameter!$D$2-Parameter!$D$3)+Parameter!$D$3 -> 800 | BG35: =(0.1-X35)/0.2*(Parameter!$D$2-Parameter!$D$3)+Parameter!$D$3 -> 800 | BH35: =(0.1-Y35)/0.2*(Parameter!$D$2-Parameter!$D$3)+Parameter!$D$3 -> 800 | BI35: =(0.1-Z35)/0.2*(Parameter!$D$2-Parameter!$D$3)+Parameter!$D$3 -> 800 | BJ35: =(0.1-AA35)/0.2*(Parameter!$D$2-Parameter!$D$3)+Parameter!$D$3 -> 800 | BK35: =(0.1-AB35)/0.2*(Parameter!$D$2-Parameter!$D$3)+Parameter!$D$3 -> 800 | BL35: =(0.1-AC35)/0.2*(Parameter!$D$2-Parameter!$D$3)+Parameter!$D$3 -> 800 | BM35: =(0.1-AD35)/0.2*(Parameter!$D$2-Parameter!$D$3)+Parameter!$D$3 -> 800 | BN35: =(0.1-AE35)/0.2*(Parameter!$D$2-Parameter!$D$3)+Parameter!$D$3 -> 800
A36: =IF(Parameter!$D$20="Y",AE36,B36) -> -0.1 | B36: -0.1 | C36: -0.1 | D36: -0.1 | E36: -0.1 | F36: -0.1 | G36: -0.1 | H36: -0.1 | I36: -0.1 | J36: -0.1 | K36: -0.1 | L36: -0.1 | M36: -0.1 | N36: -0.1 | O36: -0.1 | P36: -0.1 | Q36: -0.1 | R36: -0.1 | S36: -0.1 | T36: -0.1 | U36: -0.1 | V36: -0.1 | W36: -0.1 | X36: -0.1 | Y36: -0.1 | Z36: -0.1 | AA36: -0.1 | AB36: -0.1 | AC36: -0.1 | AD36: -0.1 | AE36: -0.1 | AF36: =IF(Parameter!$D$20="Y",B36, AE36) -> -0.1 | AK36: =(0.1-B36)/0.2*(Parameter!$D$2-Parameter!$D$3)+Parameter!$D$3 -> 800 | AL36: =(0.1-C36)/0.2*(Parameter!$D$2-Parameter!$D$3)+Parameter!$D$3 -> 800 | AM36: =(0.1-D36)/0.2*(Parameter!$D$2-Parameter!$D$3)+Parameter!$D$3 -> 800 | AN36: =(0.1-E36)/0.2*(Parameter!$D$2-Parameter!$D$3)+Parameter!$D$3 -> 800 | AO36: =(0.1-F36)/0.2*(Parameter!$D$2-Parameter!$D$3)+Parameter!$D$3 -> 800 | AP36: =(0.1-G36)/0.2*(Parameter!$D$2-Parameter!$D$3)+Parameter!$D$3 -> 800 | AQ36: =(0.1-H36)/0.2*(Parameter!$D$2-Parameter!$D$3)+Parameter!$D$3 -> 800 | AR36: =(0.1-I36)/0.2*(Parameter!$D$2-Parameter!$D$3)+Parameter!$D$3 -> 800 | AS36: =(0.1-J36)/0.2*(Parameter!$D$2-Parameter!$D$3)+Parameter!$D$3 -> 800 | AT36: =(0.1-K36)/0.2*(Parameter!$D$2-Parameter!$D$3)+Parameter!$D$3 -> 800 | AU36: =(0.1-L36)/0.2*(Parameter!$D$2-Parameter!$D$3)+Parameter!$D$3 -> 800 | AV36: =(0.1-M36)/0.2*(Parameter!$D$2-Parameter!$D$3)+Parameter!$D$3 -> 800 | AW36: =(0.1-N36)/0.2*(Parameter!$D$2-Parameter!$D$3)+Parameter!$D$3 -> 800 | AX36: =(0.1-O36)/0.2*(Parameter!$D$2-Parameter!$D$3)+Parameter!$D$3 -> 800 | AY36: =(0.1-P36)/0.2*(Parameter!$D$2-Parameter!$D$3)+Parameter!$D$3 -> 800 | AZ36: =(0.1-Q36)/0.2*(Parameter!$D$2-Parameter!$D$3)+Parameter!$D$3 -> 800 | BA36: =(0.1-R36)/0.2*(Parameter!$D$2-Parameter!$D$3)+Parameter!$D$3 -> 800 | BB36: =(0.1-S36)/0.2*(Parameter!$D$2-Parameter!$D$3)+Parameter!$D$3 -> 800 | BC36: =(0.1-T36)/0.2*(Parameter!$D$2-Parameter!$D$3)+Parameter!$D$3 -> 800 | BD36: =(0.1-U36)/0.2*(Parameter!$D$2-Parameter!$D$3)+Parameter!$D$3 -> 800 | BE36: =(0.1-V36)/0.2*(Parameter!$D$2-Parameter!$D$3)+Parameter!$D$3 -> 800 | BF36: =(0.1-W36)/0.2*(Parameter!$D$2-Parameter!$D$3)+Parameter!$D$3 -> 800 | BG36: =(0.1-X36)/0.2*(Parameter!$D$2-Parameter!$D$3)+Parameter!$D$3 -> 800 | BH36: =(0.1-Y36)/0.2*(Parameter!$D$2-Parameter!$D$3)+Parameter!$D$3 -> 800 | BI36: =(0.1-Z36)/0.2*(Parameter!$D$2-Parameter!$D$3)+Parameter!$D$3 -> 800 | BJ36: =(0.1-AA36)/0.2*(Parameter!$D$2-Parameter!$D$3)+Parameter!$D$3 -> 800 | BK36: =(0.1-AB36)/0.2*(Parameter!$D$2-Parameter!$D$3)+Parameter!$D$3 -> 800 | BL36: =(0.1-AC36)/0.2*(Parameter!$D$2-Parameter!$D$3)+Parameter!$D$3 -> 800 | BM36: =(0.1-AD36)/0.2*(Parameter!$D$2-Parameter!$D$3)+Parameter!$D$3 -> 800 | BN36: =(0.1-AE36)/0.2*(Parameter!$D$2-Parameter!$D$3)+Parameter!$D$3 -> 800
A37: =IF(Parameter!$D$20="Y",AE37,B37) -> -0.1 | B37: -0.1 | C37: -0.1 | D37: -0.1 | E37: -0.1 | F37: -0.1 | G37: -0.1 | H37: -0.1 | I37: -0.1 | J37: -0.1 | K37: -0.1 | L37: -0.1 | M37: -0.1 | N37: -0.1 | O37: -0.1 | P37: -0.1 | Q37: -0.1 | R37: -0.1 | S37: -0.1 | T37: -0.1 | U37: -0.1 | V37: -0.1 | W37: -0.1 | X37: -0.1 | Y37: -0.1 | Z37: -0.1 | AA37: -0.1 | AB37: -0.1 | AC37: -0.1 | AD37: -0.1 | AE37: -0.1 | AF37: =IF(Parameter!$D$20="Y",B37, AE37) -> -0.1 | AK37: =(0.1-B37)/0.2*(Parameter!$D$2-Parameter!$D$3)+Parameter!$D$3 -> 800 | AL37: =(0.1-C37)/0.2*(Parameter!$D$2-Parameter!$D$3)+Parameter!$D$3 -> 800 | AM37: =(0.1-D37)/0.2*(Parameter!$D$2-Parameter!$D$3)+Parameter!$D$3 -> 800 | AN37: =(0.1-E37)/0.2*(Parameter!$D$2-Parameter!$D$3)+Parameter!$D$3 -> 800 | AO37: =(0.1-F37)/0.2*(Parameter!$D$2-Parameter!$D$3)+Parameter!$D$3 -> 800 | AP37: =(0.1-G37)/0.2*(Parameter!$D$2-Parameter!$D$3)+Parameter!$D$3 -> 800 | AQ37: =(0.1-H37)/0.2*(Parameter!$D$2-Parameter!$D$3)+Parameter!$D$3 -> 800 | AR37: =(0.1-I37)/0.2*(Parameter!$D$2-Parameter!$D$3)+Parameter!$D$3 -> 800 | AS37: =(0.1-J37)/0.2*(Parameter!$D$2-Parameter!$D$3)+Parameter!$D$3 -> 800 | AT37: =(0.1-K37)/0.2*(Parameter!$D$2-Parameter!$D$3)+Parameter!$D$3 -> 800 | AU37: =(0.1-L37)/0.2*(Parameter!$D$2-Parameter!$D$3)+Parameter!$D$3 -> 800 | AV37: =(0.1-M37)/0.2*(Parameter!$D$2-Parameter!$D$3)+Parameter!$D$3 -> 800 | AW37: =(0.1-N37)/0.2*(Parameter!$D$2-Parameter!$D$3)+Parameter!$D$3 -> 800 | AX37: =(0.1-O37)/0.2*(Parameter!$D$2-Parameter!$D$3)+Parameter!$D$3 -> 800 | AY37: =(0.1-P37)/0.2*(Parameter!$D$2-Parameter!$D$3)+Parameter!$D$3 -> 800 | AZ37: =(0.1-Q37)/0.2*(Parameter!$D$2-Parameter!$D$3)+Parameter!$D$3 -> 800 | BA37: =(0.1-R37)/0.2*(Parameter!$D$2-Parameter!$D$3)+Parameter!$D$3 -> 800 | BB37: =(0.1-S37)/0.2*(Parameter!$D$2-Parameter!$D$3)+Parameter!$D$3 -> 800 | BC37: =(0.1-T37)/0.2*(Parameter!$D$2-Parameter!$D$3)+Parameter!$D$3 -> 800 | BD37: =(0.1-U37)/0.2*(Parameter!$D$2-Parameter!$D$3)+Parameter!$D$3 -> 800 | BE37: =(0.1-V37)/0.2*(Parameter!$D$2-Parameter!$D$3)+Parameter!$D$3 -> 800 | BF37: =(0.1-W37)/0.2*(Parameter!$D$2-Parameter!$D$3)+Parameter!$D$3 -> 800 | BG37: =(0.1-X37)/0.2*(Parameter!$D$2-Parameter!$D$3)+Parameter!$D$3 -> 800 | BH37: =(0.1-Y37)/0.2*(Parameter!$D$2-Parameter!$D$3)+Parameter!$D$3 -> 800 | BI37: =(0.1-Z37)/0.2*(Parameter!$D$2-Parameter!$D$3)+Parameter!$D$3 -> 800 | BJ37: =(0.1-AA37)/0.2*(Parameter!$D$2-Parameter!$D$3)+Parameter!$D$3 -> 800 | BK37: =(0.1-AB37)/0.2*(Parameter!$D$2-Parameter!$D$3)+Parameter!$D$3 -> 800 | BL37: =(0.1-AC37)/0.2*(Parameter!$D$2-Parameter!$D$3)+Parameter!$D$3 -> 800 | BM37: =(0.1-AD37)/0.2*(Parameter!$D$2-Parameter!$D$3)+Parameter!$D$3 -> 800 | BN37: =(0.1-AE37)/0.2*(Parameter!$D$2-Parameter!$D$3)+Parameter!$D$3 -> 800
A38: =IF(Parameter!$D$20="Y",AE38,B38) -> -0.1 | B38: -0.1 | C38: -0.1 | D38: -0.1 | E38: -0.1 | F38: -0.1 | G38: -0.1 | H38: -0.1 | I38: -0.1 | J38: -0.1 | K38: -0.1 | L38: -0.1 | M38: -0.1 | N38: -0.1 | O38: -0.1 | P38: -0.1 | Q38: -0.1 | R38: -0.1 | S38: -0.1 | T38: -0.1 | U38: -0.1 | V38: -0.1 | W38: -0.1 | X38: -0.1 | Y38: -0.1 | Z38: -0.1 | AA38: -0.1 | AB38: -0.1 | AC38: -0.1 | AD38: -0.1 | AE38: -0.1 | AF38: =IF(Parameter!$D$20="Y",B38, AE38) -> -0.1 | AK38: =(0.1-B38)/0.2*(Parameter!$D$2-Parameter!$D$3)+Parameter!$D$3 -> 800 | AL38: =(0.1-C38)/0.2*(Parameter!$D$2-Parameter!$D$3)+Parameter!$D$3 -> 800 | AM38: =(0.1-D38)/0.2*(Parameter!$D$2-Parameter!$D$3)+Parameter!$D$3 -> 800 | AN38: =(0.1-E38)/0.2*(Parameter!$D$2-Parameter!$D$3)+Parameter!$D$3 -> 800 | AO38: =(0.1-F38)/0.2*(Parameter!$D$2-Parameter!$D$3)+Parameter!$D$3 -> 800 | AP38: =(0.1-G38)/0.2*(Parameter!$D$2-Parameter!$D$3)+Parameter!$D$3 -> 800 | AQ38: =(0.1-H38)/0.2*(Parameter!$D$2-Parameter!$D$3)+Parameter!$D$3 -> 800 | AR38: =(0.1-I38)/0.2*(Parameter!$D$2-Parameter!$D$3)+Parameter!$D$3 -> 800 | AS38: =(0.1-J38)/0.2*(Parameter!$D$2-Parameter!$D$3)+Parameter!$D$3 -> 800 | AT38: =(0.1-K38)/0.2*(Parameter!$D$2-Parameter!$D$3)+Parameter!$D$3 -> 800 | AU38: =(0.1-L38)/0.2*(Parameter!$D$2-Parameter!$D$3)+Parameter!$D$3 -> 800 | AV38: =(0.1-M38)/0.2*(Parameter!$D$2-Parameter!$D$3)+Parameter!$D$3 -> 800 | AW38: =(0.1-N38)/0.2*(Parameter!$D$2-Parameter!$D$3)+Parameter!$D$3 -> 800 | AX38: =(0.1-O38)/0.2*(Parameter!$D$2-Parameter!$D$3)+Parameter!$D$3 -> 800 | AY38: =(0.1-P38)/0.2*(Parameter!$D$2-Parameter!$D$3)+Parameter!$D$3 -> 800 | AZ38: =(0.1-Q38)/0.2*(Parameter!$D$2-Parameter!$D$3)+Parameter!$D$3 -> 800 | BA38: =(0.1-R38)/0.2*(Parameter!$D$2-Parameter!$D$3)+Parameter!$D$3 -> 800 | BB38: =(0.1-S38)/0.2*(Parameter!$D$2-Parameter!$D$3)+Parameter!$D$3 -> 800 | BC38: =(0.1-T38)/0.2*(Parameter!$D$2-Parameter!$D$3)+Parameter!$D$3 -> 800 | BD38: =(0.1-U38)/0.2*(Parameter!$D$2-Parameter!$D$3)+Parameter!$D$3 -> 800 | BE38: =(0.1-V38)/0.2*(Parameter!$D$2-Parameter!$D$3)+Parameter!$D$3 -> 800 | BF38: =(0.1-W38)/0.2*(Parameter!$D$2-Parameter!$D$3)+Parameter!$D$3 -> 800 | BG38: =(0.1-X38)/0.2*(Parameter!$D$2-Parameter!$D$3)+Parameter!$D$3 -> 800 | BH38: =(0.1-Y38)/0.2*(Parameter!$D$2-Parameter!$D$3)+Parameter!$D$3 -> 800 | BI38: =(0.1-Z38)/0.2*(Parameter!$D$2-Parameter!$D$3)+Parameter!$D$3 -> 800 | BJ38: =(0.1-AA38)/0.2*(Parameter!$D$2-Parameter!$D$3)+Parameter!$D$3 -> 800 | BK38: =(0.1-AB38)/0.2*(Parameter!$D$2-Parameter!$D$3)+Parameter!$D$3 -> 800 | BL38: =(0.1-AC38)/0.2*(Parameter!$D$2-Parameter!$D$3)+Parameter!$D$3 -> 800 | BM38: =(0.1-AD38)/0.2*(Parameter!$D$2-Parameter!$D$3)+Parameter!$D$3 -> 800 | BN38: =(0.1-AE38)/0.2*(Parameter!$D$2-Parameter!$D$3)+Parameter!$D$3 -> 800
A39: =IF(Parameter!$D$20="Y",AE39,B39) -> -0.1 | B39: -0.1 | C39: -0.1 | D39: -0.1 | E39: -0.1 | F39: -0.1 | G39: -0.1 | H39: -0.1 | I39: -0.1 | J39: -0.1 | K39: -0.1 | L39: -0.1 | M39: -0.1 | N39: -0.1 | O39: -0.1 | P39: -0.1 | Q39: -0.1 | R39: -0.1 | S39: -0.1 | T39: -0.1 | U39: -0.1 | V39: -0.1 | W39: -0.1 | X39: -0.1 | Y39: -0.1 | Z39: -0.1 | AA39: -0.1 | AB39: -0.1 | AC39: -0.1 | AD39: -0.1 | AE39: -0.1 | AF39: =IF(Parameter!$D$20="Y",B39, AE39) -> -0.1 | AK39: =(0.1-B39)/0.2*(Parameter!$D$2-Parameter!$D$3)+Parameter!$D$3 -> 800 | AL39: =(0.1-C39)/0.2*(Parameter!$D$2-Parameter!$D$3)+Parameter!$D$3 -> 800 | AM39: =(0.1-D39)/0.2*(Parameter!$D$2-Parameter!$D$3)+Parameter!$D$3 -> 800 | AN39: =(0.1-E39)/0.2*(Parameter!$D$2-Parameter!$D$3)+Parameter!$D$3 -> 800 | AO39: =(0.1-F39)/0.2*(Parameter!$D$2-Parameter!$D$3)+Parameter!$D$3 -> 800 | AP39: =(0.1-G39)/0.2*(Parameter!$D$2-Parameter!$D$3)+Parameter!$D$3 -> 800 | AQ39: =(0.1-H39)/0.2*(Parameter!$D$2-Parameter!$D$3)+Parameter!$D$3 -> 800 | AR39: =(0.1-I39)/0.2*(Parameter!$D$2-Parameter!$D$3)+Parameter!$D$3 -> 800 | AS39: =(0.1-J39)/0.2*(Parameter!$D$2-Parameter!$D$3)+Parameter!$D$3 -> 800 | AT39: =(0.1-K39)/0.2*(Parameter!$D$2-Parameter!$D$3)+Parameter!$D$3 -> 800 | AU39: =(0.1-L39)/0.2*(Parameter!$D$2-Parameter!$D$3)+Parameter!$D$3 -> 800 | AV39: =(0.1-M39)/0.2*(Parameter!$D$2-Parameter!$D$3)+Parameter!$D$3 -> 800 | AW39: =(0.1-N39)/0.2*(Parameter!$D$2-Parameter!$D$3)+Parameter!$D$3 -> 800 | AX39: =(0.1-O39)/0.2*(Parameter!$D$2-Parameter!$D$3)+Parameter!$D$3 -> 800 | AY39: =(0.1-P39)/0.2*(Parameter!$D$2-Parameter!$D$3)+Parameter!$D$3 -> 800 | AZ39: =(0.1-Q39)/0.2*(Parameter!$D$2-Parameter!$D$3)+Parameter!$D$3 -> 800 | BA39: =(0.1-R39)/0.2*(Parameter!$D$2-Parameter!$D$3)+Parameter!$D$3 -> 800 | BB39: =(0.1-S39)/0.2*(Parameter!$D$2-Parameter!$D$3)+Parameter!$D$3 -> 800 | BC39: =(0.1-T39)/0.2*(Parameter!$D$2-Parameter!$D$3)+Parameter!$D$3 -> 800 | BD39: =(0.1-U39)/0.2*(Parameter!$D$2-Parameter!$D$3)+Parameter!$D$3 -> 800 | BE39: =(0.1-V39)/0.2*(Parameter!$D$2-Parameter!$D$3)+Parameter!$D$3 -> 800 | BF39: =(0.1-W39)/0.2*(Parameter!$D$2-Parameter!$D$3)+Parameter!$D$3 -> 800 | BG39: =(0.1-X39)/0.2*(Parameter!$D$2-Parameter!$D$3)+Parameter!$D$3 -> 800 | BH39: =(0.1-Y39)/0.2*(Parameter!$D$2-Parameter!$D$3)+Parameter!$D$3 -> 800 | BI39: =(0.1-Z39)/0.2*(Parameter!$D$2-Parameter!$D$3)+Parameter!$D$3 -> 800 | BJ39: =(0.1-AA39)/0.2*(Parameter!$D$2-Parameter!$D$3)+Parameter!$D$3 -> 800 | BK39: =(0.1-AB39)/0.2*(Parameter!$D$2-Parameter!$D$3)+Parameter!$D$3 -> 800 | BL39: =(0.1-AC39)/0.2*(Parameter!$D$2-Parameter!$D$3)+Parameter!$D$3 -> 800 | BM39: =(0.1-AD39)/0.2*(Parameter!$D$2-Parameter!$D$3)+Parameter!$D$3 -> 800 | BN39: =(0.1-AE39)/0.2*(Parameter!$D$2-Parameter!$D$3)+Parameter!$D$3 -> 800
A40: =IF(Parameter!$D$20="Y",AE40,B40) -> -0.1 | B40: -0.1 | C40: -0.1 | D40: -0.1 | E40: -0.1 | F40: -0.1 | G40: -0.1 | H40: -0.1 | I40: -0.1 | J40: -0.1 | K40: -0.1 | L40: -0.1 | M40: -0.1 | N40: -0.1 | O40: -0.1 | P40: -0.1 | Q40: -0.1 | R40: -0.1 | S40: -0.1 | T40: -0.1 | U40: -0.1 | V40: -0.1 | W40: -0.1 | X40: -0.1 | Y40: -0.1 | Z40: -0.1 | AA40: -0.1 | AB40: -0.1 | AC40: -0.1 | AD40: -0.1 | AE40: -0.1 | AF40: =IF(Parameter!$D$20="Y",B40, AE40) -> -0.1 | AK40: =(0.1-B40)/0.2*(Parameter!$D$2-Parameter!$D$3)+Parameter!$D$3 -> 800 | AL40: =(0.1-C40)/0.2*(Parameter!$D$2-Parameter!$D$3)+Parameter!$D$3 -> 800 | AM40: =(0.1-D40)/0.2*(Parameter!$D$2-Parameter!$D$3)+Parameter!$D$3 -> 800 | AN40: =(0.1-E40)/0.2*(Parameter!$D$2-Parameter!$D$3)+Parameter!$D$3 -> 800 | AO40: =(0.1-F40)/0.2*(Parameter!$D$2-Parameter!$D$3)+Parameter!$D$3 -> 800 | AP40: =(0.1-G40)/0.2*(Parameter!$D$2-Parameter!$D$3)+Parameter!$D$3 -> 800 | AQ40: =(0.1-H40)/0.2*(Parameter!$D$2-Parameter!$D$3)+Parameter!$D$3 -> 800 | AR40: =(0.1-I40)/0.2*(Parameter!$D$2-Parameter!$D$3)+Parameter!$D$3 -> 800 | AS40: =(0.1-J40)/0.2*(Parameter!$D$2-Parameter!$D$3)+Parameter!$D$3 -> 800 | AT40: =(0.1-K40)/0.2*(Parameter!$D$2-Parameter!$D$3)+Parameter!$D$3 -> 800 | AU40: =(0.1-L40)/0.2*(Parameter!$D$2-Parameter!$D$3)+Parameter!$D$3 -> 800 | AV40: =(0.1-M40)/0.2*(Parameter!$D$2-Parameter!$D$3)+Parameter!$D$3 -> 800 | AW40: =(0.1-N40)/0.2*(Parameter!$D$2-Parameter!$D$3)+Parameter!$D$3 -> 800 | AX40: =(0.1-O40)/0.2*(Parameter!$D$2-Parameter!$D$3)+Parameter!$D$3 -> 800 | AY40: =(0.1-P40)/0.2*(Parameter!$D$2-Parameter!$D$3)+Parameter!$D$3 -> 800 | AZ40: =(0.1-Q40)/0.2*(Parameter!$D$2-Parameter!$D$3)+Parameter!$D$3 -> 800 | BA40: =(0.1-R40)/0.2*(Parameter!$D$2-Parameter!$D$3)+Parameter!$D$3 -> 800 | BB40: =(0.1-S40)/0.2*(Parameter!$D$2-Parameter!$D$3)+Parameter!$D$3 -> 800 | BC40: =(0.1-T40)/0.2*(Parameter!$D$2-Parameter!$D$3)+Parameter!$D$3 -> 800 | BD40: =(0.1-U40)/0.2*(Parameter!$D$2-Parameter!$D$3)+Parameter!$D$3 -> 800 | BE40: =(0.1-V40)/0.2*(Parameter!$D$2-Parameter!$D$3)+Parameter!$D$3 -> 800 | BF40: =(0.1-W40)/0.2*(Parameter!$D$2-Parameter!$D$3)+Parameter!$D$3 -> 800 | BG40: =(0.1-X40)/0.2*(Parameter!$D$2-Parameter!$D$3)+Parameter!$D$3 -> 800 | BH40: =(0.1-Y40)/0.2*(Parameter!$D$2-Parameter!$D$3)+Parameter!$D$3 -> 800 | BI40: =(0.1-Z40)/0.2*(Parameter!$D$2-Parameter!$D$3)+Parameter!$D$3 -> 800 | BJ40: =(0.1-AA40)/0.2*(Parameter!$D$2-Parameter!$D$3)+Parameter!$D$3 -> 800 | BK40: =(0.1-AB40)/0.2*(Parameter!$D$2-Parameter!$D$3)+Parameter!$D$3 -> 800 | BL40: =(0.1-AC40)/0.2*(Parameter!$D$2-Parameter!$D$3)+Parameter!$D$3 -> 800 | BM40: =(0.1-AD40)/0.2*(Parameter!$D$2-Parameter!$D$3)+Parameter!$D$3 -> 800 | BN40: =(0.1-AE40)/0.2*(Parameter!$D$2-Parameter!$D$3)+Parameter!$D$3 -> 800
A41: =IF(Parameter!$D$20="Y",AE41,B41) -> -0.1 | B41: -0.1 | C41: -0.1 | D41: -0.1 | E41: -0.1 | F41: -0.1 | G41: -0.1 | H41: -0.1 | I41: -0.1 | J41: -0.1 | K41: -0.1 | L41: -0.1 | M41: -0.1 | N41: -0.1 | O41: -0.1 | P41: -0.1 | Q41: -0.1 | R41: -0.1 | S41: -0.1 | T41: -0.1 | U41: -0.1 | V41: -0.1 | W41: -0.1 | X41: -0.1 | Y41: -0.1 | Z41: -0.1 | AA41: -0.1 | AB41: -0.1 | AC41: -0.1 | AD41: -0.1 | AE41: -0.1 | AF41: =IF(Parameter!$D$20="Y",B41, AE41) -> -0.1 | AK41: =(0.1-B41)/0.2*(Parameter!$D$2-Parameter!$D$3)+Parameter!$D$3 -> 800 | AL41: =(0.1-C41)/0.2*(Parameter!$D$2-Parameter!$D$3)+Parameter!$D$3 -> 800 | AM41: =(0.1-D41)/0.2*(Parameter!$D$2-Parameter!$D$3)+Parameter!$D$3 -> 800 | AN41: =(0.1-E41)/0.2*(Parameter!$D$2-Parameter!$D$3)+Parameter!$D$3 -> 800 | AO41: =(0.1-F41)/0.2*(Parameter!$D$2-Parameter!$D$3)+Parameter!$D$3 -> 800 | AP41: =(0.1-G41)/0.2*(Parameter!$D$2-Parameter!$D$3)+Parameter!$D$3 -> 800 | AQ41: =(0.1-H41)/0.2*(Parameter!$D$2-Parameter!$D$3)+Parameter!$D$3 -> 800 | AR41: =(0.1-I41)/0.2*(Parameter!$D$2-Parameter!$D$3)+Parameter!$D$3 -> 800 | AS41: =(0.1-J41)/0.2*(Parameter!$D$2-Parameter!$D$3)+Parameter!$D$3 -> 800 | AT41: =(0.1-K41)/0.2*(Parameter!$D$2-Parameter!$D$3)+Parameter!$D$3 -> 800 | AU41: =(0.1-L41)/0.2*(Parameter!$D$2-Parameter!$D$3)+Parameter!$D$3 -> 800 | AV41: =(0.1-M41)/0.2*(Parameter!$D$2-Parameter!$D$3)+Parameter!$D$3 -> 800 | AW41: =(0.1-N41)/0.2*(Parameter!$D$2-Parameter!$D$3)+Parameter!$D$3 -> 800 | AX41: =(0.1-O41)/0.2*(Parameter!$D$2-Parameter!$D$3)+Parameter!$D$3 -> 800 | AY41: =(0.1-P41)/0.2*(Parameter!$D$2-Parameter!$D$3)+Parameter!$D$3 -> 800 | AZ41: =(0.1-Q41)/0.2*(Parameter!$D$2-Parameter!$D$3)+Parameter!$D$3 -> 800 | BA41: =(0.1-R41)/0.2*(Parameter!$D$2-Parameter!$D$3)+Parameter!$D$3 -> 800 | BB41: =(0.1-S41)/0.2*(Parameter!$D$2-Parameter!$D$3)+Parameter!$D$3 -> 800 | BC41: =(0.1-T41)/0.2*(Parameter!$D$2-Parameter!$D$3)+Parameter!$D$3 -> 800 | BD41: =(0.1-U41)/0.2*(Parameter!$D$2-Parameter!$D$3)+Parameter!$D$3 -> 800 | BE41: =(0.1-V41)/0.2*(Parameter!$D$2-Parameter!$D$3)+Parameter!$D$3 -> 800 | BF41: =(0.1-W41)/0.2*(Parameter!$D$2-Parameter!$D$3)+Parameter!$D$3 -> 800 | BG41: =(0.1-X41)/0.2*(Parameter!$D$2-Parameter!$D$3)+Parameter!$D$3 -> 800 | BH41: =(0.1-Y41)/0.2*(Parameter!$D$2-Parameter!$D$3)+Parameter!$D$3 -> 800 | BI41: =(0.1-Z41)/0.2*(Parameter!$D$2-Parameter!$D$3)+Parameter!$D$3 -> 800 | BJ41: =(0.1-AA41)/0.2*(Parameter!$D$2-Parameter!$D$3)+Parameter!$D$3 -> 800 | BK41: =(0.1-AB41)/0.2*(Parameter!$D$2-Parameter!$D$3)+Parameter!$D$3 -> 800 | BL41: =(0.1-AC41)/0.2*(Parameter!$D$2-Parameter!$D$3)+Parameter!$D$3 -> 800 | BM41: =(0.1-AD41)/0.2*(Parameter!$D$2-Parameter!$D$3)+Parameter!$D$3 -> 800 | BN41: =(0.1-AE41)/0.2*(Parameter!$D$2-Parameter!$D$3)+Parameter!$D$3 -> 800
A42: =IF(Parameter!$D$20="Y",AE42,B42) -> -0.1 | B42: -0.1 | C42: -0.1 | D42: -0.1 | E42: -0.1 | F42: -0.1 | G42: -0.1 | H42: -0.1 | I42: -0.1 | J42: -0.1 | K42: -0.1 | L42: -0.1 | M42: -0.1 | N42: -0.1 | O42: -0.1 | P42: -0.1 | Q42: -0.1 | R42: -0.1 | S42: -0.1 | T42: -0.1 | U42: -0.1 | V42: -0.1 | W42: -0.1 | X42: -0.1 | Y42: -0.1 | Z42: -0.1 | AA42: -0.1 | AB42: -0.1 | AC42: -0.1 | AD42: -0.1 | AE42: -0.1 | AF42: =IF(Parameter!$D$20="Y",B42, AE42) -> -0.1 | AK42: =(0.1-B42)/0.2*(Parameter!$D$2-Parameter!$D$3)+Parameter!$D$3 -> 800 | AL42: =(0.1-C42)/0.2*(Parameter!$D$2-Parameter!$D$3)+Parameter!$D$3 -> 800 | AM42: =(0.1-D42)/0.2*(Parameter!$D$2-Parameter!$D$3)+Parameter!$D$3 -> 800 | AN42: =(0.1-E42)/0.2*(Parameter!$D$2-Parameter!$D$3)+Parameter!$D$3 -> 800 | AO42: =(0.1-F42)/0.2*(Parameter!$D$2-Parameter!$D$3)+Parameter!$D$3 -> 800 | AP42: =(0.1-G42)/0.2*(Parameter!$D$2-Parameter!$D$3)+Parameter!$D$3 -> 800 | AQ42: =(0.1-H42)/0.2*(Parameter!$D$2-Parameter!$D$3)+Parameter!$D$3 -> 800 | AR42: =(0.1-I42)/0.2*(Parameter!$D$2-Parameter!$D$3)+Parameter!$D$3 -> 800 | AS42: =(0.1-J42)/0.2*(Parameter!$D$2-Parameter!$D$3)+Parameter!$D$3 -> 800 | AT42: =(0.1-K42)/0.2*(Parameter!$D$2-Parameter!$D$3)+Parameter!$D$3 -> 800 | AU42: =(0.1-L42)/0.2*(Parameter!$D$2-Parameter!$D$3)+Parameter!$D$3 -> 800 | AV42: =(0.1-M42)/0.2*(Parameter!$D$2-Parameter!$D$3)+Parameter!$D$3 -> 800 | AW42: =(0.1-N42)/0.2*(Parameter!$D$2-Parameter!$D$3)+Parameter!$D$3 -> 800 | AX42: =(0.1-O42)/0.2*(Parameter!$D$2-Parameter!$D$3)+Parameter!$D$3 -> 800 | AY42: =(0.1-P42)/0.2*(Parameter!$D$2-Parameter!$D$3)+Parameter!$D$3 -> 800 | AZ42: =(0.1-Q42)/0.2*(Parameter!$D$2-Parameter!$D$3)+Parameter!$D$3 -> 800 | BA42: =(0.1-R42)/0.2*(Parameter!$D$2-Parameter!$D$3)+Parameter!$D$3 -> 800 | BB42: =(0.1-S42)/0.2*(Parameter!$D$2-Parameter!$D$3)+Parameter!$D$3 -> 800 | BC42: =(0.1-T42)/0.2*(Parameter!$D$2-Parameter!$D$3)+Parameter!$D$3 -> 800 | BD42: =(0.1-U42)/0.2*(Parameter!$D$2-Parameter!$D$3)+Parameter!$D$3 -> 800 | BE42: =(0.1-V42)/0.2*(Parameter!$D$2-Parameter!$D$3)+Parameter!$D$3 -> 800 | BF42: =(0.1-W42)/0.2*(Parameter!$D$2-Parameter!$D$3)+Parameter!$D$3 -> 800 | BG42: =(0.1-X42)/0.2*(Parameter!$D$2-Parameter!$D$3)+Parameter!$D$3 -> 800 | BH42: =(0.1-Y42)/0.2*(Parameter!$D$2-Parameter!$D$3)+Parameter!$D$3 -> 800 | BI42: =(0.1-Z42)/0.2*(Parameter!$D$2-Parameter!$D$3)+Parameter!$D$3 -> 800 | BJ42: =(0.1-AA42)/0.2*(Parameter!$D$2-Parameter!$D$3)+Parameter!$D$3 -> 800 | BK42: =(0.1-AB42)/0.2*(Parameter!$D$2-Parameter!$D$3)+Parameter!$D$3 -> 800 | BL42: =(0.1-AC42)/0.2*(Parameter!$D$2-Parameter!$D$3)+Parameter!$D$3 -> 800 | BM42: =(0.1-AD42)/0.2*(Parameter!$D$2-Parameter!$D$3)+Parameter!$D$3 -> 800 | BN42: =(0.1-AE42)/0.2*(Parameter!$D$2-Parameter!$D$3)+Parameter!$D$3 -> 800
A43: =IF(Parameter!$D$20="Y",AE43,B43) -> -0.1 | B43: -0.1 | C43: -0.1 | D43: -0.1 | E43: -0.1 | F43: -0.1 | G43: -0.1 | H43: -0.1 | I43: -0.1 | J43: -0.1 | K43: -0.1 | L43: -0.1 | M43: -0.1 | N43: -0.1 | O43: -0.1 | P43: -0.1 | Q43: -0.1 | R43: -0.1 | S43: -0.1 | T43: -0.1 | U43: -0.1 | V43: -0.1 | W43: -0.1 | X43: -0.1 | Y43: -0.1 | Z43: -0.1 | AA43: -0.1 | AB43: -0.1 | AC43: -0.1 | AD43: -0.1 | AE43: -0.1 | AF43: =IF(Parameter!$D$20="Y",B43, AE43) -> -0.1 | AK43: =(0.1-B43)/0.2*(Parameter!$D$2-Parameter!$D$3)+Parameter!$D$3 -> 800 | AL43: =(0.1-C43)/0.2*(Parameter!$D$2-Parameter!$D$3)+Parameter!$D$3 -> 800 | AM43: =(0.1-D43)/0.2*(Parameter!$D$2-Parameter!$D$3)+Parameter!$D$3 -> 800 | AN43: =(0.1-E43)/0.2*(Parameter!$D$2-Parameter!$D$3)+Parameter!$D$3 -> 800 | AO43: =(0.1-F43)/0.2*(Parameter!$D$2-Parameter!$D$3)+Parameter!$D$3 -> 800 | AP43: =(0.1-G43)/0.2*(Parameter!$D$2-Parameter!$D$3)+Parameter!$D$3 -> 800 | AQ43: =(0.1-H43)/0.2*(Parameter!$D$2-Parameter!$D$3)+Parameter!$D$3 -> 800 | AR43: =(0.1-I43)/0.2*(Parameter!$D$2-Parameter!$D$3)+Parameter!$D$3 -> 800 | AS43: =(0.1-J43)/0.2*(Parameter!$D$2-Parameter!$D$3)+Parameter!$D$3 -> 800 | AT43: =(0.1-K43)/0.2*(Parameter!$D$2-Parameter!$D$3)+Parameter!$D$3 -> 800 | AU43: =(0.1-L43)/0.2*(Parameter!$D$2-Parameter!$D$3)+Parameter!$D$3 -> 800 | AV43: =(0.1-M43)/0.2*(Parameter!$D$2-Parameter!$D$3)+Parameter!$D$3 -> 800 | AW43: =(0.1-N43)/0.2*(Parameter!$D$2-Parameter!$D$3)+Parameter!$D$3 -> 800 | AX43: =(0.1-O43)/0.2*(Parameter!$D$2-Parameter!$D$3)+Parameter!$D$3 -> 800 | AY43: =(0.1-P43)/0.2*(Parameter!$D$2-Parameter!$D$3)+Parameter!$D$3 -> 800 | AZ43: =(0.1-Q43)/0.2*(Parameter!$D$2-Parameter!$D$3)+Parameter!$D$3 -> 800 | BA43: =(0.1-R43)/0.2*(Parameter!$D$2-Parameter!$D$3)+Parameter!$D$3 -> 800 | BB43: =(0.1-S43)/0.2*(Parameter!$D$2-Parameter!$D$3)+Parameter!$D$3 -> 800 | BC43: =(0.1-T43)/0.2*(Parameter!$D$2-Parameter!$D$3)+Parameter!$D$3 -> 800 | BD43: =(0.1-U43)/0.2*(Parameter!$D$2-Parameter!$D$3)+Parameter!$D$3 -> 800 | BE43: =(0.1-V43)/0.2*(Parameter!$D$2-Parameter!$D$3)+Parameter!$D$3 -> 800 | BF43: =(0.1-W43)/0.2*(Parameter!$D$2-Parameter!$D$3)+Parameter!$D$3 -> 800 | BG43: =(0.1-X43)/0.2*(Parameter!$D$2-Parameter!$D$3)+Parameter!$D$3 -> 800 | BH43: =(0.1-Y43)/0.2*(Parameter!$D$2-Parameter!$D$3)+Parameter!$D$3 -> 800 | BI43: =(0.1-Z43)/0.2*(Parameter!$D$2-Parameter!$D$3)+Parameter!$D$3 -> 800 | BJ43: =(0.1-AA43)/0.2*(Parameter!$D$2-Parameter!$D$3)+Parameter!$D$3 -> 800 | BK43: =(0.1-AB43)/0.2*(Parameter!$D$2-Parameter!$D$3)+Parameter!$D$3 -> 800 | BL43: =(0.1-AC43)/0.2*(Parameter!$D$2-Parameter!$D$3)+Parameter!$D$3 -> 800 | BM43: =(0.1-AD43)/0.2*(Parameter!$D$2-Parameter!$D$3)+Parameter!$D$3 -> 800 | BN43: =(0.1-AE43)/0.2*(Parameter!$D$2-Parameter!$D$3)+Parameter!$D$3 -> 800
A44: =IF(Parameter!$D$20="Y",AE44,B44) -> -0.1 | B44: -0.1 | C44: -0.1 | D44: -0.1 | E44: -0.1 | F44: -0.1 | G44: -0.1 | H44: -0.1 | I44: -0.1 | J44: -0.1 | K44: -0.1 | L44: -0.1 | M44: -0.1 | N44: -0.1 | O44: -0.1 | P44: -0.1 | Q44: -0.1 | R44: -0.1 | S44: -0.1 | T44: -0.1 | U44: -0.1 | V44: -0.1 | W44: -0.1 | X44: -0.1 | Y44: -0.1 | Z44: -0.1 | AA44: -0.1 | AB44: -0.1 | AC44: -0.1 | AD44: -0.1 | AE44: -0.1 | AF44: =IF(Parameter!$D$20="Y",B44, AE44) -> -0.1 | AK44: =(0.1-B44)/0.2*(Parameter!$D$2-Parameter!$D$3)+Parameter!$D$3 -> 800 | AL44: =(0.1-C44)/0.2*(Parameter!$D$2-Parameter!$D$3)+Parameter!$D$3 -> 800 | AM44: =(0.1-D44)/0.2*(Parameter!$D$2-Parameter!$D$3)+Parameter!$D$3 -> 800 | AN44: =(0.1-E44)/0.2*(Parameter!$D$2-Parameter!$D$3)+Parameter!$D$3 -> 800 | AO44: =(0.1-F44)/0.2*(Parameter!$D$2-Parameter!$D$3)+Parameter!$D$3 -> 800 | AP44: =(0.1-G44)/0.2*(Parameter!$D$2-Parameter!$D$3)+Parameter!$D$3 -> 800 | AQ44: =(0.1-H44)/0.2*(Parameter!$D$2-Parameter!$D$3)+Parameter!$D$3 -> 800 | AR44: =(0.1-I44)/0.2*(Parameter!$D$2-Parameter!$D$3)+Parameter!$D$3 -> 800 | AS44: =(0.1-J44)/0.2*(Parameter!$D$2-Parameter!$D$3)+Parameter!$D$3 -> 800 | AT44: =(0.1-K44)/0.2*(Parameter!$D$2-Parameter!$D$3)+Parameter!$D$3 -> 800 | AU44: =(0.1-L44)/0.2*(Parameter!$D$2-Parameter!$D$3)+Parameter!$D$3 -> 800 | AV44: =(0.1-M44)/0.2*(Parameter!$D$2-Parameter!$D$3)+Parameter!$D$3 -> 800 | AW44: =(0.1-N44)/0.2*(Parameter!$D$2-Parameter!$D$3)+Parameter!$D$3 -> 800 | AX44: =(0.1-O44)/0.2*(Parameter!$D$2-Parameter!$D$3)+Parameter!$D$3 -> 800 | AY44: =(0.1-P44)/0.2*(Parameter!$D$2-Parameter!$D$3)+Parameter!$D$3 -> 800 | AZ44: =(0.1-Q44)/0.2*(Parameter!$D$2-Parameter!$D$3)+Parameter!$D$3 -> 800 | BA44: =(0.1-R44)/0.2*(Parameter!$D$2-Parameter!$D$3)+Parameter!$D$3 -> 800 | BB44: =(0.1-S44)/0.2*(Parameter!$D$2-Parameter!$D$3)+Parameter!$D$3 -> 800 | BC44: =(0.1-T44)/0.2*(Parameter!$D$2-Parameter!$D$3)+Parameter!$D$3 -> 800 | BD44: =(0.1-U44)/0.2*(Parameter!$D$2-Parameter!$D$3)+Parameter!$D$3 -> 800 | BE44: =(0.1-V44)/0.2*(Parameter!$D$2-Parameter!$D$3)+Parameter!$D$3 -> 800 | BF44: =(0.1-W44)/0.2*(Parameter!$D$2-Parameter!$D$3)+Parameter!$D$3 -> 800 | BG44: =(0.1-X44)/0.2*(Parameter!$D$2-Parameter!$D$3)+Parameter!$D$3 -> 800 | BH44: =(0.1-Y44)/0.2*(Parameter!$D$2-Parameter!$D$3)+Parameter!$D$3 -> 800 | BI44: =(0.1-Z44)/0.2*(Parameter!$D$2-Parameter!$D$3)+Parameter!$D$3 -> 800 | BJ44: =(0.1-AA44)/0.2*(Parameter!$D$2-Parameter!$D$3)+Parameter!$D$3 -> 800 | BK44: =(0.1-AB44)/0.2*(Parameter!$D$2-Parameter!$D$3)+Parameter!$D$3 -> 800 | BL44: =(0.1-AC44)/0.2*(Parameter!$D$2-Parameter!$D$3)+Parameter!$D$3 -> 800 | BM44: =(0.1-AD44)/0.2*(Parameter!$D$2-Parameter!$D$3)+Parameter!$D$3 -> 800 | BN44: =(0.1-AE44)/0.2*(Parameter!$D$2-Parameter!$D$3)+Parameter!$D$3 -> 800
A45: =IF(Parameter!$D$20="Y",AE45,B45) -> -0.1 | B45: -0.1 | C45: -0.1 | D45: -0.1 | E45: -0.1 | F45: -0.1 | G45: -0.1 | H45: -0.1 | I45: -0.1 | J45: -0.1 | K45: -0.1 | L45: -0.1 | M45: -0.1 | N45: -0.1 | O45: -0.1 | P45: -0.1 | Q45: -0.1 | R45: -0.1 | S45: -0.1 | T45: -0.1 | U45: -0.1 | V45: -0.1 | W45: -0.1 | X45: -0.1 | Y45: -0.1 | Z45: -0.1 | AA45: -0.1 | AB45: -0.1 | AC45: -0.1 | AD45: -0.1 | AE45: -0.1 | AF45: =IF(Parameter!$D$20="Y",B45, AE45) -> -0.1 | AK45: =(0.1-B45)/0.2*(Parameter!$D$2-Parameter!$D$3)+Parameter!$D$3 -> 800 | AL45: =(0.1-C45)/0.2*(Parameter!$D$2-Parameter!$D$3)+Parameter!$D$3 -> 800 | AM45: =(0.1-D45)/0.2*(Parameter!$D$2-Parameter!$D$3)+Parameter!$D$3 -> 800 | AN45: =(0.1-E45)/0.2*(Parameter!$D$2-Parameter!$D$3)+Parameter!$D$3 -> 800 | AO45: =(0.1-F45)/0.2*(Parameter!$D$2-Parameter!$D$3)+Parameter!$D$3 -> 800 | AP45: =(0.1-G45)/0.2*(Parameter!$D$2-Parameter!$D$3)+Parameter!$D$3 -> 800 | AQ45: =(0.1-H45)/0.2*(Parameter!$D$2-Parameter!$D$3)+Parameter!$D$3 -> 800 | AR45: =(0.1-I45)/0.2*(Parameter!$D$2-Parameter!$D$3)+Parameter!$D$3 -> 800 | AS45: =(0.1-J45)/0.2*(Parameter!$D$2-Parameter!$D$3)+Parameter!$D$3 -> 800 | AT45: =(0.1-K45)/0.2*(Parameter!$D$2-Parameter!$D$3)+Parameter!$D$3 -> 800 | AU45: =(0.1-L45)/0.2*(Parameter!$D$2-Parameter!$D$3)+Parameter!$D$3 -> 800 | AV45: =(0.1-M45)/0.2*(Parameter!$D$2-Parameter!$D$3)+Parameter!$D$3 -> 800 | AW45: =(0.1-N45)/0.2*(Parameter!$D$2-Parameter!$D$3)+Parameter!$D$3 -> 800 | AX45: =(0.1-O45)/0.2*(Parameter!$D$2-Parameter!$D$3)+Parameter!$D$3 -> 800 | AY45: =(0.1-P45)/0.2*(Parameter!$D$2-Parameter!$D$3)+Parameter!$D$3 -> 800 | AZ45: =(0.1-Q45)/0.2*(Parameter!$D$2-Parameter!$D$3)+Parameter!$D$3 -> 800 | BA45: =(0.1-R45)/0.2*(Parameter!$D$2-Parameter!$D$3)+Parameter!$D$3 -> 800 | BB45: =(0.1-S45)/0.2*(Parameter!$D$2-Parameter!$D$3)+Parameter!$D$3 -> 800 | BC45: =(0.1-T45)/0.2*(Parameter!$D$2-Parameter!$D$3)+Parameter!$D$3 -> 800 | BD45: =(0.1-U45)/0.2*(Parameter!$D$2-Parameter!$D$3)+Parameter!$D$3 -> 800 | BE45: =(0.1-V45)/0.2*(Parameter!$D$2-Parameter!$D$3)+Parameter!$D$3 -> 800 | BF45: =(0.1-W45)/0.2*(Parameter!$D$2-Parameter!$D$3)+Parameter!$D$3 -> 800 | BG45: =(0.1-X45)/0.2*(Parameter!$D$2-Parameter!$D$3)+Parameter!$D$3 -> 800 | BH45: =(0.1-Y45)/0.2*(Parameter!$D$2-Parameter!$D$3)+Parameter!$D$3 -> 800 | BI45: =(0.1-Z45)/0.2*(Parameter!$D$2-Parameter!$D$3)+Parameter!$D$3 -> 800 | BJ45: =(0.1-AA45)/0.2*(Parameter!$D$2-Parameter!$D$3)+Parameter!$D$3 -> 800 | BK45: =(0.1-AB45)/0.2*(Parameter!$D$2-Parameter!$D$3)+Parameter!$D$3 -> 800 | BL45: =(0.1-AC45)/0.2*(Parameter!$D$2-Parameter!$D$3)+Parameter!$D$3 -> 800 | BM45: =(0.1-AD45)/0.2*(Parameter!$D$2-Parameter!$D$3)+Parameter!$D$3 -> 800 | BN45: =(0.1-AE45)/0.2*(Parameter!$D$2-Parameter!$D$3)+Parameter!$D$3 -> 800
A46: =IF(Parameter!$D$20="Y",AE46,B46) -> -0.1 | B46: -0.1 | C46: -0.1 | D46: -0.1 | E46: -0.1 | F46: -0.1 | G46: -0.1 | H46: -0.1 | I46: -0.1 | J46: -0.1 | K46: -0.1 | L46: -0.1 | M46: -0.1 | N46: -0.1 | O46: -0.1 | P46: -0.1 | Q46: -0.1 | R46: -0.1 | S46: -0.1 | T46: -0.1 | U46: -0.1 | V46: -0.1 | W46: -0.1 | X46: -0.1 | Y46: -0.1 | Z46: -0.1 | AA46: -0.1 | AB46: -0.1 | AC46: -0.1 | AD46: -0.1 | AE46: -0.1 | AF46: =IF(Parameter!$D$20="Y",B46, AE46) -> -0.1 | AK46: =(0.1-B46)/0.2*(Parameter!$D$2-Parameter!$D$3)+Parameter!$D$3 -> 800 | AL46: =(0.1-C46)/0.2*(Parameter!$D$2-Parameter!$D$3)+Parameter!$D$3 -> 800 | AM46: =(0.1-D46)/0.2*(Parameter!$D$2-Parameter!$D$3)+Parameter!$D$3 -> 800 | AN46: =(0.1-E46)/0.2*(Parameter!$D$2-Parameter!$D$3)+Parameter!$D$3 -> 800 | AO46: =(0.1-F46)/0.2*(Parameter!$D$2-Parameter!$D$3)+Parameter!$D$3 -> 800 | AP46: =(0.1-G46)/0.2*(Parameter!$D$2-Parameter!$D$3)+Parameter!$D$3 -> 800 | AQ46: =(0.1-H46)/0.2*(Parameter!$D$2-Parameter!$D$3)+Parameter!$D$3 -> 800 | AR46: =(0.1-I46)/0.2*(Parameter!$D$2-Parameter!$D$3)+Parameter!$D$3 -> 800 | AS46: =(0.1-J46)/0.2*(Parameter!$D$2-Parameter!$D$3)+Parameter!$D$3 -> 800 | AT46: =(0.1-K46)/0.2*(Parameter!$D$2-Parameter!$D$3)+Parameter!$D$3 -> 800 | AU46: =(0.1-L46)/0.2*(Parameter!$D$2-Parameter!$D$3)+Parameter!$D$3 -> 800 | AV46: =(0.1-M46)/0.2*(Parameter!$D$2-Parameter!$D$3)+Parameter!$D$3 -> 800 | AW46: =(0.1-N46)/0.2*(Parameter!$D$2-Parameter!$D$3)+Parameter!$D$3 -> 800 | AX46: =(0.1-O46)/0.2*(Parameter!$D$2-Parameter!$D$3)+Parameter!$D$3 -> 800 | AY46: =(0.1-P46)/0.2*(Parameter!$D$2-Parameter!$D$3)+Parameter!$D$3 -> 800 | AZ46: =(0.1-Q46)/0.2*(Parameter!$D$2-Parameter!$D$3)+Parameter!$D$3 -> 800 | BA46: =(0.1-R46)/0.2*(Parameter!$D$2-Parameter!$D$3)+Parameter!$D$3 -> 800 | BB46: =(0.1-S46)/0.2*(Parameter!$D$2-Parameter!$D$3)+Parameter!$D$3 -> 800 | BC46: =(0.1-T46)/0.2*(Parameter!$D$2-Parameter!$D$3)+Parameter!$D$3 -> 800 | BD46: =(0.1-U46)/0.2*(Parameter!$D$2-Parameter!$D$3)+Parameter!$D$3 -> 800 | BE46: =(0.1-V46)/0.2*(Parameter!$D$2-Parameter!$D$3)+Parameter!$D$3 -> 800 | BF46: =(0.1-W46)/0.2*(Parameter!$D$2-Parameter!$D$3)+Parameter!$D$3 -> 800 | BG46: =(0.1-X46)/0.2*(Parameter!$D$2-Parameter!$D$3)+Parameter!$D$3 -> 800 | BH46: =(0.1-Y46)/0.2*(Parameter!$D$2-Parameter!$D$3)+Parameter!$D$3 -> 800 | BI46: =(0.1-Z46)/0.2*(Parameter!$D$2-Parameter!$D$3)+Parameter!$D$3 -> 800 | BJ46: =(0.1-AA46)/0.2*(Parameter!$D$2-Parameter!$D$3)+Parameter!$D$3 -> 800 | BK46: =(0.1-AB46)/0.2*(Parameter!$D$2-Parameter!$D$3)+Parameter!$D$3 -> 800 | BL46: =(0.1-AC46)/0.2*(Parameter!$D$2-Parameter!$D$3)+Parameter!$D$3 -> 800 | BM46: =(0.1-AD46)/0.2*(Parameter!$D$2-Parameter!$D$3)+Parameter!$D$3 -> 800 | BN46: =(0.1-AE46)/0.2*(Parameter!$D$2-Parameter!$D$3)+Parameter!$D$3 -> 800
A47: =IF(Parameter!$D$20="Y",AE47,B47) -> -0.1 | B47: -0.1 | C47: -0.1 | D47: -0.1 | E47: -0.1 | F47: -0.1 | G47: -0.1 | H47: -0.1 | I47: -0.1 | J47: -0.1 | K47: -0.1 | L47: -0.1 | M47: -0.1 | N47: -0.1 | O47: -0.1 | P47: -0.1 | Q47: -0.1 | R47: -0.1 | S47: -0.1 | T47: -0.1 | U47: -0.1 | V47: -0.1 | W47: -0.1 | X47: -0.1 | Y47: -0.1 | Z47: -0.1 | AA47: -0.1 | AB47: -0.1 | AC47: -0.1 | AD47: -0.1 | AE47: -0.1 | AF47: =IF(Parameter!$D$20="Y",B47, AE47) -> -0.1 | AK47: =(0.1-B47)/0.2*(Parameter!$D$2-Parameter!$D$3)+Parameter!$D$3 -> 800 | AL47: =(0.1-C47)/0.2*(Parameter!$D$2-Parameter!$D$3)+Parameter!$D$3 -> 800 | AM47: =(0.1-D47)/0.2*(Parameter!$D$2-Parameter!$D$3)+Parameter!$D$3 -> 800 | AN47: =(0.1-E47)/0.2*(Parameter!$D$2-Parameter!$D$3)+Parameter!$D$3 -> 800 | AO47: =(0.1-F47)/0.2*(Parameter!$D$2-Parameter!$D$3)+Parameter!$D$3 -> 800 | AP47: =(0.1-G47)/0.2*(Parameter!$D$2-Parameter!$D$3)+Parameter!$D$3 -> 800 | AQ47: =(0.1-H47)/0.2*(Parameter!$D$2-Parameter!$D$3)+Parameter!$D$3 -> 800 | AR47: =(0.1-I47)/0.2*(Parameter!$D$2-Parameter!$D$3)+Parameter!$D$3 -> 800 | AS47: =(0.1-J47)/0.2*(Parameter!$D$2-Parameter!$D$3)+Parameter!$D$3 -> 800 | AT47: =(0.1-K47)/0.2*(Parameter!$D$2-Parameter!$D$3)+Parameter!$D$3 -> 800 | AU47: =(0.1-L47)/0.2*(Parameter!$D$2-Parameter!$D$3)+Parameter!$D$3 -> 800 | AV47: =(0.1-M47)/0.2*(Parameter!$D$2-Parameter!$D$3)+Parameter!$D$3 -> 800 | AW47: =(0.1-N47)/0.2*(Parameter!$D$2-Parameter!$D$3)+Parameter!$D$3 -> 800 | AX47: =(0.1-O47)/0.2*(Parameter!$D$2-Parameter!$D$3)+Parameter!$D$3 -> 800 | AY47: =(0.1-P47)/0.2*(Parameter!$D$2-Parameter!$D$3)+Parameter!$D$3 -> 800 | AZ47: =(0.1-Q47)/0.2*(Parameter!$D$2-Parameter!$D$3)+Parameter!$D$3 -> 800 | BA47: =(0.1-R47)/0.2*(Parameter!$D$2-Parameter!$D$3)+Parameter!$D$3 -> 800 | BB47: =(0.1-S47)/0.2*(Parameter!$D$2-Parameter!$D$3)+Parameter!$D$3 -> 800 | BC47: =(0.1-T47)/0.2*(Parameter!$D$2-Parameter!$D$3)+Parameter!$D$3 -> 800 | BD47: =(0.1-U47)/0.2*(Parameter!$D$2-Parameter!$D$3)+Parameter!$D$3 -> 800 | BE47: =(0.1-V47)/0.2*(Parameter!$D$2-Parameter!$D$3)+Parameter!$D$3 -> 800 | BF47: =(0.1-W47)/0.2*(Parameter!$D$2-Parameter!$D$3)+Parameter!$D$3 -> 800 | BG47: =(0.1-X47)/0.2*(Parameter!$D$2-Parameter!$D$3)+Parameter!$D$3 -> 800 | BH47: =(0.1-Y47)/0.2*(Parameter!$D$2-Parameter!$D$3)+Parameter!$D$3 -> 800 | BI47: =(0.1-Z47)/0.2*(Parameter!$D$2-Parameter!$D$3)+Parameter!$D$3 -> 800 | BJ47: =(0.1-AA47)/0.2*(Parameter!$D$2-Parameter!$D$3)+Parameter!$D$3 -> 800 | BK47: =(0.1-AB47)/0.2*(Parameter!$D$2-Parameter!$D$3)+Parameter!$D$3 -> 800 | BL47: =(0.1-AC47)/0.2*(Parameter!$D$2-Parameter!$D$3)+Parameter!$D$3 -> 800 | BM47: =(0.1-AD47)/0.2*(Parameter!$D$2-Parameter!$D$3)+Parameter!$D$3 -> 800 | BN47: =(0.1-AE47)/0.2*(Parameter!$D$2-Parameter!$D$3)+Parameter!$D$3 -> 800
A48: =IF(Parameter!$D$20="Y",AE48,B48) -> -0.1 | B48: -0.1 | C48: -0.1 | D48: -0.1 | E48: -0.1 | F48: -0.1 | G48: -0.1 | H48: -0.1 | I48: -0.1 | J48: -0.1 | K48: -0.1 | L48: -0.1 | M48: -0.1 | N48: -0.1 | O48: -0.1 | P48: -0.1 | Q48: -0.1 | R48: -0.1 | S48: -0.1 | T48: -0.1 | U48: -0.1 | V48: -0.1 | W48: -0.1 | X48: -0.1 | Y48: -0.1 | Z48: -0.1 | AA48: -0.1 | AB48: -0.1 | AC48: -0.1 | AD48: -0.1 | AE48: -0.1 | AF48: =IF(Parameter!$D$20="Y",B48, AE48) -> -0.1 | AK48: =(0.1-B48)/0.2*(Parameter!$D$2-Parameter!$D$3)+Parameter!$D$3 -> 800 | AL48: =(0.1-C48)/0.2*(Parameter!$D$2-Parameter!$D$3)+Parameter!$D$3 -> 800 | AM48: =(0.1-D48)/0.2*(Parameter!$D$2-Parameter!$D$3)+Parameter!$D$3 -> 800 | AN48: =(0.1-E48)/0.2*(Parameter!$D$2-Parameter!$D$3)+Parameter!$D$3 -> 800 | AO48: =(0.1-F48)/0.2*(Parameter!$D$2-Parameter!$D$3)+Parameter!$D$3 -> 800 | AP48: =(0.1-G48)/0.2*(Parameter!$D$2-Parameter!$D$3)+Parameter!$D$3 -> 800 | AQ48: =(0.1-H48)/0.2*(Parameter!$D$2-Parameter!$D$3)+Parameter!$D$3 -> 800 | AR48: =(0.1-I48)/0.2*(Parameter!$D$2-Parameter!$D$3)+Parameter!$D$3 -> 800 | AS48: =(0.1-J48)/0.2*(Parameter!$D$2-Parameter!$D$3)+Parameter!$D$3 -> 800 | AT48: =(0.1-K48)/0.2*(Parameter!$D$2-Parameter!$D$3)+Parameter!$D$3 -> 800 | AU48: =(0.1-L48)/0.2*(Parameter!$D$2-Parameter!$D$3)+Parameter!$D$3 -> 800 | AV48: =(0.1-M48)/0.2*(Parameter!$D$2-Parameter!$D$3)+Parameter!$D$3 -> 800 | AW48: =(0.1-N48)/0.2*(Parameter!$D$2-Parameter!$D$3)+Parameter!$D$3 -> 800 | AX48: =(0.1-O48)/0.2*(Parameter!$D$2-Parameter!$D$3)+Parameter!$D$3 -> 800 | AY48: =(0.1-P48)/0.2*(Parameter!$D$2-Parameter!$D$3)+Parameter!$D$3 -> 800 | AZ48: =(0.1-Q48)/0.2*(Parameter!$D$2-Parameter!$D$3)+Parameter!$D$3 -> 800 | BA48: =(0.1-R48)/0.2*(Parameter!$D$2-Parameter!$D$3)+Parameter!$D$3 -> 800 | BB48: =(0.1-S48)/0.2*(Parameter!$D$2-Parameter!$D$3)+Parameter!$D$3 -> 800 | BC48: =(0.1-T48)/0.2*(Parameter!$D$2-Parameter!$D$3)+Parameter!$D$3 -> 800 | BD48: =(0.1-U48)/0.2*(Parameter!$D$2-Parameter!$D$3)+Parameter!$D$3 -> 800 | BE48: =(0.1-V48)/0.2*(Parameter!$D$2-Parameter!$D$3)+Parameter!$D$3 -> 800 | BF48: =(0.1-W48)/0.2*(Parameter!$D$2-Parameter!$D$3)+Parameter!$D$3 -> 800 | BG48: =(0.1-X48)/0.2*(Parameter!$D$2-Parameter!$D$3)+Parameter!$D$3 -> 800 | BH48: =(0.1-Y48)/0.2*(Parameter!$D$2-Parameter!$D$3)+Parameter!$D$3 -> 800 | BI48: =(0.1-Z48)/0.2*(Parameter!$D$2-Parameter!$D$3)+Parameter!$D$3 -> 800 | BJ48: =(0.1-AA48)/0.2*(Parameter!$D$2-Parameter!$D$3)+Parameter!$D$3 -> 800 | BK48: =(0.1-AB48)/0.2*(Parameter!$D$2-Parameter!$D$3)+Parameter!$D$3 -> 800 | BL48: =(0.1-AC48)/0.2*(Parameter!$D$2-Parameter!$D$3)+Parameter!$D$3 -> 800 | BM48: =(0.1-AD48)/0.2*(Parameter!$D$2-Parameter!$D$3)+Parameter!$D$3 -> 800 | BN48: =(0.1-AE48)/0.2*(Parameter!$D$2-Parameter!$D$3)+Parameter!$D$3 -> 800
A49: =IF(Parameter!$D$20="Y",AE49,B49) -> -0.1 | B49: -0.1 | C49: -0.1 | D49: -0.1 | E49: -0.1 | F49: -0.1 | G49: -0.1 | H49: -0.1 | I49: -0.1 | J49: -0.1 | K49: -0.1 | L49: -0.1 | M49: -0.1 | N49: -0.1 | O49: -0.1 | P49: -0.1 | Q49: -0.1 | R49: -0.1 | S49: -0.1 | T49: -0.1 | U49: -0.1 | V49: -0.1 | W49: -0.1 | X49: -0.1 | Y49: -0.1 | Z49: -0.1 | AA49: -0.1 | AB49: -0.1 | AC49: -0.1 | AD49: -0.1 | AE49: -0.1 | AF49: =IF(Parameter!$D$20="Y",B49, AE49) -> -0.1 | AK49: =(0.1-B49)/0.2*(Parameter!$D$2-Parameter!$D$3)+Parameter!$D$3 -> 800 | AL49: =(0.1-C49)/0.2*(Parameter!$D$2-Parameter!$D$3)+Parameter!$D$3 -> 800 | AM49: =(0.1-D49)/0.2*(Parameter!$D$2-Parameter!$D$3)+Parameter!$D$3 -> 800 | AN49: =(0.1-E49)/0.2*(Parameter!$D$2-Parameter!$D$3)+Parameter!$D$3 -> 800 | AO49: =(0.1-F49)/0.2*(Parameter!$D$2-Parameter!$D$3)+Parameter!$D$3 -> 800 | AP49: =(0.1-G49)/0.2*(Parameter!$D$2-Parameter!$D$3)+Parameter!$D$3 -> 800 | AQ49: =(0.1-H49)/0.2*(Parameter!$D$2-Parameter!$D$3)+Parameter!$D$3 -> 800 | AR49: =(0.1-I49)/0.2*(Parameter!$D$2-Parameter!$D$3)+Parameter!$D$3 -> 800 | AS49: =(0.1-J49)/0.2*(Parameter!$D$2-Parameter!$D$3)+Parameter!$D$3 -> 800 | AT49: =(0.1-K49)/0.2*(Parameter!$D$2-Parameter!$D$3)+Parameter!$D$3 -> 800 | AU49: =(0.1-L49)/0.2*(Parameter!$D$2-Parameter!$D$3)+Parameter!$D$3 -> 800 | AV49: =(0.1-M49)/0.2*(Parameter!$D$2-Parameter!$D$3)+Parameter!$D$3 -> 800 | AW49: =(0.1-N49)/0.2*(Parameter!$D$2-Parameter!$D$3)+Parameter!$D$3 -> 800 | AX49: =(0.1-O49)/0.2*(Parameter!$D$2-Parameter!$D$3)+Parameter!$D$3 -> 800 | AY49: =(0.1-P49)/0.2*(Parameter!$D$2-Parameter!$D$3)+Parameter!$D$3 -> 800 | AZ49: =(0.1-Q49)/0.2*(Parameter!$D$2-Parameter!$D$3)+Parameter!$D$3 -> 800 | BA49: =(0.1-R49)/0.2*(Parameter!$D$2-Parameter!$D$3)+Parameter!$D$3 -> 800 | BB49: =(0.1-S49)/0.2*(Parameter!$D$2-Parameter!$D$3)+Parameter!$D$3 -> 800 | BC49: =(0.1-T49)/0.2*(Parameter!$D$2-Parameter!$D$3)+Parameter!$D$3 -> 800 | BD49: =(0.1-U49)/0.2*(Parameter!$D$2-Parameter!$D$3)+Parameter!$D$3 -> 800 | BE49: =(0.1-V49)/0.2*(Parameter!$D$2-Parameter!$D$3)+Parameter!$D$3 -> 800 | BF49: =(0.1-W49)/0.2*(Parameter!$D$2-Parameter!$D$3)+Parameter!$D$3 -> 800 | BG49: =(0.1-X49)/0.2*(Parameter!$D$2-Parameter!$D$3)+Parameter!$D$3 -> 800 | BH49: =(0.1-Y49)/0.2*(Parameter!$D$2-Parameter!$D$3)+Parameter!$D$3 -> 800 | BI49: =(0.1-Z49)/0.2*(Parameter!$D$2-Parameter!$D$3)+Parameter!$D$3 -> 800 | BJ49: =(0.1-AA49)/0.2*(Parameter!$D$2-Parameter!$D$3)+Parameter!$D$3 -> 800 | BK49: =(0.1-AB49)/0.2*(Parameter!$D$2-Parameter!$D$3)+Parameter!$D$3 -> 800 | BL49: =(0.1-AC49)/0.2*(Parameter!$D$2-Parameter!$D$3)+Parameter!$D$3 -> 800 | BM49: =(0.1-AD49)/0.2*(Parameter!$D$2-Parameter!$D$3)+Parameter!$D$3 -> 800 | BN49: =(0.1-AE49)/0.2*(Parameter!$D$2-Parameter!$D$3)+Parameter!$D$3 -> 800
A50: =IF(Parameter!$D$20="Y",AE50,B50) -> -0.1 | B50: -0.1 | C50: -0.1 | D50: -0.1 | E50: -0.1 | F50: -0.1 | G50: -0.1 | H50: -0.1 | I50: -0.1 | J50: -0.1 | K50: -0.1 | L50: -0.1 | M50: -0.1 | N50: -0.1 | O50: -0.1 | P50: -0.1 | Q50: -0.1 | R50: -0.1 | S50: -0.1 | T50: -0.1 | U50: -0.1 | V50: -0.1 | W50: -0.1 | X50: -0.1 | Y50: -0.1 | Z50: -0.1 | AA50: -0.1 | AB50: -0.1 | AC50: -0.1 | AD50: -0.1 | AE50: -0.1 | AF50: =IF(Parameter!$D$20="Y",B50, AE50) -> -0.1 | AK50: =(0.1-B50)/0.2*(Parameter!$D$2-Parameter!$D$3)+Parameter!$D$3 -> 800 | AL50: =(0.1-C50)/0.2*(Parameter!$D$2-Parameter!$D$3)+Parameter!$D$3 -> 800 | AM50: =(0.1-D50)/0.2*(Parameter!$D$2-Parameter!$D$3)+Parameter!$D$3 -> 800 | AN50: =(0.1-E50)/0.2*(Parameter!$D$2-Parameter!$D$3)+Parameter!$D$3 -> 800 | AO50: =(0.1-F50)/0.2*(Parameter!$D$2-Parameter!$D$3)+Parameter!$D$3 -> 800 | AP50: =(0.1-G50)/0.2*(Parameter!$D$2-Parameter!$D$3)+Parameter!$D$3 -> 800 | AQ50: =(0.1-H50)/0.2*(Parameter!$D$2-Parameter!$D$3)+Parameter!$D$3 -> 800 | AR50: =(0.1-I50)/0.2*(Parameter!$D$2-Parameter!$D$3)+Parameter!$D$3 -> 800 | AS50: =(0.1-J50)/0.2*(Parameter!$D$2-Parameter!$D$3)+Parameter!$D$3 -> 800 | AT50: =(0.1-K50)/0.2*(Parameter!$D$2-Parameter!$D$3)+Parameter!$D$3 -> 800 | AU50: =(0.1-L50)/0.2*(Parameter!$D$2-Parameter!$D$3)+Parameter!$D$3 -> 800 | AV50: =(0.1-M50)/0.2*(Parameter!$D$2-Parameter!$D$3)+Parameter!$D$3 -> 800 | AW50: =(0.1-N50)/0.2*(Parameter!$D$2-Parameter!$D$3)+Parameter!$D$3 -> 800 | AX50: =(0.1-O50)/0.2*(Parameter!$D$2-Parameter!$D$3)+Parameter!$D$3 -> 800 | AY50: =(0.1-P50)/0.2*(Parameter!$D$2-Parameter!$D$3)+Parameter!$D$3 -> 800 | AZ50: =(0.1-Q50)/0.2*(Parameter!$D$2-Parameter!$D$3)+Parameter!$D$3 -> 800 | BA50: =(0.1-R50)/0.2*(Parameter!$D$2-Parameter!$D$3)+Parameter!$D$3 -> 800 | BB50: =(0.1-S50)/0.2*(Parameter!$D$2-Parameter!$D$3)+Parameter!$D$3 -> 800 | BC50: =(0.1-T50)/0.2*(Parameter!$D$2-Parameter!$D$3)+Parameter!$D$3 -> 800 | BD50: =(0.1-U50)/0.2*(Parameter!$D$2-Parameter!$D$3)+Parameter!$D$3 -> 800 | BE50: =(0.1-V50)/0.2*(Parameter!$D$2-Parameter!$D$3)+Parameter!$D$3 -> 800 | BF50: =(0.1-W50)/0.2*(Parameter!$D$2-Parameter!$D$3)+Parameter!$D$3 -> 800 | BG50: =(0.1-X50)/0.2*(Parameter!$D$2-Parameter!$D$3)+Parameter!$D$3 -> 800 | BH50: =(0.1-Y50)/0.2*(Parameter!$D$2-Parameter!$D$3)+Parameter!$D$3 -> 800 | BI50: =(0.1-Z50)/0.2*(Parameter!$D$2-Parameter!$D$3)+Parameter!$D$3 -> 800 | BJ50: =(0.1-AA50)/0.2*(Parameter!$D$2-Parameter!$D$3)+Parameter!$D$3 -> 800 | BK50: =(0.1-AB50)/0.2*(Parameter!$D$2-Parameter!$D$3)+Parameter!$D$3 -> 800 | BL50: =(0.1-AC50)/0.2*(Parameter!$D$2-Parameter!$D$3)+Parameter!$D$3 -> 800 | BM50: =(0.1-AD50)/0.2*(Parameter!$D$2-Parameter!$D$3)+Parameter!$D$3 -> 800 | BN50: =(0.1-AE50)/0.2*(Parameter!$D$2-Parameter!$D$3)+Parameter!$D$3 -> 800
A51: =IF(Parameter!$D$20="Y",AE51,B51) -> -0.1 | B51: -0.1 | C51: -0.1 | D51: -0.1 | E51: -0.1 | F51: -0.1 | G51: -0.1 | H51: -0.1 | I51: -0.1 | J51: -0.1 | K51: -0.1 | L51: -0.1 | M51: -0.1 | N51: -0.1 | O51: -0.1 | P51: -0.1 | Q51: -0.1 | R51: -0.1 | S51: -0.1 | T51: -0.1 | U51: -0.1 | V51: -0.1 | W51: -0.1 | X51: -0.1 | Y51: -0.1 | Z51: -0.1 | AA51: -0.1 | AB51: -0.1 | AC51: -0.1 | AD51: -0.1 | AE51: -0.1 | AF51: =IF(Parameter!$D$20="Y",B51, AE51) -> -0.1 | AK51: =(0.1-B51)/0.2*(Parameter!$D$2-Parameter!$D$3)+Parameter!$D$3 -> 800 | AL51: =(0.1-C51)/0.2*(Parameter!$D$2-Parameter!$D$3)+Parameter!$D$3 -> 800 | AM51: =(0.1-D51)/0.2*(Parameter!$D$2-Parameter!$D$3)+Parameter!$D$3 -> 800 | AN51: =(0.1-E51)/0.2*(Parameter!$D$2-Parameter!$D$3)+Parameter!$D$3 -> 800 | AO51: =(0.1-F51)/0.2*(Parameter!$D$2-Parameter!$D$3)+Parameter!$D$3 -> 800 | AP51: =(0.1-G51)/0.2*(Parameter!$D$2-Parameter!$D$3)+Parameter!$D$3 -> 800 | AQ51: =(0.1-H51)/0.2*(Parameter!$D$2-Parameter!$D$3)+Parameter!$D$3 -> 800 | AR51: =(0.1-I51)/0.2*(Parameter!$D$2-Parameter!$D$3)+Parameter!$D$3 -> 800 | AS51: =(0.1-J51)/0.2*(Parameter!$D$2-Parameter!$D$3)+Parameter!$D$3 -> 800 | AT51: =(0.1-K51)/0.2*(Parameter!$D$2-Parameter!$D$3)+Parameter!$D$3 -> 800 | AU51: =(0.1-L51)/0.2*(Parameter!$D$2-Parameter!$D$3)+Parameter!$D$3 -> 800 | AV51: =(0.1-M51)/0.2*(Parameter!$D$2-Parameter!$D$3)+Parameter!$D$3 -> 800 | AW51: =(0.1-N51)/0.2*(Parameter!$D$2-Parameter!$D$3)+Parameter!$D$3 -> 800 | AX51: =(0.1-O51)/0.2*(Parameter!$D$2-Parameter!$D$3)+Parameter!$D$3 -> 800 | AY51: =(0.1-P51)/0.2*(Parameter!$D$2-Parameter!$D$3)+Parameter!$D$3 -> 800 | AZ51: =(0.1-Q51)/0.2*(Parameter!$D$2-Parameter!$D$3)+Parameter!$D$3 -> 800 | BA51: =(0.1-R51)/0.2*(Parameter!$D$2-Parameter!$D$3)+Parameter!$D$3 -> 800 | BB51: =(0.1-S51)/0.2*(Parameter!$D$2-Parameter!$D$3)+Parameter!$D$3 -> 800 | BC51: =(0.1-T51)/0.2*(Parameter!$D$2-Parameter!$D$3)+Parameter!$D$3 -> 800 | BD51: =(0.1-U51)/0.2*(Parameter!$D$2-Parameter!$D$3)+Parameter!$D$3 -> 800 | BE51: =(0.1-V51)/0.2*(Parameter!$D$2-Parameter!$D$3)+Parameter!$D$3 -> 800 | BF51: =(0.1-W51)/0.2*(Parameter!$D$2-Parameter!$D$3)+Parameter!$D$3 -> 800 | BG51: =(0.1-X51)/0.2*(Parameter!$D$2-Parameter!$D$3)+Parameter!$D$3 -> 800 | BH51: =(0.1-Y51)/0.2*(Parameter!$D$2-Parameter!$D$3)+Parameter!$D$3 -> 800 | BI51: =(0.1-Z51)/0.2*(Parameter!$D$2-Parameter!$D$3)+Parameter!$D$3 -> 800 | BJ51: =(0.1-AA51)/0.2*(Parameter!$D$2-Parameter!$D$3)+Parameter!$D$3 -> 800 | BK51: =(0.1-AB51)/0.2*(Parameter!$D$2-Parameter!$D$3)+Parameter!$D$3 -> 800 | BL51: =(0.1-AC51)/0.2*(Parameter!$D$2-Parameter!$D$3)+Parameter!$D$3 -> 800 | BM51: =(0.1-AD51)/0.2*(Parameter!$D$2-Parameter!$D$3)+Parameter!$D$3 -> 800 | BN51: =(0.1-AE51)/0.2*(Parameter!$D$2-Parameter!$D$3)+Parameter!$D$3 -> 800
A52: =IF(Parameter!$D$20="Y",AE52,B52) -> -0.1 | B52: -0.1 | C52: -0.1 | D52: -0.1 | E52: -0.1 | F52: -0.1 | G52: -0.1 | H52: -0.1 | I52: -0.1 | J52: -0.1 | K52: -0.1 | L52: -0.1 | M52: -0.1 | N52: -0.1 | O52: -0.1 | P52: -0.1 | Q52: -0.1 | R52: -0.1 | S52: -0.1 | T52: -0.1 | U52: -0.1 | V52: -0.1 | W52: -0.1 | X52: -0.1 | Y52: -0.1 | Z52: -0.1 | AA52: -0.1 | AB52: -0.1 | AC52: -0.1 | AD52: -0.1 | AE52: -0.1 | AF52: =IF(Parameter!$D$20="Y",B52, AE52) -> -0.1 | AK52: =(0.1-B52)/0.2*(Parameter!$D$2-Parameter!$D$3)+Parameter!$D$3 -> 800 | AL52: =(0.1-C52)/0.2*(Parameter!$D$2-Parameter!$D$3)+Parameter!$D$3 -> 800 | AM52: =(0.1-D52)/0.2*(Parameter!$D$2-Parameter!$D$3)+Parameter!$D$3 -> 800 | AN52: =(0.1-E52)/0.2*(Parameter!$D$2-Parameter!$D$3)+Parameter!$D$3 -> 800 | AO52: =(0.1-F52)/0.2*(Parameter!$D$2-Parameter!$D$3)+Parameter!$D$3 -> 800 | AP52: =(0.1-G52)/0.2*(Parameter!$D$2-Parameter!$D$3)+Parameter!$D$3 -> 800 | AQ52: =(0.1-H52)/0.2*(Parameter!$D$2-Parameter!$D$3)+Parameter!$D$3 -> 800 | AR52: =(0.1-I52)/0.2*(Parameter!$D$2-Parameter!$D$3)+Parameter!$D$3 -> 800 | AS52: =(0.1-J52)/0.2*(Parameter!$D$2-Parameter!$D$3)+Parameter!$D$3 -> 800 | AT52: =(0.1-K52)/0.2*(Parameter!$D$2-Parameter!$D$3)+Parameter!$D$3 -> 800 | AU52: =(0.1-L52)/0.2*(Parameter!$D$2-Parameter!$D$3)+Parameter!$D$3 -> 800 | AV52: =(0.1-M52)/0.2*(Parameter!$D$2-Parameter!$D$3)+Parameter!$D$3 -> 800 | AW52: =(0.1-N52)/0.2*(Parameter!$D$2-Parameter!$D$3)+Parameter!$D$3 -> 800 | AX52: =(0.1-O52)/0.2*(Parameter!$D$2-Parameter!$D$3)+Parameter!$D$3 -> 800 | AY52: =(0.1-P52)/0.2*(Parameter!$D$2-Parameter!$D$3)+Parameter!$D$3 -> 800 | AZ52: =(0.1-Q52)/0.2*(Parameter!$D$2-Parameter!$D$3)+Parameter!$D$3 -> 800 | BA52: =(0.1-R52)/0.2*(Parameter!$D$2-Parameter!$D$3)+Parameter!$D$3 -> 800 | BB52: =(0.1-S52)/0.2*(Parameter!$D$2-Parameter!$D$3)+Parameter!$D$3 -> 800 | BC52: =(0.1-T52)/0.2*(Parameter!$D$2-Parameter!$D$3)+Parameter!$D$3 -> 800 | BD52: =(0.1-U52)/0.2*(Parameter!$D$2-Parameter!$D$3)+Parameter!$D$3 -> 800 | BE52: =(0.1-V52)/0.2*(Parameter!$D$2-Parameter!$D$3)+Parameter!$D$3 -> 800 | BF52: =(0.1-W52)/0.2*(Parameter!$D$2-Parameter!$D$3)+Parameter!$D$3 -> 800 | BG52: =(0.1-X52)/0.2*(Parameter!$D$2-Parameter!$D$3)+Parameter!$D$3 -> 800 | BH52: =(0.1-Y52)/0.2*(Parameter!$D$2-Parameter!$D$3)+Parameter!$D$3 -> 800 | BI52: =(0.1-Z52)/0.2*(Parameter!$D$2-Parameter!$D$3)+Parameter!$D$3 -> 800 | BJ52: =(0.1-AA52)/0.2*(Parameter!$D$2-Parameter!$D$3)+Parameter!$D$3 -> 800 | BK52: =(0.1-AB52)/0.2*(Parameter!$D$2-Parameter!$D$3)+Parameter!$D$3 -> 800 | BL52: =(0.1-AC52)/0.2*(Parameter!$D$2-Parameter!$D$3)+Parameter!$D$3 -> 800 | BM52: =(0.1-AD52)/0.2*(Parameter!$D$2-Parameter!$D$3)+Parameter!$D$3 -> 800 | BN52: =(0.1-AE52)/0.2*(Parameter!$D$2-Parameter!$D$3)+Parameter!$D$3 -> 800
A53: =IF(Parameter!$D$20="Y",AE53,B53) -> -0.1 | B53: -0.1 | C53: -0.1 | D53: -0.1 | E53: -0.1 | F53: -0.1 | G53: -0.1 | H53: -0.1 | I53: -0.1 | J53: -0.1 | K53: -0.1 | L53: -0.1 | M53: -0.1 | N53: -0.1 | O53: -0.1 | P53: -0.1 | Q53: -0.1 | R53: -0.1 | S53: -0.1 | T53: -0.1 | U53: -0.1 | V53: -0.1 | W53: -0.1 | X53: -0.1 | Y53: -0.1 | Z53: -0.1 | AA53: -0.1 | AB53: -0.1 | AC53: -0.1 | AD53: -0.1 | AE53: -0.1 | AF53: =IF(Parameter!$D$20="Y",B53, AE53) -> -0.1 | AK53: =(0.1-B53)/0.2*(Parameter!$D$2-Parameter!$D$3)+Parameter!$D$3 -> 800 | AL53: =(0.1-C53)/0.2*(Parameter!$D$2-Parameter!$D$3)+Parameter!$D$3 -> 800 | AM53: =(0.1-D53)/0.2*(Parameter!$D$2-Parameter!$D$3)+Parameter!$D$3 -> 800 | AN53: =(0.1-E53)/0.2*(Parameter!$D$2-Parameter!$D$3)+Parameter!$D$3 -> 800 | AO53: =(0.1-F53)/0.2*(Parameter!$D$2-Parameter!$D$3)+Parameter!$D$3 -> 800 | AP53: =(0.1-G53)/0.2*(Parameter!$D$2-Parameter!$D$3)+Parameter!$D$3 -> 800 | AQ53: =(0.1-H53)/0.2*(Parameter!$D$2-Parameter!$D$3)+Parameter!$D$3 -> 800 | AR53: =(0.1-I53)/0.2*(Parameter!$D$2-Parameter!$D$3)+Parameter!$D$3 -> 800 | AS53: =(0.1-J53)/0.2*(Parameter!$D$2-Parameter!$D$3)+Parameter!$D$3 -> 800 | AT53: =(0.1-K53)/0.2*(Parameter!$D$2-Parameter!$D$3)+Parameter!$D$3 -> 800 | AU53: =(0.1-L53)/0.2*(Parameter!$D$2-Parameter!$D$3)+Parameter!$D$3 -> 800 | AV53: =(0.1-M53)/0.2*(Parameter!$D$2-Parameter!$D$3)+Parameter!$D$3 -> 800 | AW53: =(0.1-N53)/0.2*(Parameter!$D$2-Parameter!$D$3)+Parameter!$D$3 -> 800 | AX53: =(0.1-O53)/0.2*(Parameter!$D$2-Parameter!$D$3)+Parameter!$D$3 -> 800 | AY53: =(0.1-P53)/0.2*(Parameter!$D$2-Parameter!$D$3)+Parameter!$D$3 -> 800 | AZ53: =(0.1-Q53)/0.2*(Parameter!$D$2-Parameter!$D$3)+Parameter!$D$3 -> 800 | BA53: =(0.1-R53)/0.2*(Parameter!$D$2-Parameter!$D$3)+Parameter!$D$3 -> 800 | BB53: =(0.1-S53)/0.2*(Parameter!$D$2-Parameter!$D$3)+Parameter!$D$3 -> 800 | BC53: =(0.1-T53)/0.2*(Parameter!$D$2-Parameter!$D$3)+Parameter!$D$3 -> 800 | BD53: =(0.1-U53)/0.2*(Parameter!$D$2-Parameter!$D$3)+Parameter!$D$3 -> 800 | BE53: =(0.1-V53)/0.2*(Parameter!$D$2-Parameter!$D$3)+Parameter!$D$3 -> 800 | BF53: =(0.1-W53)/0.2*(Parameter!$D$2-Parameter!$D$3)+Parameter!$D$3 -> 800 | BG53: =(0.1-X53)/0.2*(Parameter!$D$2-Parameter!$D$3)+Parameter!$D$3 -> 800 | BH53: =(0.1-Y53)/0.2*(Parameter!$D$2-Parameter!$D$3)+Parameter!$D$3 -> 800 | BI53: =(0.1-Z53)/0.2*(Parameter!$D$2-Parameter!$D$3)+Parameter!$D$3 -> 800 | BJ53: =(0.1-AA53)/0.2*(Parameter!$D$2-Parameter!$D$3)+Parameter!$D$3 -> 800 | BK53: =(0.1-AB53)/0.2*(Parameter!$D$2-Parameter!$D$3)+Parameter!$D$3 -> 800 | BL53: =(0.1-AC53)/0.2*(Parameter!$D$2-Parameter!$D$3)+Parameter!$D$3 -> 800 | BM53: =(0.1-AD53)/0.2*(Parameter!$D$2-Parameter!$D$3)+Parameter!$D$3 -> 800 | BN53: =(0.1-AE53)/0.2*(Parameter!$D$2-Parameter!$D$3)+Parameter!$D$3 -> 800
A54: =IF(Parameter!$D$20="Y",AE54,B54) -> -0.1 | B54: -0.1 | C54: -0.1 | D54: -0.1 | E54: -0.1 | F54: -0.1 | G54: -0.1 | H54: -0.1 | I54: -0.1 | J54: -0.1 | K54: -0.1 | L54: -0.1 | M54: -0.1 | N54: -0.1 | O54: -0.1 | P54: -0.1 | Q54: -0.1 | R54: -0.1 | S54: -0.1 | T54: -0.1 | U54: -0.1 | V54: -0.1 | W54: -0.1 | X54: -0.1 | Y54: -0.1 | Z54: -0.1 | AA54: -0.1 | AB54: -0.1 | AC54: -0.1 | AD54: -0.1 | AE54: -0.1 | AF54: =IF(Parameter!$D$20="Y",B54, AE54) -> -0.1 | AK54: =(0.1-B54)/0.2*(Parameter!$D$2-Parameter!$D$3)+Parameter!$D$3 -> 800 | AL54: =(0.1-C54)/0.2*(Parameter!$D$2-Parameter!$D$3)+Parameter!$D$3 -> 800 | AM54: =(0.1-D54)/0.2*(Parameter!$D$2-Parameter!$D$3)+Parameter!$D$3 -> 800 | AN54: =(0.1-E54)/0.2*(Parameter!$D$2-Parameter!$D$3)+Parameter!$D$3 -> 800 | AO54: =(0.1-F54)/0.2*(Parameter!$D$2-Parameter!$D$3)+Parameter!$D$3 -> 800 | AP54: =(0.1-G54)/0.2*(Parameter!$D$2-Parameter!$D$3)+Parameter!$D$3 -> 800 | AQ54: =(0.1-H54)/0.2*(Parameter!$D$2-Parameter!$D$3)+Parameter!$D$3 -> 800 | AR54: =(0.1-I54)/0.2*(Parameter!$D$2-Parameter!$D$3)+Parameter!$D$3 -> 800 | AS54: =(0.1-J54)/0.2*(Parameter!$D$2-Parameter!$D$3)+Parameter!$D$3 -> 800 | AT54: =(0.1-K54)/0.2*(Parameter!$D$2-Parameter!$D$3)+Parameter!$D$3 -> 800 | AU54: =(0.1-L54)/0.2*(Parameter!$D$2-Parameter!$D$3)+Parameter!$D$3 -> 800 | AV54: =(0.1-M54)/0.2*(Parameter!$D$2-Parameter!$D$3)+Parameter!$D$3 -> 800 | AW54: =(0.1-N54)/0.2*(Parameter!$D$2-Parameter!$D$3)+Parameter!$D$3 -> 800 | AX54: =(0.1-O54)/0.2*(Parameter!$D$2-Parameter!$D$3)+Parameter!$D$3 -> 800 | AY54: =(0.1-P54)/0.2*(Parameter!$D$2-Parameter!$D$3)+Parameter!$D$3 -> 800 | AZ54: =(0.1-Q54)/0.2*(Parameter!$D$2-Parameter!$D$3)+Parameter!$D$3 -> 800 | BA54: =(0.1-R54)/0.2*(Parameter!$D$2-Parameter!$D$3)+Parameter!$D$3 -> 800 | BB54: =(0.1-S54)/0.2*(Parameter!$D$2-Parameter!$D$3)+Parameter!$D$3 -> 800 | BC54: =(0.1-T54)/0.2*(Parameter!$D$2-Parameter!$D$3)+Parameter!$D$3 -> 800 | BD54: =(0.1-U54)/0.2*(Parameter!$D$2-Parameter!$D$3)+Parameter!$D$3 -> 800 | BE54: =(0.1-V54)/0.2*(Parameter!$D$2-Parameter!$D$3)+Parameter!$D$3 -> 800 | BF54: =(0.1-W54)/0.2*(Parameter!$D$2-Parameter!$D$3)+Parameter!$D$3 -> 800 | BG54: =(0.1-X54)/0.2*(Parameter!$D$2-Parameter!$D$3)+Parameter!$D$3 -> 800 | BH54: =(0.1-Y54)/0.2*(Parameter!$D$2-Parameter!$D$3)+Parameter!$D$3 -> 800 | BI54: =(0.1-Z54)/0.2*(Parameter!$D$2-Parameter!$D$3)+Parameter!$D$3 -> 800 | BJ54: =(0.1-AA54)/0.2*(Parameter!$D$2-Parameter!$D$3)+Parameter!$D$3 -> 800 | BK54: =(0.1-AB54)/0.2*(Parameter!$D$2-Parameter!$D$3)+Parameter!$D$3 -> 800 | BL54: =(0.1-AC54)/0.2*(Parameter!$D$2-Parameter!$D$3)+Parameter!$D$3 -> 800 | BM54: =(0.1-AD54)/0.2*(Parameter!$D$2-Parameter!$D$3)+Parameter!$D$3 -> 800 | BN54: =(0.1-AE54)/0.2*(Parameter!$D$2-Parameter!$D$3)+Parameter!$D$3 -> 800
A55: =IF(Parameter!$D$20="Y",AE55,B55) -> -0.1 | B55: -0.1 | C55: -0.1 | D55: -0.1 | E55: -0.1 | F55: -0.1 | G55: -0.1 | H55: -0.1 | I55: -0.1 | J55: -0.1 | K55: -0.1 | L55: -0.1 | M55: -0.1 | N55: -0.1 | O55: -0.1 | P55: -0.1 | Q55: -0.1 | R55: -0.1 | S55: -0.1 | T55: -0.1 | U55: -0.1 | V55: -0.1 | W55: -0.1 | X55: -0.1 | Y55: -0.1 | Z55: -0.1 | AA55: -0.1 | AB55: -0.1 | AC55: -0.1 | AD55: -0.1 | AE55: -0.1 | AF55: =IF(Parameter!$D$20="Y",B55, AE55) -> -0.1 | AK55: =(0.1-B55)/0.2*(Parameter!$D$2-Parameter!$D$3)+Parameter!$D$3 -> 800 | AL55: =(0.1-C55)/0.2*(Parameter!$D$2-Parameter!$D$3)+Parameter!$D$3 -> 800 | AM55: =(0.1-D55)/0.2*(Parameter!$D$2-Parameter!$D$3)+Parameter!$D$3 -> 800 | AN55: =(0.1-E55)/0.2*(Parameter!$D$2-Parameter!$D$3)+Parameter!$D$3 -> 800 | AO55: =(0.1-F55)/0.2*(Parameter!$D$2-Parameter!$D$3)+Parameter!$D$3 -> 800 | AP55: =(0.1-G55)/0.2*(Parameter!$D$2-Parameter!$D$3)+Parameter!$D$3 -> 800 | AQ55: =(0.1-H55)/0.2*(Parameter!$D$2-Parameter!$D$3)+Parameter!$D$3 -> 800 | AR55: =(0.1-I55)/0.2*(Parameter!$D$2-Parameter!$D$3)+Parameter!$D$3 -> 800 | AS55: =(0.1-J55)/0.2*(Parameter!$D$2-Parameter!$D$3)+Parameter!$D$3 -> 800 | AT55: =(0.1-K55)/0.2*(Parameter!$D$2-Parameter!$D$3)+Parameter!$D$3 -> 800 | AU55: =(0.1-L55)/0.2*(Parameter!$D$2-Parameter!$D$3)+Parameter!$D$3 -> 800 | AV55: =(0.1-M55)/0.2*(Parameter!$D$2-Parameter!$D$3)+Parameter!$D$3 -> 800 | AW55: =(0.1-N55)/0.2*(Parameter!$D$2-Parameter!$D$3)+Parameter!$D$3 -> 800 | AX55: =(0.1-O55)/0.2*(Parameter!$D$2-Parameter!$D$3)+Parameter!$D$3 -> 800 | AY55: =(0.1-P55)/0.2*(Parameter!$D$2-Parameter!$D$3)+Parameter!$D$3 -> 800 | AZ55: =(0.1-Q55)/0.2*(Parameter!$D$2-Parameter!$D$3)+Parameter!$D$3 -> 800 | BA55: =(0.1-R55)/0.2*(Parameter!$D$2-Parameter!$D$3)+Parameter!$D$3 -> 800 | BB55: =(0.1-S55)/0.2*(Parameter!$D$2-Parameter!$D$3)+Parameter!$D$3 -> 800 | BC55: =(0.1-T55)/0.2*(Parameter!$D$2-Parameter!$D$3)+Parameter!$D$3 -> 800 | BD55: =(0.1-U55)/0.2*(Parameter!$D$2-Parameter!$D$3)+Parameter!$D$3 -> 800 | BE55: =(0.1-V55)/0.2*(Parameter!$D$2-Parameter!$D$3)+Parameter!$D$3 -> 800 | BF55: =(0.1-W55)/0.2*(Parameter!$D$2-Parameter!$D$3)+Parameter!$D$3 -> 800 | BG55: =(0.1-X55)/0.2*(Parameter!$D$2-Parameter!$D$3)+Parameter!$D$3 -> 800 | BH55: =(0.1-Y55)/0.2*(Parameter!$D$2-Parameter!$D$3)+Parameter!$D$3 -> 800 | BI55: =(0.1-Z55)/0.2*(Parameter!$D$2-Parameter!$D$3)+Parameter!$D$3 -> 800 | BJ55: =(0.1-AA55)/0.2*(Parameter!$D$2-Parameter!$D$3)+Parameter!$D$3 -> 800 | BK55: =(0.1-AB55)/0.2*(Parameter!$D$2-Parameter!$D$3)+Parameter!$D$3 -> 800 | BL55: =(0.1-AC55)/0.2*(Parameter!$D$2-Parameter!$D$3)+Parameter!$D$3 -> 800 | BM55: =(0.1-AD55)/0.2*(Parameter!$D$2-Parameter!$D$3)+Parameter!$D$3 -> 800 | BN55: =(0.1-AE55)/0.2*(Parameter!$D$2-Parameter!$D$3)+Parameter!$D$3 -> 800
A56: =IF(Parameter!$D$20="Y",AE56,B56) -> -0.1 | B56: -0.1 | C56: -0.1 | D56: -0.1 | E56: -0.1 | F56: -0.1 | G56: -0.1 | H56: -0.1 | I56: -0.1 | J56: -0.1 | K56: -0.1 | L56: -0.1 | M56: -0.1 | N56: -0.1 | O56: -0.1 | P56: -0.1 | Q56: -0.1 | R56: -0.1 | S56: -0.1 | T56: -0.1 | U56: -0.1 | V56: -0.1 | W56: -0.1 | X56: -0.1 | Y56: -0.1 | Z56: -0.1 | AA56: -0.1 | AB56: -0.1 | AC56: -0.1 | AD56: -0.1 | AE56: -0.1 | AF56: =IF(Parameter!$D$20="Y",B56, AE56) -> -0.1 | AK56: =(0.1-B56)/0.2*(Parameter!$D$2-Parameter!$D$3)+Parameter!$D$3 -> 800 | AL56: =(0.1-C56)/0.2*(Parameter!$D$2-Parameter!$D$3)+Parameter!$D$3 -> 800 | AM56: =(0.1-D56)/0.2*(Parameter!$D$2-Parameter!$D$3)+Parameter!$D$3 -> 800 | AN56: =(0.1-E56)/0.2*(Parameter!$D$2-Parameter!$D$3)+Parameter!$D$3 -> 800 | AO56: =(0.1-F56)/0.2*(Parameter!$D$2-Parameter!$D$3)+Parameter!$D$3 -> 800 | AP56: =(0.1-G56)/0.2*(Parameter!$D$2-Parameter!$D$3)+Parameter!$D$3 -> 800 | AQ56: =(0.1-H56)/0.2*(Parameter!$D$2-Parameter!$D$3)+Parameter!$D$3 -> 800 | AR56: =(0.1-I56)/0.2*(Parameter!$D$2-Parameter!$D$3)+Parameter!$D$3 -> 800 | AS56: =(0.1-J56)/0.2*(Parameter!$D$2-Parameter!$D$3)+Parameter!$D$3 -> 800 | AT56: =(0.1-K56)/0.2*(Parameter!$D$2-Parameter!$D$3)+Parameter!$D$3 -> 800 | AU56: =(0.1-L56)/0.2*(Parameter!$D$2-Parameter!$D$3)+Parameter!$D$3 -> 800 | AV56: =(0.1-M56)/0.2*(Parameter!$D$2-Parameter!$D$3)+Parameter!$D$3 -> 800 | AW56: =(0.1-N56)/0.2*(Parameter!$D$2-Parameter!$D$3)+Parameter!$D$3 -> 800 | AX56: =(0.1-O56)/0.2*(Parameter!$D$2-Parameter!$D$3)+Parameter!$D$3 -> 800 | AY56: =(0.1-P56)/0.2*(Parameter!$D$2-Parameter!$D$3)+Parameter!$D$3 -> 800 | AZ56: =(0.1-Q56)/0.2*(Parameter!$D$2-Parameter!$D$3)+Parameter!$D$3 -> 800 | BA56: =(0.1-R56)/0.2*(Parameter!$D$2-Parameter!$D$3)+Parameter!$D$3 -> 800 | BB56: =(0.1-S56)/0.2*(Parameter!$D$2-Parameter!$D$3)+Parameter!$D$3 -> 800 | BC56: =(0.1-T56)/0.2*(Parameter!$D$2-Parameter!$D$3)+Parameter!$D$3 -> 800 | BD56: =(0.1-U56)/0.2*(Parameter!$D$2-Parameter!$D$3)+Parameter!$D$3 -> 800 | BE56: =(0.1-V56)/0.2*(Parameter!$D$2-Parameter!$D$3)+Parameter!$D$3 -> 800 | BF56: =(0.1-W56)/0.2*(Parameter!$D$2-Parameter!$D$3)+Parameter!$D$3 -> 800 | BG56: =(0.1-X56)/0.2*(Parameter!$D$2-Parameter!$D$3)+Parameter!$D$3 -> 800 | BH56: =(0.1-Y56)/0.2*(Parameter!$D$2-Parameter!$D$3)+Parameter!$D$3 -> 800 | BI56: =(0.1-Z56)/0.2*(Parameter!$D$2-Parameter!$D$3)+Parameter!$D$3 -> 800 | BJ56: =(0.1-AA56)/0.2*(Parameter!$D$2-Parameter!$D$3)+Parameter!$D$3 -> 800 | BK56: =(0.1-AB56)/0.2*(Parameter!$D$2-Parameter!$D$3)+Parameter!$D$3 -> 800 | BL56: =(0.1-AC56)/0.2*(Parameter!$D$2-Parameter!$D$3)+Parameter!$D$3 -> 800 | BM56: =(0.1-AD56)/0.2*(Parameter!$D$2-Parameter!$D$3)+Parameter!$D$3 -> 800 | BN56: =(0.1-AE56)/0.2*(Parameter!$D$2-Parameter!$D$3)+Parameter!$D$3 -> 800
A57: =IF(Parameter!$D$20="Y",AE57,B57) -> -0.1 | B57: -0.1 | C57: -0.1 | D57: -0.1 | E57: -0.1 | F57: -0.1 | G57: -0.1 | H57: -0.1 | I57: -0.1 | J57: -0.1 | K57: -0.1 | L57: -0.1 | M57: -0.1 | N57: -0.1 | O57: -0.1 | P57: -0.1 | Q57: -0.1 | R57: -0.1 | S57: -0.1 | T57: -0.1 | U57: -0.1 | V57: -0.1 | W57: -0.1 | X57: -0.1 | Y57: -0.1 | Z57: -0.1 | AA57: -0.1 | AB57: -0.1 | AC57: -0.1 | AD57: -0.1 | AE57: -0.1 | AF57: =IF(Parameter!$D$20="Y",B57, AE57) -> -0.1 | AK57: =(0.1-B57)/0.2*(Parameter!$D$2-Parameter!$D$3)+Parameter!$D$3 -> 800 | AL57: =(0.1-C57)/0.2*(Parameter!$D$2-Parameter!$D$3)+Parameter!$D$3 -> 800 | AM57: =(0.1-D57)/0.2*(Parameter!$D$2-Parameter!$D$3)+Parameter!$D$3 -> 800 | AN57: =(0.1-E57)/0.2*(Parameter!$D$2-Parameter!$D$3)+Parameter!$D$3 -> 800 | AO57: =(0.1-F57)/0.2*(Parameter!$D$2-Parameter!$D$3)+Parameter!$D$3 -> 800 | AP57: =(0.1-G57)/0.2*(Parameter!$D$2-Parameter!$D$3)+Parameter!$D$3 -> 800 | AQ57: =(0.1-H57)/0.2*(Parameter!$D$2-Parameter!$D$3)+Parameter!$D$3 -> 800 | AR57: =(0.1-I57)/0.2*(Parameter!$D$2-Parameter!$D$3)+Parameter!$D$3 -> 800 | AS57: =(0.1-J57)/0.2*(Parameter!$D$2-Parameter!$D$3)+Parameter!$D$3 -> 800 | AT57: =(0.1-K57)/0.2*(Parameter!$D$2-Parameter!$D$3)+Parameter!$D$3 -> 800 | AU57: =(0.1-L57)/0.2*(Parameter!$D$2-Parameter!$D$3)+Parameter!$D$3 -> 800 | AV57: =(0.1-M57)/0.2*(Parameter!$D$2-Parameter!$D$3)+Parameter!$D$3 -> 800 | AW57: =(0.1-N57)/0.2*(Parameter!$D$2-Parameter!$D$3)+Parameter!$D$3 -> 800 | AX57: =(0.1-O57)/0.2*(Parameter!$D$2-Parameter!$D$3)+Parameter!$D$3 -> 800 | AY57: =(0.1-P57)/0.2*(Parameter!$D$2-Parameter!$D$3)+Parameter!$D$3 -> 800 | AZ57: =(0.1-Q57)/0.2*(Parameter!$D$2-Parameter!$D$3)+Parameter!$D$3 -> 800 | BA57: =(0.1-R57)/0.2*(Parameter!$D$2-Parameter!$D$3)+Parameter!$D$3 -> 800 | BB57: =(0.1-S57)/0.2*(Parameter!$D$2-Parameter!$D$3)+Parameter!$D$3 -> 800 | BC57: =(0.1-T57)/0.2*(Parameter!$D$2-Parameter!$D$3)+Parameter!$D$3 -> 800 | BD57: =(0.1-U57)/0.2*(Parameter!$D$2-Parameter!$D$3)+Parameter!$D$3 -> 800 | BE57: =(0.1-V57)/0.2*(Parameter!$D$2-Parameter!$D$3)+Parameter!$D$3 -> 800 | BF57: =(0.1-W57)/0.2*(Parameter!$D$2-Parameter!$D$3)+Parameter!$D$3 -> 800 | BG57: =(0.1-X57)/0.2*(Parameter!$D$2-Parameter!$D$3)+Parameter!$D$3 -> 800 | BH57: =(0.1-Y57)/0.2*(Parameter!$D$2-Parameter!$D$3)+Parameter!$D$3 -> 800 | BI57: =(0.1-Z57)/0.2*(Parameter!$D$2-Parameter!$D$3)+Parameter!$D$3 -> 800 | BJ57: =(0.1-AA57)/0.2*(Parameter!$D$2-Parameter!$D$3)+Parameter!$D$3 -> 800 | BK57: =(0.1-AB57)/0.2*(Parameter!$D$2-Parameter!$D$3)+Parameter!$D$3 -> 800 | BL57: =(0.1-AC57)/0.2*(Parameter!$D$2-Parameter!$D$3)+Parameter!$D$3 -> 800 | BM57: =(0.1-AD57)/0.2*(Parameter!$D$2-Parameter!$D$3)+Parameter!$D$3 -> 800 | BN57: =(0.1-AE57)/0.2*(Parameter!$D$2-Parameter!$D$3)+Parameter!$D$3 -> 800
A58: =IF(Parameter!$D$20="Y",AE58,B58) -> -0.1 | B58: -0.1 | C58: -0.1 | D58: -0.1 | E58: -0.1 | F58: -0.1 | G58: -0.1 | H58: -0.1 | I58: -0.1 | J58: -0.1 | K58: -0.1 | L58: -0.1 | M58: -0.1 | N58: -0.1 | O58: -0.1 | P58: -0.1 | Q58: -0.1 | R58: -0.1 | S58: -0.1 | T58: -0.1 | U58: -0.1 | V58: -0.1 | W58: -0.1 | X58: -0.1 | Y58: -0.1 | Z58: -0.1 | AA58: -0.1 | AB58: -0.1 | AC58: -0.1 | AD58: -0.1 | AE58: -0.1 | AF58: =IF(Parameter!$D$20="Y",B58, AE58) -> -0.1 | AK58: =(0.1-B58)/0.2*(Parameter!$D$2-Parameter!$D$3)+Parameter!$D$3 -> 800 | AL58: =(0.1-C58)/0.2*(Parameter!$D$2-Parameter!$D$3)+Parameter!$D$3 -> 800 | AM58: =(0.1-D58)/0.2*(Parameter!$D$2-Parameter!$D$3)+Parameter!$D$3 -> 800 | AN58: =(0.1-E58)/0.2*(Parameter!$D$2-Parameter!$D$3)+Parameter!$D$3 -> 800 | AO58: =(0.1-F58)/0.2*(Parameter!$D$2-Parameter!$D$3)+Parameter!$D$3 -> 800 | AP58: =(0.1-G58)/0.2*(Parameter!$D$2-Parameter!$D$3)+Parameter!$D$3 -> 800 | AQ58: =(0.1-H58)/0.2*(Parameter!$D$2-Parameter!$D$3)+Parameter!$D$3 -> 800 | AR58: =(0.1-I58)/0.2*(Parameter!$D$2-Parameter!$D$3)+Parameter!$D$3 -> 800 | AS58: =(0.1-J58)/0.2*(Parameter!$D$2-Parameter!$D$3)+Parameter!$D$3 -> 800 | AT58: =(0.1-K58)/0.2*(Parameter!$D$2-Parameter!$D$3)+Parameter!$D$3 -> 800 | AU58: =(0.1-L58)/0.2*(Parameter!$D$2-Parameter!$D$3)+Parameter!$D$3 -> 800 | AV58: =(0.1-M58)/0.2*(Parameter!$D$2-Parameter!$D$3)+Parameter!$D$3 -> 800 | AW58: =(0.1-N58)/0.2*(Parameter!$D$2-Parameter!$D$3)+Parameter!$D$3 -> 800 | AX58: =(0.1-O58)/0.2*(Parameter!$D$2-Parameter!$D$3)+Parameter!$D$3 -> 800 | AY58: =(0.1-P58)/0.2*(Parameter!$D$2-Parameter!$D$3)+Parameter!$D$3 -> 800 | AZ58: =(0.1-Q58)/0.2*(Parameter!$D$2-Parameter!$D$3)+Parameter!$D$3 -> 800 | BA58: =(0.1-R58)/0.2*(Parameter!$D$2-Parameter!$D$3)+Parameter!$D$3 -> 800 | BB58: =(0.1-S58)/0.2*(Parameter!$D$2-Parameter!$D$3)+Parameter!$D$3 -> 800 | BC58: =(0.1-T58)/0.2*(Parameter!$D$2-Parameter!$D$3)+Parameter!$D$3 -> 800 | BD58: =(0.1-U58)/0.2*(Parameter!$D$2-Parameter!$D$3)+Parameter!$D$3 -> 800 | BE58: =(0.1-V58)/0.2*(Parameter!$D$2-Parameter!$D$3)+Parameter!$D$3 -> 800 | BF58: =(0.1-W58)/0.2*(Parameter!$D$2-Parameter!$D$3)+Parameter!$D$3 -> 800 | BG58: =(0.1-X58)/0.2*(Parameter!$D$2-Parameter!$D$3)+Parameter!$D$3 -> 800 | BH58: =(0.1-Y58)/0.2*(Parameter!$D$2-Parameter!$D$3)+Parameter!$D$3 -> 800 | BI58: =(0.1-Z58)/0.2*(Parameter!$D$2-Parameter!$D$3)+Parameter!$D$3 -> 800 | BJ58: =(0.1-AA58)/0.2*(Parameter!$D$2-Parameter!$D$3)+Parameter!$D$3 -> 800 | BK58: =(0.1-AB58)/0.2*(Parameter!$D$2-Parameter!$D$3)+Parameter!$D$3 -> 800 | BL58: =(0.1-AC58)/0.2*(Parameter!$D$2-Parameter!$D$3)+Parameter!$D$3 -> 800 | BM58: =(0.1-AD58)/0.2*(Parameter!$D$2-Parameter!$D$3)+Parameter!$D$3 -> 800 | BN58: =(0.1-AE58)/0.2*(Parameter!$D$2-Parameter!$D$3)+Parameter!$D$3 -> 800
A59: =IF(Parameter!$D$20="Y",AE59,B59) -> -0.1 | B59: -0.1 | C59: -0.1 | D59: -0.1 | E59: -0.1 | F59: -0.1 | G59: -0.1 | H59: -0.1 | I59: -0.1 | J59: -0.1 | K59: -0.1 | L59: -0.1 | M59: -0.1 | N59: -0.1 | O59: -0.1 | P59: -0.1 | Q59: -0.1 | R59: -0.1 | S59: -0.1 | T59: -0.1 | U59: -0.1 | V59: -0.1 | W59: -0.1 | X59: -0.1 | Y59: -0.1 | Z59: -0.1 | AA59: -0.1 | AB59: -0.1 | AC59: -0.1 | AD59: -0.1 | AE59: -0.1 | AF59: =IF(Parameter!$D$20="Y",B59, AE59) -> -0.1 | AK59: =(0.1-B59)/0.2*(Parameter!$D$2-Parameter!$D$3)+Parameter!$D$3 -> 800 | AL59: =(0.1-C59)/0.2*(Parameter!$D$2-Parameter!$D$3)+Parameter!$D$3 -> 800 | AM59: =(0.1-D59)/0.2*(Parameter!$D$2-Parameter!$D$3)+Parameter!$D$3 -> 800 | AN59: =(0.1-E59)/0.2*(Parameter!$D$2-Parameter!$D$3)+Parameter!$D$3 -> 800 | AO59: =(0.1-F59)/0.2*(Parameter!$D$2-Parameter!$D$3)+Parameter!$D$3 -> 800 | AP59: =(0.1-G59)/0.2*(Parameter!$D$2-Parameter!$D$3)+Parameter!$D$3 -> 800 | AQ59: =(0.1-H59)/0.2*(Parameter!$D$2-Parameter!$D$3)+Parameter!$D$3 -> 800 | AR59: =(0.1-I59)/0.2*(Parameter!$D$2-Parameter!$D$3)+Parameter!$D$3 -> 800 | AS59: =(0.1-J59)/0.2*(Parameter!$D$2-Parameter!$D$3)+Parameter!$D$3 -> 800 | AT59: =(0.1-K59)/0.2*(Parameter!$D$2-Parameter!$D$3)+Parameter!$D$3 -> 800 | AU59: =(0.1-L59)/0.2*(Parameter!$D$2-Parameter!$D$3)+Parameter!$D$3 -> 800 | AV59: =(0.1-M59)/0.2*(Parameter!$D$2-Parameter!$D$3)+Parameter!$D$3 -> 800 | AW59: =(0.1-N59)/0.2*(Parameter!$D$2-Parameter!$D$3)+Parameter!$D$3 -> 800 | AX59: =(0.1-O59)/0.2*(Parameter!$D$2-Parameter!$D$3)+Parameter!$D$3 -> 800 | AY59: =(0.1-P59)/0.2*(Parameter!$D$2-Parameter!$D$3)+Parameter!$D$3 -> 800 | AZ59: =(0.1-Q59)/0.2*(Parameter!$D$2-Parameter!$D$3)+Parameter!$D$3 -> 800 | BA59: =(0.1-R59)/0.2*(Parameter!$D$2-Parameter!$D$3)+Parameter!$D$3 -> 800 | BB59: =(0.1-S59)/0.2*(Parameter!$D$2-Parameter!$D$3)+Parameter!$D$3 -> 800 | BC59: =(0.1-T59)/0.2*(Parameter!$D$2-Parameter!$D$3)+Parameter!$D$3 -> 800 | BD59: =(0.1-U59)/0.2*(Parameter!$D$2-Parameter!$D$3)+Parameter!$D$3 -> 800 | BE59: =(0.1-V59)/0.2*(Parameter!$D$2-Parameter!$D$3)+Parameter!$D$3 -> 800 | BF59: =(0.1-W59)/0.2*(Parameter!$D$2-Parameter!$D$3)+Parameter!$D$3 -> 800 | BG59: =(0.1-X59)/0.2*(Parameter!$D$2-Parameter!$D$3)+Parameter!$D$3 -> 800 | BH59: =(0.1-Y59)/0.2*(Parameter!$D$2-Parameter!$D$3)+Parameter!$D$3 -> 800 | BI59: =(0.1-Z59)/0.2*(Parameter!$D$2-Parameter!$D$3)+Parameter!$D$3 -> 800 | BJ59: =(0.1-AA59)/0.2*(Parameter!$D$2-Parameter!$D$3)+Parameter!$D$3 -> 800 | BK59: =(0.1-AB59)/0.2*(Parameter!$D$2-Parameter!$D$3)+Parameter!$D$3 -> 800 | BL59: =(0.1-AC59)/0.2*(Parameter!$D$2-Parameter!$D$3)+Parameter!$D$3 -> 800 | BM59: =(0.1-AD59)/0.2*(Parameter!$D$2-Parameter!$D$3)+Parameter!$D$3 -> 800 | BN59: =(0.1-AE59)/0.2*(Parameter!$D$2-Parameter!$D$3)+Parameter!$D$3 -> 800
A60: =IF(Parameter!$D$20="Y",AE60,B60) -> -0.1 | B60: -0.1 | C60: -0.1 | D60: -0.1 | E60: -0.1 | F60: -0.1 | G60: -0.1 | H60: -0.1 | I60: -0.1 | J60: -0.1 | K60: -0.1 | L60: -0.1 | M60: -0.1 | N60: -0.1 | O60: -0.1 | P60: -0.1 | Q60: -0.1 | R60: -0.1 | S60: -0.1 | T60: -0.1 | U60: -0.1 | V60: -0.1 | W60: -0.1 | X60: -0.1 | Y60: -0.1 | Z60: -0.1 | AA60: -0.1 | AB60: -0.1 | AC60: -0.1 | AD60: -0.1 | AE60: -0.1 | AF60: =IF(Parameter!$D$20="Y",B60, AE60) -> -0.1 | AK60: =(0.1-B60)/0.2*(Parameter!$D$2-Parameter!$D$3)+Parameter!$D$3 -> 800 | AL60: =(0.1-C60)/0.2*(Parameter!$D$2-Parameter!$D$3)+Parameter!$D$3 -> 800 | AM60: =(0.1-D60)/0.2*(Parameter!$D$2-Parameter!$D$3)+Parameter!$D$3 -> 800 | AN60: =(0.1-E60)/0.2*(Parameter!$D$2-Parameter!$D$3)+Parameter!$D$3 -> 800 | AO60: =(0.1-F60)/0.2*(Parameter!$D$2-Parameter!$D$3)+Parameter!$D$3 -> 800 | AP60: =(0.1-G60)/0.2*(Parameter!$D$2-Parameter!$D$3)+Parameter!$D$3 -> 800 | AQ60: =(0.1-H60)/0.2*(Parameter!$D$2-Parameter!$D$3)+Parameter!$D$3 -> 800 | AR60: =(0.1-I60)/0.2*(Parameter!$D$2-Parameter!$D$3)+Parameter!$D$3 -> 800 | AS60: =(0.1-J60)/0.2*(Parameter!$D$2-Parameter!$D$3)+Parameter!$D$3 -> 800 | AT60: =(0.1-K60)/0.2*(Parameter!$D$2-Parameter!$D$3)+Parameter!$D$3 -> 800 | AU60: =(0.1-L60)/0.2*(Parameter!$D$2-Parameter!$D$3)+Parameter!$D$3 -> 800 | AV60: =(0.1-M60)/0.2*(Parameter!$D$2-Parameter!$D$3)+Parameter!$D$3 -> 800 | AW60: =(0.1-N60)/0.2*(Parameter!$D$2-Parameter!$D$3)+Parameter!$D$3 -> 800 | AX60: =(0.1-O60)/0.2*(Parameter!$D$2-Parameter!$D$3)+Parameter!$D$3 -> 800 | AY60: =(0.1-P60)/0.2*(Parameter!$D$2-Parameter!$D$3)+Parameter!$D$3 -> 800 | AZ60: =(0.1-Q60)/0.2*(Parameter!$D$2-Parameter!$D$3)+Parameter!$D$3 -> 800 | BA60: =(0.1-R60)/0.2*(Parameter!$D$2-Parameter!$D$3)+Parameter!$D$3 -> 800 | BB60: =(0.1-S60)/0.2*(Parameter!$D$2-Parameter!$D$3)+Parameter!$D$3 -> 800 | BC60: =(0.1-T60)/0.2*(Parameter!$D$2-Parameter!$D$3)+Parameter!$D$3 -> 800 | BD60: =(0.1-U60)/0.2*(Parameter!$D$2-Parameter!$D$3)+Parameter!$D$3 -> 800 | BE60: =(0.1-V60)/0.2*(Parameter!$D$2-Parameter!$D$3)+Parameter!$D$3 -> 800 | BF60: =(0.1-W60)/0.2*(Parameter!$D$2-Parameter!$D$3)+Parameter!$D$3 -> 800 | BG60: =(0.1-X60)/0.2*(Parameter!$D$2-Parameter!$D$3)+Parameter!$D$3 -> 800 | BH60: =(0.1-Y60)/0.2*(Parameter!$D$2-Parameter!$D$3)+Parameter!$D$3 -> 800 | BI60: =(0.1-Z60)/0.2*(Parameter!$D$2-Parameter!$D$3)+Parameter!$D$3 -> 800 | BJ60: =(0.1-AA60)/0.2*(Parameter!$D$2-Parameter!$D$3)+Parameter!$D$3 -> 800 | BK60: =(0.1-AB60)/0.2*(Parameter!$D$2-Parameter!$D$3)+Parameter!$D$3 -> 800 | BL60: =(0.1-AC60)/0.2*(Parameter!$D$2-Parameter!$D$3)+Parameter!$D$3 -> 800 | BM60: =(0.1-AD60)/0.2*(Parameter!$D$2-Parameter!$D$3)+Parameter!$D$3 -> 800 | BN60: =(0.1-AE60)/0.2*(Parameter!$D$2-Parameter!$D$3)+Parameter!$D$3 -> 800
A61: =IF(Parameter!$D$20="Y",AE61,B61) -> -0.1 | B61: -0.1 | C61: -0.1 | D61: -0.1 | E61: -0.1 | F61: -0.1 | G61: -0.1 | H61: -0.1 | I61: -0.1 | J61: -0.1 | K61: -0.1 | L61: -0.1 | M61: -0.1 | N61: -0.1 | O61: -0.1 | P61: -0.1 | Q61: -0.1 | R61: -0.1 | S61: -0.1 | T61: -0.1 | U61: -0.1 | V61: -0.1 | W61: -0.1 | X61: -0.1 | Y61: -0.1 | Z61: -0.1 | AA61: -0.1 | AB61: -0.1 | AC61: -0.1 | AD61: -0.1 | AE61: -0.1 | AF61: =IF(Parameter!$D$20="Y",B61, AE61) -> -0.1 | AK61: =(0.1-B61)/0.2*(Parameter!$D$2-Parameter!$D$3)+Parameter!$D$3 -> 800 | AL61: =(0.1-C61)/0.2*(Parameter!$D$2-Parameter!$D$3)+Parameter!$D$3 -> 800 | AM61: =(0.1-D61)/0.2*(Parameter!$D$2-Parameter!$D$3)+Parameter!$D$3 -> 800 | AN61: =(0.1-E61)/0.2*(Parameter!$D$2-Parameter!$D$3)+Parameter!$D$3 -> 800 | AO61: =(0.1-F61)/0.2*(Parameter!$D$2-Parameter!$D$3)+Parameter!$D$3 -> 800 | AP61: =(0.1-G61)/0.2*(Parameter!$D$2-Parameter!$D$3)+Parameter!$D$3 -> 800 | AQ61: =(0.1-H61)/0.2*(Parameter!$D$2-Parameter!$D$3)+Parameter!$D$3 -> 800 | AR61: =(0.1-I61)/0.2*(Parameter!$D$2-Parameter!$D$3)+Parameter!$D$3 -> 800 | AS61: =(0.1-J61)/0.2*(Parameter!$D$2-Parameter!$D$3)+Parameter!$D$3 -> 800 | AT61: =(0.1-K61)/0.2*(Parameter!$D$2-Parameter!$D$3)+Parameter!$D$3 -> 800 | AU61: =(0.1-L61)/0.2*(Parameter!$D$2-Parameter!$D$3)+Parameter!$D$3 -> 800 | AV61: =(0.1-M61)/0.2*(Parameter!$D$2-Parameter!$D$3)+Parameter!$D$3 -> 800 | AW61: =(0.1-N61)/0.2*(Parameter!$D$2-Parameter!$D$3)+Parameter!$D$3 -> 800 | AX61: =(0.1-O61)/0.2*(Parameter!$D$2-Parameter!$D$3)+Parameter!$D$3 -> 800 | AY61: =(0.1-P61)/0.2*(Parameter!$D$2-Parameter!$D$3)+Parameter!$D$3 -> 800 | AZ61: =(0.1-Q61)/0.2*(Parameter!$D$2-Parameter!$D$3)+Parameter!$D$3 -> 800 | BA61: =(0.1-R61)/0.2*(Parameter!$D$2-Parameter!$D$3)+Parameter!$D$3 -> 800 | BB61: =(0.1-S61)/0.2*(Parameter!$D$2-Parameter!$D$3)+Parameter!$D$3 -> 800 | BC61: =(0.1-T61)/0.2*(Parameter!$D$2-Parameter!$D$3)+Parameter!$D$3 -> 800 | BD61: =(0.1-U61)/0.2*(Parameter!$D$2-Parameter!$D$3)+Parameter!$D$3 -> 800 | BE61: =(0.1-V61)/0.2*(Parameter!$D$2-Parameter!$D$3)+Parameter!$D$3 -> 800 | BF61: =(0.1-W61)/0.2*(Parameter!$D$2-Parameter!$D$3)+Parameter!$D$3 -> 800 | BG61: =(0.1-X61)/0.2*(Parameter!$D$2-Parameter!$D$3)+Parameter!$D$3 -> 800 | BH61: =(0.1-Y61)/0.2*(Parameter!$D$2-Parameter!$D$3)+Parameter!$D$3 -> 800 | BI61: =(0.1-Z61)/0.2*(Parameter!$D$2-Parameter!$D$3)+Parameter!$D$3 -> 800 | BJ61: =(0.1-AA61)/0.2*(Parameter!$D$2-Parameter!$D$3)+Parameter!$D$3 -> 800 | BK61: =(0.1-AB61)/0.2*(Parameter!$D$2-Parameter!$D$3)+Parameter!$D$3 -> 800 | BL61: =(0.1-AC61)/0.2*(Parameter!$D$2-Parameter!$D$3)+Parameter!$D$3 -> 800 | BM61: =(0.1-AD61)/0.2*(Parameter!$D$2-Parameter!$D$3)+Parameter!$D$3 -> 800 | BN61: =(0.1-AE61)/0.2*(Parameter!$D$2-Parameter!$D$3)+Parameter!$D$3 -> 800
A62: =IF(Parameter!$D$20="Y",AE62,B62) -> -0.1 | B62: -0.1 | C62: -0.1 | D62: -0.1 | E62: -0.1 | F62: -0.1 | G62: -0.1 | H62: -0.1 | I62: -0.1 | J62: -0.1 | K62: -0.1 | L62: -0.1 | M62: -0.1 | N62: -0.1 | O62: -0.1 | P62: -0.1 | Q62: -0.1 | R62: -0.1 | S62: -0.1 | T62: -0.1 | U62: -0.1 | V62: -0.1 | W62: -0.1 | X62: -0.1 | Y62: -0.1 | Z62: -0.1 | AA62: -0.1 | AB62: -0.1 | AC62: -0.1 | AD62: -0.1 | AE62: -0.1 | AF62: =IF(Parameter!$D$20="Y",B62, AE62) -> -0.1 | AK62: =(0.1-B62)/0.2*(Parameter!$D$2-Parameter!$D$3)+Parameter!$D$3 -> 800 | AL62: =(0.1-C62)/0.2*(Parameter!$D$2-Parameter!$D$3)+Parameter!$D$3 -> 800 | AM62: =(0.1-D62)/0.2*(Parameter!$D$2-Parameter!$D$3)+Parameter!$D$3 -> 800 | AN62: =(0.1-E62)/0.2*(Parameter!$D$2-Parameter!$D$3)+Parameter!$D$3 -> 800 | AO62: =(0.1-F62)/0.2*(Parameter!$D$2-Parameter!$D$3)+Parameter!$D$3 -> 800 | AP62: =(0.1-G62)/0.2*(Parameter!$D$2-Parameter!$D$3)+Parameter!$D$3 -> 800 | AQ62: =(0.1-H62)/0.2*(Parameter!$D$2-Parameter!$D$3)+Parameter!$D$3 -> 800 | AR62: =(0.1-I62)/0.2*(Parameter!$D$2-Parameter!$D$3)+Parameter!$D$3 -> 800 | AS62: =(0.1-J62)/0.2*(Parameter!$D$2-Parameter!$D$3)+Parameter!$D$3 -> 800 | AT62: =(0.1-K62)/0.2*(Parameter!$D$2-Parameter!$D$3)+Parameter!$D$3 -> 800 | AU62: =(0.1-L62)/0.2*(Parameter!$D$2-Parameter!$D$3)+Parameter!$D$3 -> 800 | AV62: =(0.1-M62)/0.2*(Parameter!$D$2-Parameter!$D$3)+Parameter!$D$3 -> 800 | AW62: =(0.1-N62)/0.2*(Parameter!$D$2-Parameter!$D$3)+Parameter!$D$3 -> 800 | AX62: =(0.1-O62)/0.2*(Parameter!$D$2-Parameter!$D$3)+Parameter!$D$3 -> 800 | AY62: =(0.1-P62)/0.2*(Parameter!$D$2-Parameter!$D$3)+Parameter!$D$3 -> 800 | AZ62: =(0.1-Q62)/0.2*(Parameter!$D$2-Parameter!$D$3)+Parameter!$D$3 -> 800 | BA62: =(0.1-R62)/0.2*(Parameter!$D$2-Parameter!$D$3)+Parameter!$D$3 -> 800 | BB62: =(0.1-S62)/0.2*(Parameter!$D$2-Parameter!$D$3)+Parameter!$D$3 -> 800 | BC62: =(0.1-T62)/0.2*(Parameter!$D$2-Parameter!$D$3)+Parameter!$D$3 -> 800 | BD62: =(0.1-U62)/0.2*(Parameter!$D$2-Parameter!$D$3)+Parameter!$D$3 -> 800 | BE62: =(0.1-V62)/0.2*(Parameter!$D$2-Parameter!$D$3)+Parameter!$D$3 -> 800 | BF62: =(0.1-W62)/0.2*(Parameter!$D$2-Parameter!$D$3)+Parameter!$D$3 -> 800 | BG62: =(0.1-X62)/0.2*(Parameter!$D$2-Parameter!$D$3)+Parameter!$D$3 -> 800 | BH62: =(0.1-Y62)/0.2*(Parameter!$D$2-Parameter!$D$3)+Parameter!$D$3 -> 800 | BI62: =(0.1-Z62)/0.2*(Parameter!$D$2-Parameter!$D$3)+Parameter!$D$3 -> 800 | BJ62: =(0.1-AA62)/0.2*(Parameter!$D$2-Parameter!$D$3)+Parameter!$D$3 -> 800 | BK62: =(0.1-AB62)/0.2*(Parameter!$D$2-Parameter!$D$3)+Parameter!$D$3 -> 800 | BL62: =(0.1-AC62)/0.2*(Parameter!$D$2-Parameter!$D$3)+Parameter!$D$3 -> 800 | BM62: =(0.1-AD62)/0.2*(Parameter!$D$2-Parameter!$D$3)+Parameter!$D$3 -> 800 | BN62: =(0.1-AE62)/0.2*(Parameter!$D$2-Parameter!$D$3)+Parameter!$D$3 -> 800
A63: =IF(Parameter!$D$20="Y",AE63,B63) -> -0.1 | B63: -0.1 | C63: -0.1 | D63: -0.1 | E63: -0.1 | F63: -0.1 | G63: -0.1 | H63: -0.1 | I63: -0.1 | J63: -0.1 | K63: -0.1 | L63: -0.1 | M63: -0.1 | N63: -0.1 | O63: -0.1 | P63: -0.1 | Q63: -0.1 | R63: -0.1 | S63: -0.1 | T63: -0.1 | U63: -0.1 | V63: -0.1 | W63: -0.1 | X63: -0.1 | Y63: -0.1 | Z63: -0.1 | AA63: -0.1 | AB63: -0.1 | AC63: -0.1 | AD63: -0.1 | AE63: -0.1 | AF63: =IF(Parameter!$D$20="Y",B63, AE63) -> -0.1 | AK63: =(0.1-B63)/0.2*(Parameter!$D$2-Parameter!$D$3)+Parameter!$D$3 -> 800 | AL63: =(0.1-C63)/0.2*(Parameter!$D$2-Parameter!$D$3)+Parameter!$D$3 -> 800 | AM63: =(0.1-D63)/0.2*(Parameter!$D$2-Parameter!$D$3)+Parameter!$D$3 -> 800 | AN63: =(0.1-E63)/0.2*(Parameter!$D$2-Parameter!$D$3)+Parameter!$D$3 -> 800 | AO63: =(0.1-F63)/0.2*(Parameter!$D$2-Parameter!$D$3)+Parameter!$D$3 -> 800 | AP63: =(0.1-G63)/0.2*(Parameter!$D$2-Parameter!$D$3)+Parameter!$D$3 -> 800 | AQ63: =(0.1-H63)/0.2*(Parameter!$D$2-Parameter!$D$3)+Parameter!$D$3 -> 800 | AR63: =(0.1-I63)/0.2*(Parameter!$D$2-Parameter!$D$3)+Parameter!$D$3 -> 800 | AS63: =(0.1-J63)/0.2*(Parameter!$D$2-Parameter!$D$3)+Parameter!$D$3 -> 800 | AT63: =(0.1-K63)/0.2*(Parameter!$D$2-Parameter!$D$3)+Parameter!$D$3 -> 800 | AU63: =(0.1-L63)/0.2*(Parameter!$D$2-Parameter!$D$3)+Parameter!$D$3 -> 800 | AV63: =(0.1-M63)/0.2*(Parameter!$D$2-Parameter!$D$3)+Parameter!$D$3 -> 800 | AW63: =(0.1-N63)/0.2*(Parameter!$D$2-Parameter!$D$3)+Parameter!$D$3 -> 800 | AX63: =(0.1-O63)/0.2*(Parameter!$D$2-Parameter!$D$3)+Parameter!$D$3 -> 800 | AY63: =(0.1-P63)/0.2*(Parameter!$D$2-Parameter!$D$3)+Parameter!$D$3 -> 800 | AZ63: =(0.1-Q63)/0.2*(Parameter!$D$2-Parameter!$D$3)+Parameter!$D$3 -> 800 | BA63: =(0.1-R63)/0.2*(Parameter!$D$2-Parameter!$D$3)+Parameter!$D$3 -> 800 | BB63: =(0.1-S63)/0.2*(Parameter!$D$2-Parameter!$D$3)+Parameter!$D$3 -> 800 | BC63: =(0.1-T63)/0.2*(Parameter!$D$2-Parameter!$D$3)+Parameter!$D$3 -> 800 | BD63: =(0.1-U63)/0.2*(Parameter!$D$2-Parameter!$D$3)+Parameter!$D$3 -> 800 | BE63: =(0.1-V63)/0.2*(Parameter!$D$2-Parameter!$D$3)+Parameter!$D$3 -> 800 | BF63: =(0.1-W63)/0.2*(Parameter!$D$2-Parameter!$D$3)+Parameter!$D$3 -> 800 | BG63: =(0.1-X63)/0.2*(Parameter!$D$2-Parameter!$D$3)+Parameter!$D$3 -> 800 | BH63: =(0.1-Y63)/0.2*(Parameter!$D$2-Parameter!$D$3)+Parameter!$D$3 -> 800 | BI63: =(0.1-Z63)/0.2*(Parameter!$D$2-Parameter!$D$3)+Parameter!$D$3 -> 800 | BJ63: =(0.1-AA63)/0.2*(Parameter!$D$2-Parameter!$D$3)+Parameter!$D$3 -> 800 | BK63: =(0.1-AB63)/0.2*(Parameter!$D$2-Parameter!$D$3)+Parameter!$D$3 -> 800 | BL63: =(0.1-AC63)/0.2*(Parameter!$D$2-Parameter!$D$3)+Parameter!$D$3 -> 800 | BM63: =(0.1-AD63)/0.2*(Parameter!$D$2-Parameter!$D$3)+Parameter!$D$3 -> 800 | BN63: =(0.1-AE63)/0.2*(Parameter!$D$2-Parameter!$D$3)+Parameter!$D$3 -> 800
A64: =IF(Parameter!$D$20="Y",AE64,B64) -> -0.1 | B64: -0.1 | C64: -0.1 | D64: -0.1 | E64: -0.1 | F64: -0.1 | G64: -0.1 | H64: -0.1 | I64: -0.1 | J64: -0.1 | K64: -0.1 | L64: -0.1 | M64: -0.1 | N64: -0.1 | O64: -0.1 | P64: -0.1 | Q64: -0.1 | R64: -0.1 | S64: -0.1 | T64: -0.1 | U64: -0.1 | V64: -0.1 | W64: -0.1 | X64: -0.1 | Y64: -0.1 | Z64: -0.1 | AA64: -0.1 | AB64: -0.1 | AC64: -0.1 | AD64: -0.1 | AE64: -0.1 | AF64: =IF(Parameter!$D$20="Y",B64, AE64) -> -0.1 | AK64: =(0.1-B64)/0.2*(Parameter!$D$2-Parameter!$D$3)+Parameter!$D$3 -> 800 | AL64: =(0.1-C64)/0.2*(Parameter!$D$2-Parameter!$D$3)+Parameter!$D$3 -> 800 | AM64: =(0.1-D64)/0.2*(Parameter!$D$2-Parameter!$D$3)+Parameter!$D$3 -> 800 | AN64: =(0.1-E64)/0.2*(Parameter!$D$2-Parameter!$D$3)+Parameter!$D$3 -> 800 | AO64: =(0.1-F64)/0.2*(Parameter!$D$2-Parameter!$D$3)+Parameter!$D$3 -> 800 | AP64: =(0.1-G64)/0.2*(Parameter!$D$2-Parameter!$D$3)+Parameter!$D$3 -> 800 | AQ64: =(0.1-H64)/0.2*(Parameter!$D$2-Parameter!$D$3)+Parameter!$D$3 -> 800 | AR64: =(0.1-I64)/0.2*(Parameter!$D$2-Parameter!$D$3)+Parameter!$D$3 -> 800 | AS64: =(0.1-J64)/0.2*(Parameter!$D$2-Parameter!$D$3)+Parameter!$D$3 -> 800 | AT64: =(0.1-K64)/0.2*(Parameter!$D$2-Parameter!$D$3)+Parameter!$D$3 -> 800 | AU64: =(0.1-L64)/0.2*(Parameter!$D$2-Parameter!$D$3)+Parameter!$D$3 -> 800 | AV64: =(0.1-M64)/0.2*(Parameter!$D$2-Parameter!$D$3)+Parameter!$D$3 -> 800 | AW64: =(0.1-N64)/0.2*(Parameter!$D$2-Parameter!$D$3)+Parameter!$D$3 -> 800 | AX64: =(0.1-O64)/0.2*(Parameter!$D$2-Parameter!$D$3)+Parameter!$D$3 -> 800 | AY64: =(0.1-P64)/0.2*(Parameter!$D$2-Parameter!$D$3)+Parameter!$D$3 -> 800 | AZ64: =(0.1-Q64)/0.2*(Parameter!$D$2-Parameter!$D$3)+Parameter!$D$3 -> 800 | BA64: =(0.1-R64)/0.2*(Parameter!$D$2-Parameter!$D$3)+Parameter!$D$3 -> 800 | BB64: =(0.1-S64)/0.2*(Parameter!$D$2-Parameter!$D$3)+Parameter!$D$3 -> 800 | BC64: =(0.1-T64)/0.2*(Parameter!$D$2-Parameter!$D$3)+Parameter!$D$3 -> 800 | BD64: =(0.1-U64)/0.2*(Parameter!$D$2-Parameter!$D$3)+Parameter!$D$3 -> 800 | BE64: =(0.1-V64)/0.2*(Parameter!$D$2-Parameter!$D$3)+Parameter!$D$3 -> 800 | BF64: =(0.1-W64)/0.2*(Parameter!$D$2-Parameter!$D$3)+Parameter!$D$3 -> 800 | BG64: =(0.1-X64)/0.2*(Parameter!$D$2-Parameter!$D$3)+Parameter!$D$3 -> 800 | BH64: =(0.1-Y64)/0.2*(Parameter!$D$2-Parameter!$D$3)+Parameter!$D$3 -> 800 | BI64: =(0.1-Z64)/0.2*(Parameter!$D$2-Parameter!$D$3)+Parameter!$D$3 -> 800 | BJ64: =(0.1-AA64)/0.2*(Parameter!$D$2-Parameter!$D$3)+Parameter!$D$3 -> 800 | BK64: =(0.1-AB64)/0.2*(Parameter!$D$2-Parameter!$D$3)+Parameter!$D$3 -> 800 | BL64: =(0.1-AC64)/0.2*(Parameter!$D$2-Parameter!$D$3)+Parameter!$D$3 -> 800 | BM64: =(0.1-AD64)/0.2*(Parameter!$D$2-Parameter!$D$3)+Parameter!$D$3 -> 800 | BN64: =(0.1-AE64)/0.2*(Parameter!$D$2-Parameter!$D$3)+Parameter!$D$3 -> 800
A65: =IF(AND(Parameter!$D$19="Y", Parameter!$D$20="Y"), CA!A35, B64) -> -0.1 | B65: =B35 -> -0.1 | C65: -0.1 | D65: -0.1 | E65: -0.1 | F65: -0.1 | G65: -0.1 | H65: -0.1 | I65: -0.1 | J65: -0.1 | K65: -0.1 | L65: -0.1 | M65: -0.1 | N65: -0.1 | O65: -0.1 | P65: -0.1 | Q65: -0.1 | R65: -0.1 | S65: -0.1 | T65: -0.1 | U65: -0.1 | V65: -0.1 | W65: -0.1 | X65: -0.1 | Y65: -0.1 | Z65: -0.1 | AA65: -0.1 | AB65: -0.1 | AC65: -0.1 | AD65: -0.1 | AE65: -0.1 | AF65: =IF(AND(Parameter!$D$19="Y", Parameter!$D$20="Y"), CA!AF35,AE64) -> -0.1

Sheet CoolingCurve_out
A1: Time | B1: P1:Vapor Film | C1: P1:Temperature Non Dimension | D1: P1:Temperature /℃ | E1: P2:Vapor Film | F1: P2:Temperature Non Dimension | G1: P2:Temperature /℃ | H1: P3:Vapor Film | I1: P3:Temperature Non Dimension | J1: P3:Temperature /℃ | K1: P4:Vapor Film | L1: P4:Temperature Non Dimension | M1: P4:Temperature /℃ | N1: P5:Vapor Film | O1: P5:Temperature Non Dimension | P1: P5:Temperature /℃

Sheet Parameter
B2: Temperature Range | C2: Upper | D2: 800
C3: Lower | D3: 100
B4: Minimum Heat Flux | D4: 503.6 | F4: =0.1-($D4-$D$3)/($D$2-$D$3)*0.2 -> -0.01531428571
B5: Boiling Temperature | D5: 368.7 | F5: =0.1-($D5-$D$3)/($D$2-$D$3)*0.2 -> 0.02322857143
B6: Coolant Temperature | D6: 60 | F6: =0.1-($D6-$D$3)/($D$2-$D$3)*0.2 -> 0.1114285714
B7: Vapor Blanket Stage | D7: 1.0441
B8: Boiling Stage | D8: 4.994
B9: Convection Stage | D9: 0.865
B10: Phase Verocity on Vibration of Vapor Film | D10: 3
B11: Heat Transfer with Neighborhood Cells | D11: 1
B12: Propagation of vapor film collapse from Neighborhood cells | D12: 1
B14: Effect of Latent Heat | D14: 0.0001
B15: Iteration Number | D15: 300
B16: Fitting Parameter | D16: 0.08
B17: Time Increment | D17: 0.1
B19: Rotation(Upper/Lower) | D19: N
B20: Rotation(Left/Right) | D20: Y

Sheet Shape_edge
A2: 0 | B2: 0 | C2: 0 | D2: 0 | E2: 0 | F2: 0 | G2: 0 | H2: 0 | I2: 0 | J2: 0 | K2: 0 | L2: 0 | M2: 0 | N2: 0 | O2: 0 | P2: 0 | Q2: 0 | R2: 0 | S2: 0 | T2: 0 | U2: 0 | V2: 0 | W2: 0 | X2: 0 | Y2: 0 | Z2: 0 | AA2: 0 | AB2: 0 | AC2: 0 | AD2: 0
A3: 0 | B3: 0 | C3: 0 | D3: 0 | E3: 0 | F3: 0 | G3: 0 | H3: 0 | I3: 0 | J3: 0 | K3: 0 | L3: 0 | M3: 0 | N3: 0 | O3: 0 | P3: 0 | Q3: 0 | R3: 0 | S3: 0 | T3: 0 | U3: 0 | V3: 0 | W3: 0 | X3: 0 | Y3: 0 | Z3: 0 | AA3: 0 | AB3: 0 | AC3: 0 | AD3: 0 | AF3: Shape Factor for Vapor Bloken
A4: 0 | B4: 0 | C4: 0 | D4: 0 | E4: 0 | F4: 0 | G4: 0 | H4: 0 | I4: 0 | J4: 0 | K4: 0 | L4: 0 | M4: 0 | N4: 0 | O4: 0 | P4: 0 | Q4: 0 | R4: 0 | S4: 0 | T4: 0 | U4: 0 | V4: 0 | W4: 0 | X4: 0 | Y4: 0 | Z4: 0 | AA4: 0 | AB4: 0 | AC4: 0 | AD4: 0
A5: 0 | B5: 0 | C5: 0 | D5: 0 | E5: 0 | F5: 0 | G5: 0 | H5: 0 | I5: 0 | J5: 0 | K5: 0 | L5: 0 | M5: 0 | N5: 0 | O5: 0 | P5: 0 | Q5: 0 | R5: 0 | S5: 0 | T5: 0 | U5: 0 | V5: 0 | W5: 0 | X5: 0 | Y5: 0 | Z5: 0 | AA5: 0 | AB5: 0 | AC5: 0 | AD5: 0
A6: 0 | B6: 0 | C6: 0 | D6: 0 | E6: 0 | F6: 0 | G6: 0 | H6: 0 | I6: 0 | J6: 0 | K6: 0 | L6: 0 | M6: 0 | N6: 0 | O6: 0 | P6: 0 | Q6: 0 | R6: 0 | S6: 0 | T6: 0 | U6: 0 | V6: 0 | W6: 0 | X6: 0 | Y6: 0 | Z6: 0 | AA6: 0 | AB6: 0 | AC6: 0 | AD6: 0
A7: 0 | B7: 0 | C7: 0 | D7: 0 | E7: 0 | F7: 0 | G7: 0 | H7: 0 | I7: 0 | J7: 0 | K7: 0 | L7: 0 | M7: 0 | N7: 0 | O7: 0 | P7: 0 | Q7: 0 | R7: 0 | S7: 0 | T7: 0 | U7: 0 | V7: 0 | W7: 0 | X7: 0 | Y7: 0 | Z7: 0 | AA7: 0 | AB7: 0 | AC7: 0 | AD7: 0
A8: 0 | B8: 0 | C8: 0 | D8: 0 | E8: 0 | F8: 0 | G8: 0 | H8: 0 | I8: 0 | J8: 0 | K8: 0 | L8: 0 | M8: 0 | N8: 0 | O8: 0 | P8: 0 | Q8: 0 | R8: 0 | S8: 0 | T8: 0 | U8: 0 | V8: 0 | W8: 0 | X8: 0 | Y8: 0 | Z8: 0 | AA8: 0 | AB8: 0 | AC8: 0 | AD8: 0
A9: 0.1 | B9: 0.1 | C9: 0.1 | D9: 0.1 | E9: 0.1 | F9: 0.1 | G9: 0.1 | H9: 0.1 | I9: 0.1 | J9: 0.1 | K9: 0.1 | L9: 0.1 | M9: 0.1 | N9: 0.1 | O9: 0.1 | P9: 0.1 | Q9: 0.1 | R9: 0.1 | S9: 0.1 | T9: 0.1 | U9: 0.1 | V9: 0.1 | W9: 0.1 | X9: 0.1 | Y9: 0.1 | Z9: 0.1 | AA9: 0.1 | AB9: 0.1 | AC9: 0.1 | AD9: 0.1
A10: 0 | B10: 0 | C10: 0 | D10: 0 | E10: 0 | F10: 0 | G10: 0 | H10: 0 | I10: 0 | J10: 0 | K10: 0 | L10: 0 | M10: 0 | N10: 0 | O10: 0 | P10: 0 | Q10: 0 | R10: 0 | S10: 0 | T10: 0 | U10: 0 | V10: 0 | W10: 0 | X10: 0 | Y10: 0 | Z10: 0 | AA10: 0 | AB10: 0 | AC10: 0 | AD10: 0
A11: 0 | B11: 0 | C11: 0 | D11: 0 | E11: 0 | F11: 0 | G11: 0 | H11: 0 | I11: 0 | J11: 0 | K11: 0 | L11: 0 | M11: 0 | N11: 0 | O11: 0 | P11: 0 | Q11: 0 | R11: 0 | S11: 0 | T11: 0 | U11: 0 | V11: 0 | W11: 0 | X11: 0 | Y11: 0 | Z11: 0 | AA11: 0 | AB11: 0 | AC11: 0 | AD11: 0
A12: 0 | B12: 0 | C12: 0 | D12: 0 | E12: 0 | F12: 0 | G12: 0 | H12: 0 | I12: 0 | J12: 0 | K12: 0 | L12: 0 | M12: 0 | N12: 0 | O12: 0 | P12: 0 | Q12: 0 | R12: 0 | S12: 0 | T12: 0 | U12: 0 | V12: 0 | W12: 0 | X12: 0 | Y12: 0 | Z12: 0 | AA12: 0 | AB12: 0 | AC12: 0 | AD12: 0
A13: 0 | B13: 0 | C13: 0 | D13: 0 | E13: 0 | F13: 0 | G13: 0 | H13: 0 | I13: 0 | J13: 0 | K13: 0 | L13: 0 | M13: 0 | N13: 0 | O13: 0 | P13: 0 | Q13: 0 | R13: 0 | S13: 0 | T13: 0 | U13: 0 | V13: 0 | W13: 0 | X13: 0 | Y13: 0 | Z13: 0 | AA13: 0 | AB13: 0 | AC13: 0 | AD13: 0
A14: 0 | B14: 0 | C14: 0 | D14: 0 | E14: 0 | F14: 0 | G14: 0 | H14: 0 | I14: 0 | J14: 0 | K14: 0 | L14: 0 | M14: 0 | N14: 0 | O14: 0 | P14: 0 | Q14: 0 | R14: 0 | S14: 0 | T14: 0 | U14: 0 | V14: 0 | W14: 0 | X14: 0 | Y14: 0 | Z14: 0 | AA14: 0 | AB14: 0 | AC14: 0 | AD14: 0
A15: 0 | B15: 0 | C15: 0 | D15: 0 | E15: 0 | F15: 0 | G15: 0 | H15: 0 | I15: 0 | J15: 0 | K15: 0 | L15: 0 | M15: 0 | N15: 0 | O15: 0 | P15: 0 | Q15: 0 | R15: 0 | S15: 0 | T15: 0 | U15: 0 | V15: 0 | W15: 0 | X15: 0 | Y15: 0 | Z15: 0 | AA15: 0 | AB15: 0 | AC15: 0 | AD15: 0
A16: 0 | B16: 0 | C16: 0 | D16: 0 | E16: 0 | F16: 0 | G16: 0 | H16: 0 | I16: 0 | J16: 0 | K16: 0 | L16: 0 | M16: 0 | N16: 0 | O16: 0 | P16: 0 | Q16: 0 | R16: 0 | S16: 0 | T16: 0 | U16: 0 | V16: 0 | W16: 0 | X16: 0 | Y16: 0 | Z16: 0 | AA16: 0 | AB16: 0 | AC16: 0 | AD16: 0
A17: 0 | B17: 0 | C17: 0 | D17: 0 | E17: 0 | F17: 0 | G17: 0 | H17: 0 | I17: 0 | J17: 0 | K17: 0 | L17: 0 | M17: 0 | N17: 0 | O17: 0 | P17: 0 | Q17: 0 | R17: 0 | S17: 0 | T17: 0 | U17: 0 | V17: 0 | W17: 0 | X17: 0 | Y17: 0 | Z17: 0 | AA17: 0 | AB17: 0 | AC17: 0 | AD17: 0
A18: 0 | B18: 0 | C18: 0 | D18: 0 | E18: 0 | F18: 0 | G18: 0 | H18: 0 | I18: 0 | J18: 0 | K18: 0 | L18: 0 | M18: 0 | N18: 0 | O18: 0 | P18: 0 | Q18: 0 | R18: 0 | S18: 0 | T18: 0 | U18: 0 | V18: 0 | W18: 0 | X18: 0 | Y18: 0 | Z18: 0 | AA18: 0 | AB18: 0 | AC18: 0 | AD18: 0
A19: 0 | B19: 0 | C19: 0 | D19: 0 | E19: 0 | F19: 0 | G19: 0 | H19: 0 | I19: 0 | J19: 0 | K19: 0 | L19: 0 | M19: 0 | N19: 0 | O19: 0 | P19: 0 | Q19: 0 | R19: 0 | S19: 0 | T19: 0 | U19: 0 | V19: 0 | W19: 0 | X19: 0 | Y19: 0 | Z19: 0 | AA19: 0 | AB19: 0 | AC19: 0 | AD19: 0
A20: 0 | B20: 0 | C20: 0 | D20: 0 | E20: 0 | F20: 0 | G20: 0 | H20: 0 | I20: 0 | J20: 0 | K20: 0 | L20: 0 | M20: 0 | N20: 0 | O20: 0 | P20: 0 | Q20: 0 | R20: 0 | S20: 0 | T20: 0 | U20: 0 | V20: 0 | W20: 0 | X20: 0 | Y20: 0 | Z20: 0 | AA20: 0 | AB20: 0 | AC20: 0 | AD20: 0
A21: 0 | B21: 0 | C21: 0 | D21: 0 | E21: 0 | F21: 0 | G21: 0 | H21: 0 | I21: 0 | J21: 0 | K21: 0 | L21: 0 | M21: 0 | N21: 0 | O21: 0 | P21: 0 | Q21: 0 | R21: 0 | S21: 0 | T21: 0 | U21: 0 | V21: 0 | W21: 0 | X21: 0 | Y21: 0 | Z21: 0 | AA21: 0 | AB21: 0 | AC21: 0 | AD21: 0
A22: 0 | B22: 0 | C22: 0 | D22: 0 | E22: 0 | F22: 0 | G22: 0 | H22: 0 | I22: 0 | J22: 0 | K22: 0 | L22: 0 | M22: 0 | N22: 0 | O22: 0 | P22: 0 | Q22: 0 | R22: 0 | S22: 0 | T22: 0 | U22: 0 | V22: 0 | W22: 0 | X22: 0 | Y22: 0 | Z22: 0 | AA22: 0 | AB22: 0 | AC22: 0 | AD22: 0
A23: 0.1 | B23: 0.1 | C23: 0.1 | D23: 0.1 | E23: 0.1 | F23: 0.1 | G23: 0.1 | H23: 0.1 | I23: 0.1 | J23: 0.1 | K23: 0.1 | L23: 0.1 | M23: 0.1 | N23: 0.1 | O23: 0.1 | P23: 0.1 | Q23: 0.1 | R23: 0.1 | S23: 0.1 | T23: 0.1 | U23: 0.1 | V23: 0.1 | W23: 0.1 | X23: 0.1 | Y23: 0.1 | Z23: 0.1 | AA23: 0.1 | AB23: 0.1 | AC23: 0.1 | AD23: 0.1
A24: 0 | B24: 0 | C24: 0 | D24: 0 | E24: 0 | F24: 0 | G24: 0 | H24: 0 | I24: 0 | J24: 0 | K24: 0 | L24: 0 | M24: 0 | N24: 0 | O24: 0 | P24: 0 | Q24: 0 | R24: 0 | S24: 0 | T24: 0 | U24: 0 | V24: 0 | W24: 0 | X24: 0 | Y24: 0 | Z24: 0 | AA24: 0 | AB24: 0 | AC24: 0 | AD24: 0
A25: 0 | B25: 0 | C25: 0 | D25: 0 | E25: 0 | F25: 0 | G25: 0 | H25: 0 | I25: 0 | J25: 0 | K25: 0 | L25: 0 | M25: 0 | N25: 0 | O25: 0 | P25: 0 | Q25: 0 | R25: 0 | S25: 0 | T25: 0 | U25: 0 | V25: 0 | W25: 0 | X25: 0 | Y25: 0 | Z25: 0 | AA25: 0 | AB25: 0 | AC25: 0 | AD25: 0
A26: 0 | B26: 0 | C26: 0 | D26: 0 | E26: 0 | F26: 0 | G26: 0 | H26: 0 | I26: 0 | J26: 0 | K26: 0 | L26: 0 | M26: 0 | N26: 0 | O26: 0 | P26: 0 | Q26: 0 | R26: 0 | S26: 0 | T26: 0 | U26: 0 | V26: 0 | W26: 0 | X26: 0 | Y26: 0 | Z26: 0 | AA26: 0 | AB26: 0 | AC26: 0 | AD26: 0
A27: 0 | B27: 0 | C27: 0 | D27: 0 | E27: 0 | F27: 0 | G27: 0 | H27: 0 | I27: 0 | J27: 0 | K27: 0 | L27: 0 | M27: 0 | N27: 0 | O27: 0 | P27: 0 | Q27: 0 | R27: 0 | S27: 0 | T27: 0 | U27: 0 | V27: 0 | W27: 0 | X27: 0 | Y27: 0 | Z27: 0 | AA27: 0 | AB27: 0 | AC27: 0 | AD27: 0
A28: 0 | B28: 0 | C28: 0 | D28: 0 | E28: 0 | F28: 0 | G28: 0 | H28: 0 | I28: 0 | J28: 0 | K28: 0 | L28: 0 | M28: 0 | N28: 0 | O28: 0 | P28: 0 | Q28: 0 | R28: 0 | S28: 0 | T28: 0 | U28: 0 | V28: 0 | W28: 0 | X28: 0 | Y28: 0 | Z28: 0 | AA28: 0 | AB28: 0 | AC28: 0 | AD28: 0
A29: 0 | B29: 0 | C29: 0 | D29: 0 | E29: 0 | F29: 0 | G29: 0 | H29: 0 | I29: 0 | J29: 0 | K29: 0 | L29: 0 | M29: 0 | N29: 0 | O29: 0 | P29: 0 | Q29: 0 | R29: 0 | S29: 0 | T29: 0 | U29: 0 | V29: 0 | W29: 0 | X29: 0 | Y29: 0 | Z29: 0 | AA29: 0 | AB29: 0 | AC29: 0 | AD29: 0
A30: 0 | B30: 0 | C30: 0 | D30: 0 | E30: 0 | F30: 0 | G30: 0 | H30: 0 | I30: 0 | J30: 0 | K30: 0 | L30: 0 | M30: 0 | N30: 0 | O30: 0 | P30: 0 | Q30: 0 | R30: 0 | S30: 0 | T30: 0 | U30: 0 | V30: 0 | W30: 0 | X30: 0 | Y30: 0 | Z30: 0 | AA30: 0 | AB30: 0 | AC30: 0 | AD30: 0
A31: 0 | B31: 0 | C31: 0 | D31: 0 | E31: 0 | F31: 0 | G31: 0 | H31: 0 | I31: 0 | J31: 0 | K31: 0 | L31: 0 | M31: 0 | N31: 0 | O31: 0 | P31: 0 | Q31: 0 | R31: 0 | S31: 0 | T31: 0 | U31: 0 | V31: 0 | W31: 0 | X31: 0 | Y31: 0 | Z31: 0 | AA31: 0 | AB31: 0 | AC31: 0 | AD31: 0

Sheet Shape_round
A2: 0.9 | B2: 0.9 | C2: 0.9 | D2: 0.9 | E2: 0.9 | F2: 0.9 | G2: 0.9 | H2: 0.9 | I2: 0.9 | J2: 0.9 | K2: 0.9 | L2: 0.9 | M2: 0.9 | N2: 0.9 | O2: 0.9 | P2: 0.9 | Q2: 0.9 | R2: 0.9 | S2: 0.9 | T2: 0.9 | U2: 0.9 | V2: 0.9 | W2: 0.9 | X2: 0.9 | Y2: 0.9 | Z2: 0.9 | AA2: 0.9 | AB2: 0.9 | AC2: 0.9 | AD2: 0.9
A3: 0.9 | B3: 0.9 | C3: 0.9 | D3: 0.9 | E3: 0.9 | F3: 0.9 | G3: 0.9 | H3: 0.9 | I3: 0.9 | J3: 0.9 | K3: 0.9 | L3: 0.9 | M3: 0.9 | N3: 0.9 | O3: 0.9 | P3: 0.9 | Q3: 0.9 | R3: 0.9 | S3: 0.9 | T3: 0.9 | U3: 0.9 | V3: 0.9 | W3: 0.9 | X3: 0.9 | Y3: 0.9 | Z3: 0.9 | AA3: 0.9 | AB3: 0.9 | AC3: 0.9 | AD3: 0.9 | AF3: Shape Factor for Cooling
A4: 0.9 | B4: 0.9 | C4: 0.9 | D4: 0.9 | E4: 0.9 | F4: 0.9 | G4: 0.9 | H4: 0.9 | I4: 0.9 | J4: 0.9 | K4: 0.9 | L4: 0.9 | M4: 0.9 | N4: 0.9 | O4: 0.9 | P4: 0.9 | Q4: 0.9 | R4: 0.9 | S4: 0.9 | T4: 0.9 | U4: 0.9 | V4: 0.9 | W4: 0.9 | X4: 0.9 | Y4: 0.9 | Z4: 0.9 | AA4: 0.9 | AB4: 0.9 | AC4: 0.9 | AD4: 0.9
A5: 0.9 | B5: 0.9 | C5: 0.9 | D5: 0.9 | E5: 0.9 | F5: 0.9 | G5: 0.9 | H5: 0.9 | I5: 0.9 | J5: 0.9 | K5: 0.9 | L5: 0.9 | M5: 0.9 | N5: 0.9 | O5: 0.9 | P5: 0.9 | Q5: 0.9 | R5: 0.9 | S5: 0.9 | T5: 0.9 | U5: 0.9 | V5: 0.9 | W5: 0.9 | X5: 0.9 | Y5: 0.9 | Z5: 0.9 | AA5: 0.9 | AB5: 0.9 | AC5: 0.9 | AD5: 0.9
A6: 0.9 | B6: 0.9 | C6: 0.9 | D6: 0.9 | E6: 0.9 | F6: 0.9 | G6: 0.9 | H6: 0.9 | I6: 0.9 | J6: 0.9 | K6: 0.9 | L6: 0.9 | M6: 0.9 | N6: 0.9 | O6: 0.9 | P6: 0.9 | Q6: 0.9 | R6: 0.9 | S6: 0.9 | T6: 0.9 | U6: 0.9 | V6: 0.9 | W6: 0.9 | X6: 0.9 | Y6: 0.9 | Z6: 0.9 | AA6: 0.9 | AB6: 0.9 | AC6: 0.9 | AD6: 0.9
A7: 0.9 | B7: 0.9 | C7: 0.9 | D7: 0.9 | E7: 0.9 | F7: 0.9 | G7: 0.9 | H7: 0.9 | I7: 0.9 | J7: 0.9 | K7: 0.9 | L7: 0.9 | M7: 0.9 | N7: 0.9 | O7: 0.9 | P7: 0.9 | Q7: 0.9 | R7: 0.9 | S7: 0.9 | T7: 0.9 | U7: 0.9 | V7: 0.9 | W7: 0.9 | X7: 0.9 | Y7: 0.9 | Z7: 0.9 | AA7: 0.9 | AB7: 0.9 | AC7: 0.9 | AD7: 0.9
A8: 0.9 | B8: 0.9 | C8: 0.9 | D8: 0.9 | E8: 0.9 | F8: 0.9 | G8: 0.9 | H8: 0.9 | I8: 0.9 | J8: 0.9 | K8: 0.9 | L8: 0.9 | M8: 0.9 | N8: 0.9 | O8: 0.9 | P8: 0.9 | Q8: 0.9 | R8: 0.9 | S8: 0.9 | T8: 0.9 | U8: 0.9 | V8: 0.9 | W8: 0.9 | X8: 0.9 | Y8: 0.9 | Z8: 0.9 | AA8: 0.9 | AB8: 0.9 | AC8: 0.9 | AD8: 0.9
A9: 0 | B9: 0 | C9: 0 | D9: 0 | E9: 0 | F9: 0 | G9: 0 | H9: 0 | I9: 0 | J9: 0 | K9: 0 | L9: 0 | M9: 0 | N9: 0 | O9: 0 | P9: 0 | Q9: 0 | R9: 0 | S9: 0 | T9: 0 | U9: 0 | V9: 0 | W9: 0 | X9: 0 | Y9: 0 | Z9: 0 | AA9: 0 | AB9: 0 | AC9: 0 | AD9: 0
A10: 0 | B10: 0 | C10: 0 | D10: 0 | E10: 0 | F10: 0 | G10: 0 | H10: 0 | I10: 0 | J10: 0 | K10: 0 | L10: 0 | M10: 0 | N10: 0 | O10: 0 | P10: 0 | Q10: 0 | R10: 0 | S10: 0 | T10: 0 | U10: 0 | V10: 0 | W10: 0 | X10: 0 | Y10: 0 | Z10: 0 | AA10: 0 | AB10: 0 | AC10: 0 | AD10: 0
A11: 0 | B11: 0 | C11: 0 | D11: 0 | E11: 0 | F11: 0 | G11: 0 | H11: 0 | I11: 0 | J11: 0 | K11: 0 | L11: 0 | M11: 0 | N11: 0 | O11: 0 | P11: 0 | Q11: 0 | R11: 0 | S11: 0 | T11: 0 | U11: 0 | V11: 0 | W11: 0 | X11: 0 | Y11: 0 | Z11: 0 | AA11: 0 | AB11: 0 | AC11: 0 | AD11: 0
A12: 0 | B12: 0 | C12: 0 | D12: 0 | E12: 0 | F12: 0 | G12: 0 | H12: 0 | I12: 0 | J12: 0 | K12: 0 | L12: 0 | M12: 0 | N12: 0 | O12: 0 | P12: 0 | Q12: 0 | R12: 0 | S12: 0 | T12: 0 | U12: 0 | V12: 0 | W12: 0 | X12: 0 | Y12: 0 | Z12: 0 | AA12: 0 | AB12: 0 | AC12: 0 | AD12: 0
A13: 0 | B13: 0 | C13: 0 | D13: 0 | E13: 0 | F13: 0 | G13: 0 | H13: 0 | I13: 0 | J13: 0 | K13: 0 | L13: 0 | M13: 0 | N13: 0 | O13: 0 | P13: 0 | Q13: 0 | R13: 0 | S13: 0 | T13: 0 | U13: 0 | V13: 0 | W13: 0 | X13: 0 | Y13: 0 | Z13: 0 | AA13: 0 | AB13: 0 | AC13: 0 | AD13: 0
A14: 0 | B14: 0 | C14: 0 | D14: 0 | E14: 0 | F14: 0 | G14: 0 | H14: 0 | I14: 0 | J14: 0 | K14: 0 | L14: 0 | M14: 0 | N14: 0 | O14: 0 | P14: 0 | Q14: 0 | R14: 0 | S14: 0 | T14: 0 | U14: 0 | V14: 0 | W14: 0 | X14: 0 | Y14: 0 | Z14: 0 | AA14: 0 | AB14: 0 | AC14: 0 | AD14: 0
A15: 0 | B15: 0 | C15: 0 | D15: 0 | E15: 0 | F15: 0 | G15: 0 | H15: 0 | I15: 0 | J15: 0 | K15: 0 | L15: 0 | M15: 0 | N15: 0 | O15: 0 | P15: 0 | Q15: 0 | R15: 0 | S15: 0 | T15: 0 | U15: 0 | V15: 0 | W15: 0 | X15: 0 | Y15: 0 | Z15: 0 | AA15: 0 | AB15: 0 | AC15: 0 | AD15: 0
A16: 0 | B16: 0 | C16: 0 | D16: 0 | E16: 0 | F16: 0 | G16: 0 | H16: 0 | I16: 0 | J16: 0 | K16: 0 | L16: 0 | M16: 0 | N16: 0 | O16: 0 | P16: 0 | Q16: 0 | R16: 0 | S16: 0 | T16: 0 | U16: 0 | V16: 0 | W16: 0 | X16: 0 | Y16: 0 | Z16: 0 | AA16: 0 | AB16: 0 | AC16: 0 | AD16: 0
A17: 0 | B17: 0 | C17: 0 | D17: 0 | E17: 0 | F17: 0 | G17: 0 | H17: 0 | I17: 0 | J17: 0 | K17: 0 | L17: 0 | M17: 0 | N17: 0 | O17: 0 | P17: 0 | Q17: 0 | R17: 0 | S17: 0 | T17: 0 | U17: 0 | V17: 0 | W17: 0 | X17: 0 | Y17: 0 | Z17: 0 | AA17: 0 | AB17: 0 | AC17: 0 | AD17: 0
A18: 0 | B18: 0 | C18: 0 | D18: 0 | E18: 0 | F18: 0 | G18: 0 | H18: 0 | I18: 0 | J18: 0 | K18: 0 | L18: 0 | M18: 0 | N18: 0 | O18: 0 | P18: 0 | Q18: 0 | R18: 0 | S18: 0 | T18: 0 | U18: 0 | V18: 0 | W18: 0 | X18: 0 | Y18: 0 | Z18: 0 | AA18: 0 | AB18: 0 | AC18: 0 | AD18: 0
A19: 0 | B19: 0 | C19: 0 | D19: 0 | E19: 0 | F19: 0 | G19: 0 | H19: 0 | I19: 0 | J19: 0 | K19: 0 | L19: 0 | M19: 0 | N19: 0 | O19: 0 | P19: 0 | Q19: 0 | R19: 0 | S19: 0 | T19: 0 | U19: 0 | V19: 0 | W19: 0 | X19: 0 | Y19: 0 | Z19: 0 | AA19: 0 | AB19: 0 | AC19: 0 | AD19: 0
A20: 0 | B20: 0 | C20: 0 | D20: 0 | E20: 0 | F20: 0 | G20: 0 | H20: 0 | I20: 0 | J20: 0 | K20: 0 | L20: 0 | M20: 0 | N20: 0 | O20: 0 | P20: 0 | Q20: 0 | R20: 0 | S20: 0 | T20: 0 | U20: 0 | V20: 0 | W20: 0 | X20: 0 | Y20: 0 | Z20: 0 | AA20: 0 | AB20: 0 | AC20: 0 | AD20: 0
A21: 0 | B21: 0 | C21: 0 | D21: 0 | E21: 0 | F21: 0 | G21: 0 | H21: 0 | I21: 0 | J21: 0 | K21: 0 | L21: 0 | M21: 0 | N21: 0 | O21: 0 | P21: 0 | Q21: 0 | R21: 0 | S21: 0 | T21: 0 | U21: 0 | V21: 0 | W21: 0 | X21: 0 | Y21: 0 | Z21: 0 | AA21: 0 | AB21: 0 | AC21: 0 | AD21: 0
A22: 0 | B22: 0 | C22: 0 | D22: 0 | E22: 0 | F22: 0 | G22: 0 | H22: 0 | I22: 0 | J22: 0 | K22: 0 | L22: 0 | M22: 0 | N22: 0 | O22: 0 | P22: 0 | Q22: 0 | R22: 0 | S22: 0 | T22: 0 | U22: 0 | V22: 0 | W22: 0 | X22: 0 | Y22: 0 | Z22: 0 | AA22: 0 | AB22: 0 | AC22: 0 | AD22: 0
A23: 0 | B23: 0 | C23: 0 | D23: 0 | E23: 0 | F23: 0 | G23: 0 | H23: 0 | I23: 0 | J23: 0 | K23: 0 | L23: 0 | M23: 0 | N23: 0 | O23: 0 | P23: 0 | Q23: 0 | R23: 0 | S23: 0 | T23: 0 | U23: 0 | V23: 0 | W23: 0 | X23: 0 | Y23: 0 | Z23: 0 | AA23: 0 | AB23: 0 | AC23: 0 | AD23: 0
A24: 0 | B24: 0 | C24: 0 | D24: 0 | E24: 0 | F24: 0 | G24: 0 | H24: 0 | I24: 0 | J24: 0 | K24: 0 | L24: 0 | M24: 0 | N24: 0 | O24: 0 | P24: 0 | Q24: 0 | R24: 0 | S24: 0 | T24: 0 | U24: 0 | V24: 0 | W24: 0 | X24: 0 | Y24: 0 | Z24: 0 | AA24: 0 | AB24: 0 | AC24: 0 | AD24: 0
A25: 1.1 | B25: 1.1 | C25: 1.1 | D25: 1.1 | E25: 1.1 | F25: 1.1 | G25: 1.1 | H25: 1.1 | I25: 1.1 | J25: 1.1 | K25: 1.1 | L25: 1.1 | M25: 1.1 | N25: 1.1 | O25: 1.1 | P25: 1.1 | Q25: 1.1 | R25: 1.1 | S25: 1.1 | T25: 1.1 | U25: 1.1 | V25: 1.1 | W25: 1.1 | X25: 1.1 | Y25: 1.1 | Z25: 1.1 | AA25: 1.1 | AB25: 1.1 | AC25: 1.1 | AD25: 1.1
A26: 1.1 | B26: 1.1 | C26: 1.1 | D26: 1.1 | E26: 1.1 | F26: 1.1 | G26: 1.1 | H26: 1.1 | I26: 1.1 | J26: 1.1 | K26: 1.1 | L26: 1.1 | M26: 1.1 | N26: 1.1 | O26: 1.1 | P26: 1.1 | Q26: 1.1 | R26: 1.1 | S26: 1.1 | T26: 1.1 | U26: 1.1 | V26: 1.1 | W26: 1.1 | X26: 1.1 | Y26: 1.1 | Z26: 1.1 | AA26: 1.1 | AB26: 1.1 | AC26: 1.1 | AD26: 1.1
A27: 1.1 | B27: 1.1 | C27: 1.1 | D27: 1.1 | E27: 1.1 | F27: 1.1 | G27: 1.1 | H27: 1.1 | I27: 1.1 | J27: 1.1 | K27: 1.1 | L27: 1.1 | M27: 1.1 | N27: 1.1 | O27: 1.1 | P27: 1.1 | Q27: 1.1 | R27: 1.1 | S27: 1.1 | T27: 1.1 | U27: 1.1 | V27: 1.1 | W27: 1.1 | X27: 1.1 | Y27: 1.1 | Z27: 1.1 | AA27: 1.1 | AB27: 1.1 | AC27: 1.1 | AD27: 1.1
A28: 1.1 | B28: 1.1 | C28: 1.1 | D28: 1.1 | E28: 1.1 | F28: 1.1 | G28: 1.1 | H28: 1.1 | I28: 1.1 | J28: 1.1 | K28: 1.1 | L28: 1.1 | M28: 1.1 | N28: 1.1 | O28: 1.1 | P28: 1.1 | Q28: 1.1 | R28: 1.1 | S28: 1.1 | T28: 1.1 | U28: 1.1 | V28: 1.1 | W28: 1.1 | X28: 1.1 | Y28: 1.1 | Z28: 1.1 | AA28: 1.1 | AB28: 1.1 | AC28: 1.1 | AD28: 1.1
A29: 1.1 | B29: 1.1 | C29: 1.1 | D29: 1.1 | E29: 1.1 | F29: 1.1 | G29: 1.1 | H29: 1.1 | I29: 1.1 | J29: 1.1 | K29: 1.1 | L29: 1.1 | M29: 1.1 | N29: 1.1 | O29: 1.1 | P29: 1.1 | Q29: 1.1 | R29: 1.1 | S29: 1.1 | T29: 1.1 | U29: 1.1 | V29: 1.1 | W29: 1.1 | X29: 1.1 | Y29: 1.1 | Z29: 1.1 | AA29: 1.1 | AB29: 1.1 | AC29: 1.1 | AD29: 1.1
A30: 1.1 | B30: 1.1 | C30: 1.1 | D30: 1.1 | E30: 1.1 | F30: 1.1 | G30: 1.1 | H30: 1.1 | I30: 1.1 | J30: 1.1 | K30: 1.1 | L30: 1.1 | M30: 1.1 | N30: 1.1 | O30: 1.1 | P30: 1.1 | Q30: 1.1 | R30: 1.1 | S30: 1.1 | T30: 1.1 | U30: 1.1 | V30: 1.1 | W30: 1.1 | X30: 1.1 | Y30: 1.1 | Z30: 1.1 | AA30: 1.1 | AB30: 1.1 | AC30: 1.1 | AD30: 1.1
A31: 1.1 | B31: 1.1 | C31: 1.1 | D31: 1.1 | E31: 1.1 | F31: 1.1 | G31: 1.1 | H31: 1.1 | I31: 1.1 | J31: 1.1 | K31: 1.1 | L31: 1.1 | M31: 1.1 | N31: 1.1 | O31: 1.1 | P31: 1.1 | Q31: 1.1 | R31: 1.1 | S31: 1.1 | T31: 1.1 | U31: 1.1 | V31: 1.1 | W31: 1.1 | X31: 1.1 | Y31: 1.1 | Z31: 1.1 | AA31: 1.1 | AB31: 1.1 | AC31: 1.1 | AD31: 1.1

Sheet Vapor_Fluctuation_Magnitude
A2: 0 | B2: 0 | C2: 0 | D2: 0 | E2: 0 | F2: 0 | G2: 0 | H2: 0 | I2: 0 | J2: 0 | K2: 0 | L2: 0 | M2: 0 | N2: 0 | O2: 0 | P2: 0 | Q2: 0 | R2: 0 | S2: 0 | T2: 0 | U2: 0 | V2: 0 | W2: 0 | X2: 0 | Y2: 0 | Z2: 0 | AA2: 0 | AB2: 0 | AC2: 0 | AD2: 0
A3: 0 | B3: 0 | C3: 0 | D3: 0 | E3: 0 | F3: 0 | G3: 0 | H3: 0 | I3: 0 | J3: 0 | K3: 0 | L3: 0 | M3: 0 | N3: 0 | O3: 0 | P3: 0 | Q3: 0 | R3: 0 | S3: 0 | T3: 0 | U3: 0 | V3: 0 | W3: 0 | X3: 0 | Y3: 0 | Z3: 0 | AA3: 0 | AB3: 0 | AC3: 0 | AD3: 0 | AF3: Flactuation of Vapor Film Surface
A4: 0 | B4: 0 | C4: 0 | D4: 0 | E4: 0 | F4: 0 | G4: 0 | H4: 0 | I4: 0 | J4: 0 | K4: 0 | L4: 0 | M4: 0 | N4: 0 | O4: 0 | P4: 0 | Q4: 0 | R4: 0 | S4: 0 | T4: 0 | U4: 0 | V4: 0 | W4: 0 | X4: 0 | Y4: 0 | Z4: 0 | AA4: 0 | AB4: 0 | AC4: 0 | AD4: 0
A5: 0 | B5: 0 | C5: 0 | D5: 0 | E5: 0 | F5: 0 | G5: 0 | H5: 0 | I5: 0 | J5: 0 | K5: 0 | L5: 0 | M5: 0 | N5: 0 | O5: 0 | P5: 0 | Q5: 0 | R5: 0 | S5: 0 | T5: 0 | U5: 0 | V5: 0 | W5: 0 | X5: 0 | Y5: 0 | Z5: 0 | AA5: 0 | AB5: 0 | AC5: 0 | AD5: 0
A6: 0 | B6: 0 | C6: 0 | D6: 0 | E6: 0 | F6: 0 | G6: 0 | H6: 0 | I6: 0 | J6: 0 | K6: 0 | L6: 0 | M6: 0 | N6: 0 | O6: 0 | P6: 0 | Q6: 0 | R6: 0 | S6: 0 | T6: 0 | U6: 0 | V6: 0 | W6: 0 | X6: 0 | Y6: 0 | Z6: 0 | AA6: 0 | AB6: 0 | AC6: 0 | AD6: 0
A7: 0 | B7: 0 | C7: 0 | D7: 0 | E7: 0 | F7: 0 | G7: 0 | H7: 0 | I7: 0 | J7: 0 | K7: 0 | L7: 0 | M7: 0 | N7: 0 | O7: 0 | P7: 0 | Q7: 0 | R7: 0 | S7: 0 | T7: 0 | U7: 0 | V7: 0 | W7: 0 | X7: 0 | Y7: 0 | Z7: 0 | AA7: 0 | AB7: 0 | AC7: 0 | AD7: 0
A8: 0 | B8: 0 | C8: 0 | D8: 0 | E8: 0 | F8: 0 | G8: 0 | H8: 0 | I8: 0 | J8: 0 | K8: 0 | L8: 0 | M8: 0 | N8: 0 | O8: 0 | P8: 0 | Q8: 0 | R8: 0 | S8: 0 | T8: 0 | U8: 0 | V8: 0 | W8: 0 | X8: 0 | Y8: 0 | Z8: 0 | AA8: 0 | AB8: 0 | AC8: 0 | AD8: 0
A9: 1 | B9: 1 | C9: 1 | D9: 1 | E9: 1 | F9: 1 | G9: 1 | H9: 1 | I9: 1 | J9: 1 | K9: 1 | L9: 1 | M9: 1 | N9: 1 | O9: 1 | P9: 1 | Q9: 1 | R9: 1 | S9: 1 | T9: 1 | U9: 1 | V9: 1 | W9: 1 | X9: 1 | Y9: 1 | Z9: 1 | AA9: 1 | AB9: 1 | AC9: 1 | AD9: 1
A10: 1 | B10: 1 | C10: 1 | D10: 1 | E10: 1 | F10: 1 | G10: 1 | H10: 1 | I10: 1 | J10: 1 | K10: 1 | L10: 1 | M10: 1 | N10: 1 | O10: 1 | P10: 1 | Q10: 1 | R10: 1 | S10: 1 | T10: 1 | U10: 1 | V10: 1 | W10: 1 | X10: 1 | Y10: 1 | Z10: 1 | AA10: 1 | AB10: 1 | AC10: 1 | AD10: 1
A11: 1 | B11: 1 | C11: 1 | D11: 1 | E11: 1 | F11: 1 | G11: 1 | H11: 1 | I11: 1 | J11: 1 | K11: 1 | L11: 1 | M11: 1 | N11: 1 | O11: 1 | P11: 1 | Q11: 1 | R11: 1 | S11: 1 | T11: 1 | U11: 1 | V11: 1 | W11: 1 | X11: 1 | Y11: 1 | Z11: 1 | AA11: 1 | AB11: 1 | AC11: 1 | AD11: 1
A12: 1 | B12: 1 | C12: 1 | D12: 1 | E12: 1 | F12: 1 | G12: 1 | H12: 1 | I12: 1 | J12: 1 | K12: 1 | L12: 1 | M12: 1 | N12: 1 | O12: 1 | P12: 1 | Q12: 1 | R12: 1 | S12: 1 | T12: 1 | U12: 1 | V12: 1 | W12: 1 | X12: 1 | Y12: 1 | Z12: 1 | AA12: 1 | AB12: 1 | AC12: 1 | AD12: 1
A13: 1 | B13: 1 | C13: 1 | D13: 1 | E13: 1 | F13: 1 | G13: 1 | H13: 1 | I13: 1 | J13: 1 | K13: 1 | L13: 1 | M13: 1 | N13: 1 | O13: 1 | P13: 1 | Q13: 1 | R13: 1 | S13: 1 | T13: 1 | U13: 1 | V13: 1 | W13: 1 | X13: 1 | Y13: 1 | Z13: 1 | AA13: 1 | AB13: 1 | AC13: 1 | AD13: 1
A14: 1 | B14: 1 | C14: 1 | D14: 1 | E14: 1 | F14: 1 | G14: 1 | H14: 1 | I14: 1 | J14: 1 | K14: 1 | L14: 1 | M14: 1 | N14: 1 | O14: 1 | P14: 1 | Q14: 1 | R14: 1 | S14: 1 | T14: 1 | U14: 1 | V14: 1 | W14: 1 | X14: 1 | Y14: 1 | Z14: 1 | AA14: 1 | AB14: 1 | AC14: 1 | AD14: 1
A15: 1 | B15: 1 | C15: 1 | D15: 1 | E15: 1 | F15: 1 | G15: 1 | H15: 1 | I15: 1 | J15: 1 | K15: 1 | L15: 1 | M15: 1 | N15: 1 | O15: 1 | P15: 1 | Q15: 1 | R15: 1 | S15: 1 | T15: 1 | U15: 1 | V15: 1 | W15: 1 | X15: 1 | Y15: 1 | Z15: 1 | AA15: 1 | AB15: 1 | AC15: 1 | AD15: 1
A16: 1 | B16: 1 | C16: 1 | D16: 1 | E16: 1 | F16: 1 | G16: 1 | H16: 1 | I16: 1 | J16: 1 | K16: 1 | L16: 1 | M16: 1 | N16: 1 | O16: 1 | P16: 1 | Q16: 1 | R16: 1 | S16: 1 | T16: 1 | U16: 1 | V16: 1 | W16: 1 | X16: 1 | Y16: 1 | Z16: 1 | AA16: 1 | AB16: 1 | AC16: 1 | AD16: 1
A17: 1 | B17: 1 | C17: 1 | D17: 1 | E17: 1 | F17: 1 | G17: 1 | H17: 1 | I17: 1 | J17: 1 | K17: 1 | L17: 1 | M17: 1 | N17: 1 | O17: 1 | P17: 1 | Q17: 1 | R17: 1 | S17: 1 | T17: 1 | U17: 1 | V17: 1 | W17: 1 | X17: 1 | Y17: 1 | Z17: 1 | AA17: 1 | AB17: 1 | AC17: 1 | AD17: 1
A18: 1 | B18: 1 | C18: 1 | D18: 1 | E18: 1 | F18: 1 | G18: 1 | H18: 1 | I18: 1 | J18: 1 | K18: 1 | L18: 1 | M18: 1 | N18: 1 | O18: 1 | P18: 1 | Q18: 1 | R18: 1 | S18: 1 | T18: 1 | U18: 1 | V18: 1 | W18: 1 | X18: 1 | Y18: 1 | Z18: 1 | AA18: 1 | AB18: 1 | AC18: 1 | AD18: 1
A19: 1 | B19: 1 | C19: 1 | D19: 1 | E19: 1 | F19: 1 | G19: 1 | H19: 1 | I19: 1 | J19: 1 | K19: 1 | L19: 1 | M19: 1 | N19: 1 | O19: 1 | P19: 1 | Q19: 1 | R19: 1 | S19: 1 | T19: 1 | U19: 1 | V19: 1 | W19: 1 | X19: 1 | Y19: 1 | Z19: 1 | AA19: 1 | AB19: 1 | AC19: 1 | AD19: 1
A20: 1 | B20: 1 | C20: 1 | D20: 1 | E20: 1 | F20: 1 | G20: 1 | H20: 1 | I20: 1 | J20: 1 | K20: 1 | L20: 1 | M20: 1 | N20: 1 | O20: 1 | P20: 1 | Q20: 1 | R20: 1 | S20: 1 | T20: 1 | U20: 1 | V20: 1 | W20: 1 | X20: 1 | Y20: 1 | Z20: 1 | AA20: 1 | AB20: 1 | AC20: 1 | AD20: 1
A21: 1 | B21: 1 | C21: 1 | D21: 1 | E21: 1 | F21: 1 | G21: 1 | H21: 1 | I21: 1 | J21: 1 | K21: 1 | L21: 1 | M21: 1 | N21: 1 | O21: 1 | P21: 1 | Q21: 1 | R21: 1 | S21: 1 | T21: 1 | U21: 1 | V21: 1 | W21: 1 | X21: 1 | Y21: 1 | Z21: 1 | AA21: 1 | AB21: 1 | AC21: 1 | AD21: 1
A22: 1 | B22: 1 | C22: 1 | D22: 1 | E22: 1 | F22: 1 | G22: 1 | H22: 1 | I22: 1 | J22: 1 | K22: 1 | L22: 1 | M22: 1 | N22: 1 | O22: 1 | P22: 1 | Q22: 1 | R22: 1 | S22: 1 | T22: 1 | U22: 1 | V22: 1 | W22: 1 | X22: 1 | Y22: 1 | Z22: 1 | AA22: 1 | AB22: 1 | AC22: 1 | AD22: 1
A23: 1 | B23: 1 | C23: 1 | D23: 1 | E23: 1 | F23: 1 | G23: 1 | H23: 1 | I23: 1 | J23: 1 | K23: 1 | L23: 1 | M23: 1 | N23: 1 | O23: 1 | P23: 1 | Q23: 1 | R23: 1 | S23: 1 | T23: 1 | U23: 1 | V23: 1 | W23: 1 | X23: 1 | Y23: 1 | Z23: 1 | AA23: 1 | AB23: 1 | AC23: 1 | AD23: 1
A24: 1 | B24: 1 | C24: 1 | D24: 1 | E24: 1 | F24: 1 | G24: 1 | H24: 1 | I24: 1 | J24: 1 | K24: 1 | L24: 1 | M24: 1 | N24: 1 | O24: 1 | P24: 1 | Q24: 1 | R24: 1 | S24: 1 | T24: 1 | U24: 1 | V24: 1 | W24: 1 | X24: 1 | Y24: 1 | Z24: 1 | AA24: 1 | AB24: 1 | AC24: 1 | AD24: 1
A25: 0 | B25: 0 | C25: 0 | D25: 0 | E25: 0 | F25: 0 | G25: 0 | H25: 0 | I25: 0 | J25: 0 | K25: 0 | L25: 0 | M25: 0 | N25: 0 | O25: 0 | P25: 0 | Q25: 0 | R25: 0 | S25: 0 | T25: 0 | U25: 0 | V25: 0 | W25: 0 | X25: 0 | Y25: 0 | Z25: 0 | AA25: 0 | AB25: 0 | AC25: 0 | AD25: 0
A26: 0 | B26: 0 | C26: 0 | D26: 0 | E26: 0 | F26: 0 | G26: 0 | H26: 0 | I26: 0 | J26: 0 | K26: 0 | L26: 0 | M26: 0 | N26: 0 | O26: 0 | P26: 0 | Q26: 0 | R26: 0 | S26: 0 | T26: 0 | U26: 0 | V26: 0 | W26: 0 | X26: 0 | Y26: 0 | Z26: 0 | AA26: 0 | AB26: 0 | AC26: 0 | AD26: 0
A27: 0 | B27: 0 | C27: 0 | D27: 0 | E27: 0 | F27: 0 | G27: 0 | H27: 0 | I27: 0 | J27: 0 | K27: 0 | L27: 0 | M27: 0 | N27: 0 | O27: 0 | P27: 0 | Q27: 0 | R27: 0 | S27: 0 | T27: 0 | U27: 0 | V27: 0 | W27: 0 | X27: 0 | Y27: 0 | Z27: 0 | AA27: 0 | AB27: 0 | AC27: 0 | AD27: 0
A28: 0 | B28: 0 | C28: 0 | D28: 0 | E28: 0 | F28: 0 | G28: 0 | H28: 0 | I28: 0 | J28: 0 | K28: 0 | L28: 0 | M28: 0 | N28: 0 | O28: 0 | P28: 0 | Q28: 0 | R28: 0 | S28: 0 | T28: 0 | U28: 0 | V28: 0 | W28: 0 | X28: 0 | Y28: 0 | Z28: 0 | AA28: 0 | AB28: 0 | AC28: 0 | AD28: 0
A29: 0 | B29: 0 | C29: 0 | D29: 0 | E29: 0 | F29: 0 | G29: 0 | H29: 0 | I29: 0 | J29: 0 | K29: 0 | L29: 0 | M29: 0 | N29: 0 | O29: 0 | P29: 0 | Q29: 0 | R29: 0 | S29: 0 | T29: 0 | U29: 0 | V29: 0 | W29: 0 | X29: 0 | Y29: 0 | Z29: 0 | AA29: 0 | AB29: 0 | AC29: 0 | AD29: 0
A30: 0 | B30: 0 | C30: 0 | D30: 0 | E30: 0 | F30: 0 | G30: 0 | H30: 0 | I30: 0 | J30: 0 | K30: 0 | L30: 0 | M30: 0 | N30: 0 | O30: 0 | P30: 0 | Q30: 0 | R30: 0 | S30: 0 | T30: 0 | U30: 0 | V30: 0 | W30: 0 | X30: 0 | Y30: 0 | Z30: 0 | AA30: 0 | AB30: 0 | AC30: 0 | AD30: 0
A31: 0 | B31: 0 | C31: 0 | D31: 0 | E31: 0 | F31: 0 | G31: 0 | H31: 0 | I31: 0 | J31: 0 | K31: 0 | L31: 0 | M31: 0 | N31: 0 | O31: 0 | P31: 0 | Q31: 0 | R31: 0 | S31: 0 | T31: 0 | U31: 0 | V31: 0 | W31: 0 | X31: 0 | Y31: 0 | Z31: 0 | AA31: 0 | AB31: 0 | AC31: 0 | AD31: 0

Sheet Tilt
B2: 0 | C2: 0 | D2: 0 | E2: 0 | F2: 0 | G2: 0 | H2: 0 | I2: 0 | J2: 0 | K2: 0 | L2: 0 | M2: 0 | N2: 0 | O2: 0 | P2: 0 | Q2: 0 | R2: 0 | S2: 0 | T2: 0 | U2: 0 | V2: 0 | W2: 0 | X2: 0 | Y2: 0 | Z2: 0 | AA2: 0 | AB2: 0 | AC2: 0 | AD2: 0 | AE2: 0
B3: 0 | C3: 0 | D3: 0 | E3: 0 | F3: 0 | G3: 0 | H3: 0 | I3: 0 | J3: 0 | K3: 0 | L3: 0 | M3: 0 | N3: 0 | O3: 0 | P3: 0 | Q3: 0 | R3: 0 | S3: 0 | T3: 0 | U3: 0 | V3: 0 | W3: 0 | X3: 0 | Y3: 0 | Z3: 0 | AA3: 0 | AB3: 0 | AC3: 0 | AD3: 0 | AE3: 0
B4: 0 | C4: 0 | D4: 0 | E4: 0 | F4: 0 | G4: 0 | H4: 0 | I4: 0 | J4: 0 | K4: 0 | L4: 0 | M4: 0 | N4: 0 | O4: 0 | P4: 0 | Q4: 0 | R4: 0 | S4: 0 | T4: 0 | U4: 0 | V4: 0 | W4: 0 | X4: 0 | Y4: 0 | Z4: 0 | AA4: 0 | AB4: 0 | AC4: 0 | AD4: 0 | AE4: 0
B5: 0 | C5: 0 | D5: 0 | E5: 0 | F5: 0 | G5: 0 | H5: 0 | I5: 0 | J5: 0 | K5: 0 | L5: 0 | M5: 0 | N5: 0 | O5: 0 | P5: 0 | Q5: 0 | R5: 0 | S5: 0 | T5: 0 | U5: 0 | V5: 0 | W5: 0 | X5: 0 | Y5: 0 | Z5: 0 | AA5: 0 | AB5: 0 | AC5: 0 | AD5: 0 | AE5: 0
B6: 0 | C6: 0 | D6: 0 | E6: 0 | F6: 0 | G6: 0 | H6: 0 | I6: 0 | J6: 0 | K6: 0 | L6: 0 | M6: 0 | N6: 0 | O6: 0 | P6: 0 | Q6: 0 | R6: 0 | S6: 0 | T6: 0 | U6: 0 | V6: 0 | W6: 0 | X6: 0 | Y6: 0 | Z6: 0 | AA6: 0 | AB6: 0 | AC6: 0 | AD6: 0 | AE6: 0
B7: 0 | C7: 0 | D7: 0 | E7: 0 | F7: 0 | G7: 0 | H7: 0 | I7: 0 | J7: 0 | K7: 0 | L7: 0 | M7: 0 | N7: 0 | O7: 0 | P7: 0 | Q7: 0 | R7: 0 | S7: 0 | T7: 0 | U7: 0 | V7: 0 | W7: 0 | X7: 0 | Y7: 0 | Z7: 0 | AA7: 0 | AB7: 0 | AC7: 0 | AD7: 0 | AE7: 0
B8: 0 | C8: 0 | D8: 0 | E8: 0 | F8: 0 | G8: 0 | H8: 0 | I8: 0 | J8: 0 | K8: 0 | L8: 0 | M8: 0 | N8: 0 | O8: 0 | P8: 0 | Q8: 0 | R8: 0 | S8: 0 | T8: 0 | U8: 0 | V8: 0 | W8: 0 | X8: 0 | Y8: 0 | Z8: 0 | AA8: 0 | AB8: 0 | AC8: 0 | AD8: 0 | AE8: 0
B9: -90 | C9: -90 | D9: -90 | E9: -90 | F9: -90 | G9: -90 | H9: -90 | I9: -90 | J9: -90 | K9: -90 | L9: -90 | M9: -90 | N9: -90 | O9: -90 | P9: -90 | Q9: -90 | R9: -90 | S9: -90 | T9: -90 | U9: -90 | V9: -90 | W9: -90 | X9: -90 | Y9: -90 | Z9: -90 | AA9: -90 | AB9: -90 | AC9: -90 | AD9: -90 | AE9: -90
B10: -90 | C10: -90 | D10: -90 | E10: -90 | F10: -90 | G10: -90 | H10: -90 | I10: -90 | J10: -90 | K10: -90 | L10: -90 | M10: -90 | N10: -90 | O10: -90 | P10: -90 | Q10: -90 | R10: -90 | S10: -90 | T10: -90 | U10: -90 | V10: -90 | W10: -90 | X10: -90 | Y10: -90 | Z10: -90 | AA10: -90 | AB10: -90 | AC10: -90 | AD10: -90 | AE10: -90
B11: -90 | C11: -90 | D11: -90 | E11: -90 | F11: -90 | G11: -90 | H11: -90 | I11: -90 | J11: -90 | K11: -90 | L11: -90 | M11: -90 | N11: -90 | O11: -90 | P11: -90 | Q11: -90 | R11: -90 | S11: -90 | T11: -90 | U11: -90 | V11: -90 | W11: -90 | X11: -90 | Y11: -90 | Z11: -90 | AA11: -90 | AB11: -90 | AC11: -90 | AD11: -90 | AE11: -90
B12: -90 | C12: -90 | D12: -90 | E12: -90 | F12: -90 | G12: -90 | H12: -90 | I12: -90 | J12: -90 | K12: -90 | L12: -90 | M12: -90 | N12: -90 | O12: -90 | P12: -90 | Q12: -90 | R12: -90 | S12: -90 | T12: -90 | U12: -90 | V12: -90 | W12: -90 | X12: -90 | Y12: -90 | Z12: -90 | AA12: -90 | AB12: -90 | AC12: -90 | AD12: -90 | AE12: -90
B13: -90 | C13: -90 | D13: -90 | E13: -90 | F13: -90 | G13: -90 | H13: -90 | I13: -90 | J13: -90 | K13: -90 | L13: -90 | M13: -90 | N13: -90 | O13: -90 | P13: -90 | Q13: -90 | R13: -90 | S13: -90 | T13: -90 | U13: -90 | V13: -90 | W13: -90 | X13: -90 | Y13: -90 | Z13: -90 | AA13: -90 | AB13: -90 | AC13: -90 | AD13: -90 | AE13: -90
B14: -90 | C14: -90 | D14: -90 | E14: -90 | F14: -90 | G14: -90 | H14: -90 | I14: -90 | J14: -90 | K14: -90 | L14: -90 | M14: -90 | N14: -90 | O14: -90 | P14: -90 | Q14: -90 | R14: -90 | S14: -90 | T14: -90 | U14: -90 | V14: -90 | W14: -90 | X14: -90 | Y14: -90 | Z14: -90 | AA14: -90 | AB14: -90 | AC14: -90 | AD14: -90 | AE14: -90
B15: -90 | C15: -90 | D15: -90 | E15: -90 | F15: -90 | G15: -90 | H15: -90 | I15: -90 | J15: -90 | K15: -90 | L15: -90 | M15: -90 | N15: -90 | O15: -90 | P15: -90 | Q15: -90 | R15: -90 | S15: -90 | T15: -90 | U15: -90 | V15: -90 | W15: -90 | X15: -90 | Y15: -90 | Z15: -90 | AA15: -90 | AB15: -90 | AC15: -90 | AD15: -90 | AE15: -90
B16: -90 | C16: -90 | D16: -90 | E16: -90 | F16: -90 | G16: -90 | H16: -90 | I16: -90 | J16: -90 | K16: -90 | L16: -90 | M16: -90 | N16: -90 | O16: -90 | P16: -90 | Q16: -90 | R16: -90 | S16: -90 | T16: -90 | U16: -90 | V16: -90 | W16: -90 | X16: -90 | Y16: -90 | Z16: -90 | AA16: -90 | AB16: -90 | AC16: -90 | AD16: -90 | AE16: -90
B17: -90 | C17: -90 | D17: -90 | E17: -90 | F17: -90 | G17: -90 | H17: -90 | I17: -90 | J17: -90 | K17: -90 | L17: -90 | M17: -90 | N17: -90 | O17: -90 | P17: -90 | Q17: -90 | R17: -90 | S17: -90 | T17: -90 | U17: -90 | V17: -90 | W17: -90 | X17: -90 | Y17: -90 | Z17: -90 | AA17: -90 | AB17: -90 | AC17: -90 | AD17: -90 | AE17: -90
B18: -90 | C18: -90 | D18: -90 | E18: -90 | F18: -90 | G18: -90 | H18: -90 | I18: -90 | J18: -90 | K18: -90 | L18: -90 | M18: -90 | N18: -90 | O18: -90 | P18: -90 | Q18: -90 | R18: -90 | S18: -90 | T18: -90 | U18: -90 | V18: -90 | W18: -90 | X18: -90 | Y18: -90 | Z18: -90 | AA18: -90 | AB18: -90 | AC18: -90 | AD18: -90 | AE18: -90
B19: -90 | C19: -90 | D19: -90 | E19: -90 | F19: -90 | G19: -90 | H19: -90 | I19: -90 | J19: -90 | K19: -90 | L19: -90 | M19: -90 | N19: -90 | O19: -90 | P19: -90 | Q19: -90 | R19: -90 | S19: -90 | T19: -90 | U19: -90 | V19: -90 | W19: -90 | X19: -90 | Y19: -90 | Z19: -90 | AA19: -90 | AB19: -90 | AC19: -90 | AD19: -90 | AE19: -90
B20: -90 | C20: -90 | D20: -90 | E20: -90 | F20: -90 | G20: -90 | H20: -90 | I20: -90 | J20: -90 | K20: -90 | L20: -90 | M20: -90 | N20: -90 | O20: -90 | P20: -90 | Q20: -90 | R20: -90 | S20: -90 | T20: -90 | U20: -90 | V20: -90 | W20: -90 | X20: -90 | Y20: -90 | Z20: -90 | AA20: -90 | AB20: -90 | AC20: -90 | AD20: -90 | AE20: -90
B21: -90 | C21: -90 | D21: -90 | E21: -90 | F21: -90 | G21: -90 | H21: -90 | I21: -90 | J21: -90 | K21: -90 | L21: -90 | M21: -90 | N21: -90 | O21: -90 | P21: -90 | Q21: -90 | R21: -90 | S21: -90 | T21: -90 | U21: -90 | V21: -90 | W21: -90 | X21: -90 | Y21: -90 | Z21: -90 | AA21: -90 | AB21: -90 | AC21: -90 | AD21: -90 | AE21: -90
B22: -90 | C22: -90 | D22: -90 | E22: -90 | F22: -90 | G22: -90 | H22: -90 | I22: -90 | J22: -90 | K22: -90 | L22: -90 | M22: -90 | N22: -90 | O22: -90 | P22: -90 | Q22: -90 | R22: -90 | S22: -90 | T22: -90 | U22: -90 | V22: -90 | W22: -90 | X22: -90 | Y22: -90 | Z22: -90 | AA22: -90 | AB22: -90 | AC22: -90 | AD22: -90 | AE22: -90
B23: -90 | C23: -90 | D23: -90 | E23: -90 | F23: -90 | G23: -90 | H23: -90 | I23: -90 | J23: -90 | K23: -90 | L23: -90 | M23: -90 | N23: -90 | O23: -90 | P23: -90 | Q23: -90 | R23: -90 | S23: -90 | T23: -90 | U23: -90 | V23: -90 | W23: -90 | X23: -90 | Y23: -90 | Z23: -90 | AA23: -90 | AB23: -90 | AC23: -90 | AD23: -90 | AE23: -90
B24: -90 | C24: -90 | D24: -90 | E24: -90 | F24: -90 | G24: -90 | H24: -90 | I24: -90 | J24: -90 | K24: -90 | L24: -90 | M24: -90 | N24: -90 | O24: -90 | P24: -90 | Q24: -90 | R24: -90 | S24: -90 | T24: -90 | U24: -90 | V24: -90 | W24: -90 | X24: -90 | Y24: -90 | Z24: -90 | AA24: -90 | AB24: -90 | AC24: -90 | AD24: -90 | AE24: -90 | AG24: Gravity
B25: 0 | C25: 0 | D25: 0 | E25: 0 | F25: 0 | G25: 0 | H25: 0 | I25: 0 | J25: 0 | K25: 0 | L25: 0 | M25: 0 | N25: 0 | O25: 0 | P25: 0 | Q25: 0 | R25: 0 | S25: 0 | T25: 0 | U25: 0 | V25: 0 | W25: 0 | X25: 0 | Y25: 0 | Z25: 0 | AA25: 0 | AB25: 0 | AC25: 0 | AD25: 0 | AE25: 0 | AG25: |
B26: 0 | C26: 0 | D26: 0 | E26: 0 | F26: 0 | G26: 0 | H26: 0 | I26: 0 | J26: 0 | K26: 0 | L26: 0 | M26: 0 | N26: 0 | O26: 0 | P26: 0 | Q26: 0 | R26: 0 | S26: 0 | T26: 0 | U26: 0 | V26: 0 | W26: 0 | X26: 0 | Y26: 0 | Z26: 0 | AA26: 0 | AB26: 0 | AC26: 0 | AD26: 0 | AE26: 0 | AG26: v
B27: 0 | C27: 0 | D27: 0 | E27: 0 | F27: 0 | G27: 0 | H27: 0 | I27: 0 | J27: 0 | K27: 0 | L27: 0 | M27: 0 | N27: 0 | O27: 0 | P27: 0 | Q27: 0 | R27: 0 | S27: 0 | T27: 0 | U27: 0 | V27: 0 | W27: 0 | X27: 0 | Y27: 0 | Z27: 0 | AA27: 0 | AB27: 0 | AC27: 0 | AD27: 0 | AE27: 0
B28: 0 | C28: 0 | D28: 0 | E28: 0 | F28: 0 | G28: 0 | H28: 0 | I28: 0 | J28: 0 | K28: 0 | L28: 0 | M28: 0 | N28: 0 | O28: 0 | P28: 0 | Q28: 0 | R28: 0 | S28: 0 | T28: 0 | U28: 0 | V28: 0 | W28: 0 | X28: 0 | Y28: 0 | Z28: 0 | AA28: 0 | AB28: 0 | AC28: 0 | AD28: 0 | AE28: 0
B29: 0 | C29: 0 | D29: 0 | E29: 0 | F29: 0 | G29: 0 | H29: 0 | I29: 0 | J29: 0 | K29: 0 | L29: 0 | M29: 0 | N29: 0 | O29: 0 | P29: 0 | Q29: 0 | R29: 0 | S29: 0 | T29: 0 | U29: 0 | V29: 0 | W29: 0 | X29: 0 | Y29: 0 | Z29: 0 | AA29: 0 | AB29: 0 | AC29: 0 | AD29: 0 | AE29: 0
B30: 0 | C30: 0 | D30: 0 | E30: 0 | F30: 0 | G30: 0 | H30: 0 | I30: 0 | J30: 0 | K30: 0 | L30: 0 | M30: 0 | N30: 0 | O30: 0 | P30: 0 | Q30: 0 | R30: 0 | S30: 0 | T30: 0 | U30: 0 | V30: 0 | W30: 0 | X30: 0 | Y30: 0 | Z30: 0 | AA30: 0 | AB30: 0 | AC30: 0 | AD30: 0 | AE30: 0
B31: 0 | C31: 0 | D31: 0 | E31: 0 | F31: 0 | G31: 0 | H31: 0 | I31: 0 | J31: 0 | K31: 0 | L31: 0 | M31: 0 | N31: 0 | O31: 0 | P31: 0 | Q31: 0 | R31: 0 | S31: 0 | T31: 0 | U31: 0 | V31: 0 | W31: 0 | X31: 0 | Y31: 0 | Z31: 0 | AA31: 0 | AB31: 0 | AC31: 0 | AD31: 0 | AE31: 0

Sheet Update (hidden)
B2: =IF(AND(S!B2>0,CA!B35>=Parameter!$F$5),2,IF(AND(S!B2>0,CA!B35>=Parameter!$F$4),1,0)) -> 0 | C2: =IF(AND(S!C2>0,CA!C35>=Parameter!$F$5),2,IF(AND(S!C2>0,CA!C35>=Parameter!$F$4),1,0)) -> 0 | D2: =IF(AND(S!D2>0,CA!D35>=Parameter!$F$5),2,IF(AND(S!D2>0,CA!D35>=Parameter!$F$4),1,0)) -> 0 | E2: =IF(AND(S!E2>0,CA!E35>=Parameter!$F$5),2,IF(AND(S!E2>0,CA!E35>=Parameter!$F$4),1,0)) -> 0 | F2: =IF(AND(S!F2>0,CA!F35>=Parameter!$F$5),2,IF(AND(S!F2>0,CA!F35>=Parameter!$F$4),1,0)) -> 0 | G2: =IF(AND(S!G2>0,CA!G35>=Parameter!$F$5),2,IF(AND(S!G2>0,CA!G35>=Parameter!$F$4),1,0)) -> 0 | H2: =IF(AND(S!H2>0,CA!H35>=Parameter!$F$5),2,IF(AND(S!H2>0,CA!H35>=Parameter!$F$4),1,0)) -> 0 | I2: =IF(AND(S!I2>0,CA!I35>=Parameter!$F$5),2,IF(AND(S!I2>0,CA!I35>=Parameter!$F$4),1,0)) -> 0 | J2: =IF(AND(S!J2>0,CA!J35>=Parameter!$F$5),2,IF(AND(S!J2>0,CA!J35>=Parameter!$F$4),1,0)) -> 0 | K2: =IF(AND(S!K2>0,CA!K35>=Parameter!$F$5),2,IF(AND(S!K2>0,CA!K35>=Parameter!$F$4),1,0)) -> 0 | L2: =IF(AND(S!L2>0,CA!L35>=Parameter!$F$5),2,IF(AND(S!L2>0,CA!L35>=Parameter!$F$4),1,0)) -> 0 | M2: =IF(AND(S!M2>0,CA!M35>=Parameter!$F$5),2,IF(AND(S!M2>0,CA!M35>=Parameter!$F$4),1,0)) -> 0 | N2: =IF(AND(S!N2>0,CA!N35>=Parameter!$F$5),2,IF(AND(S!N2>0,CA!N35>=Parameter!$F$4),1,0)) -> 0 | O2: =IF(AND(S!O2>0,CA!O35>=Parameter!$F$5),2,IF(AND(S!O2>0,CA!O35>=Parameter!$F$4),1,0)) -> 0 | P2: =IF(AND(S!P2>0,CA!P35>=Parameter!$F$5),2,IF(AND(S!P2>0,CA!P35>=Parameter!$F$4),1,0)) -> 0 | Q2: =IF(AND(S!Q2>0,CA!Q35>=Parameter!$F$5),2,IF(AND(S!Q2>0,CA!Q35>=Parameter!$F$4),1,0)) -> 0 | R2: =IF(AND(S!R2>0,CA!R35>=Parameter!$F$5),2,IF(AND(S!R2>0,CA!R35>=Parameter!$F$4),1,0)) -> 0 | S2: =IF(AND(S!S2>0,CA!S35>=Parameter!$F$5),2,IF(AND(S!S2>0,CA!S35>=Parameter!$F$4),1,0)) -> 0 | T2: =IF(AND(S!T2>0,CA!T35>=Parameter!$F$5),2,IF(AND(S!T2>0,CA!T35>=Parameter!$F$4),1,0)) -> 0 | U2: =IF(AND(S!U2>0,CA!U35>=Parameter!$F$5),2,IF(AND(S!U2>0,CA!U35>=Parameter!$F$4),1,0)) -> 0 | V2: =IF(AND(S!V2>0,CA!V35>=Parameter!$F$5),2,IF(AND(S!V2>0,CA!V35>=Parameter!$F$4),1,0)) -> 0 | W2: =IF(AND(S!W2>0,CA!W35>=Parameter!$F$5),2,IF(AND(S!W2>0,CA!W35>=Parameter!$F$4),1,0)) -> 0 | X2: =IF(AND(S!X2>0,CA!X35>=Parameter!$F$5),2,IF(AND(S!X2>0,CA!X35>=Parameter!$F$4),1,0)) -> 0 | Y2: =IF(AND(S!Y2>0,CA!Y35>=Parameter!$F$5),2,IF(AND(S!Y2>0,CA!Y35>=Parameter!$F$4),1,0)) -> 0 | Z2: =IF(AND(S!Z2>0,CA!Z35>=Parameter!$F$5),2,IF(AND(S!Z2>0,CA!Z35>=Parameter!$F$4),1,0)) -> 0 | AA2: =IF(AND(S!AA2>0,CA!AA35>=Parameter!$F$5),2,IF(AND(S!AA2>0,CA!AA35>=Parameter!$F$4),1,0)) -> 0 | AB2: =IF(AND(S!AB2>0,CA!AB35>=Parameter!$F$5),2,IF(AND(S!AB2>0,CA!AB35>=Parameter!$F$4),1,0)) -> 0 | AC2: =IF(AND(S!AC2>0,CA!AC35>=Parameter!$F$5),2,IF(AND(S!AC2>0,CA!AC35>=Parameter!$F$4),1,0)) -> 0 | AD2: =IF(AND(S!AD2>0,CA!AD35>=Parameter!$F$5),2,IF(AND(S!AD2>0,CA!AD35>=Parameter!$F$4),1,0)) -> 0 | AE2: =IF(AND(S!AE2>0,CA!AE35>=Parameter!$F$5),2,IF(AND(S!AE2>0,CA!AE35>=Parameter!$F$4),1,0)) -> 0
B3: =IF(AND(S!B3>0,CA!B36>=Parameter!$F$5),2,IF(AND(S!B3>0,CA!B36>=Parameter!$F$4),1,0)) -> 0 | C3: =IF(AND(S!C3>0,CA!C36>=Parameter!$F$5),2,IF(AND(S!C3>0,CA!C36>=Parameter!$F$4),1,0)) -> 0 | D3: =IF(AND(S!D3>0,CA!D36>=Parameter!$F$5),2,IF(AND(S!D3>0,CA!D36>=Parameter!$F$4),1,0)) -> 0 | E3: =IF(AND(S!E3>0,CA!E36>=Parameter!$F$5),2,IF(AND(S!E3>0,CA!E36>=Parameter!$F$4),1,0)) -> 0 | F3: =IF(AND(S!F3>0,CA!F36>=Parameter!$F$5),2,IF(AND(S!F3>0,CA!F36>=Parameter!$F$4),1,0)) -> 0 | G3: =IF(AND(S!G3>0,CA!G36>=Parameter!$F$5),2,IF(AND(S!G3>0,CA!G36>=Parameter!$F$4),1,0)) -> 0 | H3: =IF(AND(S!H3>0,CA!H36>=Parameter!$F$5),2,IF(AND(S!H3>0,CA!H36>=Parameter!$F$4),1,0)) -> 0 | I3: =IF(AND(S!I3>0,CA!I36>=Parameter!$F$5),2,IF(AND(S!I3>0,CA!I36>=Parameter!$F$4),1,0)) -> 0 | J3: =IF(AND(S!J3>0,CA!J36>=Parameter!$F$5),2,IF(AND(S!J3>0,CA!J36>=Parameter!$F$4),1,0)) -> 0 | K3: =IF(AND(S!K3>0,CA!K36>=Parameter!$F$5),2,IF(AND(S!K3>0,CA!K36>=Parameter!$F$4),1,0)) -> 0 | L3: =IF(AND(S!L3>0,CA!L36>=Parameter!$F$5),2,IF(AND(S!L3>0,CA!L36>=Parameter!$F$4),1,0)) -> 0 | M3: =IF(AND(S!M3>0,CA!M36>=Parameter!$F$5),2,IF(AND(S!M3>0,CA!M36>=Parameter!$F$4),1,0)) -> 0 | N3: =IF(AND(S!N3>0,CA!N36>=Parameter!$F$5),2,IF(AND(S!N3>0,CA!N36>=Parameter!$F$4),1,0)) -> 0 | O3: =IF(AND(S!O3>0,CA!O36>=Parameter!$F$5),2,IF(AND(S!O3>0,CA!O36>=Parameter!$F$4),1,0)) -> 0 | P3: =IF(AND(S!P3>0,CA!P36>=Parameter!$F$5),2,IF(AND(S!P3>0,CA!P36>=Parameter!$F$4),1,0)) -> 0 | Q3: =IF(AND(S!Q3>0,CA!Q36>=Parameter!$F$5),2,IF(AND(S!Q3>0,CA!Q36>=Parameter!$F$4),1,0)) -> 0 | R3: =IF(AND(S!R3>0,CA!R36>=Parameter!$F$5),2,IF(AND(S!R3>0,CA!R36>=Parameter!$F$4),1,0)) -> 0 | S3: =IF(AND(S!S3>0,CA!S36>=Parameter!$F$5),2,IF(AND(S!S3>0,CA!S36>=Parameter!$F$4),1,0)) -> 0 | T3: =IF(AND(S!T3>0,CA!T36>=Parameter!$F$5),2,IF(AND(S!T3>0,CA!T36>=Parameter!$F$4),1,0)) -> 0 | U3: =IF(AND(S!U3>0,CA!U36>=Parameter!$F$5),2,IF(AND(S!U3>0,CA!U36>=Parameter!$F$4),1,0)) -> 0 | V3: =IF(AND(S!V3>0,CA!V36>=Parameter!$F$5),2,IF(AND(S!V3>0,CA!V36>=Parameter!$F$4),1,0)) -> 0 | W3: =IF(AND(S!W3>0,CA!W36>=Parameter!$F$5),2,IF(AND(S!W3>0,CA!W36>=Parameter!$F$4),1,0)) -> 0 | X3: =IF(AND(S!X3>0,CA!X36>=Parameter!$F$5),2,IF(AND(S!X3>0,CA!X36>=Parameter!$F$4),1,0)) -> 0 | Y3: =IF(AND(S!Y3>0,CA!Y36>=Parameter!$F$5),2,IF(AND(S!Y3>0,CA!Y36>=Parameter!$F$4),1,0)) -> 0 | Z3: =IF(AND(S!Z3>0,CA!Z36>=Parameter!$F$5),2,IF(AND(S!Z3>0,CA!Z36>=Parameter!$F$4),1,0)) -> 0 | AA3: =IF(AND(S!AA3>0,CA!AA36>=Parameter!$F$5),2,IF(AND(S!AA3>0,CA!AA36>=Parameter!$F$4),1,0)) -> 0 | AB3: =IF(AND(S!AB3>0,CA!AB36>=Parameter!$F$5),2,IF(AND(S!AB3>0,CA!AB36>=Parameter!$F$4),1,0)) -> 0 | AC3: =IF(AND(S!AC3>0,CA!AC36>=Parameter!$F$5),2,IF(AND(S!AC3>0,CA!AC36>=Parameter!$F$4),1,0)) -> 0 | AD3: =IF(AND(S!AD3>0,CA!AD36>=Parameter!$F$5),2,IF(AND(S!AD3>0,CA!AD36>=Parameter!$F$4),1,0)) -> 0 | AE3: =IF(AND(S!AE3>0,CA!AE36>=Parameter!$F$5),2,IF(AND(S!AE3>0,CA!AE36>=Parameter!$F$4),1,0)) -> 0 | AH3: 次の時刻
B4: =IF(AND(S!B4>0,CA!B37>=Parameter!$F$5),2,IF(AND(S!B4>0,CA!B37>=Parameter!$F$4),1,0)) -> 0 | C4: =IF(AND(S!C4>0,CA!C37>=Parameter!$F$5),2,IF(AND(S!C4>0,CA!C37>=Parameter!$F$4),1,0)) -> 0 | D4: =IF(AND(S!D4>0,CA!D37>=Parameter!$F$5),2,IF(AND(S!D4>0,CA!D37>=Parameter!$F$4),1,0)) -> 0 | E4: =IF(AND(S!E4>0,CA!E37>=Parameter!$F$5),2,IF(AND(S!E4>0,CA!E37>=Parameter!$F$4),1,0)) -> 0 | F4: =IF(AND(S!F4>0,CA!F37>=Parameter!$F$5),2,IF(AND(S!F4>0,CA!F37>=Parameter!$F$4),1,0)) -> 0 | G4: =IF(AND(S!G4>0,CA!G37>=Parameter!$F$5),2,IF(AND(S!G4>0,CA!G37>=Parameter!$F$4),1,0)) -> 0 | H4: =IF(AND(S!H4>0,CA!H37>=Parameter!$F$5),2,IF(AND(S!H4>0,CA!H37>=Parameter!$F$4),1,0)) -> 0 | I4: =IF(AND(S!I4>0,CA!I37>=Parameter!$F$5),2,IF(AND(S!I4>0,CA!I37>=Parameter!$F$4),1,0)) -> 0 | J4: =IF(AND(S!J4>0,CA!J37>=Parameter!$F$5),2,IF(AND(S!J4>0,CA!J37>=Parameter!$F$4),1,0)) -> 0 | K4: =IF(AND(S!K4>0,CA!K37>=Parameter!$F$5),2,IF(AND(S!K4>0,CA!K37>=Parameter!$F$4),1,0)) -> 0 | L4: =IF(AND(S!L4>0,CA!L37>=Parameter!$F$5),2,IF(AND(S!L4>0,CA!L37>=Parameter!$F$4),1,0)) -> 0 | M4: =IF(AND(S!M4>0,CA!M37>=Parameter!$F$5),2,IF(AND(S!M4>0,CA!M37>=Parameter!$F$4),1,0)) -> 0 | N4: =IF(AND(S!N4>0,CA!N37>=Parameter!$F$5),2,IF(AND(S!N4>0,CA!N37>=Parameter!$F$4),1,0)) -> 0 | O4: =IF(AND(S!O4>0,CA!O37>=Parameter!$F$5),2,IF(AND(S!O4>0,CA!O37>=Parameter!$F$4),1,0)) -> 0 | P4: =IF(AND(S!P4>0,CA!P37>=Parameter!$F$5),2,IF(AND(S!P4>0,CA!P37>=Parameter!$F$4),1,0)) -> 0 | Q4: =IF(AND(S!Q4>0,CA!Q37>=Parameter!$F$5),2,IF(AND(S!Q4>0,CA!Q37>=Parameter!$F$4),1,0)) -> 0 | R4: =IF(AND(S!R4>0,CA!R37>=Parameter!$F$5),2,IF(AND(S!R4>0,CA!R37>=Parameter!$F$4),1,0)) -> 0 | S4: =IF(AND(S!S4>0,CA!S37>=Parameter!$F$5),2,IF(AND(S!S4>0,CA!S37>=Parameter!$F$4),1,0)) -> 0 | T4: =IF(AND(S!T4>0,CA!T37>=Parameter!$F$5),2,IF(AND(S!T4>0,CA!T37>=Parameter!$F$4),1,0)) -> 0 | U4: =IF(AND(S!U4>0,CA!U37>=Parameter!$F$5),2,IF(AND(S!U4>0,CA!U37>=Parameter!$F$4),1,0)) -> 0 | V4: =IF(AND(S!V4>0,CA!V37>=Parameter!$F$5),2,IF(AND(S!V4>0,CA!V37>=Parameter!$F$4),1,0)) -> 0 | W4: =IF(AND(S!W4>0,CA!W37>=Parameter!$F$5),2,IF(AND(S!W4>0,CA!W37>=Parameter!$F$4),1,0)) -> 0 | X4: =IF(AND(S!X4>0,CA!X37>=Parameter!$F$5),2,IF(AND(S!X4>0,CA!X37>=Parameter!$F$4),1,0)) -> 0 | Y4: =IF(AND(S!Y4>0,CA!Y37>=Parameter!$F$5),2,IF(AND(S!Y4>0,CA!Y37>=Parameter!$F$4),1,0)) -> 0 | Z4: =IF(AND(S!Z4>0,CA!Z37>=Parameter!$F$5),2,IF(AND(S!Z4>0,CA!Z37>=Parameter!$F$4),1,0)) -> 0 | AA4: =IF(AND(S!AA4>0,CA!AA37>=Parameter!$F$5),2,IF(AND(S!AA4>0,CA!AA37>=Parameter!$F$4),1,0)) -> 0 | AB4: =IF(AND(S!AB4>0,CA!AB37>=Parameter!$F$5),2,IF(AND(S!AB4>0,CA!AB37>=Parameter!$F$4),1,0)) -> 0 | AC4: =IF(AND(S!AC4>0,CA!AC37>=Parameter!$F$5),2,IF(AND(S!AC4>0,CA!AC37>=Parameter!$F$4),1,0)) -> 0 | AD4: =IF(AND(S!AD4>0,CA!AD37>=Parameter!$F$5),2,IF(AND(S!AD4>0,CA!AD37>=Parameter!$F$4),1,0)) -> 0 | AE4: =IF(AND(S!AE4>0,CA!AE37>=Parameter!$F$5),2,IF(AND(S!AE4>0,CA!AE37>=Parameter!$F$4),1,0)) -> 0
B5: =IF(AND(S!B5>0,CA!B38>=Parameter!$F$5),2,IF(AND(S!B5>0,CA!B38>=Parameter!$F$4),1,0)) -> 0 | C5: =IF(AND(S!C5>0,CA!C38>=Parameter!$F$5),2,IF(AND(S!C5>0,CA!C38>=Parameter!$F$4),1,0)) -> 0 | D5: =IF(AND(S!D5>0,CA!D38>=Parameter!$F$5),2,IF(AND(S!D5>0,CA!D38>=Parameter!$F$4),1,0)) -> 0 | E5: =IF(AND(S!E5>0,CA!E38>=Parameter!$F$5),2,IF(AND(S!E5>0,CA!E38>=Parameter!$F$4),1,0)) -> 0 | F5: =IF(AND(S!F5>0,CA!F38>=Parameter!$F$5),2,IF(AND(S!F5>0,CA!F38>=Parameter!$F$4),1,0)) -> 0 | G5: =IF(AND(S!G5>0,CA!G38>=Parameter!$F$5),2,IF(AND(S!G5>0,CA!G38>=Parameter!$F$4),1,0)) -> 0 | H5: =IF(AND(S!H5>0,CA!H38>=Parameter!$F$5),2,IF(AND(S!H5>0,CA!H38>=Parameter!$F$4),1,0)) -> 0 | I5: =IF(AND(S!I5>0,CA!I38>=Parameter!$F$5),2,IF(AND(S!I5>0,CA!I38>=Parameter!$F$4),1,0)) -> 0 | J5: =IF(AND(S!J5>0,CA!J38>=Parameter!$F$5),2,IF(AND(S!J5>0,CA!J38>=Parameter!$F$4),1,0)) -> 0 | K5: =IF(AND(S!K5>0,CA!K38>=Parameter!$F$5),2,IF(AND(S!K5>0,CA!K38>=Parameter!$F$4),1,0)) -> 0 | L5: =IF(AND(S!L5>0,CA!L38>=Parameter!$F$5),2,IF(AND(S!L5>0,CA!L38>=Parameter!$F$4),1,0)) -> 0 | M5: =IF(AND(S!M5>0,CA!M38>=Parameter!$F$5),2,IF(AND(S!M5>0,CA!M38>=Parameter!$F$4),1,0)) -> 0 | N5: =IF(AND(S!N5>0,CA!N38>=Parameter!$F$5),2,IF(AND(S!N5>0,CA!N38>=Parameter!$F$4),1,0)) -> 0 | O5: =IF(AND(S!O5>0,CA!O38>=Parameter!$F$5),2,IF(AND(S!O5>0,CA!O38>=Parameter!$F$4),1,0)) -> 0 | P5: =IF(AND(S!P5>0,CA!P38>=Parameter!$F$5),2,IF(AND(S!P5>0,CA!P38>=Parameter!$F$4),1,0)) -> 0 | Q5: =IF(AND(S!Q5>0,CA!Q38>=Parameter!$F$5),2,IF(AND(S!Q5>0,CA!Q38>=Parameter!$F$4),1,0)) -> 0 | R5: =IF(AND(S!R5>0,CA!R38>=Parameter!$F$5),2,IF(AND(S!R5>0,CA!R38>=Parameter!$F$4),1,0)) -> 0 | S5: =IF(AND(S!S5>0,CA!S38>=Parameter!$F$5),2,IF(AND(S!S5>0,CA!S38>=Parameter!$F$4),1,0)) -> 0 | T5: =IF(AND(S!T5>0,CA!T38>=Parameter!$F$5),2,IF(AND(S!T5>0,CA!T38>=Parameter!$F$4),1,0)) -> 0 | U5: =IF(AND(S!U5>0,CA!U38>=Parameter!$F$5),2,IF(AND(S!U5>0,CA!U38>=Parameter!$F$4),1,0)) -> 0 | V5: =IF(AND(S!V5>0,CA!V38>=Parameter!$F$5),2,IF(AND(S!V5>0,CA!V38>=Parameter!$F$4),1,0)) -> 0 | W5: =IF(AND(S!W5>0,CA!W38>=Parameter!$F$5),2,IF(AND(S!W5>0,CA!W38>=Parameter!$F$4),1,0)) -> 0 | X5: =IF(AND(S!X5>0,CA!X38>=Parameter!$F$5),2,IF(AND(S!X5>0,CA!X38>=Parameter!$F$4),1,0)) -> 0 | Y5: =IF(AND(S!Y5>0,CA!Y38>=Parameter!$F$5),2,IF(AND(S!Y5>0,CA!Y38>=Parameter!$F$4),1,0)) -> 0 | Z5: =IF(AND(S!Z5>0,CA!Z38>=Parameter!$F$5),2,IF(AND(S!Z5>0,CA!Z38>=Parameter!$F$4),1,0)) -> 0 | AA5: =IF(AND(S!AA5>0,CA!AA38>=Parameter!$F$5),2,IF(AND(S!AA5>0,CA!AA38>=Parameter!$F$4),1,0)) -> 0 | AB5: =IF(AND(S!AB5>0,CA!AB38>=Parameter!$F$5),2,IF(AND(S!AB5>0,CA!AB38>=Parameter!$F$4),1,0)) -> 0 | AC5: =IF(AND(S!AC5>0,CA!AC38>=Parameter!$F$5),2,IF(AND(S!AC5>0,CA!AC38>=Parameter!$F$4),1,0)) -> 0 | AD5: =IF(AND(S!AD5>0,CA!AD38>=Parameter!$F$5),2,IF(AND(S!AD5>0,CA!AD38>=Parameter!$F$4),1,0)) -> 0 | AE5: =IF(AND(S!AE5>0,CA!AE38>=Parameter!$F$5),2,IF(AND(S!AE5>0,CA!AE38>=Parameter!$F$4),1,0)) -> 0
B6: =IF(AND(S!B6>0,CA!B39>=Parameter!$F$5),2,IF(AND(S!B6>0,CA!B39>=Parameter!$F$4),1,0)) -> 0 | C6: =IF(AND(S!C6>0,CA!C39>=Parameter!$F$5),2,IF(AND(S!C6>0,CA!C39>=Parameter!$F$4),1,0)) -> 0 | D6: =IF(AND(S!D6>0,CA!D39>=Parameter!$F$5),2,IF(AND(S!D6>0,CA!D39>=Parameter!$F$4),1,0)) -> 0 | E6: =IF(AND(S!E6>0,CA!E39>=Parameter!$F$5),2,IF(AND(S!E6>0,CA!E39>=Parameter!$F$4),1,0)) -> 0 | F6: =IF(AND(S!F6>0,CA!F39>=Parameter!$F$5),2,IF(AND(S!F6>0,CA!F39>=Parameter!$F$4),1,0)) -> 0 | G6: =IF(AND(S!G6>0,CA!G39>=Parameter!$F$5),2,IF(AND(S!G6>0,CA!G39>=Parameter!$F$4),1,0)) -> 0 | H6: =IF(AND(S!H6>0,CA!H39>=Parameter!$F$5),2,IF(AND(S!H6>0,CA!H39>=Parameter!$F$4),1,0)) -> 0 | I6: =IF(AND(S!I6>0,CA!I39>=Parameter!$F$5),2,IF(AND(S!I6>0,CA!I39>=Parameter!$F$4),1,0)) -> 0 | J6: =IF(AND(S!J6>0,CA!J39>=Parameter!$F$5),2,IF(AND(S!J6>0,CA!J39>=Parameter!$F$4),1,0)) -> 0 | K6: =IF(AND(S!K6>0,CA!K39>=Parameter!$F$5),2,IF(AND(S!K6>0,CA!K39>=Parameter!$F$4),1,0)) -> 0 | L6: =IF(AND(S!L6>0,CA!L39>=Parameter!$F$5),2,IF(AND(S!L6>0,CA!L39>=Parameter!$F$4),1,0)) -> 0 | M6: =IF(AND(S!M6>0,CA!M39>=Parameter!$F$5),2,IF(AND(S!M6>0,CA!M39>=Parameter!$F$4),1,0)) -> 0 | N6: =IF(AND(S!N6>0,CA!N39>=Parameter!$F$5),2,IF(AND(S!N6>0,CA!N39>=Parameter!$F$4),1,0)) -> 0 | O6: =IF(AND(S!O6>0,CA!O39>=Parameter!$F$5),2,IF(AND(S!O6>0,CA!O39>=Parameter!$F$4),1,0)) -> 0 | P6: =IF(AND(S!P6>0,CA!P39>=Parameter!$F$5),2,IF(AND(S!P6>0,CA!P39>=Parameter!$F$4),1,0)) -> 0 | Q6: =IF(AND(S!Q6>0,CA!Q39>=Parameter!$F$5),2,IF(AND(S!Q6>0,CA!Q39>=Parameter!$F$4),1,0)) -> 0 | R6: =IF(AND(S!R6>0,CA!R39>=Parameter!$F$5),2,IF(AND(S!R6>0,CA!R39>=Parameter!$F$4),1,0)) -> 0 | S6: =IF(AND(S!S6>0,CA!S39>=Parameter!$F$5),2,IF(AND(S!S6>0,CA!S39>=Parameter!$F$4),1,0)) -> 0 | T6: =IF(AND(S!T6>0,CA!T39>=Parameter!$F$5),2,IF(AND(S!T6>0,CA!T39>=Parameter!$F$4),1,0)) -> 0 | U6: =IF(AND(S!U6>0,CA!U39>=Parameter!$F$5),2,IF(AND(S!U6>0,CA!U39>=Parameter!$F$4),1,0)) -> 0 | V6: =IF(AND(S!V6>0,CA!V39>=Parameter!$F$5),2,IF(AND(S!V6>0,CA!V39>=Parameter!$F$4),1,0)) -> 0 | W6: =IF(AND(S!W6>0,CA!W39>=Parameter!$F$5),2,IF(AND(S!W6>0,CA!W39>=Parameter!$F$4),1,0)) -> 0 | X6: =IF(AND(S!X6>0,CA!X39>=Parameter!$F$5),2,IF(AND(S!X6>0,CA!X39>=Parameter!$F$4),1,0)) -> 0 | Y6: =IF(AND(S!Y6>0,CA!Y39>=Parameter!$F$5),2,IF(AND(S!Y6>0,CA!Y39>=Parameter!$F$4),1,0)) -> 0 | Z6: =IF(AND(S!Z6>0,CA!Z39>=Parameter!$F$5),2,IF(AND(S!Z6>0,CA!Z39>=Parameter!$F$4),1,0)) -> 0 | AA6: =IF(AND(S!AA6>0,CA!AA39>=Parameter!$F$5),2,IF(AND(S!AA6>0,CA!AA39>=Parameter!$F$4),1,0)) -> 0 | AB6: =IF(AND(S!AB6>0,CA!AB39>=Parameter!$F$5),2,IF(AND(S!AB6>0,CA!AB39>=Parameter!$F$4),1,0)) -> 0 | AC6: =IF(AND(S!AC6>0,CA!AC39>=Parameter!$F$5),2,IF(AND(S!AC6>0,CA!AC39>=Parameter!$F$4),1,0)) -> 0 | AD6: =IF(AND(S!AD6>0,CA!AD39>=Parameter!$F$5),2,IF(AND(S!AD6>0,CA!AD39>=Parameter!$F$4),1,0)) -> 0 | AE6: =IF(AND(S!AE6>0,CA!AE39>=Parameter!$F$5),2,IF(AND(S!AE6>0,CA!AE39>=Parameter!$F$4),1,0)) -> 0
B7: =IF(AND(S!B7>0,CA!B40>=Parameter!$F$5),2,IF(AND(S!B7>0,CA!B40>=Parameter!$F$4),1,0)) -> 0 | C7: =IF(AND(S!C7>0,CA!C40>=Parameter!$F$5),2,IF(AND(S!C7>0,CA!C40>=Parameter!$F$4),1,0)) -> 0 | D7: =IF(AND(S!D7>0,CA!D40>=Parameter!$F$5),2,IF(AND(S!D7>0,CA!D40>=Parameter!$F$4),1,0)) -> 0 | E7: =IF(AND(S!E7>0,CA!E40>=Parameter!$F$5),2,IF(AND(S!E7>0,CA!E40>=Parameter!$F$4),1,0)) -> 0 | F7: =IF(AND(S!F7>0,CA!F40>=Parameter!$F$5),2,IF(AND(S!F7>0,CA!F40>=Parameter!$F$4),1,0)) -> 0 | G7: =IF(AND(S!G7>0,CA!G40>=Parameter!$F$5),2,IF(AND(S!G7>0,CA!G40>=Parameter!$F$4),1,0)) -> 0 | H7: =IF(AND(S!H7>0,CA!H40>=Parameter!$F$5),2,IF(AND(S!H7>0,CA!H40>=Parameter!$F$4),1,0)) -> 0 | I7: =IF(AND(S!I7>0,CA!I40>=Parameter!$F$5),2,IF(AND(S!I7>0,CA!I40>=Parameter!$F$4),1,0)) -> 0 | J7: =IF(AND(S!J7>0,CA!J40>=Parameter!$F$5),2,IF(AND(S!J7>0,CA!J40>=Parameter!$F$4),1,0)) -> 0 | K7: =IF(AND(S!K7>0,CA!K40>=Parameter!$F$5),2,IF(AND(S!K7>0,CA!K40>=Parameter!$F$4),1,0)) -> 0 | L7: =IF(AND(S!L7>0,CA!L40>=Parameter!$F$5),2,IF(AND(S!L7>0,CA!L40>=Parameter!$F$4),1,0)) -> 0 | M7: =IF(AND(S!M7>0,CA!M40>=Parameter!$F$5),2,IF(AND(S!M7>0,CA!M40>=Parameter!$F$4),1,0)) -> 0 | N7: =IF(AND(S!N7>0,CA!N40>=Parameter!$F$5),2,IF(AND(S!N7>0,CA!N40>=Parameter!$F$4),1,0)) -> 0 | O7: =IF(AND(S!O7>0,CA!O40>=Parameter!$F$5),2,IF(AND(S!O7>0,CA!O40>=Parameter!$F$4),1,0)) -> 0 | P7: =IF(AND(S!P7>0,CA!P40>=Parameter!$F$5),2,IF(AND(S!P7>0,CA!P40>=Parameter!$F$4),1,0)) -> 0 | Q7: =IF(AND(S!Q7>0,CA!Q40>=Parameter!$F$5),2,IF(AND(S!Q7>0,CA!Q40>=Parameter!$F$4),1,0)) -> 0 | R7: =IF(AND(S!R7>0,CA!R40>=Parameter!$F$5),2,IF(AND(S!R7>0,CA!R40>=Parameter!$F$4),1,0)) -> 0 | S7: =IF(AND(S!S7>0,CA!S40>=Parameter!$F$5),2,IF(AND(S!S7>0,CA!S40>=Parameter!$F$4),1,0)) -> 0 | T7: =IF(AND(S!T7>0,CA!T40>=Parameter!$F$5),2,IF(AND(S!T7>0,CA!T40>=Parameter!$F$4),1,0)) -> 0 | U7: =IF(AND(S!U7>0,CA!U40>=Parameter!$F$5),2,IF(AND(S!U7>0,CA!U40>=Parameter!$F$4),1,0)) -> 0 | V7: =IF(AND(S!V7>0,CA!V40>=Parameter!$F$5),2,IF(AND(S!V7>0,CA!V40>=Parameter!$F$4),1,0)) -> 0 | W7: =IF(AND(S!W7>0,CA!W40>=Parameter!$F$5),2,IF(AND(S!W7>0,CA!W40>=Parameter!$F$4),1,0)) -> 0 | X7: =IF(AND(S!X7>0,CA!X40>=Parameter!$F$5),2,IF(AND(S!X7>0,CA!X40>=Parameter!$F$4),1,0)) -> 0 | Y7: =IF(AND(S!Y7>0,CA!Y40>=Parameter!$F$5),2,IF(AND(S!Y7>0,CA!Y40>=Parameter!$F$4),1,0)) -> 0 | Z7: =IF(AND(S!Z7>0,CA!Z40>=Parameter!$F$5),2,IF(AND(S!Z7>0,CA!Z40>=Parameter!$F$4),1,0)) -> 0 | AA7: =IF(AND(S!AA7>0,CA!AA40>=Parameter!$F$5),2,IF(AND(S!AA7>0,CA!AA40>=Parameter!$F$4),1,0)) -> 0 | AB7: =IF(AND(S!AB7>0,CA!AB40>=Parameter!$F$5),2,IF(AND(S!AB7>0,CA!AB40>=Parameter!$F$4),1,0)) -> 0 | AC7: =IF(AND(S!AC7>0,CA!AC40>=Parameter!$F$5),2,IF(AND(S!AC7>0,CA!AC40>=Parameter!$F$4),1,0)) -> 0 | AD7: =IF(AND(S!AD7>0,CA!AD40>=Parameter!$F$5),2,IF(AND(S!AD7>0,CA!AD40>=Parameter!$F$4),1,0)) -> 0 | AE7: =IF(AND(S!AE7>0,CA!AE40>=Parameter!$F$5),2,IF(AND(S!AE7>0,CA!AE40>=Parameter!$F$4),1,0)) -> 0
B8: =IF(AND(S!B8>0,CA!B41>=Parameter!$F$5),2,IF(AND(S!B8>0,CA!B41>=Parameter!$F$4),1,0)) -> 0 | C8: =IF(AND(S!C8>0,CA!C41>=Parameter!$F$5),2,IF(AND(S!C8>0,CA!C41>=Parameter!$F$4),1,0)) -> 0 | D8: =IF(AND(S!D8>0,CA!D41>=Parameter!$F$5),2,IF(AND(S!D8>0,CA!D41>=Parameter!$F$4),1,0)) -> 0 | E8: =IF(AND(S!E8>0,CA!E41>=Parameter!$F$5),2,IF(AND(S!E8>0,CA!E41>=Parameter!$F$4),1,0)) -> 0 | F8: =IF(AND(S!F8>0,CA!F41>=Parameter!$F$5),2,IF(AND(S!F8>0,CA!F41>=Parameter!$F$4),1,0)) -> 0 | G8: =IF(AND(S!G8>0,CA!G41>=Parameter!$F$5),2,IF(AND(S!G8>0,CA!G41>=Parameter!$F$4),1,0)) -> 0 | H8: =IF(AND(S!H8>0,CA!H41>=Parameter!$F$5),2,IF(AND(S!H8>0,CA!H41>=Parameter!$F$4),1,0)) -> 0 | I8: =IF(AND(S!I8>0,CA!I41>=Parameter!$F$5),2,IF(AND(S!I8>0,CA!I41>=Parameter!$F$4),1,0)) -> 0 | J8: =IF(AND(S!J8>0,CA!J41>=Parameter!$F$5),2,IF(AND(S!J8>0,CA!J41>=Parameter!$F$4),1,0)) -> 0 | K8: =IF(AND(S!K8>0,CA!K41>=Parameter!$F$5),2,IF(AND(S!K8>0,CA!K41>=Parameter!$F$4),1,0)) -> 0 | L8: =IF(AND(S!L8>0,CA!L41>=Parameter!$F$5),2,IF(AND(S!L8>0,CA!L41>=Parameter!$F$4),1,0)) -> 0 | M8: =IF(AND(S!M8>0,CA!M41>=Parameter!$F$5),2,IF(AND(S!M8>0,CA!M41>=Parameter!$F$4),1,0)) -> 0 | N8: =IF(AND(S!N8>0,CA!N41>=Parameter!$F$5),2,IF(AND(S!N8>0,CA!N41>=Parameter!$F$4),1,0)) -> 0 | O8: =IF(AND(S!O8>0,CA!O41>=Parameter!$F$5),2,IF(AND(S!O8>0,CA!O41>=Parameter!$F$4),1,0)) -> 0 | P8: =IF(AND(S!P8>0,CA!P41>=Parameter!$F$5),2,IF(AND(S!P8>0,CA!P41>=Parameter!$F$4),1,0)) -> 0 | Q8: =IF(AND(S!Q8>0,CA!Q41>=Parameter!$F$5),2,IF(AND(S!Q8>0,CA!Q41>=Parameter!$F$4),1,0)) -> 0 | R8: =IF(AND(S!R8>0,CA!R41>=Parameter!$F$5),2,IF(AND(S!R8>0,CA!R41>=Parameter!$F$4),1,0)) -> 0 | S8: =IF(AND(S!S8>0,CA!S41>=Parameter!$F$5),2,IF(AND(S!S8>0,CA!S41>=Parameter!$F$4),1,0)) -> 0 | T8: =IF(AND(S!T8>0,CA!T41>=Parameter!$F$5),2,IF(AND(S!T8>0,CA!T41>=Parameter!$F$4),1,0)) -> 0 | U8: =IF(AND(S!U8>0,CA!U41>=Parameter!$F$5),2,IF(AND(S!U8>0,CA!U41>=Parameter!$F$4),1,0)) -> 0 | V8: =IF(AND(S!V8>0,CA!V41>=Parameter!$F$5),2,IF(AND(S!V8>0,CA!V41>=Parameter!$F$4),1,0)) -> 0 | W8: =IF(AND(S!W8>0,CA!W41>=Parameter!$F$5),2,IF(AND(S!W8>0,CA!W41>=Parameter!$F$4),1,0)) -> 0 | X8: =IF(AND(S!X8>0,CA!X41>=Parameter!$F$5),2,IF(AND(S!X8>0,CA!X41>=Parameter!$F$4),1,0)) -> 0 | Y8: =IF(AND(S!Y8>0,CA!Y41>=Parameter!$F$5),2,IF(AND(S!Y8>0,CA!Y41>=Parameter!$F$4),1,0)) -> 0 | Z8: =IF(AND(S!Z8>0,CA!Z41>=Parameter!$F$5),2,IF(AND(S!Z8>0,CA!Z41>=Parameter!$F$4),1,0)) -> 0 | AA8: =IF(AND(S!AA8>0,CA!AA41>=Parameter!$F$5),2,IF(AND(S!AA8>0,CA!AA41>=Parameter!$F$4),1,0)) -> 0 | AB8: =IF(AND(S!AB8>0,CA!AB41>=Parameter!$F$5),2,IF(AND(S!AB8>0,CA!AB41>=Parameter!$F$4),1,0)) -> 0 | AC8: =IF(AND(S!AC8>0,CA!AC41>=Parameter!$F$5),2,IF(AND(S!AC8>0,CA!AC41>=Parameter!$F$4),1,0)) -> 0 | AD8: =IF(AND(S!AD8>0,CA!AD41>=Parameter!$F$5),2,IF(AND(S!AD8>0,CA!AD41>=Parameter!$F$4),1,0)) -> 0 | AE8: =IF(AND(S!AE8>0,CA!AE41>=Parameter!$F$5),2,IF(AND(S!AE8>0,CA!AE41>=Parameter!$F$4),1,0)) -> 0
B9: =IF(AND(S!B9>0,CA!B42>=Parameter!$F$5),2,IF(AND(S!B9>0,CA!B42>=Parameter!$F$4),1,0)) -> 0 | C9: =IF(AND(S!C9>0,CA!C42>=Parameter!$F$5),2,IF(AND(S!C9>0,CA!C42>=Parameter!$F$4),1,0)) -> 0 | D9: =IF(AND(S!D9>0,CA!D42>=Parameter!$F$5),2,IF(AND(S!D9>0,CA!D42>=Parameter!$F$4),1,0)) -> 0 | E9: =IF(AND(S!E9>0,CA!E42>=Parameter!$F$5),2,IF(AND(S!E9>0,CA!E42>=Parameter!$F$4),1,0)) -> 0 | F9: =IF(AND(S!F9>0,CA!F42>=Parameter!$F$5),2,IF(AND(S!F9>0,CA!F42>=Parameter!$F$4),1,0)) -> 0 | G9: =IF(AND(S!G9>0,CA!G42>=Parameter!$F$5),2,IF(AND(S!G9>0,CA!G42>=Parameter!$F$4),1,0)) -> 0 | H9: =IF(AND(S!H9>0,CA!H42>=Parameter!$F$5),2,IF(AND(S!H9>0,CA!H42>=Parameter!$F$4),1,0)) -> 0 | I9: =IF(AND(S!I9>0,CA!I42>=Parameter!$F$5),2,IF(AND(S!I9>0,CA!I42>=Parameter!$F$4),1,0)) -> 0 | J9: =IF(AND(S!J9>0,CA!J42>=Parameter!$F$5),2,IF(AND(S!J9>0,CA!J42>=Parameter!$F$4),1,0)) -> 0 | K9: =IF(AND(S!K9>0,CA!K42>=Parameter!$F$5),2,IF(AND(S!K9>0,CA!K42>=Parameter!$F$4),1,0)) -> 0 | L9: =IF(AND(S!L9>0,CA!L42>=Parameter!$F$5),2,IF(AND(S!L9>0,CA!L42>=Parameter!$F$4),1,0)) -> 0 | M9: =IF(AND(S!M9>0,CA!M42>=Parameter!$F$5),2,IF(AND(S!M9>0,CA!M42>=Parameter!$F$4),1,0)) -> 0 | N9: =IF(AND(S!N9>0,CA!N42>=Parameter!$F$5),2,IF(AND(S!N9>0,CA!N42>=Parameter!$F$4),1,0)) -> 0 | O9: =IF(AND(S!O9>0,CA!O42>=Parameter!$F$5),2,IF(AND(S!O9>0,CA!O42>=Parameter!$F$4),1,0)) -> 0 | P9: =IF(AND(S!P9>0,CA!P42>=Parameter!$F$5),2,IF(AND(S!P9>0,CA!P42>=Parameter!$F$4),1,0)) -> 0 | Q9: =IF(AND(S!Q9>0,CA!Q42>=Parameter!$F$5),2,IF(AND(S!Q9>0,CA!Q42>=Parameter!$F$4),1,0)) -> 0 | R9: =IF(AND(S!R9>0,CA!R42>=Parameter!$F$5),2,IF(AND(S!R9>0,CA!R42>=Parameter!$F$4),1,0)) -> 0 | S9: =IF(AND(S!S9>0,CA!S42>=Parameter!$F$5),2,IF(AND(S!S9>0,CA!S42>=Parameter!$F$4),1,0)) -> 0 | T9: =IF(AND(S!T9>0,CA!T42>=Parameter!$F$5),2,IF(AND(S!T9>0,CA!T42>=Parameter!$F$4),1,0)) -> 0 | U9: =IF(AND(S!U9>0,CA!U42>=Parameter!$F$5),2,IF(AND(S!U9>0,CA!U42>=Parameter!$F$4),1,0)) -> 0 | V9: =IF(AND(S!V9>0,CA!V42>=Parameter!$F$5),2,IF(AND(S!V9>0,CA!V42>=Parameter!$F$4),1,0)) -> 0 | W9: =IF(AND(S!W9>0,CA!W42>=Parameter!$F$5),2,IF(AND(S!W9>0,CA!W42>=Parameter!$F$4),1,0)) -> 0 | X9: =IF(AND(S!X9>0,CA!X42>=Parameter!$F$5),2,IF(AND(S!X9>0,CA!X42>=Parameter!$F$4),1,0)) -> 0 | Y9: =IF(AND(S!Y9>0,CA!Y42>=Parameter!$F$5),2,IF(AND(S!Y9>0,CA!Y42>=Parameter!$F$4),1,0)) -> 0 | Z9: =IF(AND(S!Z9>0,CA!Z42>=Parameter!$F$5),2,IF(AND(S!Z9>0,CA!Z42>=Parameter!$F$4),1,0)) -> 0 | AA9: =IF(AND(S!AA9>0,CA!AA42>=Parameter!$F$5),2,IF(AND(S!AA9>0,CA!AA42>=Parameter!$F$4),1,0)) -> 0 | AB9: =IF(AND(S!AB9>0,CA!AB42>=Parameter!$F$5),2,IF(AND(S!AB9>0,CA!AB42>=Parameter!$F$4),1,0)) -> 0 | AC9: =IF(AND(S!AC9>0,CA!AC42>=Parameter!$F$5),2,IF(AND(S!AC9>0,CA!AC42>=Parameter!$F$4),1,0)) -> 0 | AD9: =IF(AND(S!AD9>0,CA!AD42>=Parameter!$F$5),2,IF(AND(S!AD9>0,CA!AD42>=Parameter!$F$4),1,0)) -> 0 | AE9: =IF(AND(S!AE9>0,CA!AE42>=Parameter!$F$5),2,IF(AND(S!AE9>0,CA!AE42>=Parameter!$F$4),1,0)) -> 0
B10: =IF(AND(S!B10>0,CA!B43>=Parameter!$F$5),2,IF(AND(S!B10>0,CA!B43>=Parameter!$F$4),1,0)) -> 0 | C10: =IF(AND(S!C10>0,CA!C43>=Parameter!$F$5),2,IF(AND(S!C10>0,CA!C43>=Parameter!$F$4),1,0)) -> 0 | D10: =IF(AND(S!D10>0,CA!D43>=Parameter!$F$5),2,IF(AND(S!D10>0,CA!D43>=Parameter!$F$4),1,0)) -> 0 | E10: =IF(AND(S!E10>0,CA!E43>=Parameter!$F$5),2,IF(AND(S!E10>0,CA!E43>=Parameter!$F$4),1,0)) -> 0 | F10: =IF(AND(S!F10>0,CA!F43>=Parameter!$F$5),2,IF(AND(S!F10>0,CA!F43>=Parameter!$F$4),1,0)) -> 0 | G10: =IF(AND(S!G10>0,CA!G43>=Parameter!$F$5),2,IF(AND(S!G10>0,CA!G43>=Parameter!$F$4),1,0)) -> 0 | H10: =IF(AND(S!H10>0,CA!H43>=Parameter!$F$5),2,IF(AND(S!H10>0,CA!H43>=Parameter!$F$4),1,0)) -> 0 | I10: =IF(AND(S!I10>0,CA!I43>=Parameter!$F$5),2,IF(AND(S!I10>0,CA!I43>=Parameter!$F$4),1,0)) -> 0 | J10: =IF(AND(S!J10>0,CA!J43>=Parameter!$F$5),2,IF(AND(S!J10>0,CA!J43>=Parameter!$F$4),1,0)) -> 0 | K10: =IF(AND(S!K10>0,CA!K43>=Parameter!$F$5),2,IF(AND(S!K10>0,CA!K43>=Parameter!$F$4),1,0)) -> 0 | L10: =IF(AND(S!L10>0,CA!L43>=Parameter!$F$5),2,IF(AND(S!L10>0,CA!L43>=Parameter!$F$4),1,0)) -> 0 | M10: =IF(AND(S!M10>0,CA!M43>=Parameter!$F$5),2,IF(AND(S!M10>0,CA!M43>=Parameter!$F$4),1,0)) -> 0 | N10: =IF(AND(S!N10>0,CA!N43>=Parameter!$F$5),2,IF(AND(S!N10>0,CA!N43>=Parameter!$F$4),1,0)) -> 0 | O10: =IF(AND(S!O10>0,CA!O43>=Parameter!$F$5),2,IF(AND(S!O10>0,CA!O43>=Parameter!$F$4),1,0)) -> 0 | P10: =IF(AND(S!P10>0,CA!P43>=Parameter!$F$5),2,IF(AND(S!P10>0,CA!P43>=Parameter!$F$4),1,0)) -> 0 | Q10: =IF(AND(S!Q10>0,CA!Q43>=Parameter!$F$5),2,IF(AND(S!Q10>0,CA!Q43>=Parameter!$F$4),1,0)) -> 0 | R10: =IF(AND(S!R10>0,CA!R43>=Parameter!$F$5),2,IF(AND(S!R10>0,CA!R43>=Parameter!$F$4),1,0)) -> 0 | S10: =IF(AND(S!S10>0,CA!S43>=Parameter!$F$5),2,IF(AND(S!S10>0,CA!S43>=Parameter!$F$4),1,0)) -> 0 | T10: =IF(AND(S!T10>0,CA!T43>=Parameter!$F$5),2,IF(AND(S!T10>0,CA!T43>=Parameter!$F$4),1,0)) -> 0 | U10: =IF(AND(S!U10>0,CA!U43>=Parameter!$F$5),2,IF(AND(S!U10>0,CA!U43>=Parameter!$F$4),1,0)) -> 0 | V10: =IF(AND(S!V10>0,CA!V43>=Parameter!$F$5),2,IF(AND(S!V10>0,CA!V43>=Parameter!$F$4),1,0)) -> 0 | W10: =IF(AND(S!W10>0,CA!W43>=Parameter!$F$5),2,IF(AND(S!W10>0,CA!W43>=Parameter!$F$4),1,0)) -> 0 | X10: =IF(AND(S!X10>0,CA!X43>=Parameter!$F$5),2,IF(AND(S!X10>0,CA!X43>=Parameter!$F$4),1,0)) -> 0 | Y10: =IF(AND(S!Y10>0,CA!Y43>=Parameter!$F$5),2,IF(AND(S!Y10>0,CA!Y43>=Parameter!$F$4),1,0)) -> 0 | Z10: =IF(AND(S!Z10>0,CA!Z43>=Parameter!$F$5),2,IF(AND(S!Z10>0,CA!Z43>=Parameter!$F$4),1,0)) -> 0 | AA10: =IF(AND(S!AA10>0,CA!AA43>=Parameter!$F$5),2,IF(AND(S!AA10>0,CA!AA43>=Parameter!$F$4),1,0)) -> 0 | AB10: =IF(AND(S!AB10>0,CA!AB43>=Parameter!$F$5),2,IF(AND(S!AB10>0,CA!AB43>=Parameter!$F$4),1,0)) -> 0 | AC10: =IF(AND(S!AC10>0,CA!AC43>=Parameter!$F$5),2,IF(AND(S!AC10>0,CA!AC43>=Parameter!$F$4),1,0)) -> 0 | AD10: =IF(AND(S!AD10>0,CA!AD43>=Parameter!$F$5),2,IF(AND(S!AD10>0,CA!AD43>=Parameter!$F$4),1,0)) -> 0 | AE10: =IF(AND(S!AE10>0,CA!AE43>=Parameter!$F$5),2,IF(AND(S!AE10>0,CA!AE43>=Parameter!$F$4),1,0)) -> 0
B11: =IF(AND(S!B11>0,CA!B44>=Parameter!$F$5),2,IF(AND(S!B11>0,CA!B44>=Parameter!$F$4),1,0)) -> 0 | C11: =IF(AND(S!C11>0,CA!C44>=Parameter!$F$5),2,IF(AND(S!C11>0,CA!C44>=Parameter!$F$4),1,0)) -> 0 | D11: =IF(AND(S!D11>0,CA!D44>=Parameter!$F$5),2,IF(AND(S!D11>0,CA!D44>=Parameter!$F$4),1,0)) -> 0 | E11: =IF(AND(S!E11>0,CA!E44>=Parameter!$F$5),2,IF(AND(S!E11>0,CA!E44>=Parameter!$F$4),1,0)) -> 0 | F11: =IF(AND(S!F11>0,CA!F44>=Parameter!$F$5),2,IF(AND(S!F11>0,CA!F44>=Parameter!$F$4),1,0)) -> 0 | G11: =IF(AND(S!G11>0,CA!G44>=Parameter!$F$5),2,IF(AND(S!G11>0,CA!G44>=Parameter!$F$4),1,0)) -> 0 | H11: =IF(AND(S!H11>0,CA!H44>=Parameter!$F$5),2,IF(AND(S!H11>0,CA!H44>=Parameter!$F$4),1,0)) -> 0 | I11: =IF(AND(S!I11>0,CA!I44>=Parameter!$F$5),2,IF(AND(S!I11>0,CA!I44>=Parameter!$F$4),1,0)) -> 0 | J11: =IF(AND(S!J11>0,CA!J44>=Parameter!$F$5),2,IF(AND(S!J11>0,CA!J44>=Parameter!$F$4),1,0)) -> 0 | K11: =IF(AND(S!K11>0,CA!K44>=Parameter!$F$5),2,IF(AND(S!K11>0,CA!K44>=Parameter!$F$4),1,0)) -> 0 | L11: =IF(AND(S!L11>0,CA!L44>=Parameter!$F$5),2,IF(AND(S!L11>0,CA!L44>=Parameter!$F$4),1,0)) -> 0 | M11: =IF(AND(S!M11>0,CA!M44>=Parameter!$F$5),2,IF(AND(S!M11>0,CA!M44>=Parameter!$F$4),1,0)) -> 0 | N11: =IF(AND(S!N11>0,CA!N44>=Parameter!$F$5),2,IF(AND(S!N11>0,CA!N44>=Parameter!$F$4),1,0)) -> 0 | O11: =IF(AND(S!O11>0,CA!O44>=Parameter!$F$5),2,IF(AND(S!O11>0,CA!O44>=Parameter!$F$4),1,0)) -> 0 | P11: =IF(AND(S!P11>0,CA!P44>=Parameter!$F$5),2,IF(AND(S!P11>0,CA!P44>=Parameter!$F$4),1,0)) -> 0 | Q11: =IF(AND(S!Q11>0,CA!Q44>=Parameter!$F$5),2,IF(AND(S!Q11>0,CA!Q44>=Parameter!$F$4),1,0)) -> 0 | R11: =IF(AND(S!R11>0,CA!R44>=Parameter!$F$5),2,IF(AND(S!R11>0,CA!R44>=Parameter!$F$4),1,0)) -> 0 | S11: =IF(AND(S!S11>0,CA!S44>=Parameter!$F$5),2,IF(AND(S!S11>0,CA!S44>=Parameter!$F$4),1,0)) -> 0 | T11: =IF(AND(S!T11>0,CA!T44>=Parameter!$F$5),2,IF(AND(S!T11>0,CA!T44>=Parameter!$F$4),1,0)) -> 0 | U11: =IF(AND(S!U11>0,CA!U44>=Parameter!$F$5),2,IF(AND(S!U11>0,CA!U44>=Parameter!$F$4),1,0)) -> 0 | V11: =IF(AND(S!V11>0,CA!V44>=Parameter!$F$5),2,IF(AND(S!V11>0,CA!V44>=Parameter!$F$4),1,0)) -> 0 | W11: =IF(AND(S!W11>0,CA!W44>=Parameter!$F$5),2,IF(AND(S!W11>0,CA!W44>=Parameter!$F$4),1,0)) -> 0 | X11: =IF(AND(S!X11>0,CA!X44>=Parameter!$F$5),2,IF(AND(S!X11>0,CA!X44>=Parameter!$F$4),1,0)) -> 0 | Y11: =IF(AND(S!Y11>0,CA!Y44>=Parameter!$F$5),2,IF(AND(S!Y11>0,CA!Y44>=Parameter!$F$4),1,0)) -> 0 | Z11: =IF(AND(S!Z11>0,CA!Z44>=Parameter!$F$5),2,IF(AND(S!Z11>0,CA!Z44>=Parameter!$F$4),1,0)) -> 0 | AA11: =IF(AND(S!AA11>0,CA!AA44>=Parameter!$F$5),2,IF(AND(S!AA11>0,CA!AA44>=Parameter!$F$4),1,0)) -> 0 | AB11: =IF(AND(S!AB11>0,CA!AB44>=Parameter!$F$5),2,IF(AND(S!AB11>0,CA!AB44>=Parameter!$F$4),1,0)) -> 0 | AC11: =IF(AND(S!AC11>0,CA!AC44>=Parameter!$F$5),2,IF(AND(S!AC11>0,CA!AC44>=Parameter!$F$4),1,0)) -> 0 | AD11: =IF(AND(S!AD11>0,CA!AD44>=Parameter!$F$5),2,IF(AND(S!AD11>0,CA!AD44>=Parameter!$F$4),1,0)) -> 0 | AE11: =IF(AND(S!AE11>0,CA!AE44>=Parameter!$F$5),2,IF(AND(S!AE11>0,CA!AE44>=Parameter!$F$4),1,0)) -> 0
B12: =IF(AND(S!B12>0,CA!B45>=Parameter!$F$5),2,IF(AND(S!B12>0,CA!B45>=Parameter!$F$4),1,0)) -> 0 | C12: =IF(AND(S!C12>0,CA!C45>=Parameter!$F$5),2,IF(AND(S!C12>0,CA!C45>=Parameter!$F$4),1,0)) -> 0 | D12: =IF(AND(S!D12>0,CA!D45>=Parameter!$F$5),2,IF(AND(S!D12>0,CA!D45>=Parameter!$F$4),1,0)) -> 0 | E12: =IF(AND(S!E12>0,CA!E45>=Parameter!$F$5),2,IF(AND(S!E12>0,CA!E45>=Parameter!$F$4),1,0)) -> 0 | F12: =IF(AND(S!F12>0,CA!F45>=Parameter!$F$5),2,IF(AND(S!F12>0,CA!F45>=Parameter!$F$4),1,0)) -> 0 | G12: =IF(AND(S!G12>0,CA!G45>=Parameter!$F$5),2,IF(AND(S!G12>0,CA!G45>=Parameter!$F$4),1,0)) -> 0 | H12: =IF(AND(S!H12>0,CA!H45>=Parameter!$F$5),2,IF(AND(S!H12>0,CA!H45>=Parameter!$F$4),1,0)) -> 0 | I12: =IF(AND(S!I12>0,CA!I45>=Parameter!$F$5),2,IF(AND(S!I12>0,CA!I45>=Parameter!$F$4),1,0)) -> 0 | J12: =IF(AND(S!J12>0,CA!J45>=Parameter!$F$5),2,IF(AND(S!J12>0,CA!J45>=Parameter!$F$4),1,0)) -> 0 | K12: =IF(AND(S!K12>0,CA!K45>=Parameter!$F$5),2,IF(AND(S!K12>0,CA!K45>=Parameter!$F$4),1,0)) -> 0 | L12: =IF(AND(S!L12>0,CA!L45>=Parameter!$F$5),2,IF(AND(S!L12>0,CA!L45>=Parameter!$F$4),1,0)) -> 0 | M12: =IF(AND(S!M12>0,CA!M45>=Parameter!$F$5),2,IF(AND(S!M12>0,CA!M45>=Parameter!$F$4),1,0)) -> 0 | N12: =IF(AND(S!N12>0,CA!N45>=Parameter!$F$5),2,IF(AND(S!N12>0,CA!N45>=Parameter!$F$4),1,0)) -> 0 | O12: =IF(AND(S!O12>0,CA!O45>=Parameter!$F$5),2,IF(AND(S!O12>0,CA!O45>=Parameter!$F$4),1,0)) -> 0 | P12: =IF(AND(S!P12>0,CA!P45>=Parameter!$F$5),2,IF(AND(S!P12>0,CA!P45>=Parameter!$F$4),1,0)) -> 0 | Q12: =IF(AND(S!Q12>0,CA!Q45>=Parameter!$F$5),2,IF(AND(S!Q12>0,CA!Q45>=Parameter!$F$4),1,0)) -> 0 | R12: =IF(AND(S!R12>0,CA!R45>=Parameter!$F$5),2,IF(AND(S!R12>0,CA!R45>=Parameter!$F$4),1,0)) -> 0 | S12: =IF(AND(S!S12>0,CA!S45>=Parameter!$F$5),2,IF(AND(S!S12>0,CA!S45>=Parameter!$F$4),1,0)) -> 0 | T12: =IF(AND(S!T12>0,CA!T45>=Parameter!$F$5),2,IF(AND(S!T12>0,CA!T45>=Parameter!$F$4),1,0)) -> 0 | U12: =IF(AND(S!U12>0,CA!U45>=Parameter!$F$5),2,IF(AND(S!U12>0,CA!U45>=Parameter!$F$4),1,0)) -> 0 | V12: =IF(AND(S!V12>0,CA!V45>=Parameter!$F$5),2,IF(AND(S!V12>0,CA!V45>=Parameter!$F$4),1,0)) -> 0 | W12: =IF(AND(S!W12>0,CA!W45>=Parameter!$F$5),2,IF(AND(S!W12>0,CA!W45>=Parameter!$F$4),1,0)) -> 0 | X12: =IF(AND(S!X12>0,CA!X45>=Parameter!$F$5),2,IF(AND(S!X12>0,CA!X45>=Parameter!$F$4),1,0)) -> 0 | Y12: =IF(AND(S!Y12>0,CA!Y45>=Parameter!$F$5),2,IF(AND(S!Y12>0,CA!Y45>=Parameter!$F$4),1,0)) -> 0 | Z12: =IF(AND(S!Z12>0,CA!Z45>=Parameter!$F$5),2,IF(AND(S!Z12>0,CA!Z45>=Parameter!$F$4),1,0)) -> 0 | AA12: =IF(AND(S!AA12>0,CA!AA45>=Parameter!$F$5),2,IF(AND(S!AA12>0,CA!AA45>=Parameter!$F$4),1,0)) -> 0 | AB12: =IF(AND(S!AB12>0,CA!AB45>=Parameter!$F$5),2,IF(AND(S!AB12>0,CA!AB45>=Parameter!$F$4),1,0)) -> 0 | AC12: =IF(AND(S!AC12>0,CA!AC45>=Parameter!$F$5),2,IF(AND(S!AC12>0,CA!AC45>=Parameter!$F$4),1,0)) -> 0 | AD12: =IF(AND(S!AD12>0,CA!AD45>=Parameter!$F$5),2,IF(AND(S!AD12>0,CA!AD45>=Parameter!$F$4),1,0)) -> 0 | AE12: =IF(AND(S!AE12>0,CA!AE45>=Parameter!$F$5),2,IF(AND(S!AE12>0,CA!AE45>=Parameter!$F$4),1,0)) -> 0
B13: =IF(AND(S!B13>0,CA!B46>=Parameter!$F$5),2,IF(AND(S!B13>0,CA!B46>=Parameter!$F$4),1,0)) -> 0 | C13: =IF(AND(S!C13>0,CA!C46>=Parameter!$F$5),2,IF(AND(S!C13>0,CA!C46>=Parameter!$F$4),1,0)) -> 0 | D13: =IF(AND(S!D13>0,CA!D46>=Parameter!$F$5),2,IF(AND(S!D13>0,CA!D46>=Parameter!$F$4),1,0)) -> 0 | E13: =IF(AND(S!E13>0,CA!E46>=Parameter!$F$5),2,IF(AND(S!E13>0,CA!E46>=Parameter!$F$4),1,0)) -> 0 | F13: =IF(AND(S!F13>0,CA!F46>=Parameter!$F$5),2,IF(AND(S!F13>0,CA!F46>=Parameter!$F$4),1,0)) -> 0 | G13: =IF(AND(S!G13>0,CA!G46>=Parameter!$F$5),2,IF(AND(S!G13>0,CA!G46>=Parameter!$F$4),1,0)) -> 0 | H13: =IF(AND(S!H13>0,CA!H46>=Parameter!$F$5),2,IF(AND(S!H13>0,CA!H46>=Parameter!$F$4),1,0)) -> 0 | I13: =IF(AND(S!I13>0,CA!I46>=Parameter!$F$5),2,IF(AND(S!I13>0,CA!I46>=Parameter!$F$4),1,0)) -> 0 | J13: =IF(AND(S!J13>0,CA!J46>=Parameter!$F$5),2,IF(AND(S!J13>0,CA!J46>=Parameter!$F$4),1,0)) -> 0 | K13: =IF(AND(S!K13>0,CA!K46>=Parameter!$F$5),2,IF(AND(S!K13>0,CA!K46>=Parameter!$F$4),1,0)) -> 0 | L13: =IF(AND(S!L13>0,CA!L46>=Parameter!$F$5),2,IF(AND(S!L13>0,CA!L46>=Parameter!$F$4),1,0)) -> 0 | M13: =IF(AND(S!M13>0,CA!M46>=Parameter!$F$5),2,IF(AND(S!M13>0,CA!M46>=Parameter!$F$4),1,0)) -> 0 | N13: =IF(AND(S!N13>0,CA!N46>=Parameter!$F$5),2,IF(AND(S!N13>0,CA!N46>=Parameter!$F$4),1,0)) -> 0 | O13: =IF(AND(S!O13>0,CA!O46>=Parameter!$F$5),2,IF(AND(S!O13>0,CA!O46>=Parameter!$F$4),1,0)) -> 0 | P13: =IF(AND(S!P13>0,CA!P46>=Parameter!$F$5),2,IF(AND(S!P13>0,CA!P46>=Parameter!$F$4),1,0)) -> 0 | Q13: =IF(AND(S!Q13>0,CA!Q46>=Parameter!$F$5),2,IF(AND(S!Q13>0,CA!Q46>=Parameter!$F$4),1,0)) -> 0 | R13: =IF(AND(S!R13>0,CA!R46>=Parameter!$F$5),2,IF(AND(S!R13>0,CA!R46>=Parameter!$F$4),1,0)) -> 0 | S13: =IF(AND(S!S13>0,CA!S46>=Parameter!$F$5),2,IF(AND(S!S13>0,CA!S46>=Parameter!$F$4),1,0)) -> 0 | T13: =IF(AND(S!T13>0,CA!T46>=Parameter!$F$5),2,IF(AND(S!T13>0,CA!T46>=Parameter!$F$4),1,0)) -> 0 | U13: =IF(AND(S!U13>0,CA!U46>=Parameter!$F$5),2,IF(AND(S!U13>0,CA!U46>=Parameter!$F$4),1,0)) -> 0 | V13: =IF(AND(S!V13>0,CA!V46>=Parameter!$F$5),2,IF(AND(S!V13>0,CA!V46>=Parameter!$F$4),1,0)) -> 0 | W13: =IF(AND(S!W13>0,CA!W46>=Parameter!$F$5),2,IF(AND(S!W13>0,CA!W46>=Parameter!$F$4),1,0)) -> 0 | X13: =IF(AND(S!X13>0,CA!X46>=Parameter!$F$5),2,IF(AND(S!X13>0,CA!X46>=Parameter!$F$4),1,0)) -> 0 | Y13: =IF(AND(S!Y13>0,CA!Y46>=Parameter!$F$5),2,IF(AND(S!Y13>0,CA!Y46>=Parameter!$F$4),1,0)) -> 0 | Z13: =IF(AND(S!Z13>0,CA!Z46>=Parameter!$F$5),2,IF(AND(S!Z13>0,CA!Z46>=Parameter!$F$4),1,0)) -> 0 | AA13: =IF(AND(S!AA13>0,CA!AA46>=Parameter!$F$5),2,IF(AND(S!AA13>0,CA!AA46>=Parameter!$F$4),1,0)) -> 0 | AB13: =IF(AND(S!AB13>0,CA!AB46>=Parameter!$F$5),2,IF(AND(S!AB13>0,CA!AB46>=Parameter!$F$4),1,0)) -> 0 | AC13: =IF(AND(S!AC13>0,CA!AC46>=Parameter!$F$5),2,IF(AND(S!AC13>0,CA!AC46>=Parameter!$F$4),1,0)) -> 0 | AD13: =IF(AND(S!AD13>0,CA!AD46>=Parameter!$F$5),2,IF(AND(S!AD13>0,CA!AD46>=Parameter!$F$4),1,0)) -> 0 | AE13: =IF(AND(S!AE13>0,CA!AE46>=Parameter!$F$5),2,IF(AND(S!AE13>0,CA!AE46>=Parameter!$F$4),1,0)) -> 0
B14: =IF(AND(S!B14>0,CA!B47>=Parameter!$F$5),2,IF(AND(S!B14>0,CA!B47>=Parameter!$F$4),1,0)) -> 0 | C14: =IF(AND(S!C14>0,CA!C47>=Parameter!$F$5),2,IF(AND(S!C14>0,CA!C47>=Parameter!$F$4),1,0)) -> 0 | D14: =IF(AND(S!D14>0,CA!D47>=Parameter!$F$5),2,IF(AND(S!D14>0,CA!D47>=Parameter!$F$4),1,0)) -> 0 | E14: =IF(AND(S!E14>0,CA!E47>=Parameter!$F$5),2,IF(AND(S!E14>0,CA!E47>=Parameter!$F$4),1,0)) -> 0 | F14: =IF(AND(S!F14>0,CA!F47>=Parameter!$F$5),2,IF(AND(S!F14>0,CA!F47>=Parameter!$F$4),1,0)) -> 0 | G14: =IF(AND(S!G14>0,CA!G47>=Parameter!$F$5),2,IF(AND(S!G14>0,CA!G47>=Parameter!$F$4),1,0)) -> 0 | H14: =IF(AND(S!H14>0,CA!H47>=Parameter!$F$5),2,IF(AND(S!H14>0,CA!H47>=Parameter!$F$4),1,0)) -> 0 | I14: =IF(AND(S!I14>0,CA!I47>=Parameter!$F$5),2,IF(AND(S!I14>0,CA!I47>=Parameter!$F$4),1,0)) -> 0 | J14: =IF(AND(S!J14>0,CA!J47>=Parameter!$F$5),2,IF(AND(S!J14>0,CA!J47>=Parameter!$F$4),1,0)) -> 0 | K14: =IF(AND(S!K14>0,CA!K47>=Parameter!$F$5),2,IF(AND(S!K14>0,CA!K47>=Parameter!$F$4),1,0)) -> 0 | L14: =IF(AND(S!L14>0,CA!L47>=Parameter!$F$5),2,IF(AND(S!L14>0,CA!L47>=Parameter!$F$4),1,0)) -> 0 | M14: =IF(AND(S!M14>0,CA!M47>=Parameter!$F$5),2,IF(AND(S!M14>0,CA!M47>=Parameter!$F$4),1,0)) -> 0 | N14: =IF(AND(S!N14>0,CA!N47>=Parameter!$F$5),2,IF(AND(S!N14>0,CA!N47>=Parameter!$F$4),1,0)) -> 0 | O14: =IF(AND(S!O14>0,CA!O47>=Parameter!$F$5),2,IF(AND(S!O14>0,CA!O47>=Parameter!$F$4),1,0)) -> 0 | P14: =IF(AND(S!P14>0,CA!P47>=Parameter!$F$5),2,IF(AND(S!P14>0,CA!P47>=Parameter!$F$4),1,0)) -> 0 | Q14: =IF(AND(S!Q14>0,CA!Q47>=Parameter!$F$5),2,IF(AND(S!Q14>0,CA!Q47>=Parameter!$F$4),1,0)) -> 0 | R14: =IF(AND(S!R14>0,CA!R47>=Parameter!$F$5),2,IF(AND(S!R14>0,CA!R47>=Parameter!$F$4),1,0)) -> 0 | S14: =IF(AND(S!S14>0,CA!S47>=Parameter!$F$5),2,IF(AND(S!S14>0,CA!S47>=Parameter!$F$4),1,0)) -> 0 | T14: =IF(AND(S!T14>0,CA!T47>=Parameter!$F$5),2,IF(AND(S!T14>0,CA!T47>=Parameter!$F$4),1,0)) -> 0 | U14: =IF(AND(S!U14>0,CA!U47>=Parameter!$F$5),2,IF(AND(S!U14>0,CA!U47>=Parameter!$F$4),1,0)) -> 0 | V14: =IF(AND(S!V14>0,CA!V47>=Parameter!$F$5),2,IF(AND(S!V14>0,CA!V47>=Parameter!$F$4),1,0)) -> 0 | W14: =IF(AND(S!W14>0,CA!W47>=Parameter!$F$5),2,IF(AND(S!W14>0,CA!W47>=Parameter!$F$4),1,0)) -> 0 | X14: =IF(AND(S!X14>0,CA!X47>=Parameter!$F$5),2,IF(AND(S!X14>0,CA!X47>=Parameter!$F$4),1,0)) -> 0 | Y14: =IF(AND(S!Y14>0,CA!Y47>=Parameter!$F$5),2,IF(AND(S!Y14>0,CA!Y47>=Parameter!$F$4),1,0)) -> 0 | Z14: =IF(AND(S!Z14>0,CA!Z47>=Parameter!$F$5),2,IF(AND(S!Z14>0,CA!Z47>=Parameter!$F$4),1,0)) -> 0 | AA14: =IF(AND(S!AA14>0,CA!AA47>=Parameter!$F$5),2,IF(AND(S!AA14>0,CA!AA47>=Parameter!$F$4),1,0)) -> 0 | AB14: =IF(AND(S!AB14>0,CA!AB47>=Parameter!$F$5),2,IF(AND(S!AB14>0,CA!AB47>=Parameter!$F$4),1,0)) -> 0 | AC14: =IF(AND(S!AC14>0,CA!AC47>=Parameter!$F$5),2,IF(AND(S!AC14>0,CA!AC47>=Parameter!$F$4),1,0)) -> 0 | AD14: =IF(AND(S!AD14>0,CA!AD47>=Parameter!$F$5),2,IF(AND(S!AD14>0,CA!AD47>=Parameter!$F$4),1,0)) -> 0 | AE14: =IF(AND(S!AE14>0,CA!AE47>=Parameter!$F$5),2,IF(AND(S!AE14>0,CA!AE47>=Parameter!$F$4),1,0)) -> 0
B15: =IF(AND(S!B15>0,CA!B48>=Parameter!$F$5),2,IF(AND(S!B15>0,CA!B48>=Parameter!$F$4),1,0)) -> 0 | C15: =IF(AND(S!C15>0,CA!C48>=Parameter!$F$5),2,IF(AND(S!C15>0,CA!C48>=Parameter!$F$4),1,0)) -> 0 | D15: =IF(AND(S!D15>0,CA!D48>=Parameter!$F$5),2,IF(AND(S!D15>0,CA!D48>=Parameter!$F$4),1,0)) -> 0 | E15: =IF(AND(S!E15>0,CA!E48>=Parameter!$F$5),2,IF(AND(S!E15>0,CA!E48>=Parameter!$F$4),1,0)) -> 0 | F15: =IF(AND(S!F15>0,CA!F48>=Parameter!$F$5),2,IF(AND(S!F15>0,CA!F48>=Parameter!$F$4),1,0)) -> 0 | G15: =IF(AND(S!G15>0,CA!G48>=Parameter!$F$5),2,IF(AND(S!G15>0,CA!G48>=Parameter!$F$4),1,0)) -> 0 | H15: =IF(AND(S!H15>0,CA!H48>=Parameter!$F$5),2,IF(AND(S!H15>0,CA!H48>=Parameter!$F$4),1,0)) -> 0 | I15: =IF(AND(S!I15>0,CA!I48>=Parameter!$F$5),2,IF(AND(S!I15>0,CA!I48>=Parameter!$F$4),1,0)) -> 0 | J15: =IF(AND(S!J15>0,CA!J48>=Parameter!$F$5),2,IF(AND(S!J15>0,CA!J48>=Parameter!$F$4),1,0)) -> 0 | K15: =IF(AND(S!K15>0,CA!K48>=Parameter!$F$5),2,IF(AND(S!K15>0,CA!K48>=Parameter!$F$4),1,0)) -> 0 | L15: =IF(AND(S!L15>0,CA!L48>=Parameter!$F$5),2,IF(AND(S!L15>0,CA!L48>=Parameter!$F$4),1,0)) -> 0 | M15: =IF(AND(S!M15>0,CA!M48>=Parameter!$F$5),2,IF(AND(S!M15>0,CA!M48>=Parameter!$F$4),1,0)) -> 0 | N15: =IF(AND(S!N15>0,CA!N48>=Parameter!$F$5),2,IF(AND(S!N15>0,CA!N48>=Parameter!$F$4),1,0)) -> 0 | O15: =IF(AND(S!O15>0,CA!O48>=Parameter!$F$5),2,IF(AND(S!O15>0,CA!O48>=Parameter!$F$4),1,0)) -> 0 | P15: =IF(AND(S!P15>0,CA!P48>=Parameter!$F$5),2,IF(AND(S!P15>0,CA!P48>=Parameter!$F$4),1,0)) -> 0 | Q15: =IF(AND(S!Q15>0,CA!Q48>=Parameter!$F$5),2,IF(AND(S!Q15>0,CA!Q48>=Parameter!$F$4),1,0)) -> 0 | R15: =IF(AND(S!R15>0,CA!R48>=Parameter!$F$5),2,IF(AND(S!R15>0,CA!R48>=Parameter!$F$4),1,0)) -> 0 | S15: =IF(AND(S!S15>0,CA!S48>=Parameter!$F$5),2,IF(AND(S!S15>0,CA!S48>=Parameter!$F$4),1,0)) -> 0 | T15: =IF(AND(S!T15>0,CA!T48>=Parameter!$F$5),2,IF(AND(S!T15>0,CA!T48>=Parameter!$F$4),1,0)) -> 0 | U15: =IF(AND(S!U15>0,CA!U48>=Parameter!$F$5),2,IF(AND(S!U15>0,CA!U48>=Parameter!$F$4),1,0)) -> 0 | V15: =IF(AND(S!V15>0,CA!V48>=Parameter!$F$5),2,IF(AND(S!V15>0,CA!V48>=Parameter!$F$4),1,0)) -> 0 | W15: =IF(AND(S!W15>0,CA!W48>=Parameter!$F$5),2,IF(AND(S!W15>0,CA!W48>=Parameter!$F$4),1,0)) -> 0 | X15: =IF(AND(S!X15>0,CA!X48>=Parameter!$F$5),2,IF(AND(S!X15>0,CA!X48>=Parameter!$F$4),1,0)) -> 0 | Y15: =IF(AND(S!Y15>0,CA!Y48>=Parameter!$F$5),2,IF(AND(S!Y15>0,CA!Y48>=Parameter!$F$4),1,0)) -> 0 | Z15: =IF(AND(S!Z15>0,CA!Z48>=Parameter!$F$5),2,IF(AND(S!Z15>0,CA!Z48>=Parameter!$F$4),1,0)) -> 0 | AA15: =IF(AND(S!AA15>0,CA!AA48>=Parameter!$F$5),2,IF(AND(S!AA15>0,CA!AA48>=Parameter!$F$4),1,0)) -> 0 | AB15: =IF(AND(S!AB15>0,CA!AB48>=Parameter!$F$5),2,IF(AND(S!AB15>0,CA!AB48>=Parameter!$F$4),1,0)) -> 0 | AC15: =IF(AND(S!AC15>0,CA!AC48>=Parameter!$F$5),2,IF(AND(S!AC15>0,CA!AC48>=Parameter!$F$4),1,0)) -> 0 | AD15: =IF(AND(S!AD15>0,CA!AD48>=Parameter!$F$5),2,IF(AND(S!AD15>0,CA!AD48>=Parameter!$F$4),1,0)) -> 0 | AE15: =IF(AND(S!AE15>0,CA!AE48>=Parameter!$F$5),2,IF(AND(S!AE15>0,CA!AE48>=Parameter!$F$4),1,0)) -> 0
B16: =IF(AND(S!B16>0,CA!B49>=Parameter!$F$5),2,IF(AND(S!B16>0,CA!B49>=Parameter!$F$4),1,0)) -> 0 | C16: =IF(AND(S!C16>0,CA!C49>=Parameter!$F$5),2,IF(AND(S!C16>0,CA!C49>=Parameter!$F$4),1,0)) -> 0 | D16: =IF(AND(S!D16>0,CA!D49>=Parameter!$F$5),2,IF(AND(S!D16>0,CA!D49>=Parameter!$F$4),1,0)) -> 0 | E16: =IF(AND(S!E16>0,CA!E49>=Parameter!$F$5),2,IF(AND(S!E16>0,CA!E49>=Parameter!$F$4),1,0)) -> 0 | F16: =IF(AND(S!F16>0,CA!F49>=Parameter!$F$5),2,IF(AND(S!F16>0,CA!F49>=Parameter!$F$4),1,0)) -> 0 | G16: =IF(AND(S!G16>0,CA!G49>=Parameter!$F$5),2,IF(AND(S!G16>0,CA!G49>=Parameter!$F$4),1,0)) -> 0 | H16: =IF(AND(S!H16>0,CA!H49>=Parameter!$F$5),2,IF(AND(S!H16>0,CA!H49>=Parameter!$F$4),1,0)) -> 0 | I16: =IF(AND(S!I16>0,CA!I49>=Parameter!$F$5),2,IF(AND(S!I16>0,CA!I49>=Parameter!$F$4),1,0)) -> 0 | J16: =IF(AND(S!J16>0,CA!J49>=Parameter!$F$5),2,IF(AND(S!J16>0,CA!J49>=Parameter!$F$4),1,0)) -> 0 | K16: =IF(AND(S!K16>0,CA!K49>=Parameter!$F$5),2,IF(AND(S!K16>0,CA!K49>=Parameter!$F$4),1,0)) -> 0 | L16: =IF(AND(S!L16>0,CA!L49>=Parameter!$F$5),2,IF(AND(S!L16>0,CA!L49>=Parameter!$F$4),1,0)) -> 0 | M16: =IF(AND(S!M16>0,CA!M49>=Parameter!$F$5),2,IF(AND(S!M16>0,CA!M49>=Parameter!$F$4),1,0)) -> 0 | N16: =IF(AND(S!N16>0,CA!N49>=Parameter!$F$5),2,IF(AND(S!N16>0,CA!N49>=Parameter!$F$4),1,0)) -> 0 | O16: =IF(AND(S!O16>0,CA!O49>=Parameter!$F$5),2,IF(AND(S!O16>0,CA!O49>=Parameter!$F$4),1,0)) -> 0 | P16: =IF(AND(S!P16>0,CA!P49>=Parameter!$F$5),2,IF(AND(S!P16>0,CA!P49>=Parameter!$F$4),1,0)) -> 0 | Q16: =IF(AND(S!Q16>0,CA!Q49>=Parameter!$F$5),2,IF(AND(S!Q16>0,CA!Q49>=Parameter!$F$4),1,0)) -> 0 | R16: =IF(AND(S!R16>0,CA!R49>=Parameter!$F$5),2,IF(AND(S!R16>0,CA!R49>=Parameter!$F$4),1,0)) -> 0 | S16: =IF(AND(S!S16>0,CA!S49>=Parameter!$F$5),2,IF(AND(S!S16>0,CA!S49>=Parameter!$F$4),1,0)) -> 0 | T16: =IF(AND(S!T16>0,CA!T49>=Parameter!$F$5),2,IF(AND(S!T16>0,CA!T49>=Parameter!$F$4),1,0)) -> 0 | U16: =IF(AND(S!U16>0,CA!U49>=Parameter!$F$5),2,IF(AND(S!U16>0,CA!U49>=Parameter!$F$4),1,0)) -> 0 | V16: =IF(AND(S!V16>0,CA!V49>=Parameter!$F$5),2,IF(AND(S!V16>0,CA!V49>=Parameter!$F$4),1,0)) -> 0 | W16: =IF(AND(S!W16>0,CA!W49>=Parameter!$F$5),2,IF(AND(S!W16>0,CA!W49>=Parameter!$F$4),1,0)) -> 0 | X16: =IF(AND(S!X16>0,CA!X49>=Parameter!$F$5),2,IF(AND(S!X16>0,CA!X49>=Parameter!$F$4),1,0)) -> 0 | Y16: =IF(AND(S!Y16>0,CA!Y49>=Parameter!$F$5),2,IF(AND(S!Y16>0,CA!Y49>=Parameter!$F$4),1,0)) -> 0 | Z16: =IF(AND(S!Z16>0,CA!Z49>=Parameter!$F$5),2,IF(AND(S!Z16>0,CA!Z49>=Parameter!$F$4),1,0)) -> 0 | AA16: =IF(AND(S!AA16>0,CA!AA49>=Parameter!$F$5),2,IF(AND(S!AA16>0,CA!AA49>=Parameter!$F$4),1,0)) -> 0 | AB16: =IF(AND(S!AB16>0,CA!AB49>=Parameter!$F$5),2,IF(AND(S!AB16>0,CA!AB49>=Parameter!$F$4),1,0)) -> 0 | AC16: =IF(AND(S!AC16>0,CA!AC49>=Parameter!$F$5),2,IF(AND(S!AC16>0,CA!AC49>=Parameter!$F$4),1,0)) -> 0 | AD16: =IF(AND(S!AD16>0,CA!AD49>=Parameter!$F$5),2,IF(AND(S!AD16>0,CA!AD49>=Parameter!$F$4),1,0)) -> 0 | AE16: =IF(AND(S!AE16>0,CA!AE49>=Parameter!$F$5),2,IF(AND(S!AE16>0,CA!AE49>=Parameter!$F$4),1,0)) -> 0
B17: =IF(AND(S!B17>0,CA!B50>=Parameter!$F$5),2,IF(AND(S!B17>0,CA!B50>=Parameter!$F$4),1,0)) -> 0 | C17: =IF(AND(S!C17>0,CA!C50>=Parameter!$F$5),2,IF(AND(S!C17>0,CA!C50>=Parameter!$F$4),1,0)) -> 0 | D17: =IF(AND(S!D17>0,CA!D50>=Parameter!$F$5),2,IF(AND(S!D17>0,CA!D50>=Parameter!$F$4),1,0)) -> 0 | E17: =IF(AND(S!E17>0,CA!E50>=Parameter!$F$5),2,IF(AND(S!E17>0,CA!E50>=Parameter!$F$4),1,0)) -> 0 | F17: =IF(AND(S!F17>0,CA!F50>=Parameter!$F$5),2,IF(AND(S!F17>0,CA!F50>=Parameter!$F$4),1,0)) -> 0 | G17: =IF(AND(S!G17>0,CA!G50>=Parameter!$F$5),2,IF(AND(S!G17>0,CA!G50>=Parameter!$F$4),1,0)) -> 0 | H17: =IF(AND(S!H17>0,CA!H50>=Parameter!$F$5),2,IF(AND(S!H17>0,CA!H50>=Parameter!$F$4),1,0)) -> 0 | I17: =IF(AND(S!I17>0,CA!I50>=Parameter!$F$5),2,IF(AND(S!I17>0,CA!I50>=Parameter!$F$4),1,0)) -> 0 | J17: =IF(AND(S!J17>0,CA!J50>=Parameter!$F$5),2,IF(AND(S!J17>0,CA!J50>=Parameter!$F$4),1,0)) -> 0 | K17: =IF(AND(S!K17>0,CA!K50>=Parameter!$F$5),2,IF(AND(S!K17>0,CA!K50>=Parameter!$F$4),1,0)) -> 0 | L17: =IF(AND(S!L17>0,CA!L50>=Parameter!$F$5),2,IF(AND(S!L17>0,CA!L50>=Parameter!$F$4),1,0)) -> 0 | M17: =IF(AND(S!M17>0,CA!M50>=Parameter!$F$5),2,IF(AND(S!M17>0,CA!M50>=Parameter!$F$4),1,0)) -> 0 | N17: =IF(AND(S!N17>0,CA!N50>=Parameter!$F$5),2,IF(AND(S!N17>0,CA!N50>=Parameter!$F$4),1,0)) -> 0 | O17: =IF(AND(S!O17>0,CA!O50>=Parameter!$F$5),2,IF(AND(S!O17>0,CA!O50>=Parameter!$F$4),1,0)) -> 0 | P17: =IF(AND(S!P17>0,CA!P50>=Parameter!$F$5),2,IF(AND(S!P17>0,CA!P50>=Parameter!$F$4),1,0)) -> 0 | Q17: =IF(AND(S!Q17>0,CA!Q50>=Parameter!$F$5),2,IF(AND(S!Q17>0,CA!Q50>=Parameter!$F$4),1,0)) -> 0 | R17: =IF(AND(S!R17>0,CA!R50>=Parameter!$F$5),2,IF(AND(S!R17>0,CA!R50>=Parameter!$F$4),1,0)) -> 0 | S17: =IF(AND(S!S17>0,CA!S50>=Parameter!$F$5),2,IF(AND(S!S17>0,CA!S50>=Parameter!$F$4),1,0)) -> 0 | T17: =IF(AND(S!T17>0,CA!T50>=Parameter!$F$5),2,IF(AND(S!T17>0,CA!T50>=Parameter!$F$4),1,0)) -> 0 | U17: =IF(AND(S!U17>0,CA!U50>=Parameter!$F$5),2,IF(AND(S!U17>0,CA!U50>=Parameter!$F$4),1,0)) -> 0 | V17: =IF(AND(S!V17>0,CA!V50>=Parameter!$F$5),2,IF(AND(S!V17>0,CA!V50>=Parameter!$F$4),1,0)) -> 0 | W17: =IF(AND(S!W17>0,CA!W50>=Parameter!$F$5),2,IF(AND(S!W17>0,CA!W50>=Parameter!$F$4),1,0)) -> 0 | X17: =IF(AND(S!X17>0,CA!X50>=Parameter!$F$5),2,IF(AND(S!X17>0,CA!X50>=Parameter!$F$4),1,0)) -> 0 | Y17: =IF(AND(S!Y17>0,CA!Y50>=Parameter!$F$5),2,IF(AND(S!Y17>0,CA!Y50>=Parameter!$F$4),1,0)) -> 0 | Z17: =IF(AND(S!Z17>0,CA!Z50>=Parameter!$F$5),2,IF(AND(S!Z17>0,CA!Z50>=Parameter!$F$4),1,0)) -> 0 | AA17: =IF(AND(S!AA17>0,CA!AA50>=Parameter!$F$5),2,IF(AND(S!AA17>0,CA!AA50>=Parameter!$F$4),1,0)) -> 0 | AB17: =IF(AND(S!AB17>0,CA!AB50>=Parameter!$F$5),2,IF(AND(S!AB17>0,CA!AB50>=Parameter!$F$4),1,0)) -> 0 | AC17: =IF(AND(S!AC17>0,CA!AC50>=Parameter!$F$5),2,IF(AND(S!AC17>0,CA!AC50>=Parameter!$F$4),1,0)) -> 0 | AD17: =IF(AND(S!AD17>0,CA!AD50>=Parameter!$F$5),2,IF(AND(S!AD17>0,CA!AD50>=Parameter!$F$4),1,0)) -> 0 | AE17: =IF(AND(S!AE17>0,CA!AE50>=Parameter!$F$5),2,IF(AND(S!AE17>0,CA!AE50>=Parameter!$F$4),1,0)) -> 0
B18: =IF(AND(S!B18>0,CA!B51>=Parameter!$F$5),2,IF(AND(S!B18>0,CA!B51>=Parameter!$F$4),1,0)) -> 0 | C18: =IF(AND(S!C18>0,CA!C51>=Parameter!$F$5),2,IF(AND(S!C18>0,CA!C51>=Parameter!$F$4),1,0)) -> 0 | D18: =IF(AND(S!D18>0,CA!D51>=Parameter!$F$5),2,IF(AND(S!D18>0,CA!D51>=Parameter!$F$4),1,0)) -> 0 | E18: =IF(AND(S!E18>0,CA!E51>=Parameter!$F$5),2,IF(AND(S!E18>0,CA!E51>=Parameter!$F$4),1,0)) -> 0 | F18: =IF(AND(S!F18>0,CA!F51>=Parameter!$F$5),2,IF(AND(S!F18>0,CA!F51>=Parameter!$F$4),1,0)) -> 0 | G18: =IF(AND(S!G18>0,CA!G51>=Parameter!$F$5),2,IF(AND(S!G18>0,CA!G51>=Parameter!$F$4),1,0)) -> 0 | H18: =IF(AND(S!H18>0,CA!H51>=Parameter!$F$5),2,IF(AND(S!H18>0,CA!H51>=Parameter!$F$4),1,0)) -> 0 | I18: =IF(AND(S!I18>0,CA!I51>=Parameter!$F$5),2,IF(AND(S!I18>0,CA!I51>=Parameter!$F$4),1,0)) -> 0 | J18: =IF(AND(S!J18>0,CA!J51>=Parameter!$F$5),2,IF(AND(S!J18>0,CA!J51>=Parameter!$F$4),1,0)) -> 0 | K18: =IF(AND(S!K18>0,CA!K51>=Parameter!$F$5),2,IF(AND(S!K18>0,CA!K51>=Parameter!$F$4),1,0)) -> 0 | L18: =IF(AND(S!L18>0,CA!L51>=Parameter!$F$5),2,IF(AND(S!L18>0,CA!L51>=Parameter!$F$4),1,0)) -> 0 | M18: =IF(AND(S!M18>0,CA!M51>=Parameter!$F$5),2,IF(AND(S!M18>0,CA!M51>=Parameter!$F$4),1,0)) -> 0 | N18: =IF(AND(S!N18>0,CA!N51>=Parameter!$F$5),2,IF(AND(S!N18>0,CA!N51>=Parameter!$F$4),1,0)) -> 0 | O18: =IF(AND(S!O18>0,CA!O51>=Parameter!$F$5),2,IF(AND(S!O18>0,CA!O51>=Parameter!$F$4),1,0)) -> 0 | P18: =IF(AND(S!P18>0,CA!P51>=Parameter!$F$5),2,IF(AND(S!P18>0,CA!P51>=Parameter!$F$4),1,0)) -> 0 | Q18: =IF(AND(S!Q18>0,CA!Q51>=Parameter!$F$5),2,IF(AND(S!Q18>0,CA!Q51>=Parameter!$F$4),1,0)) -> 0 | R18: =IF(AND(S!R18>0,CA!R51>=Parameter!$F$5),2,IF(AND(S!R18>0,CA!R51>=Parameter!$F$4),1,0)) -> 0 | S18: =IF(AND(S!S18>0,CA!S51>=Parameter!$F$5),2,IF(AND(S!S18>0,CA!S51>=Parameter!$F$4),1,0)) -> 0 | T18: =IF(AND(S!T18>0,CA!T51>=Parameter!$F$5),2,IF(AND(S!T18>0,CA!T51>=Parameter!$F$4),1,0)) -> 0 | U18: =IF(AND(S!U18>0,CA!U51>=Parameter!$F$5),2,IF(AND(S!U18>0,CA!U51>=Parameter!$F$4),1,0)) -> 0 | V18: =IF(AND(S!V18>0,CA!V51>=Parameter!$F$5),2,IF(AND(S!V18>0,CA!V51>=Parameter!$F$4),1,0)) -> 0 | W18: =IF(AND(S!W18>0,CA!W51>=Parameter!$F$5),2,IF(AND(S!W18>0,CA!W51>=Parameter!$F$4),1,0)) -> 0 | X18: =IF(AND(S!X18>0,CA!X51>=Parameter!$F$5),2,IF(AND(S!X18>0,CA!X51>=Parameter!$F$4),1,0)) -> 0 | Y18: =IF(AND(S!Y18>0,CA!Y51>=Parameter!$F$5),2,IF(AND(S!Y18>0,CA!Y51>=Parameter!$F$4),1,0)) -> 0 | Z18: =IF(AND(S!Z18>0,CA!Z51>=Parameter!$F$5),2,IF(AND(S!Z18>0,CA!Z51>=Parameter!$F$4),1,0)) -> 0 | AA18: =IF(AND(S!AA18>0,CA!AA51>=Parameter!$F$5),2,IF(AND(S!AA18>0,CA!AA51>=Parameter!$F$4),1,0)) -> 0 | AB18: =IF(AND(S!AB18>0,CA!AB51>=Parameter!$F$5),2,IF(AND(S!AB18>0,CA!AB51>=Parameter!$F$4),1,0)) -> 0 | AC18: =IF(AND(S!AC18>0,CA!AC51>=Parameter!$F$5),2,IF(AND(S!AC18>0,CA!AC51>=Parameter!$F$4),1,0)) -> 0 | AD18: =IF(AND(S!AD18>0,CA!AD51>=Parameter!$F$5),2,IF(AND(S!AD18>0,CA!AD51>=Parameter!$F$4),1,0)) -> 0 | AE18: =IF(AND(S!AE18>0,CA!AE51>=Parameter!$F$5),2,IF(AND(S!AE18>0,CA!AE51>=Parameter!$F$4),1,0)) -> 0
B19: =IF(AND(S!B19>0,CA!B52>=Parameter!$F$5),2,IF(AND(S!B19>0,CA!B52>=Parameter!$F$4),1,0)) -> 0 | C19: =IF(AND(S!C19>0,CA!C52>=Parameter!$F$5),2,IF(AND(S!C19>0,CA!C52>=Parameter!$F$4),1,0)) -> 0 | D19: =IF(AND(S!D19>0,CA!D52>=Parameter!$F$5),2,IF(AND(S!D19>0,CA!D52>=Parameter!$F$4),1,0)) -> 0 | E19: =IF(AND(S!E19>0,CA!E52>=Parameter!$F$5),2,IF(AND(S!E19>0,CA!E52>=Parameter!$F$4),1,0)) -> 0 | F19: =IF(AND(S!F19>0,CA!F52>=Parameter!$F$5),2,IF(AND(S!F19>0,CA!F52>=Parameter!$F$4),1,0)) -> 0 | G19: =IF(AND(S!G19>0,CA!G52>=Parameter!$F$5),2,IF(AND(S!G19>0,CA!G52>=Parameter!$F$4),1,0)) -> 0 | H19: =IF(AND(S!H19>0,CA!H52>=Parameter!$F$5),2,IF(AND(S!H19>0,CA!H52>=Parameter!$F$4),1,0)) -> 0 | I19: =IF(AND(S!I19>0,CA!I52>=Parameter!$F$5),2,IF(AND(S!I19>0,CA!I52>=Parameter!$F$4),1,0)) -> 0 | J19: =IF(AND(S!J19>0,CA!J52>=Parameter!$F$5),2,IF(AND(S!J19>0,CA!J52>=Parameter!$F$4),1,0)) -> 0 | K19: =IF(AND(S!K19>0,CA!K52>=Parameter!$F$5),2,IF(AND(S!K19>0,CA!K52>=Parameter!$F$4),1,0)) -> 0 | L19: =IF(AND(S!L19>0,CA!L52>=Parameter!$F$5),2,IF(AND(S!L19>0,CA!L52>=Parameter!$F$4),1,0)) -> 0 | M19: =IF(AND(S!M19>0,CA!M52>=Parameter!$F$5),2,IF(AND(S!M19>0,CA!M52>=Parameter!$F$4),1,0)) -> 0 | N19: =IF(AND(S!N19>0,CA!N52>=Parameter!$F$5),2,IF(AND(S!N19>0,CA!N52>=Parameter!$F$4),1,0)) -> 0 | O19: =IF(AND(S!O19>0,CA!O52>=Parameter!$F$5),2,IF(AND(S!O19>0,CA!O52>=Parameter!$F$4),1,0)) -> 0 | P19: =IF(AND(S!P19>0,CA!P52>=Parameter!$F$5),2,IF(AND(S!P19>0,CA!P52>=Parameter!$F$4),1,0)) -> 0 | Q19: =IF(AND(S!Q19>0,CA!Q52>=Parameter!$F$5),2,IF(AND(S!Q19>0,CA!Q52>=Parameter!$F$4),1,0)) -> 0 | R19: =IF(AND(S!R19>0,CA!R52>=Parameter!$F$5),2,IF(AND(S!R19>0,CA!R52>=Parameter!$F$4),1,0)) -> 0 | S19: =IF(AND(S!S19>0,CA!S52>=Parameter!$F$5),2,IF(AND(S!S19>0,CA!S52>=Parameter!$F$4),1,0)) -> 0 | T19: =IF(AND(S!T19>0,CA!T52>=Parameter!$F$5),2,IF(AND(S!T19>0,CA!T52>=Parameter!$F$4),1,0)) -> 0 | U19: =IF(AND(S!U19>0,CA!U52>=Parameter!$F$5),2,IF(AND(S!U19>0,CA!U52>=Parameter!$F$4),1,0)) -> 0 | V19: =IF(AND(S!V19>0,CA!V52>=Parameter!$F$5),2,IF(AND(S!V19>0,CA!V52>=Parameter!$F$4),1,0)) -> 0 | W19: =IF(AND(S!W19>0,CA!W52>=Parameter!$F$5),2,IF(AND(S!W19>0,CA!W52>=Parameter!$F$4),1,0)) -> 0 | X19: =IF(AND(S!X19>0,CA!X52>=Parameter!$F$5),2,IF(AND(S!X19>0,CA!X52>=Parameter!$F$4),1,0)) -> 0 | Y19: =IF(AND(S!Y19>0,CA!Y52>=Parameter!$F$5),2,IF(AND(S!Y19>0,CA!Y52>=Parameter!$F$4),1,0)) -> 0 | Z19: =IF(AND(S!Z19>0,CA!Z52>=Parameter!$F$5),2,IF(AND(S!Z19>0,CA!Z52>=Parameter!$F$4),1,0)) -> 0 | AA19: =IF(AND(S!AA19>0,CA!AA52>=Parameter!$F$5),2,IF(AND(S!AA19>0,CA!AA52>=Parameter!$F$4),1,0)) -> 0 | AB19: =IF(AND(S!AB19>0,CA!AB52>=Parameter!$F$5),2,IF(AND(S!AB19>0,CA!AB52>=Parameter!$F$4),1,0)) -> 0 | AC19: =IF(AND(S!AC19>0,CA!AC52>=Parameter!$F$5),2,IF(AND(S!AC19>0,CA!AC52>=Parameter!$F$4),1,0)) -> 0 | AD19: =IF(AND(S!AD19>0,CA!AD52>=Parameter!$F$5),2,IF(AND(S!AD19>0,CA!AD52>=Parameter!$F$4),1,0)) -> 0 | AE19: =IF(AND(S!AE19>0,CA!AE52>=Parameter!$F$5),2,IF(AND(S!AE19>0,CA!AE52>=Parameter!$F$4),1,0)) -> 0
B20: =IF(AND(S!B20>0,CA!B53>=Parameter!$F$5),2,IF(AND(S!B20>0,CA!B53>=Parameter!$F$4),1,0)) -> 0 | C20: =IF(AND(S!C20>0,CA!C53>=Parameter!$F$5),2,IF(AND(S!C20>0,CA!C53>=Parameter!$F$4),1,0)) -> 0 | D20: =IF(AND(S!D20>0,CA!D53>=Parameter!$F$5),2,IF(AND(S!D20>0,CA!D53>=Parameter!$F$4),1,0)) -> 0 | E20: =IF(AND(S!E20>0,CA!E53>=Parameter!$F$5),2,IF(AND(S!E20>0,CA!E53>=Parameter!$F$4),1,0)) -> 0 | F20: =IF(AND(S!F20>0,CA!F53>=Parameter!$F$5),2,IF(AND(S!F20>0,CA!F53>=Parameter!$F$4),1,0)) -> 0 | G20: =IF(AND(S!G20>0,CA!G53>=Parameter!$F$5),2,IF(AND(S!G20>0,CA!G53>=Parameter!$F$4),1,0)) -> 0 | H20: =IF(AND(S!H20>0,CA!H53>=Parameter!$F$5),2,IF(AND(S!H20>0,CA!H53>=Parameter!$F$4),1,0)) -> 0 | I20: =IF(AND(S!I20>0,CA!I53>=Parameter!$F$5),2,IF(AND(S!I20>0,CA!I53>=Parameter!$F$4),1,0)) -> 0 | J20: =IF(AND(S!J20>0,CA!J53>=Parameter!$F$5),2,IF(AND(S!J20>0,CA!J53>=Parameter!$F$4),1,0)) -> 0 | K20: =IF(AND(S!K20>0,CA!K53>=Parameter!$F$5),2,IF(AND(S!K20>0,CA!K53>=Parameter!$F$4),1,0)) -> 0 | L20: =IF(AND(S!L20>0,CA!L53>=Parameter!$F$5),2,IF(AND(S!L20>0,CA!L53>=Parameter!$F$4),1,0)) -> 0 | M20: =IF(AND(S!M20>0,CA!M53>=Parameter!$F$5),2,IF(AND(S!M20>0,CA!M53>=Parameter!$F$4),1,0)) -> 0 | N20: =IF(AND(S!N20>0,CA!N53>=Parameter!$F$5),2,IF(AND(S!N20>0,CA!N53>=Parameter!$F$4),1,0)) -> 0 | O20: =IF(AND(S!O20>0,CA!O53>=Parameter!$F$5),2,IF(AND(S!O20>0,CA!O53>=Parameter!$F$4),1,0)) -> 0 | P20: =IF(AND(S!P20>0,CA!P53>=Parameter!$F$5),2,IF(AND(S!P20>0,CA!P53>=Parameter!$F$4),1,0)) -> 0 | Q20: =IF(AND(S!Q20>0,CA!Q53>=Parameter!$F$5),2,IF(AND(S!Q20>0,CA!Q53>=Parameter!$F$4),1,0)) -> 0 | R20: =IF(AND(S!R20>0,CA!R53>=Parameter!$F$5),2,IF(AND(S!R20>0,CA!R53>=Parameter!$F$4),1,0)) -> 0 | S20: =IF(AND(S!S20>0,CA!S53>=Parameter!$F$5),2,IF(AND(S!S20>0,CA!S53>=Parameter!$F$4),1,0)) -> 0 | T20: =IF(AND(S!T20>0,CA!T53>=Parameter!$F$5),2,IF(AND(S!T20>0,CA!T53>=Parameter!$F$4),1,0)) -> 0 | U20: =IF(AND(S!U20>0,CA!U53>=Parameter!$F$5),2,IF(AND(S!U20>0,CA!U53>=Parameter!$F$4),1,0)) -> 0 | V20: =IF(AND(S!V20>0,CA!V53>=Parameter!$F$5),2,IF(AND(S!V20>0,CA!V53>=Parameter!$F$4),1,0)) -> 0 | W20: =IF(AND(S!W20>0,CA!W53>=Parameter!$F$5),2,IF(AND(S!W20>0,CA!W53>=Parameter!$F$4),1,0)) -> 0 | X20: =IF(AND(S!X20>0,CA!X53>=Parameter!$F$5),2,IF(AND(S!X20>0,CA!X53>=Parameter!$F$4),1,0)) -> 0 | Y20: =IF(AND(S!Y20>0,CA!Y53>=Parameter!$F$5),2,IF(AND(S!Y20>0,CA!Y53>=Parameter!$F$4),1,0)) -> 0 | Z20: =IF(AND(S!Z20>0,CA!Z53>=Parameter!$F$5),2,IF(AND(S!Z20>0,CA!Z53>=Parameter!$F$4),1,0)) -> 0 | AA20: =IF(AND(S!AA20>0,CA!AA53>=Parameter!$F$5),2,IF(AND(S!AA20>0,CA!AA53>=Parameter!$F$4),1,0)) -> 0 | AB20: =IF(AND(S!AB20>0,CA!AB53>=Parameter!$F$5),2,IF(AND(S!AB20>0,CA!AB53>=Parameter!$F$4),1,0)) -> 0 | AC20: =IF(AND(S!AC20>0,CA!AC53>=Parameter!$F$5),2,IF(AND(S!AC20>0,CA!AC53>=Parameter!$F$4),1,0)) -> 0 | AD20: =IF(AND(S!AD20>0,CA!AD53>=Parameter!$F$5),2,IF(AND(S!AD20>0,CA!AD53>=Parameter!$F$4),1,0)) -> 0 | AE20: =IF(AND(S!AE20>0,CA!AE53>=Parameter!$F$5),2,IF(AND(S!AE20>0,CA!AE53>=Parameter!$F$4),1,0)) -> 0
B21: =IF(AND(S!B21>0,CA!B54>=Parameter!$F$5),2,IF(AND(S!B21>0,CA!B54>=Parameter!$F$4),1,0)) -> 0 | C21: =IF(AND(S!C21>0,CA!C54>=Parameter!$F$5),2,IF(AND(S!C21>0,CA!C54>=Parameter!$F$4),1,0)) -> 0 | D21: =IF(AND(S!D21>0,CA!D54>=Parameter!$F$5),2,IF(AND(S!D21>0,CA!D54>=Parameter!$F$4),1,0)) -> 0 | E21: =IF(AND(S!E21>0,CA!E54>=Parameter!$F$5),2,IF(AND(S!E21>0,CA!E54>=Parameter!$F$4),1,0)) -> 0 | F21: =IF(AND(S!F21>0,CA!F54>=Parameter!$F$5),2,IF(AND(S!F21>0,CA!F54>=Parameter!$F$4),1,0)) -> 0 | G21: =IF(AND(S!G21>0,CA!G54>=Parameter!$F$5),2,IF(AND(S!G21>0,CA!G54>=Parameter!$F$4),1,0)) -> 0 | H21: =IF(AND(S!H21>0,CA!H54>=Parameter!$F$5),2,IF(AND(S!H21>0,CA!H54>=Parameter!$F$4),1,0)) -> 0 | I21: =IF(AND(S!I21>0,CA!I54>=Parameter!$F$5),2,IF(AND(S!I21>0,CA!I54>=Parameter!$F$4),1,0)) -> 0 | J21: =IF(AND(S!J21>0,CA!J54>=Parameter!$F$5),2,IF(AND(S!J21>0,CA!J54>=Parameter!$F$4),1,0)) -> 0 | K21: =IF(AND(S!K21>0,CA!K54>=Parameter!$F$5),2,IF(AND(S!K21>0,CA!K54>=Parameter!$F$4),1,0)) -> 0 | L21: =IF(AND(S!L21>0,CA!L54>=Parameter!$F$5),2,IF(AND(S!L21>0,CA!L54>=Parameter!$F$4),1,0)) -> 0 | M21: =IF(AND(S!M21>0,CA!M54>=Parameter!$F$5),2,IF(AND(S!M21>0,CA!M54>=Parameter!$F$4),1,0)) -> 0 | N21: =IF(AND(S!N21>0,CA!N54>=Parameter!$F$5),2,IF(AND(S!N21>0,CA!N54>=Parameter!$F$4),1,0)) -> 0 | O21: =IF(AND(S!O21>0,CA!O54>=Parameter!$F$5),2,IF(AND(S!O21>0,CA!O54>=Parameter!$F$4),1,0)) -> 0 | P21: =IF(AND(S!P21>0,CA!P54>=Parameter!$F$5),2,IF(AND(S!P21>0,CA!P54>=Parameter!$F$4),1,0)) -> 0 | Q21: =IF(AND(S!Q21>0,CA!Q54>=Parameter!$F$5),2,IF(AND(S!Q21>0,CA!Q54>=Parameter!$F$4),1,0)) -> 0 | R21: =IF(AND(S!R21>0,CA!R54>=Parameter!$F$5),2,IF(AND(S!R21>0,CA!R54>=Parameter!$F$4),1,0)) -> 0 | S21: =IF(AND(S!S21>0,CA!S54>=Parameter!$F$5),2,IF(AND(S!S21>0,CA!S54>=Parameter!$F$4),1,0)) -> 0 | T21: =IF(AND(S!T21>0,CA!T54>=Parameter!$F$5),2,IF(AND(S!T21>0,CA!T54>=Parameter!$F$4),1,0)) -> 0 | U21: =IF(AND(S!U21>0,CA!U54>=Parameter!$F$5),2,IF(AND(S!U21>0,CA!U54>=Parameter!$F$4),1,0)) -> 0 | V21: =IF(AND(S!V21>0,CA!V54>=Parameter!$F$5),2,IF(AND(S!V21>0,CA!V54>=Parameter!$F$4),1,0)) -> 0 | W21: =IF(AND(S!W21>0,CA!W54>=Parameter!$F$5),2,IF(AND(S!W21>0,CA!W54>=Parameter!$F$4),1,0)) -> 0 | X21: =IF(AND(S!X21>0,CA!X54>=Parameter!$F$5),2,IF(AND(S!X21>0,CA!X54>=Parameter!$F$4),1,0)) -> 0 | Y21: =IF(AND(S!Y21>0,CA!Y54>=Parameter!$F$5),2,IF(AND(S!Y21>0,CA!Y54>=Parameter!$F$4),1,0)) -> 0 | Z21: =IF(AND(S!Z21>0,CA!Z54>=Parameter!$F$5),2,IF(AND(S!Z21>0,CA!Z54>=Parameter!$F$4),1,0)) -> 0 | AA21: =IF(AND(S!AA21>0,CA!AA54>=Parameter!$F$5),2,IF(AND(S!AA21>0,CA!AA54>=Parameter!$F$4),1,0)) -> 0 | AB21: =IF(AND(S!AB21>0,CA!AB54>=Parameter!$F$5),2,IF(AND(S!AB21>0,CA!AB54>=Parameter!$F$4),1,0)) -> 0 | AC21: =IF(AND(S!AC21>0,CA!AC54>=Parameter!$F$5),2,IF(AND(S!AC21>0,CA!AC54>=Parameter!$F$4),1,0)) -> 0 | AD21: =IF(AND(S!AD21>0,CA!AD54>=Parameter!$F$5),2,IF(AND(S!AD21>0,CA!AD54>=Parameter!$F$4),1,0)) -> 0 | AE21: =IF(AND(S!AE21>0,CA!AE54>=Parameter!$F$5),2,IF(AND(S!AE21>0,CA!AE54>=Parameter!$F$4),1,0)) -> 0
B22: =IF(AND(S!B22>0,CA!B55>=Parameter!$F$5),2,IF(AND(S!B22>0,CA!B55>=Parameter!$F$4),1,0)) -> 0 | C22: =IF(AND(S!C22>0,CA!C55>=Parameter!$F$5),2,IF(AND(S!C22>0,CA!C55>=Parameter!$F$4),1,0)) -> 0 | D22: =IF(AND(S!D22>0,CA!D55>=Parameter!$F$5),2,IF(AND(S!D22>0,CA!D55>=Parameter!$F$4),1,0)) -> 0 | E22: =IF(AND(S!E22>0,CA!E55>=Parameter!$F$5),2,IF(AND(S!E22>0,CA!E55>=Parameter!$F$4),1,0)) -> 0 | F22: =IF(AND(S!F22>0,CA!F55>=Parameter!$F$5),2,IF(AND(S!F22>0,CA!F55>=Parameter!$F$4),1,0)) -> 0 | G22: =IF(AND(S!G22>0,CA!G55>=Parameter!$F$5),2,IF(AND(S!G22>0,CA!G55>=Parameter!$F$4),1,0)) -> 0 | H22: =IF(AND(S!H22>0,CA!H55>=Parameter!$F$5),2,IF(AND(S!H22>0,CA!H55>=Parameter!$F$4),1,0)) -> 0 | I22: =IF(AND(S!I22>0,CA!I55>=Parameter!$F$5),2,IF(AND(S!I22>0,CA!I55>=Parameter!$F$4),1,0)) -> 0 | J22: =IF(AND(S!J22>0,CA!J55>=Parameter!$F$5),2,IF(AND(S!J22>0,CA!J55>=Parameter!$F$4),1,0)) -> 0 | K22: =IF(AND(S!K22>0,CA!K55>=Parameter!$F$5),2,IF(AND(S!K22>0,CA!K55>=Parameter!$F$4),1,0)) -> 0 | L22: =IF(AND(S!L22>0,CA!L55>=Parameter!$F$5),2,IF(AND(S!L22>0,CA!L55>=Parameter!$F$4),1,0)) -> 0 | M22: =IF(AND(S!M22>0,CA!M55>=Parameter!$F$5),2,IF(AND(S!M22>0,CA!M55>=Parameter!$F$4),1,0)) -> 0 | N22: =IF(AND(S!N22>0,CA!N55>=Parameter!$F$5),2,IF(AND(S!N22>0,CA!N55>=Parameter!$F$4),1,0)) -> 0 | O22: =IF(AND(S!O22>0,CA!O55>=Parameter!$F$5),2,IF(AND(S!O22>0,CA!O55>=Parameter!$F$4),1,0)) -> 0 | P22: =IF(AND(S!P22>0,CA!P55>=Parameter!$F$5),2,IF(AND(S!P22>0,CA!P55>=Parameter!$F$4),1,0)) -> 0 | Q22: =IF(AND(S!Q22>0,CA!Q55>=Parameter!$F$5),2,IF(AND(S!Q22>0,CA!Q55>=Parameter!$F$4),1,0)) -> 0 | R22: =IF(AND(S!R22>0,CA!R55>=Parameter!$F$5),2,IF(AND(S!R22>0,CA!R55>=Parameter!$F$4),1,0)) -> 0 | S22: =IF(AND(S!S22>0,CA!S55>=Parameter!$F$5),2,IF(AND(S!S22>0,CA!S55>=Parameter!$F$4),1,0)) -> 0 | T22: =IF(AND(S!T22>0,CA!T55>=Parameter!$F$5),2,IF(AND(S!T22>0,CA!T55>=Parameter!$F$4),1,0)) -> 0 | U22: =IF(AND(S!U22>0,CA!U55>=Parameter!$F$5),2,IF(AND(S!U22>0,CA!U55>=Parameter!$F$4),1,0)) -> 0 | V22: =IF(AND(S!V22>0,CA!V55>=Parameter!$F$5),2,IF(AND(S!V22>0,CA!V55>=Parameter!$F$4),1,0)) -> 0 | W22: =IF(AND(S!W22>0,CA!W55>=Parameter!$F$5),2,IF(AND(S!W22>0,CA!W55>=Parameter!$F$4),1,0)) -> 0 | X22: =IF(AND(S!X22>0,CA!X55>=Parameter!$F$5),2,IF(AND(S!X22>0,CA!X55>=Parameter!$F$4),1,0)) -> 0 | Y22: =IF(AND(S!Y22>0,CA!Y55>=Parameter!$F$5),2,IF(AND(S!Y22>0,CA!Y55>=Parameter!$F$4),1,0)) -> 0 | Z22: =IF(AND(S!Z22>0,CA!Z55>=Parameter!$F$5),2,IF(AND(S!Z22>0,CA!Z55>=Parameter!$F$4),1,0)) -> 0 | AA22: =IF(AND(S!AA22>0,CA!AA55>=Parameter!$F$5),2,IF(AND(S!AA22>0,CA!AA55>=Parameter!$F$4),1,0)) -> 0 | AB22: =IF(AND(S!AB22>0,CA!AB55>=Parameter!$F$5),2,IF(AND(S!AB22>0,CA!AB55>=Parameter!$F$4),1,0)) -> 0 | AC22: =IF(AND(S!AC22>0,CA!AC55>=Parameter!$F$5),2,IF(AND(S!AC22>0,CA!AC55>=Parameter!$F$4),1,0)) -> 0 | AD22: =IF(AND(S!AD22>0,CA!AD55>=Parameter!$F$5),2,IF(AND(S!AD22>0,CA!AD55>=Parameter!$F$4),1,0)) -> 0 | AE22: =IF(AND(S!AE22>0,CA!AE55>=Parameter!$F$5),2,IF(AND(S!AE22>0,CA!AE55>=Parameter!$F$4),1,0)) -> 0
B23: =IF(AND(S!B23>0,CA!B56>=Parameter!$F$5),2,IF(AND(S!B23>0,CA!B56>=Parameter!$F$4),1,0)) -> 0 | C23: =IF(AND(S!C23>0,CA!C56>=Parameter!$F$5),2,IF(AND(S!C23>0,CA!C56>=Parameter!$F$4),1,0)) -> 0 | D23: =IF(AND(S!D23>0,CA!D56>=Parameter!$F$5),2,IF(AND(S!D23>0,CA!D56>=Parameter!$F$4),1,0)) -> 0 | E23: =IF(AND(S!E23>0,CA!E56>=Parameter!$F$5),2,IF(AND(S!E23>0,CA!E56>=Parameter!$F$4),1,0)) -> 0 | F23: =IF(AND(S!F23>0,CA!F56>=Parameter!$F$5),2,IF(AND(S!F23>0,CA!F56>=Parameter!$F$4),1,0)) -> 0 | G23: =IF(AND(S!G23>0,CA!G56>=Parameter!$F$5),2,IF(AND(S!G23>0,CA!G56>=Parameter!$F$4),1,0)) -> 0 | H23: =IF(AND(S!H23>0,CA!H56>=Parameter!$F$5),2,IF(AND(S!H23>0,CA!H56>=Parameter!$F$4),1,0)) -> 0 | I23: =IF(AND(S!I23>0,CA!I56>=Parameter!$F$5),2,IF(AND(S!I23>0,CA!I56>=Parameter!$F$4),1,0)) -> 0 | J23: =IF(AND(S!J23>0,CA!J56>=Parameter!$F$5),2,IF(AND(S!J23>0,CA!J56>=Parameter!$F$4),1,0)) -> 0 | K23: =IF(AND(S!K23>0,CA!K56>=Parameter!$F$5),2,IF(AND(S!K23>0,CA!K56>=Parameter!$F$4),1,0)) -> 0 | L23: =IF(AND(S!L23>0,CA!L56>=Parameter!$F$5),2,IF(AND(S!L23>0,CA!L56>=Parameter!$F$4),1,0)) -> 0 | M23: =IF(AND(S!M23>0,CA!M56>=Parameter!$F$5),2,IF(AND(S!M23>0,CA!M56>=Parameter!$F$4),1,0)) -> 0 | N23: =IF(AND(S!N23>0,CA!N56>=Parameter!$F$5),2,IF(AND(S!N23>0,CA!N56>=Parameter!$F$4),1,0)) -> 0 | O23: =IF(AND(S!O23>0,CA!O56>=Parameter!$F$5),2,IF(AND(S!O23>0,CA!O56>=Parameter!$F$4),1,0)) -> 0 | P23: =IF(AND(S!P23>0,CA!P56>=Parameter!$F$5),2,IF(AND(S!P23>0,CA!P56>=Parameter!$F$4),1,0)) -> 0 | Q23: =IF(AND(S!Q23>0,CA!Q56>=Parameter!$F$5),2,IF(AND(S!Q23>0,CA!Q56>=Parameter!$F$4),1,0)) -> 0 | R23: =IF(AND(S!R23>0,CA!R56>=Parameter!$F$5),2,IF(AND(S!R23>0,CA!R56>=Parameter!$F$4),1,0)) -> 0 | S23: =IF(AND(S!S23>0,CA!S56>=Parameter!$F$5),2,IF(AND(S!S23>0,CA!S56>=Parameter!$F$4),1,0)) -> 0 | T23: =IF(AND(S!T23>0,CA!T56>=Parameter!$F$5),2,IF(AND(S!T23>0,CA!T56>=Parameter!$F$4),1,0)) -> 0 | U23: =IF(AND(S!U23>0,CA!U56>=Parameter!$F$5),2,IF(AND(S!U23>0,CA!U56>=Parameter!$F$4),1,0)) -> 0 | V23: =IF(AND(S!V23>0,CA!V56>=Parameter!$F$5),2,IF(AND(S!V23>0,CA!V56>=Parameter!$F$4),1,0)) -> 0 | W23: =IF(AND(S!W23>0,CA!W56>=Parameter!$F$5),2,IF(AND(S!W23>0,CA!W56>=Parameter!$F$4),1,0)) -> 0 | X23: =IF(AND(S!X23>0,CA!X56>=Parameter!$F$5),2,IF(AND(S!X23>0,CA!X56>=Parameter!$F$4),1,0)) -> 0 | Y23: =IF(AND(S!Y23>0,CA!Y56>=Parameter!$F$5),2,IF(AND(S!Y23>0,CA!Y56>=Parameter!$F$4),1,0)) -> 0 | Z23: =IF(AND(S!Z23>0,CA!Z56>=Parameter!$F$5),2,IF(AND(S!Z23>0,CA!Z56>=Parameter!$F$4),1,0)) -> 0 | AA23: =IF(AND(S!AA23>0,CA!AA56>=Parameter!$F$5),2,IF(AND(S!AA23>0,CA!AA56>=Parameter!$F$4),1,0)) -> 0 | AB23: =IF(AND(S!AB23>0,CA!AB56>=Parameter!$F$5),2,IF(AND(S!AB23>0,CA!AB56>=Parameter!$F$4),1,0)) -> 0 | AC23: =IF(AND(S!AC23>0,CA!AC56>=Parameter!$F$5),2,IF(AND(S!AC23>0,CA!AC56>=Parameter!$F$4),1,0)) -> 0 | AD23: =IF(AND(S!AD23>0,CA!AD56>=Parameter!$F$5),2,IF(AND(S!AD23>0,CA!AD56>=Parameter!$F$4),1,0)) -> 0 | AE23: =IF(AND(S!AE23>0,CA!AE56>=Parameter!$F$5),2,IF(AND(S!AE23>0,CA!AE56>=Parameter!$F$4),1,0)) -> 0
B24: =IF(AND(S!B24>0,CA!B57>=Parameter!$F$5),2,IF(AND(S!B24>0,CA!B57>=Parameter!$F$4),1,0)) -> 0 | C24: =IF(AND(S!C24>0,CA!C57>=Parameter!$F$5),2,IF(AND(S!C24>0,CA!C57>=Parameter!$F$4),1,0)) -> 0 | D24: =IF(AND(S!D24>0,CA!D57>=Parameter!$F$5),2,IF(AND(S!D24>0,CA!D57>=Parameter!$F$4),1,0)) -> 0 | E24: =IF(AND(S!E24>0,CA!E57>=Parameter!$F$5),2,IF(AND(S!E24>0,CA!E57>=Parameter!$F$4),1,0)) -> 0 | F24: =IF(AND(S!F24>0,CA!F57>=Parameter!$F$5),2,IF(AND(S!F24>0,CA!F57>=Parameter!$F$4),1,0)) -> 0 | G24: =IF(AND(S!G24>0,CA!G57>=Parameter!$F$5),2,IF(AND(S!G24>0,CA!G57>=Parameter!$F$4),1,0)) -> 0 | H24: =IF(AND(S!H24>0,CA!H57>=Parameter!$F$5),2,IF(AND(S!H24>0,CA!H57>=Parameter!$F$4),1,0)) -> 0 | I24: =IF(AND(S!I24>0,CA!I57>=Parameter!$F$5),2,IF(AND(S!I24>0,CA!I57>=Parameter!$F$4),1,0)) -> 0 | J24: =IF(AND(S!J24>0,CA!J57>=Parameter!$F$5),2,IF(AND(S!J24>0,CA!J57>=Parameter!$F$4),1,0)) -> 0 | K24: =IF(AND(S!K24>0,CA!K57>=Parameter!$F$5),2,IF(AND(S!K24>0,CA!K57>=Parameter!$F$4),1,0)) -> 0 | L24: =IF(AND(S!L24>0,CA!L57>=Parameter!$F$5),2,IF(AND(S!L24>0,CA!L57>=Parameter!$F$4),1,0)) -> 0 | M24: =IF(AND(S!M24>0,CA!M57>=Parameter!$F$5),2,IF(AND(S!M24>0,CA!M57>=Parameter!$F$4),1,0)) -> 0 | N24: =IF(AND(S!N24>0,CA!N57>=Parameter!$F$5),2,IF(AND(S!N24>0,CA!N57>=Parameter!$F$4),1,0)) -> 0 | O24: =IF(AND(S!O24>0,CA!O57>=Parameter!$F$5),2,IF(AND(S!O24>0,CA!O57>=Parameter!$F$4),1,0)) -> 0 | P24: =IF(AND(S!P24>0,CA!P57>=Parameter!$F$5),2,IF(AND(S!P24>0,CA!P57>=Parameter!$F$4),1,0)) -> 0 | Q24: =IF(AND(S!Q24>0,CA!Q57>=Parameter!$F$5),2,IF(AND(S!Q24>0,CA!Q57>=Parameter!$F$4),1,0)) -> 0 | R24: =IF(AND(S!R24>0,CA!R57>=Parameter!$F$5),2,IF(AND(S!R24>0,CA!R57>=Parameter!$F$4),1,0)) -> 0 | S24: =IF(AND(S!S24>0,CA!S57>=Parameter!$F$5),2,IF(AND(S!S24>0,CA!S57>=Parameter!$F$4),1,0)) -> 0 | T24: =IF(AND(S!T24>0,CA!T57>=Parameter!$F$5),2,IF(AND(S!T24>0,CA!T57>=Parameter!$F$4),1,0)) -> 0 | U24: =IF(AND(S!U24>0,CA!U57>=Parameter!$F$5),2,IF(AND(S!U24>0,CA!U57>=Parameter!$F$4),1,0)) -> 0 | V24: =IF(AND(S!V24>0,CA!V57>=Parameter!$F$5),2,IF(AND(S!V24>0,CA!V57>=Parameter!$F$4),1,0)) -> 0 | W24: =IF(AND(S!W24>0,CA!W57>=Parameter!$F$5),2,IF(AND(S!W24>0,CA!W57>=Parameter!$F$4),1,0)) -> 0 | X24: =IF(AND(S!X24>0,CA!X57>=Parameter!$F$5),2,IF(AND(S!X24>0,CA!X57>=Parameter!$F$4),1,0)) -> 0 | Y24: =IF(AND(S!Y24>0,CA!Y57>=Parameter!$F$5),2,IF(AND(S!Y24>0,CA!Y57>=Parameter!$F$4),1,0)) -> 0 | Z24: =IF(AND(S!Z24>0,CA!Z57>=Parameter!$F$5),2,IF(AND(S!Z24>0,CA!Z57>=Parameter!$F$4),1,0)) -> 0 | AA24: =IF(AND(S!AA24>0,CA!AA57>=Parameter!$F$5),2,IF(AND(S!AA24>0,CA!AA57>=Parameter!$F$4),1,0)) -> 0 | AB24: =IF(AND(S!AB24>0,CA!AB57>=Parameter!$F$5),2,IF(AND(S!AB24>0,CA!AB57>=Parameter!$F$4),1,0)) -> 0 | AC24: =IF(AND(S!AC24>0,CA!AC57>=Parameter!$F$5),2,IF(AND(S!AC24>0,CA!AC57>=Parameter!$F$4),1,0)) -> 0 | AD24: =IF(AND(S!AD24>0,CA!AD57>=Parameter!$F$5),2,IF(AND(S!AD24>0,CA!AD57>=Parameter!$F$4),1,0)) -> 0 | AE24: =IF(AND(S!AE24>0,CA!AE57>=Parameter!$F$5),2,IF(AND(S!AE24>0,CA!AE57>=Parameter!$F$4),1,0)) -> 0
B25: =IF(AND(S!B25>0,CA!B58>=Parameter!$F$5),2,IF(AND(S!B25>0,CA!B58>=Parameter!$F$4),1,0)) -> 0 | C25: =IF(AND(S!C25>0,CA!C58>=Parameter!$F$5),2,IF(AND(S!C25>0,CA!C58>=Parameter!$F$4),1,0)) -> 0 | D25: =IF(AND(S!D25>0,CA!D58>=Parameter!$F$5),2,IF(AND(S!D25>0,CA!D58>=Parameter!$F$4),1,0)) -> 0 | E25: =IF(AND(S!E25>0,CA!E58>=Parameter!$F$5),2,IF(AND(S!E25>0,CA!E58>=Parameter!$F$4),1,0)) -> 0 | F25: =IF(AND(S!F25>0,CA!F58>=Parameter!$F$5),2,IF(AND(S!F25>0,CA!F58>=Parameter!$F$4),1,0)) -> 0 | G25: =IF(AND(S!G25>0,CA!G58>=Parameter!$F$5),2,IF(AND(S!G25>0,CA!G58>=Parameter!$F$4),1,0)) -> 0 | H25: =IF(AND(S!H25>0,CA!H58>=Parameter!$F$5),2,IF(AND(S!H25>0,CA!H58>=Parameter!$F$4),1,0)) -> 0 | I25: =IF(AND(S!I25>0,CA!I58>=Parameter!$F$5),2,IF(AND(S!I25>0,CA!I58>=Parameter!$F$4),1,0)) -> 0 | J25: =IF(AND(S!J25>0,CA!J58>=Parameter!$F$5),2,IF(AND(S!J25>0,CA!J58>=Parameter!$F$4),1,0)) -> 0 | K25: =IF(AND(S!K25>0,CA!K58>=Parameter!$F$5),2,IF(AND(S!K25>0,CA!K58>=Parameter!$F$4),1,0)) -> 0 | L25: =IF(AND(S!L25>0,CA!L58>=Parameter!$F$5),2,IF(AND(S!L25>0,CA!L58>=Parameter!$F$4),1,0)) -> 0 | M25: =IF(AND(S!M25>0,CA!M58>=Parameter!$F$5),2,IF(AND(S!M25>0,CA!M58>=Parameter!$F$4),1,0)) -> 0 | N25: =IF(AND(S!N25>0,CA!N58>=Parameter!$F$5),2,IF(AND(S!N25>0,CA!N58>=Parameter!$F$4),1,0)) -> 0 | O25: =IF(AND(S!O25>0,CA!O58>=Parameter!$F$5),2,IF(AND(S!O25>0,CA!O58>=Parameter!$F$4),1,0)) -> 0 | P25: =IF(AND(S!P25>0,CA!P58>=Parameter!$F$5),2,IF(AND(S!P25>0,CA!P58>=Parameter!$F$4),1,0)) -> 0 | Q25: =IF(AND(S!Q25>0,CA!Q58>=Parameter!$F$5),2,IF(AND(S!Q25>0,CA!Q58>=Parameter!$F$4),1,0)) -> 0 | R25: =IF(AND(S!R25>0,CA!R58>=Parameter!$F$5),2,IF(AND(S!R25>0,CA!R58>=Parameter!$F$4),1,0)) -> 0 | S25: =IF(AND(S!S25>0,CA!S58>=Parameter!$F$5),2,IF(AND(S!S25>0,CA!S58>=Parameter!$F$4),1,0)) -> 0 | T25: =IF(AND(S!T25>0,CA!T58>=Parameter!$F$5),2,IF(AND(S!T25>0,CA!T58>=Parameter!$F$4),1,0)) -> 0 | U25: =IF(AND(S!U25>0,CA!U58>=Parameter!$F$5),2,IF(AND(S!U25>0,CA!U58>=Parameter!$F$4),1,0)) -> 0 | V25: =IF(AND(S!V25>0,CA!V58>=Parameter!$F$5),2,IF(AND(S!V25>0,CA!V58>=Parameter!$F$4),1,0)) -> 0 | W25: =IF(AND(S!W25>0,CA!W58>=Parameter!$F$5),2,IF(AND(S!W25>0,CA!W58>=Parameter!$F$4),1,0)) -> 0 | X25: =IF(AND(S!X25>0,CA!X58>=Parameter!$F$5),2,IF(AND(S!X25>0,CA!X58>=Parameter!$F$4),1,0)) -> 0 | Y25: =IF(AND(S!Y25>0,CA!Y58>=Parameter!$F$5),2,IF(AND(S!Y25>0,CA!Y58>=Parameter!$F$4),1,0)) -> 0 | Z25: =IF(AND(S!Z25>0,CA!Z58>=Parameter!$F$5),2,IF(AND(S!Z25>0,CA!Z58>=Parameter!$F$4),1,0)) -> 0 | AA25: =IF(AND(S!AA25>0,CA!AA58>=Parameter!$F$5),2,IF(AND(S!AA25>0,CA!AA58>=Parameter!$F$4),1,0)) -> 0 | AB25: =IF(AND(S!AB25>0,CA!AB58>=Parameter!$F$5),2,IF(AND(S!AB25>0,CA!AB58>=Parameter!$F$4),1,0)) -> 0 | AC25: =IF(AND(S!AC25>0,CA!AC58>=Parameter!$F$5),2,IF(AND(S!AC25>0,CA!AC58>=Parameter!$F$4),1,0)) -> 0 | AD25: =IF(AND(S!AD25>0,CA!AD58>=Parameter!$F$5),2,IF(AND(S!AD25>0,CA!AD58>=Parameter!$F$4),1,0)) -> 0 | AE25: =IF(AND(S!AE25>0,CA!AE58>=Parameter!$F$5),2,IF(AND(S!AE25>0,CA!AE58>=Parameter!$F$4),1,0)) -> 0
B26: =IF(AND(S!B26>0,CA!B59>=Parameter!$F$5),2,IF(AND(S!B26>0,CA!B59>=Parameter!$F$4),1,0)) -> 0 | C26: =IF(AND(S!C26>0,CA!C59>=Parameter!$F$5),2,IF(AND(S!C26>0,CA!C59>=Parameter!$F$4),1,0)) -> 0 | D26: =IF(AND(S!D26>0,CA!D59>=Parameter!$F$5),2,IF(AND(S!D26>0,CA!D59>=Parameter!$F$4),1,0)) -> 0 | E26: =IF(AND(S!E26>0,CA!E59>=Parameter!$F$5),2,IF(AND(S!E26>0,CA!E59>=Parameter!$F$4),1,0)) -> 0 | F26: =IF(AND(S!F26>0,CA!F59>=Parameter!$F$5),2,IF(AND(S!F26>0,CA!F59>=Parameter!$F$4),1,0)) -> 0 | G26: =IF(AND(S!G26>0,CA!G59>=Parameter!$F$5),2,IF(AND(S!G26>0,CA!G59>=Parameter!$F$4),1,0)) -> 0 | H26: =IF(AND(S!H26>0,CA!H59>=Parameter!$F$5),2,IF(AND(S!H26>0,CA!H59>=Parameter!$F$4),1,0)) -> 0 | I26: =IF(AND(S!I26>0,CA!I59>=Parameter!$F$5),2,IF(AND(S!I26>0,CA!I59>=Parameter!$F$4),1,0)) -> 0 | J26: =IF(AND(S!J26>0,CA!J59>=Parameter!$F$5),2,IF(AND(S!J26>0,CA!J59>=Parameter!$F$4),1,0)) -> 0 | K26: =IF(AND(S!K26>0,CA!K59>=Parameter!$F$5),2,IF(AND(S!K26>0,CA!K59>=Parameter!$F$4),1,0)) -> 0 | L26: =IF(AND(S!L26>0,CA!L59>=Parameter!$F$5),2,IF(AND(S!L26>0,CA!L59>=Parameter!$F$4),1,0)) -> 0 | M26: =IF(AND(S!M26>0,CA!M59>=Parameter!$F$5),2,IF(AND(S!M26>0,CA!M59>=Parameter!$F$4),1,0)) -> 0 | N26: =IF(AND(S!N26>0,CA!N59>=Parameter!$F$5),2,IF(AND(S!N26>0,CA!N59>=Parameter!$F$4),1,0)) -> 0 | O26: =IF(AND(S!O26>0,CA!O59>=Parameter!$F$5),2,IF(AND(S!O26>0,CA!O59>=Parameter!$F$4),1,0)) -> 0 | P26: =IF(AND(S!P26>0,CA!P59>=Parameter!$F$5),2,IF(AND(S!P26>0,CA!P59>=Parameter!$F$4),1,0)) -> 0 | Q26: =IF(AND(S!Q26>0,CA!Q59>=Parameter!$F$5),2,IF(AND(S!Q26>0,CA!Q59>=Parameter!$F$4),1,0)) -> 0 | R26: =IF(AND(S!R26>0,CA!R59>=Parameter!$F$5),2,IF(AND(S!R26>0,CA!R59>=Parameter!$F$4),1,0)) -> 0 | S26: =IF(AND(S!S26>0,CA!S59>=Parameter!$F$5),2,IF(AND(S!S26>0,CA!S59>=Parameter!$F$4),1,0)) -> 0 | T26: =IF(AND(S!T26>0,CA!T59>=Parameter!$F$5),2,IF(AND(S!T26>0,CA!T59>=Parameter!$F$4),1,0)) -> 0 | U26: =IF(AND(S!U26>0,CA!U59>=Parameter!$F$5),2,IF(AND(S!U26>0,CA!U59>=Parameter!$F$4),1,0)) -> 0 | V26: =IF(AND(S!V26>0,CA!V59>=Parameter!$F$5),2,IF(AND(S!V26>0,CA!V59>=Parameter!$F$4),1,0)) -> 0 | W26: =IF(AND(S!W26>0,CA!W59>=Parameter!$F$5),2,IF(AND(S!W26>0,CA!W59>=Parameter!$F$4),1,0)) -> 0 | X26: =IF(AND(S!X26>0,CA!X59>=Parameter!$F$5),2,IF(AND(S!X26>0,CA!X59>=Parameter!$F$4),1,0)) -> 0 | Y26: =IF(AND(S!Y26>0,CA!Y59>=Parameter!$F$5),2,IF(AND(S!Y26>0,CA!Y59>=Parameter!$F$4),1,0)) -> 0 | Z26: =IF(AND(S!Z26>0,CA!Z59>=Parameter!$F$5),2,IF(AND(S!Z26>0,CA!Z59>=Parameter!$F$4),1,0)) -> 0 | AA26: =IF(AND(S!AA26>0,CA!AA59>=Parameter!$F$5),2,IF(AND(S!AA26>0,CA!AA59>=Parameter!$F$4),1,0)) -> 0 | AB26: =IF(AND(S!AB26>0,CA!AB59>=Parameter!$F$5),2,IF(AND(S!AB26>0,CA!AB59>=Parameter!$F$4),1,0)) -> 0 | AC26: =IF(AND(S!AC26>0,CA!AC59>=Parameter!$F$5),2,IF(AND(S!AC26>0,CA!AC59>=Parameter!$F$4),1,0)) -> 0 | AD26: =IF(AND(S!AD26>0,CA!AD59>=Parameter!$F$5),2,IF(AND(S!AD26>0,CA!AD59>=Parameter!$F$4),1,0)) -> 0 | AE26: =IF(AND(S!AE26>0,CA!AE59>=Parameter!$F$5),2,IF(AND(S!AE26>0,CA!AE59>=Parameter!$F$4),1,0)) -> 0
B27: =IF(AND(S!B27>0,CA!B60>=Parameter!$F$5),2,IF(AND(S!B27>0,CA!B60>=Parameter!$F$4),1,0)) -> 0 | C27: =IF(AND(S!C27>0,CA!C60>=Parameter!$F$5),2,IF(AND(S!C27>0,CA!C60>=Parameter!$F$4),1,0)) -> 0 | D27: =IF(AND(S!D27>0,CA!D60>=Parameter!$F$5),2,IF(AND(S!D27>0,CA!D60>=Parameter!$F$4),1,0)) -> 0 | E27: =IF(AND(S!E27>0,CA!E60>=Parameter!$F$5),2,IF(AND(S!E27>0,CA!E60>=Parameter!$F$4),1,0)) -> 0 | F27: =IF(AND(S!F27>0,CA!F60>=Parameter!$F$5),2,IF(AND(S!F27>0,CA!F60>=Parameter!$F$4),1,0)) -> 0 | G27: =IF(AND(S!G27>0,CA!G60>=Parameter!$F$5),2,IF(AND(S!G27>0,CA!G60>=Parameter!$F$4),1,0)) -> 0 | H27: =IF(AND(S!H27>0,CA!H60>=Parameter!$F$5),2,IF(AND(S!H27>0,CA!H60>=Parameter!$F$4),1,0)) -> 0 | I27: =IF(AND(S!I27>0,CA!I60>=Parameter!$F$5),2,IF(AND(S!I27>0,CA!I60>=Parameter!$F$4),1,0)) -> 0 | J27: =IF(AND(S!J27>0,CA!J60>=Parameter!$F$5),2,IF(AND(S!J27>0,CA!J60>=Parameter!$F$4),1,0)) -> 0 | K27: =IF(AND(S!K27>0,CA!K60>=Parameter!$F$5),2,IF(AND(S!K27>0,CA!K60>=Parameter!$F$4),1,0)) -> 0 | L27: =IF(AND(S!L27>0,CA!L60>=Parameter!$F$5),2,IF(AND(S!L27>0,CA!L60>=Parameter!$F$4),1,0)) -> 0 | M27: =IF(AND(S!M27>0,CA!M60>=Parameter!$F$5),2,IF(AND(S!M27>0,CA!M60>=Parameter!$F$4),1,0)) -> 0 | N27: =IF(AND(S!N27>0,CA!N60>=Parameter!$F$5),2,IF(AND(S!N27>0,CA!N60>=Parameter!$F$4),1,0)) -> 0 | O27: =IF(AND(S!O27>0,CA!O60>=Parameter!$F$5),2,IF(AND(S!O27>0,CA!O60>=Parameter!$F$4),1,0)) -> 0 | P27: =IF(AND(S!P27>0,CA!P60>=Parameter!$F$5),2,IF(AND(S!P27>0,CA!P60>=Parameter!$F$4),1,0)) -> 0 | Q27: =IF(AND(S!Q27>0,CA!Q60>=Parameter!$F$5),2,IF(AND(S!Q27>0,CA!Q60>=Parameter!$F$4),1,0)) -> 0 | R27: =IF(AND(S!R27>0,CA!R60>=Parameter!$F$5),2,IF(AND(S!R27>0,CA!R60>=Parameter!$F$4),1,0)) -> 0 | S27: =IF(AND(S!S27>0,CA!S60>=Parameter!$F$5),2,IF(AND(S!S27>0,CA!S60>=Parameter!$F$4),1,0)) -> 0 | T27: =IF(AND(S!T27>0,CA!T60>=Parameter!$F$5),2,IF(AND(S!T27>0,CA!T60>=Parameter!$F$4),1,0)) -> 0 | U27: =IF(AND(S!U27>0,CA!U60>=Parameter!$F$5),2,IF(AND(S!U27>0,CA!U60>=Parameter!$F$4),1,0)) -> 0 | V27: =IF(AND(S!V27>0,CA!V60>=Parameter!$F$5),2,IF(AND(S!V27>0,CA!V60>=Parameter!$F$4),1,0)) -> 0 | W27: =IF(AND(S!W27>0,CA!W60>=Parameter!$F$5),2,IF(AND(S!W27>0,CA!W60>=Parameter!$F$4),1,0)) -> 0 | X27: =IF(AND(S!X27>0,CA!X60>=Parameter!$F$5),2,IF(AND(S!X27>0,CA!X60>=Parameter!$F$4),1,0)) -> 0 | Y27: =IF(AND(S!Y27>0,CA!Y60>=Parameter!$F$5),2,IF(AND(S!Y27>0,CA!Y60>=Parameter!$F$4),1,0)) -> 0 | Z27: =IF(AND(S!Z27>0,CA!Z60>=Parameter!$F$5),2,IF(AND(S!Z27>0,CA!Z60>=Parameter!$F$4),1,0)) -> 0 | AA27: =IF(AND(S!AA27>0,CA!AA60>=Parameter!$F$5),2,IF(AND(S!AA27>0,CA!AA60>=Parameter!$F$4),1,0)) -> 0 | AB27: =IF(AND(S!AB27>0,CA!AB60>=Parameter!$F$5),2,IF(AND(S!AB27>0,CA!AB60>=Parameter!$F$4),1,0)) -> 0 | AC27: =IF(AND(S!AC27>0,CA!AC60>=Parameter!$F$5),2,IF(AND(S!AC27>0,CA!AC60>=Parameter!$F$4),1,0)) -> 0 | AD27: =IF(AND(S!AD27>0,CA!AD60>=Parameter!$F$5),2,IF(AND(S!AD27>0,CA!AD60>=Parameter!$F$4),1,0)) -> 0 | AE27: =IF(AND(S!AE27>0,CA!AE60>=Parameter!$F$5),2,IF(AND(S!AE27>0,CA!AE60>=Parameter!$F$4),1,0)) -> 0
B28: =IF(AND(S!B28>0,CA!B61>=Parameter!$F$5),2,IF(AND(S!B28>0,CA!B61>=Parameter!$F$4),1,0)) -> 0 | C28: =IF(AND(S!C28>0,CA!C61>=Parameter!$F$5),2,IF(AND(S!C28>0,CA!C61>=Parameter!$F$4),1,0)) -> 0 | D28: =IF(AND(S!D28>0,CA!D61>=Parameter!$F$5),2,IF(AND(S!D28>0,CA!D61>=Parameter!$F$4),1,0)) -> 0 | E28: =IF(AND(S!E28>0,CA!E61>=Parameter!$F$5),2,IF(AND(S!E28>0,CA!E61>=Parameter!$F$4),1,0)) -> 0 | F28: =IF(AND(S!F28>0,CA!F61>=Parameter!$F$5),2,IF(AND(S!F28>0,CA!F61>=Parameter!$F$4),1,0)) -> 0 | G28: =IF(AND(S!G28>0,CA!G61>=Parameter!$F$5),2,IF(AND(S!G28>0,CA!G61>=Parameter!$F$4),1,0)) -> 0 | H28: =IF(AND(S!H28>0,CA!H61>=Parameter!$F$5),2,IF(AND(S!H28>0,CA!H61>=Parameter!$F$4),1,0)) -> 0 | I28: =IF(AND(S!I28>0,CA!I61>=Parameter!$F$5),2,IF(AND(S!I28>0,CA!I61>=Parameter!$F$4),1,0)) -> 0 | J28: =IF(AND(S!J28>0,CA!J61>=Parameter!$F$5),2,IF(AND(S!J28>0,CA!J61>=Parameter!$F$4),1,0)) -> 0 | K28: =IF(AND(S!K28>0,CA!K61>=Parameter!$F$5),2,IF(AND(S!K28>0,CA!K61>=Parameter!$F$4),1,0)) -> 0 | L28: =IF(AND(S!L28>0,CA!L61>=Parameter!$F$5),2,IF(AND(S!L28>0,CA!L61>=Parameter!$F$4),1,0)) -> 0 | M28: =IF(AND(S!M28>0,CA!M61>=Parameter!$F$5),2,IF(AND(S!M28>0,CA!M61>=Parameter!$F$4),1,0)) -> 0 | N28: =IF(AND(S!N28>0,CA!N61>=Parameter!$F$5),2,IF(AND(S!N28>0,CA!N61>=Parameter!$F$4),1,0)) -> 0 | O28: =IF(AND(S!O28>0,CA!O61>=Parameter!$F$5),2,IF(AND(S!O28>0,CA!O61>=Parameter!$F$4),1,0)) -> 0 | P28: =IF(AND(S!P28>0,CA!P61>=Parameter!$F$5),2,IF(AND(S!P28>0,CA!P61>=Parameter!$F$4),1,0)) -> 0 | Q28: =IF(AND(S!Q28>0,CA!Q61>=Parameter!$F$5),2,IF(AND(S!Q28>0,CA!Q61>=Parameter!$F$4),1,0)) -> 0 | R28: =IF(AND(S!R28>0,CA!R61>=Parameter!$F$5),2,IF(AND(S!R28>0,CA!R61>=Parameter!$F$4),1,0)) -> 0 | S28: =IF(AND(S!S28>0,CA!S61>=Parameter!$F$5),2,IF(AND(S!S28>0,CA!S61>=Parameter!$F$4),1,0)) -> 0 | T28: =IF(AND(S!T28>0,CA!T61>=Parameter!$F$5),2,IF(AND(S!T28>0,CA!T61>=Parameter!$F$4),1,0)) -> 0 | U28: =IF(AND(S!U28>0,CA!U61>=Parameter!$F$5),2,IF(AND(S!U28>0,CA!U61>=Parameter!$F$4),1,0)) -> 0 | V28: =IF(AND(S!V28>0,CA!V61>=Parameter!$F$5),2,IF(AND(S!V28>0,CA!V61>=Parameter!$F$4),1,0)) -> 0 | W28: =IF(AND(S!W28>0,CA!W61>=Parameter!$F$5),2,IF(AND(S!W28>0,CA!W61>=Parameter!$F$4),1,0)) -> 0 | X28: =IF(AND(S!X28>0,CA!X61>=Parameter!$F$5),2,IF(AND(S!X28>0,CA!X61>=Parameter!$F$4),1,0)) -> 0 | Y28: =IF(AND(S!Y28>0,CA!Y61>=Parameter!$F$5),2,IF(AND(S!Y28>0,CA!Y61>=Parameter!$F$4),1,0)) -> 0 | Z28: =IF(AND(S!Z28>0,CA!Z61>=Parameter!$F$5),2,IF(AND(S!Z28>0,CA!Z61>=Parameter!$F$4),1,0)) -> 0 | AA28: =IF(AND(S!AA28>0,CA!AA61>=Parameter!$F$5),2,IF(AND(S!AA28>0,CA!AA61>=Parameter!$F$4),1,0)) -> 0 | AB28: =IF(AND(S!AB28>0,CA!AB61>=Parameter!$F$5),2,IF(AND(S!AB28>0,CA!AB61>=Parameter!$F$4),1,0)) -> 0 | AC28: =IF(AND(S!AC28>0,CA!AC61>=Parameter!$F$5),2,IF(AND(S!AC28>0,CA!AC61>=Parameter!$F$4),1,0)) -> 0 | AD28: =IF(AND(S!AD28>0,CA!AD61>=Parameter!$F$5),2,IF(AND(S!AD28>0,CA!AD61>=Parameter!$F$4),1,0)) -> 0 | AE28: =IF(AND(S!AE28>0,CA!AE61>=Parameter!$F$5),2,IF(AND(S!AE28>0,CA!AE61>=Parameter!$F$4),1,0)) -> 0
B29: =IF(AND(S!B29>0,CA!B62>=Parameter!$F$5),2,IF(AND(S!B29>0,CA!B62>=Parameter!$F$4),1,0)) -> 0 | C29: =IF(AND(S!C29>0,CA!C62>=Parameter!$F$5),2,IF(AND(S!C29>0,CA!C62>=Parameter!$F$4),1,0)) -> 0 | D29: =IF(AND(S!D29>0,CA!D62>=Parameter!$F$5),2,IF(AND(S!D29>0,CA!D62>=Parameter!$F$4),1,0)) -> 0 | E29: =IF(AND(S!E29>0,CA!E62>=Parameter!$F$5),2,IF(AND(S!E29>0,CA!E62>=Parameter!$F$4),1,0)) -> 0 | F29: =IF(AND(S!F29>0,CA!F62>=Parameter!$F$5),2,IF(AND(S!F29>0,CA!F62>=Parameter!$F$4),1,0)) -> 0 | G29: =IF(AND(S!G29>0,CA!G62>=Parameter!$F$5),2,IF(AND(S!G29>0,CA!G62>=Parameter!$F$4),1,0)) -> 0 | H29: =IF(AND(S!H29>0,CA!H62>=Parameter!$F$5),2,IF(AND(S!H29>0,CA!H62>=Parameter!$F$4),1,0)) -> 0 | I29: =IF(AND(S!I29>0,CA!I62>=Parameter!$F$5),2,IF(AND(S!I29>0,CA!I62>=Parameter!$F$4),1,0)) -> 0 | J29: =IF(AND(S!J29>0,CA!J62>=Parameter!$F$5),2,IF(AND(S!J29>0,CA!J62>=Parameter!$F$4),1,0)) -> 0 | K29: =IF(AND(S!K29>0,CA!K62>=Parameter!$F$5),2,IF(AND(S!K29>0,CA!K62>=Parameter!$F$4),1,0)) -> 0 | L29: =IF(AND(S!L29>0,CA!L62>=Parameter!$F$5),2,IF(AND(S!L29>0,CA!L62>=Parameter!$F$4),1,0)) -> 0 | M29: =IF(AND(S!M29>0,CA!M62>=Parameter!$F$5),2,IF(AND(S!M29>0,CA!M62>=Parameter!$F$4),1,0)) -> 0 | N29: =IF(AND(S!N29>0,CA!N62>=Parameter!$F$5),2,IF(AND(S!N29>0,CA!N62>=Parameter!$F$4),1,0)) -> 0 | O29: =IF(AND(S!O29>0,CA!O62>=Parameter!$F$5),2,IF(AND(S!O29>0,CA!O62>=Parameter!$F$4),1,0)) -> 0 | P29: =IF(AND(S!P29>0,CA!P62>=Parameter!$F$5),2,IF(AND(S!P29>0,CA!P62>=Parameter!$F$4),1,0)) -> 0 | Q29: =IF(AND(S!Q29>0,CA!Q62>=Parameter!$F$5),2,IF(AND(S!Q29>0,CA!Q62>=Parameter!$F$4),1,0)) -> 0 | R29: =IF(AND(S!R29>0,CA!R62>=Parameter!$F$5),2,IF(AND(S!R29>0,CA!R62>=Parameter!$F$4),1,0)) -> 0 | S29: =IF(AND(S!S29>0,CA!S62>=Parameter!$F$5),2,IF(AND(S!S29>0,CA!S62>=Parameter!$F$4),1,0)) -> 0 | T29: =IF(AND(S!T29>0,CA!T62>=Parameter!$F$5),2,IF(AND(S!T29>0,CA!T62>=Parameter!$F$4),1,0)) -> 0 | U29: =IF(AND(S!U29>0,CA!U62>=Parameter!$F$5),2,IF(AND(S!U29>0,CA!U62>=Parameter!$F$4),1,0)) -> 0 | V29: =IF(AND(S!V29>0,CA!V62>=Parameter!$F$5),2,IF(AND(S!V29>0,CA!V62>=Parameter!$F$4),1,0)) -> 0 | W29: =IF(AND(S!W29>0,CA!W62>=Parameter!$F$5),2,IF(AND(S!W29>0,CA!W62>=Parameter!$F$4),1,0)) -> 0 | X29: =IF(AND(S!X29>0,CA!X62>=Parameter!$F$5),2,IF(AND(S!X29>0,CA!X62>=Parameter!$F$4),1,0)) -> 0 | Y29: =IF(AND(S!Y29>0,CA!Y62>=Parameter!$F$5),2,IF(AND(S!Y29>0,CA!Y62>=Parameter!$F$4),1,0)) -> 0 | Z29: =IF(AND(S!Z29>0,CA!Z62>=Parameter!$F$5),2,IF(AND(S!Z29>0,CA!Z62>=Parameter!$F$4),1,0)) -> 0 | AA29: =IF(AND(S!AA29>0,CA!AA62>=Parameter!$F$5),2,IF(AND(S!AA29>0,CA!AA62>=Parameter!$F$4),1,0)) -> 0 | AB29: =IF(AND(S!AB29>0,CA!AB62>=Parameter!$F$5),2,IF(AND(S!AB29>0,CA!AB62>=Parameter!$F$4),1,0)) -> 0 | AC29: =IF(AND(S!AC29>0,CA!AC62>=Parameter!$F$5),2,IF(AND(S!AC29>0,CA!AC62>=Parameter!$F$4),1,0)) -> 0 | AD29: =IF(AND(S!AD29>0,CA!AD62>=Parameter!$F$5),2,IF(AND(S!AD29>0,CA!AD62>=Parameter!$F$4),1,0)) -> 0 | AE29: =IF(AND(S!AE29>0,CA!AE62>=Parameter!$F$5),2,IF(AND(S!AE29>0,CA!AE62>=Parameter!$F$4),1,0)) -> 0
B30: =IF(AND(S!B30>0,CA!B63>=Parameter!$F$5),2,IF(AND(S!B30>0,CA!B63>=Parameter!$F$4),1,0)) -> 0 | C30: =IF(AND(S!C30>0,CA!C63>=Parameter!$F$5),2,IF(AND(S!C30>0,CA!C63>=Parameter!$F$4),1,0)) -> 0 | D30: =IF(AND(S!D30>0,CA!D63>=Parameter!$F$5),2,IF(AND(S!D30>0,CA!D63>=Parameter!$F$4),1,0)) -> 0 | E30: =IF(AND(S!E30>0,CA!E63>=Parameter!$F$5),2,IF(AND(S!E30>0,CA!E63>=Parameter!$F$4),1,0)) -> 0 | F30: =IF(AND(S!F30>0,CA!F63>=Parameter!$F$5),2,IF(AND(S!F30>0,CA!F63>=Parameter!$F$4),1,0)) -> 0 | G30: =IF(AND(S!G30>0,CA!G63>=Parameter!$F$5),2,IF(AND(S!G30>0,CA!G63>=Parameter!$F$4),1,0)) -> 0 | H30: =IF(AND(S!H30>0,CA!H63>=Parameter!$F$5),2,IF(AND(S!H30>0,CA!H63>=Parameter!$F$4),1,0)) -> 0 | I30: =IF(AND(S!I30>0,CA!I63>=Parameter!$F$5),2,IF(AND(S!I30>0,CA!I63>=Parameter!$F$4),1,0)) -> 0 | J30: =IF(AND(S!J30>0,CA!J63>=Parameter!$F$5),2,IF(AND(S!J30>0,CA!J63>=Parameter!$F$4),1,0)) -> 0 | K30: =IF(AND(S!K30>0,CA!K63>=Parameter!$F$5),2,IF(AND(S!K30>0,CA!K63>=Parameter!$F$4),1,0)) -> 0 | L30: =IF(AND(S!L30>0,CA!L63>=Parameter!$F$5),2,IF(AND(S!L30>0,CA!L63>=Parameter!$F$4),1,0)) -> 0 | M30: =IF(AND(S!M30>0,CA!M63>=Parameter!$F$5),2,IF(AND(S!M30>0,CA!M63>=Parameter!$F$4),1,0)) -> 0 | N30: =IF(AND(S!N30>0,CA!N63>=Parameter!$F$5),2,IF(AND(S!N30>0,CA!N63>=Parameter!$F$4),1,0)) -> 0 | O30: =IF(AND(S!O30>0,CA!O63>=Parameter!$F$5),2,IF(AND(S!O30>0,CA!O63>=Parameter!$F$4),1,0)) -> 0 | P30: =IF(AND(S!P30>0,CA!P63>=Parameter!$F$5),2,IF(AND(S!P30>0,CA!P63>=Parameter!$F$4),1,0)) -> 0 | Q30: =IF(AND(S!Q30>0,CA!Q63>=Parameter!$F$5),2,IF(AND(S!Q30>0,CA!Q63>=Parameter!$F$4),1,0)) -> 0 | R30: =IF(AND(S!R30>0,CA!R63>=Parameter!$F$5),2,IF(AND(S!R30>0,CA!R63>=Parameter!$F$4),1,0)) -> 0 | S30: =IF(AND(S!S30>0,CA!S63>=Parameter!$F$5),2,IF(AND(S!S30>0,CA!S63>=Parameter!$F$4),1,0)) -> 0 | T30: =IF(AND(S!T30>0,CA!T63>=Parameter!$F$5),2,IF(AND(S!T30>0,CA!T63>=Parameter!$F$4),1,0)) -> 0 | U30: =IF(AND(S!U30>0,CA!U63>=Parameter!$F$5),2,IF(AND(S!U30>0,CA!U63>=Parameter!$F$4),1,0)) -> 0 | V30: =IF(AND(S!V30>0,CA!V63>=Parameter!$F$5),2,IF(AND(S!V30>0,CA!V63>=Parameter!$F$4),1,0)) -> 0 | W30: =IF(AND(S!W30>0,CA!W63>=Parameter!$F$5),2,IF(AND(S!W30>0,CA!W63>=Parameter!$F$4),1,0)) -> 0 | X30: =IF(AND(S!X30>0,CA!X63>=Parameter!$F$5),2,IF(AND(S!X30>0,CA!X63>=Parameter!$F$4),1,0)) -> 0 | Y30: =IF(AND(S!Y30>0,CA!Y63>=Parameter!$F$5),2,IF(AND(S!Y30>0,CA!Y63>=Parameter!$F$4),1,0)) -> 0 | Z30: =IF(AND(S!Z30>0,CA!Z63>=Parameter!$F$5),2,IF(AND(S!Z30>0,CA!Z63>=Parameter!$F$4),1,0)) -> 0 | AA30: =IF(AND(S!AA30>0,CA!AA63>=Parameter!$F$5),2,IF(AND(S!AA30>0,CA!AA63>=Parameter!$F$4),1,0)) -> 0 | AB30: =IF(AND(S!AB30>0,CA!AB63>=Parameter!$F$5),2,IF(AND(S!AB30>0,CA!AB63>=Parameter!$F$4),1,0)) -> 0 | AC30: =IF(AND(S!AC30>0,CA!AC63>=Parameter!$F$5),2,IF(AND(S!AC30>0,CA!AC63>=Parameter!$F$4),1,0)) -> 0 | AD30: =IF(AND(S!AD30>0,CA!AD63>=Parameter!$F$5),2,IF(AND(S!AD30>0,CA!AD63>=Parameter!$F$4),1,0)) -> 0 | AE30: =IF(AND(S!AE30>0,CA!AE63>=Parameter!$F$5),2,IF(AND(S!AE30>0,CA!AE63>=Parameter!$F$4),1,0)) -> 0
B31: =IF(AND(S!B31>0,CA!B64>=Parameter!$F$5),2,IF(AND(S!B31>0,CA!B64>=Parameter!$F$4),1,0)) -> 0 | C31: =IF(AND(S!C31>0,CA!C64>=Parameter!$F$5),2,IF(AND(S!C31>0,CA!C64>=Parameter!$F$4),1,0)) -> 0 | D31: =IF(AND(S!D31>0,CA!D64>=Parameter!$F$5),2,IF(AND(S!D31>0,CA!D64>=Parameter!$F$4),1,0)) -> 0 | E31: =IF(AND(S!E31>0,CA!E64>=Parameter!$F$5),2,IF(AND(S!E31>0,CA!E64>=Parameter!$F$4),1,0)) -> 0 | F31: =IF(AND(S!F31>0,CA!F64>=Parameter!$F$5),2,IF(AND(S!F31>0,CA!F64>=Parameter!$F$4),1,0)) -> 0 | G31: =IF(AND(S!G31>0,CA!G64>=Parameter!$F$5),2,IF(AND(S!G31>0,CA!G64>=Parameter!$F$4),1,0)) -> 0 | H31: =IF(AND(S!H31>0,CA!H64>=Parameter!$F$5),2,IF(AND(S!H31>0,CA!H64>=Parameter!$F$4),1,0)) -> 0 | I31: =IF(AND(S!I31>0,CA!I64>=Parameter!$F$5),2,IF(AND(S!I31>0,CA!I64>=Parameter!$F$4),1,0)) -> 0 | J31: =IF(AND(S!J31>0,CA!J64>=Parameter!$F$5),2,IF(AND(S!J31>0,CA!J64>=Parameter!$F$4),1,0)) -> 0 | K31: =IF(AND(S!K31>0,CA!K64>=Parameter!$F$5),2,IF(AND(S!K31>0,CA!K64>=Parameter!$F$4),1,0)) -> 0 | L31: =IF(AND(S!L31>0,CA!L64>=Parameter!$F$5),2,IF(AND(S!L31>0,CA!L64>=Parameter!$F$4),1,0)) -> 0 | M31: =IF(AND(S!M31>0,CA!M64>=Parameter!$F$5),2,IF(AND(S!M31>0,CA!M64>=Parameter!$F$4),1,0)) -> 0 | N31: =IF(AND(S!N31>0,CA!N64>=Parameter!$F$5),2,IF(AND(S!N31>0,CA!N64>=Parameter!$F$4),1,0)) -> 0 | O31: =IF(AND(S!O31>0,CA!O64>=Parameter!$F$5),2,IF(AND(S!O31>0,CA!O64>=Parameter!$F$4),1,0)) -> 0 | P31: =IF(AND(S!P31>0,CA!P64>=Parameter!$F$5),2,IF(AND(S!P31>0,CA!P64>=Parameter!$F$4),1,0)) -> 0 | Q31: =IF(AND(S!Q31>0,CA!Q64>=Parameter!$F$5),2,IF(AND(S!Q31>0,CA!Q64>=Parameter!$F$4),1,0)) -> 0 | R31: =IF(AND(S!R31>0,CA!R64>=Parameter!$F$5),2,IF(AND(S!R31>0,CA!R64>=Parameter!$F$4),1,0)) -> 0 | S31: =IF(AND(S!S31>0,CA!S64>=Parameter!$F$5),2,IF(AND(S!S31>0,CA!S64>=Parameter!$F$4),1,0)) -> 0 | T31: =IF(AND(S!T31>0,CA!T64>=Parameter!$F$5),2,IF(AND(S!T31>0,CA!T64>=Parameter!$F$4),1,0)) -> 0 | U31: =IF(AND(S!U31>0,CA!U64>=Parameter!$F$5),2,IF(AND(S!U31>0,CA!U64>=Parameter!$F$4),1,0)) -> 0 | V31: =IF(AND(S!V31>0,CA!V64>=Parameter!$F$5),2,IF(AND(S!V31>0,CA!V64>=Parameter!$F$4),1,0)) -> 0 | W31: =IF(AND(S!W31>0,CA!W64>=Parameter!$F$5),2,IF(AND(S!W31>0,CA!W64>=Parameter!$F$4),1,0)) -> 0 | X31: =IF(AND(S!X31>0,CA!X64>=Parameter!$F$5),2,IF(AND(S!X31>0,CA!X64>=Parameter!$F$4),1,0)) -> 0 | Y31: =IF(AND(S!Y31>0,CA!Y64>=Parameter!$F$5),2,IF(AND(S!Y31>0,CA!Y64>=Parameter!$F$4),1,0)) -> 0 | Z31: =IF(AND(S!Z31>0,CA!Z64>=Parameter!$F$5),2,IF(AND(S!Z31>0,CA!Z64>=Parameter!$F$4),1,0)) -> 0 | AA31: =IF(AND(S!AA31>0,CA!AA64>=Parameter!$F$5),2,IF(AND(S!AA31>0,CA!AA64>=Parameter!$F$4),1,0)) -> 0 | AB31: =IF(AND(S!AB31>0,CA!AB64>=Parameter!$F$5),2,IF(AND(S!AB31>0,CA!AB64>=Parameter!$F$4),1,0)) -> 0 | AC31: =IF(AND(S!AC31>0,CA!AC64>=Parameter!$F$5),2,IF(AND(S!AC31>0,CA!AC64>=Parameter!$F$4),1,0)) -> 0 | AD31: =IF(AND(S!AD31>0,CA!AD64>=Parameter!$F$5),2,IF(AND(S!AD31>0,CA!AD64>=Parameter!$F$4),1,0)) -> 0 | AE31: =IF(AND(S!AE31>0,CA!AE64>=Parameter!$F$5),2,IF(AND(S!AE31>0,CA!AE64>=Parameter!$F$4),1,0)) -> 0
B35: =CA!B35+'T1'!B2+'T2'!B2+'T3'!B2 -> -0.09841058149 | C35: =CA!C35+'T1'!C2+'T2'!C2+'T3'!C2 -> -0.09841058149 | D35: =CA!D35+'T1'!D2+'T2'!D2+'T3'!D2 -> -0.09841058149 | E35: =CA!E35+'T1'!E2+'T2'!E2+'T3'!E2 -> -0.09841058149 | F35: =CA!F35+'T1'!F2+'T2'!F2+'T3'!F2 -> -0.09841058149 | G35: =CA!G35+'T1'!G2+'T2'!G2+'T3'!G2 -> -0.09841058149 | H35: =CA!H35+'T1'!H2+'T2'!H2+'T3'!H2 -> -0.09841058149 | I35: =CA!I35+'T1'!I2+'T2'!I2+'T3'!I2 -> -0.09841058149 | J35: =CA!J35+'T1'!J2+'T2'!J2+'T3'!J2 -> -0.09841058149 | K35: =CA!K35+'T1'!K2+'T2'!K2+'T3'!K2 -> -0.09841058149 | L35: =CA!L35+'T1'!L2+'T2'!L2+'T3'!L2 -> -0.09841058149 | M35: =CA!M35+'T1'!M2+'T2'!M2+'T3'!M2 -> -0.09841058149 | N35: =CA!N35+'T1'!N2+'T2'!N2+'T3'!N2 -> -0.09841058149 | O35: =CA!O35+'T1'!O2+'T2'!O2+'T3'!O2 -> -0.09841058149 | P35: =CA!P35+'T1'!P2+'T2'!P2+'T3'!P2 -> -0.09841058149 | Q35: =CA!Q35+'T1'!Q2+'T2'!Q2+'T3'!Q2 -> -0.09841058149 | R35: =CA!R35+'T1'!R2+'T2'!R2+'T3'!R2 -> -0.09841058149 | S35: =CA!S35+'T1'!S2+'T2'!S2+'T3'!S2 -> -0.09841058149 | T35: =CA!T35+'T1'!T2+'T2'!T2+'T3'!T2 -> -0.09841058149 | U35: =CA!U35+'T1'!U2+'T2'!U2+'T3'!U2 -> -0.09841058149 | V35: =CA!V35+'T1'!V2+'T2'!V2+'T3'!V2 -> -0.09841058149 | W35: =CA!W35+'T1'!W2+'T2'!W2+'T3'!W2 -> -0.09841058149 | X35: =CA!X35+'T1'!X2+'T2'!X2+'T3'!X2 -> -0.09841058149 | Y35: =CA!Y35+'T1'!Y2+'T2'!Y2+'T3'!Y2 -> -0.09841058149 | Z35: =CA!Z35+'T1'!Z2+'T2'!Z2+'T3'!Z2 -> -0.09841058149 | AA35: =CA!AA35+'T1'!AA2+'T2'!AA2+'T3'!AA2 -> -0.09841058149 | AB35: =CA!AB35+'T1'!AB2+'T2'!AB2+'T3'!AB2 -> -0.09841058149 | AC35: =CA!AC35+'T1'!AC2+'T2'!AC2+'T3'!AC2 -> -0.09841058149 | AD35: =CA!AD35+'T1'!AD2+'T2'!AD2+'T3'!AD2 -> -0.09841058149 | AE35: =CA!AE35+'T1'!AE2+'T2'!AE2+'T3'!AE2 -> -0.09841058149
B36: =CA!B36+'T1'!B3+'T2'!B3+'T3'!B3 -> -0.09841058149 | C36: =CA!C36+'T1'!C3+'T2'!C3+'T3'!C3 -> -0.09841058149 | D36: =CA!D36+'T1'!D3+'T2'!D3+'T3'!D3 -> -0.09841058149 | E36: =CA!E36+'T1'!E3+'T2'!E3+'T3'!E3 -> -0.09841058149 | F36: =CA!F36+'T1'!F3+'T2'!F3+'T3'!F3 -> -0.09841058149 | G36: =CA!G36+'T1'!G3+'T2'!G3+'T3'!G3 -> -0.09841058149 | H36: =CA!H36+'T1'!H3+'T2'!H3+'T3'!H3 -> -0.09841058149 | I36: =CA!I36+'T1'!I3+'T2'!I3+'T3'!I3 -> -0.09841058149 | J36: =CA!J36+'T1'!J3+'T2'!J3+'T3'!J3 -> -0.09841058149 | K36: =CA!K36+'T1'!K3+'T2'!K3+'T3'!K3 -> -0.09841058149 | L36: =CA!L36+'T1'!L3+'T2'!L3+'T3'!L3 -> -0.09841058149 | M36: =CA!M36+'T1'!M3+'T2'!M3+'T3'!M3 -> -0.09841058149 | N36: =CA!N36+'T1'!N3+'T2'!N3+'T3'!N3 -> -0.09841058149 | O36: =CA!O36+'T1'!O3+'T2'!O3+'T3'!O3 -> -0.09841058149 | P36: =CA!P36+'T1'!P3+'T2'!P3+'T3'!P3 -> -0.09841058149 | Q36: =CA!Q36+'T1'!Q3+'T2'!Q3+'T3'!Q3 -> -0.09841058149 | R36: =CA!R36+'T1'!R3+'T2'!R3+'T3'!R3 -> -0.09841058149 | S36: =CA!S36+'T1'!S3+'T2'!S3+'T3'!S3 -> -0.09841058149 | T36: =CA!T36+'T1'!T3+'T2'!T3+'T3'!T3 -> -0.09841058149 | U36: =CA!U36+'T1'!U3+'T2'!U3+'T3'!U3 -> -0.09841058149 | V36: =CA!V36+'T1'!V3+'T2'!V3+'T3'!V3 -> -0.09841058149 | W36: =CA!W36+'T1'!W3+'T2'!W3+'T3'!W3 -> -0.09841058149 | X36: =CA!X36+'T1'!X3+'T2'!X3+'T3'!X3 -> -0.09841058149 | Y36: =CA!Y36+'T1'!Y3+'T2'!Y3+'T3'!Y3 -> -0.09841058149 | Z36: =CA!Z36+'T1'!Z3+'T2'!Z3+'T3'!Z3 -> -0.09841058149 | AA36: =CA!AA36+'T1'!AA3+'T2'!AA3+'T3'!AA3 -> -0.09841058149 | AB36: =CA!AB36+'T1'!AB3+'T2'!AB3+'T3'!AB3 -> -0.09841058149 | AC36: =CA!AC36+'T1'!AC3+'T2'!AC3+'T3'!AC3 -> -0.09841058149 | AD36: =CA!AD36+'T1'!AD3+'T2'!AD3+'T3'!AD3 -> -0.09841058149 | AE36: =CA!AE36+'T1'!AE3+'T2'!AE3+'T3'!AE3 -> -0.09841058149
B37: =CA!B37+'T1'!B4+'T2'!B4+'T3'!B4 -> -0.09841058149 | C37: =CA!C37+'T1'!C4+'T2'!C4+'T3'!C4 -> -0.09841058149 | D37: =CA!D37+'T1'!D4+'T2'!D4+'T3'!D4 -> -0.09841058149 | E37: =CA!E37+'T1'!E4+'T2'!E4+'T3'!E4 -> -0.09841058149 | F37: =CA!F37+'T1'!F4+'T2'!F4+'T3'!F4 -> -0.09841058149 | G37: =CA!G37+'T1'!G4+'T2'!G4+'T3'!G4 -> -0.09841058149 | H37: =CA!H37+'T1'!H4+'T2'!H4+'T3'!H4 -> -0.09841058149 | I37: =CA!I37+'T1'!I4+'T2'!I4+'T3'!I4 -> -0.09841058149 | J37: =CA!J37+'T1'!J4+'T2'!J4+'T3'!J4 -> -0.09841058149 | K37: =CA!K37+'T1'!K4+'T2'!K4+'T3'!K4 -> -0.09841058149 | L37: =CA!L37+'T1'!L4+'T2'!L4+'T3'!L4 -> -0.09841058149 | M37: =CA!M37+'T1'!M4+'T2'!M4+'T3'!M4 -> -0.09841058149 | N37: =CA!N37+'T1'!N4+'T2'!N4+'T3'!N4 -> -0.09841058149 | O37: =CA!O37+'T1'!O4+'T2'!O4+'T3'!O4 -> -0.09841058149 | P37: =CA!P37+'T1'!P4+'T2'!P4+'T3'!P4 -> -0.09841058149 | Q37: =CA!Q37+'T1'!Q4+'T2'!Q4+'T3'!Q4 -> -0.09841058149 | R37: =CA!R37+'T1'!R4+'T2'!R4+'T3'!R4 -> -0.09841058149 | S37: =CA!S37+'T1'!S4+'T2'!S4+'T3'!S4 -> -0.09841058149 | T37: =CA!T37+'T1'!T4+'T2'!T4+'T3'!T4 -> -0.09841058149 | U37: =CA!U37+'T1'!U4+'T2'!U4+'T3'!U4 -> -0.09841058149 | V37: =CA!V37+'T1'!V4+'T2'!V4+'T3'!V4 -> -0.09841058149 | W37: =CA!W37+'T1'!W4+'T2'!W4+'T3'!W4 -> -0.09841058149 | X37: =CA!X37+'T1'!X4+'T2'!X4+'T3'!X4 -> -0.09841058149 | Y37: =CA!Y37+'T1'!Y4+'T2'!Y4+'T3'!Y4 -> -0.09841058149 | Z37: =CA!Z37+'T1'!Z4+'T2'!Z4+'T3'!Z4 -> -0.09841058149 | AA37: =CA!AA37+'T1'!AA4+'T2'!AA4+'T3'!AA4 -> -0.09841058149 | AB37: =CA!AB37+'T1'!AB4+'T2'!AB4+'T3'!AB4 -> -0.09841058149 | AC37: =CA!AC37+'T1'!AC4+'T2'!AC4+'T3'!AC4 -> -0.09841058149 | AD37: =CA!AD37+'T1'!AD4+'T2'!AD4+'T3'!AD4 -> -0.09841058149 | AE37: =CA!AE37+'T1'!AE4+'T2'!AE4+'T3'!AE4 -> -0.09841058149
B38: =CA!B38+'T1'!B5+'T2'!B5+'T3'!B5 -> -0.09841058149 | C38: =CA!C38+'T1'!C5+'T2'!C5+'T3'!C5 -> -0.09841058149 | D38: =CA!D38+'T1'!D5+'T2'!D5+'T3'!D5 -> -0.09841058149 | E38: =CA!E38+'T1'!E5+'T2'!E5+'T3'!E5 -> -0.09841058149 | F38: =CA!F38+'T1'!F5+'T2'!F5+'T3'!F5 -> -0.09841058149 | G38: =CA!G38+'T1'!G5+'T2'!G5+'T3'!G5 -> -0.09841058149 | H38: =CA!H38+'T1'!H5+'T2'!H5+'T3'!H5 -> -0.09841058149 | I38: =CA!I38+'T1'!I5+'T2'!I5+'T3'!I5 -> -0.09841058149 | J38: =CA!J38+'T1'!J5+'T2'!J5+'T3'!J5 -> -0.09841058149 | K38: =CA!K38+'T1'!K5+'T2'!K5+'T3'!K5 -> -0.09841058149 | L38: =CA!L38+'T1'!L5+'T2'!L5+'T3'!L5 -> -0.09841058149 | M38: =CA!M38+'T1'!M5+'T2'!M5+'T3'!M5 -> -0.09841058149 | N38: =CA!N38+'T1'!N5+'T2'!N5+'T3'!N5 -> -0.09841058149 | O38: =CA!O38+'T1'!O5+'T2'!O5+'T3'!O5 -> -0.09841058149 | P38: =CA!P38+'T1'!P5+'T2'!P5+'T3'!P5 -> -0.09841058149 | Q38: =CA!Q38+'T1'!Q5+'T2'!Q5+'T3'!Q5 -> -0.09841058149 | R38: =CA!R38+'T1'!R5+'T2'!R5+'T3'!R5 -> -0.09841058149 | S38: =CA!S38+'T1'!S5+'T2'!S5+'T3'!S5 -> -0.09841058149 | T38: =CA!T38+'T1'!T5+'T2'!T5+'T3'!T5 -> -0.09841058149 | U38: =CA!U38+'T1'!U5+'T2'!U5+'T3'!U5 -> -0.09841058149 | V38: =CA!V38+'T1'!V5+'T2'!V5+'T3'!V5 -> -0.09841058149 | W38: =CA!W38+'T1'!W5+'T2'!W5+'T3'!W5 -> -0.09841058149 | X38: =CA!X38+'T1'!X5+'T2'!X5+'T3'!X5 -> -0.09841058149 | Y38: =CA!Y38+'T1'!Y5+'T2'!Y5+'T3'!Y5 -> -0.09841058149 | Z38: =CA!Z38+'T1'!Z5+'T2'!Z5+'T3'!Z5 -> -0.09841058149 | AA38: =CA!AA38+'T1'!AA5+'T2'!AA5+'T3'!AA5 -> -0.09841058149 | AB38: =CA!AB38+'T1'!AB5+'T2'!AB5+'T3'!AB5 -> -0.09841058149 | AC38: =CA!AC38+'T1'!AC5+'T2'!AC5+'T3'!AC5 -> -0.09841058149 | AD38: =CA!AD38+'T1'!AD5+'T2'!AD5+'T3'!AD5 -> -0.09841058149 | AE38: =CA!AE38+'T1'!AE5+'T2'!AE5+'T3'!AE5 -> -0.09841058149
B39: =CA!B39+'T1'!B6+'T2'!B6+'T3'!B6 -> -0.09841058149 | C39: =CA!C39+'T1'!C6+'T2'!C6+'T3'!C6 -> -0.09841058149 | D39: =CA!D39+'T1'!D6+'T2'!D6+'T3'!D6 -> -0.09841058149 | E39: =CA!E39+'T1'!E6+'T2'!E6+'T3'!E6 -> -0.09841058149 | F39: =CA!F39+'T1'!F6+'T2'!F6+'T3'!F6 -> -0.09841058149 | G39: =CA!G39+'T1'!G6+'T2'!G6+'T3'!G6 -> -0.09841058149 | H39: =CA!H39+'T1'!H6+'T2'!H6+'T3'!H6 -> -0.09841058149 | I39: =CA!I39+'T1'!I6+'T2'!I6+'T3'!I6 -> -0.09841058149 | J39: =CA!J39+'T1'!J6+'T2'!J6+'T3'!J6 -> -0.09841058149 | K39: =CA!K39+'T1'!K6+'T2'!K6+'T3'!K6 -> -0.09841058149 | L39: =CA!L39+'T1'!L6+'T2'!L6+'T3'!L6 -> -0.09841058149 | M39: =CA!M39+'T1'!M6+'T2'!M6+'T3'!M6 -> -0.09841058149 | N39: =CA!N39+'T1'!N6+'T2'!N6+'T3'!N6 -> -0.09841058149 | O39: =CA!O39+'T1'!O6+'T2'!O6+'T3'!O6 -> -0.09841058149 | P39: =CA!P39+'T1'!P6+'T2'!P6+'T3'!P6 -> -0.09841058149 | Q39: =CA!Q39+'T1'!Q6+'T2'!Q6+'T3'!Q6 -> -0.09841058149 | R39: =CA!R39+'T1'!R6+'T2'!R6+'T3'!R6 -> -0.09841058149 | S39: =CA!S39+'T1'!S6+'T2'!S6+'T3'!S6 -> -0.09841058149 | T39: =CA!T39+'T1'!T6+'T2'!T6+'T3'!T6 -> -0.09841058149 | U39: =CA!U39+'T1'!U6+'T2'!U6+'T3'!U6 -> -0.09841058149 | V39: =CA!V39+'T1'!V6+'T2'!V6+'T3'!V6 -> -0.09841058149 | W39: =CA!W39+'T1'!W6+'T2'!W6+'T3'!W6 -> -0.09841058149 | X39: =CA!X39+'T1'!X6+'T2'!X6+'T3'!X6 -> -0.09841058149 | Y39: =CA!Y39+'T1'!Y6+'T2'!Y6+'T3'!Y6 -> -0.09841058149 | Z39: =CA!Z39+'T1'!Z6+'T2'!Z6+'T3'!Z6 -> -0.09841058149 | AA39: =CA!AA39+'T1'!AA6+'T2'!AA6+'T3'!AA6 -> -0.09841058149 | AB39: =CA!AB39+'T1'!AB6+'T2'!AB6+'T3'!AB6 -> -0.09841058149 | AC39: =CA!AC39+'T1'!AC6+'T2'!AC6+'T3'!AC6 -> -0.09841058149 | AD39: =CA!AD39+'T1'!AD6+'T2'!AD6+'T3'!AD6 -> -0.09841058149 | AE39: =CA!AE39+'T1'!AE6+'T2'!AE6+'T3'!AE6 -> -0.09841058149
B40: =CA!B40+'T1'!B7+'T2'!B7+'T3'!B7 -> -0.09841058149 | C40: =CA!C40+'T1'!C7+'T2'!C7+'T3'!C7 -> -0.09841058149 | D40: =CA!D40+'T1'!D7+'T2'!D7+'T3'!D7 -> -0.09841058149 | E40: =CA!E40+'T1'!E7+'T2'!E7+'T3'!E7 -> -0.09841058149 | F40: =CA!F40+'T1'!F7+'T2'!F7+'T3'!F7 -> -0.09841058149 | G40: =CA!G40+'T1'!G7+'T2'!G7+'T3'!G7 -> -0.09841058149 | H40: =CA!H40+'T1'!H7+'T2'!H7+'T3'!H7 -> -0.09841058149 | I40: =CA!I40+'T1'!I7+'T2'!I7+'T3'!I7 -> -0.09841058149 | J40: =CA!J40+'T1'!J7+'T2'!J7+'T3'!J7 -> -0.09841058149 | K40: =CA!K40+'T1'!K7+'T2'!K7+'T3'!K7 -> -0.09841058149 | L40: =CA!L40+'T1'!L7+'T2'!L7+'T3'!L7 -> -0.09841058149 | M40: =CA!M40+'T1'!M7+'T2'!M7+'T3'!M7 -> -0.09841058149 | N40: =CA!N40+'T1'!N7+'T2'!N7+'T3'!N7 -> -0.09841058149 | O40: =CA!O40+'T1'!O7+'T2'!O7+'T3'!O7 -> -0.09841058149 | P40: =CA!P40+'T1'!P7+'T2'!P7+'T3'!P7 -> -0.09841058149 | Q40: =CA!Q40+'T1'!Q7+'T2'!Q7+'T3'!Q7 -> -0.09841058149 | R40: =CA!R40+'T1'!R7+'T2'!R7+'T3'!R7 -> -0.09841058149 | S40: =CA!S40+'T1'!S7+'T2'!S7+'T3'!S7 -> -0.09841058149 | T40: =CA!T40+'T1'!T7+'T2'!T7+'T3'!T7 -> -0.09841058149 | U40: =CA!U40+'T1'!U7+'T2'!U7+'T3'!U7 -> -0.09841058149 | V40: =CA!V40+'T1'!V7+'T2'!V7+'T3'!V7 -> -0.09841058149 | W40: =CA!W40+'T1'!W7+'T2'!W7+'T3'!W7 -> -0.09841058149 | X40: =CA!X40+'T1'!X7+'T2'!X7+'T3'!X7 -> -0.09841058149 | Y40: =CA!Y40+'T1'!Y7+'T2'!Y7+'T3'!Y7 -> -0.09841058149 | Z40: =CA!Z40+'T1'!Z7+'T2'!Z7+'T3'!Z7 -> -0.09841058149 | AA40: =CA!AA40+'T1'!AA7+'T2'!AA7+'T3'!AA7 -> -0.09841058149 | AB40: =CA!AB40+'T1'!AB7+'T2'!AB7+'T3'!AB7 -> -0.09841058149 | AC40: =CA!AC40+'T1'!AC7+'T2'!AC7+'T3'!AC7 -> -0.09841058149 | AD40: =CA!AD40+'T1'!AD7+'T2'!AD7+'T3'!AD7 -> -0.09841058149 | AE40: =CA!AE40+'T1'!AE7+'T2'!AE7+'T3'!AE7 -> -0.09841058149
B41: =CA!B41+'T1'!B8+'T2'!B8+'T3'!B8 -> -0.09841058149 | C41: =CA!C41+'T1'!C8+'T2'!C8+'T3'!C8 -> -0.09841058149 | D41: =CA!D41+'T1'!D8+'T2'!D8+'T3'!D8 -> -0.09841058149 | E41: =CA!E41+'T1'!E8+'T2'!E8+'T3'!E8 -> -0.09841058149 | F41: =CA!F41+'T1'!F8+'T2'!F8+'T3'!F8 -> -0.09841058149 | G41: =CA!G41+'T1'!G8+'T2'!G8+'T3'!G8 -> -0.09841058149 | H41: =CA!H41+'T1'!H8+'T2'!H8+'T3'!H8 -> -0.09841058149 | I41: =CA!I41+'T1'!I8+'T2'!I8+'T3'!I8 -> -0.09841058149 | J41: =CA!J41+'T1'!J8+'T2'!J8+'T3'!J8 -> -0.09841058149 | K41: =CA!K41+'T1'!K8+'T2'!K8+'T3'!K8 -> -0.09841058149 | L41: =CA!L41+'T1'!L8+'T2'!L8+'T3'!L8 -> -0.09841058149 | M41: =CA!M41+'T1'!M8+'T2'!M8+'T3'!M8 -> -0.09841058149 | N41: =CA!N41+'T1'!N8+'T2'!N8+'T3'!N8 -> -0.09841058149 | O41: =CA!O41+'T1'!O8+'T2'!O8+'T3'!O8 -> -0.09841058149 | P41: =CA!P41+'T1'!P8+'T2'!P8+'T3'!P8 -> -0.09841058149 | Q41: =CA!Q41+'T1'!Q8+'T2'!Q8+'T3'!Q8 -> -0.09841058149 | R41: =CA!R41+'T1'!R8+'T2'!R8+'T3'!R8 -> -0.09841058149 | S41: =CA!S41+'T1'!S8+'T2'!S8+'T3'!S8 -> -0.09841058149 | T41: =CA!T41+'T1'!T8+'T2'!T8+'T3'!T8 -> -0.09841058149 | U41: =CA!U41+'T1'!U8+'T2'!U8+'T3'!U8 -> -0.09841058149 | V41: =CA!V41+'T1'!V8+'T2'!V8+'T3'!V8 -> -0.09841058149 | W41: =CA!W41+'T1'!W8+'T2'!W8+'T3'!W8 -> -0.09841058149 | X41: =CA!X41+'T1'!X8+'T2'!X8+'T3'!X8 -> -0.09841058149 | Y41: =CA!Y41+'T1'!Y8+'T2'!Y8+'T3'!Y8 -> -0.09841058149 | Z41: =CA!Z41+'T1'!Z8+'T2'!Z8+'T3'!Z8 -> -0.09841058149 | AA41: =CA!AA41+'T1'!AA8+'T2'!AA8+'T3'!AA8 -> -0.09841058149 | AB41: =CA!AB41+'T1'!AB8+'T2'!AB8+'T3'!AB8 -> -0.09841058149 | AC41: =CA!AC41+'T1'!AC8+'T2'!AC8+'T3'!AC8 -> -0.09841058149 | AD41: =CA!AD41+'T1'!AD8+'T2'!AD8+'T3'!AD8 -> -0.09841058149 | AE41: =CA!AE41+'T1'!AE8+'T2'!AE8+'T3'!AE8 -> -0.09841058149
B42: =CA!B42+'T1'!B9+'T2'!B9+'T3'!B9 -> -0.1 | C42: =CA!C42+'T1'!C9+'T2'!C9+'T3'!C9 -> -0.1 | D42: =CA!D42+'T1'!D9+'T2'!D9+'T3'!D9 -> -0.1 | E42: =CA!E42+'T1'!E9+'T2'!E9+'T3'!E9 -> -0.1 | F42: =CA!F42+'T1'!F9+'T2'!F9+'T3'!F9 -> -0.1 | G42: =CA!G42+'T1'!G9+'T2'!G9+'T3'!G9 -> -0.1 | H42: =CA!H42+'T1'!H9+'T2'!H9+'T3'!H9 -> -0.1 | I42: =CA!I42+'T1'!I9+'T2'!I9+'T3'!I9 -> -0.1 | J42: =CA!J42+'T1'!J9+'T2'!J9+'T3'!J9 -> -0.1 | K42: =CA!K42+'T1'!K9+'T2'!K9+'T3'!K9 -> -0.1 | L42: =CA!L42+'T1'!L9+'T2'!L9+'T3'!L9 -> -0.1 | M42: =CA!M42+'T1'!M9+'T2'!M9+'T3'!M9 -> -0.1 | N42: =CA!N42+'T1'!N9+'T2'!N9+'T3'!N9 -> -0.1 | O42: =CA!O42+'T1'!O9+'T2'!O9+'T3'!O9 -> -0.1 | P42: =CA!P42+'T1'!P9+'T2'!P9+'T3'!P9 -> -0.1 | Q42: =CA!Q42+'T1'!Q9+'T2'!Q9+'T3'!Q9 -> -0.1 | R42: =CA!R42+'T1'!R9+'T2'!R9+'T3'!R9 -> -0.1 | S42: =CA!S42+'T1'!S9+'T2'!S9+'T3'!S9 -> -0.1 | T42: =CA!T42+'T1'!T9+'T2'!T9+'T3'!T9 -> -0.1 | U42: =CA!U42+'T1'!U9+'T2'!U9+'T3'!U9 -> -0.1 | V42: =CA!V42+'T1'!V9+'T2'!V9+'T3'!V9 -> -0.1 | W42: =CA!W42+'T1'!W9+'T2'!W9+'T3'!W9 -> -0.1 | X42: =CA!X42+'T1'!X9+'T2'!X9+'T3'!X9 -> -0.1 | Y42: =CA!Y42+'T1'!Y9+'T2'!Y9+'T3'!Y9 -> -0.1 | Z42: =CA!Z42+'T1'!Z9+'T2'!Z9+'T3'!Z9 -> -0.1 | AA42: =CA!AA42+'T1'!AA9+'T2'!AA9+'T3'!AA9 -> -0.1 | AB42: =CA!AB42+'T1'!AB9+'T2'!AB9+'T3'!AB9 -> -0.1 | AC42: =CA!AC42+'T1'!AC9+'T2'!AC9+'T3'!AC9 -> -0.1 | AD42: =CA!AD42+'T1'!AD9+'T2'!AD9+'T3'!AD9 -> -0.1 | AE42: =CA!AE42+'T1'!AE9+'T2'!AE9+'T3'!AE9 -> -0.1
B43: =CA!B43+'T1'!B10+'T2'!B10+'T3'!B10 -> -0.1 | C43: =CA!C43+'T1'!C10+'T2'!C10+'T3'!C10 -> -0.1 | D43: =CA!D43+'T1'!D10+'T2'!D10+'T3'!D10 -> -0.1 | E43: =CA!E43+'T1'!E10+'T2'!E10+'T3'!E10 -> -0.1 | F43: =CA!F43+'T1'!F10+'T2'!F10+'T3'!F10 -> -0.1 | G43: =CA!G43+'T1'!G10+'T2'!G10+'T3'!G10 -> -0.1 | H43: =CA!H43+'T1'!H10+'T2'!H10+'T3'!H10 -> -0.1 | I43: =CA!I43+'T1'!I10+'T2'!I10+'T3'!I10 -> -0.1 | J43: =CA!J43+'T1'!J10+'T2'!J10+'T3'!J10 -> -0.1 | K43: =CA!K43+'T1'!K10+'T2'!K10+'T3'!K10 -> -0.1 | L43: =CA!L43+'T1'!L10+'T2'!L10+'T3'!L10 -> -0.1 | M43: =CA!M43+'T1'!M10+'T2'!M10+'T3'!M10 -> -0.1 | N43: =CA!N43+'T1'!N10+'T2'!N10+'T3'!N10 -> -0.1 | O43: =CA!O43+'T1'!O10+'T2'!O10+'T3'!O10 -> -0.1 | P43: =CA!P43+'T1'!P10+'T2'!P10+'T3'!P10 -> -0.1 | Q43: =CA!Q43+'T1'!Q10+'T2'!Q10+'T3'!Q10 -> -0.1 | R43: =CA!R43+'T1'!R10+'T2'!R10+'T3'!R10 -> -0.1 | S43: =CA!S43+'T1'!S10+'T2'!S10+'T3'!S10 -> -0.1 | T43: =CA!T43+'T1'!T10+'T2'!T10+'T3'!T10 -> -0.1 | U43: =CA!U43+'T1'!U10+'T2'!U10+'T3'!U10 -> -0.1 | V43: =CA!V43+'T1'!V10+'T2'!V10+'T3'!V10 -> -0.1 | W43: =CA!W43+'T1'!W10+'T2'!W10+'T3'!W10 -> -0.1 | X43: =CA!X43+'T1'!X10+'T2'!X10+'T3'!X10 -> -0.1 | Y43: =CA!Y43+'T1'!Y10+'T2'!Y10+'T3'!Y10 -> -0.1 | Z43: =CA!Z43+'T1'!Z10+'T2'!Z10+'T3'!Z10 -> -0.1 | AA43: =CA!AA43+'T1'!AA10+'T2'!AA10+'T3'!AA10 -> -0.1 | AB43: =CA!AB43+'T1'!AB10+'T2'!AB10+'T3'!AB10 -> -0.1 | AC43: =CA!AC43+'T1'!AC10+'T2'!AC10+'T3'!AC10 -> -0.1 | AD43: =CA!AD43+'T1'!AD10+'T2'!AD10+'T3'!AD10 -> -0.1 | AE43: =CA!AE43+'T1'!AE10+'T2'!AE10+'T3'!AE10 -> -0.1
B44: =CA!B44+'T1'!B11+'T2'!B11+'T3'!B11 -> -0.1 | C44: =CA!C44+'T1'!C11+'T2'!C11+'T3'!C11 -> -0.1 | D44: =CA!D44+'T1'!D11+'T2'!D11+'T3'!D11 -> -0.1 | E44: =CA!E44+'T1'!E11+'T2'!E11+'T3'!E11 -> -0.1 | F44: =CA!F44+'T1'!F11+'T2'!F11+'T3'!F11 -> -0.1 | G44: =CA!G44+'T1'!G11+'T2'!G11+'T3'!G11 -> -0.1 | H44: =CA!H44+'T1'!H11+'T2'!H11+'T3'!H11 -> -0.1 | I44: =CA!I44+'T1'!I11+'T2'!I11+'T3'!I11 -> -0.1 | J44: =CA!J44+'T1'!J11+'T2'!J11+'T3'!J11 -> -0.1 | K44: =CA!K44+'T1'!K11+'T2'!K11+'T3'!K11 -> -0.1 | L44: =CA!L44+'T1'!L11+'T2'!L11+'T3'!L11 -> -0.1 | M44: =CA!M44+'T1'!M11+'T2'!M11+'T3'!M11 -> -0.1 | N44: =CA!N44+'T1'!N11+'T2'!N11+'T3'!N11 -> -0.1 | O44: =CA!O44+'T1'!O11+'T2'!O11+'T3'!O11 -> -0.1 | P44: =CA!P44+'T1'!P11+'T2'!P11+'T3'!P11 -> -0.1 | Q44: =CA!Q44+'T1'!Q11+'T2'!Q11+'T3'!Q11 -> -0.1 | R44: =CA!R44+'T1'!R11+'T2'!R11+'T3'!R11 -> -0.1 | S44: =CA!S44+'T1'!S11+'T2'!S11+'T3'!S11 -> -0.1 | T44: =CA!T44+'T1'!T11+'T2'!T11+'T3'!T11 -> -0.1 | U44: =CA!U44+'T1'!U11+'T2'!U11+'T3'!U11 -> -0.1 | V44: =CA!V44+'T1'!V11+'T2'!V11+'T3'!V11 -> -0.1 | W44: =CA!W44+'T1'!W11+'T2'!W11+'T3'!W11 -> -0.1 | X44: =CA!X44+'T1'!X11+'T2'!X11+'T3'!X11 -> -0.1 | Y44: =CA!Y44+'T1'!Y11+'T2'!Y11+'T3'!Y11 -> -0.1 | Z44: =CA!Z44+'T1'!Z11+'T2'!Z11+'T3'!Z11 -> -0.1 | AA44: =CA!AA44+'T1'!AA11+'T2'!AA11+'T3'!AA11 -> -0.1 | AB44: =CA!AB44+'T1'!AB11+'T2'!AB11+'T3'!AB11 -> -0.1 | AC44: =CA!AC44+'T1'!AC11+'T2'!AC11+'T3'!AC11 -> -0.1 | AD44: =CA!AD44+'T1'!AD11+'T2'!AD11+'T3'!AD11 -> -0.1 | AE44: =CA!AE44+'T1'!AE11+'T2'!AE11+'T3'!AE11 -> -0.1
B45: =CA!B45+'T1'!B12+'T2'!B12+'T3'!B12 -> -0.1 | C45: =CA!C45+'T1'!C12+'T2'!C12+'T3'!C12 -> -0.1 | D45: =CA!D45+'T1'!D12+'T2'!D12+'T3'!D12 -> -0.1 | E45: =CA!E45+'T1'!E12+'T2'!E12+'T3'!E12 -> -0.1 | F45: =CA!F45+'T1'!F12+'T2'!F12+'T3'!F12 -> -0.1 | G45: =CA!G45+'T1'!G12+'T2'!G12+'T3'!G12 -> -0.1 | H45: =CA!H45+'T1'!H12+'T2'!H12+'T3'!H12 -> -0.1 | I45: =CA!I45+'T1'!I12+'T2'!I12+'T3'!I12 -> -0.1 | J45: =CA!J45+'T1'!J12+'T2'!J12+'T3'!J12 -> -0.1 | K45: =CA!K45+'T1'!K12+'T2'!K12+'T3'!K12 -> -0.1 | L45: =CA!L45+'T1'!L12+'T2'!L12+'T3'!L12 -> -0.1 | M45: =CA!M45+'T1'!M12+'T2'!M12+'T3'!M12 -> -0.1 | N45: =CA!N45+'T1'!N12+'T2'!N12+'T3'!N12 -> -0.1 | O45: =CA!O45+'T1'!O12+'T2'!O12+'T3'!O12 -> -0.1 | P45: =CA!P45+'T1'!P12+'T2'!P12+'T3'!P12 -> -0.1 | Q45: =CA!Q45+'T1'!Q12+'T2'!Q12+'T3'!Q12 -> -0.1 | R45: =CA!R45+'T1'!R12+'T2'!R12+'T3'!R12 -> -0.1 | S45: =CA!S45+'T1'!S12+'T2'!S12+'T3'!S12 -> -0.1 | T45: =CA!T45+'T1'!T12+'T2'!T12+'T3'!T12 -> -0.1 | U45: =CA!U45+'T1'!U12+'T2'!U12+'T3'!U12 -> -0.1 | V45: =CA!V45+'T1'!V12+'T2'!V12+'T3'!V12 -> -0.1 | W45: =CA!W45+'T1'!W12+'T2'!W12+'T3'!W12 -> -0.1 | X45: =CA!X45+'T1'!X12+'T2'!X12+'T3'!X12 -> -0.1 | Y45: =CA!Y45+'T1'!Y12+'T2'!Y12+'T3'!Y12 -> -0.1 | Z45: =CA!Z45+'T1'!Z12+'T2'!Z12+'T3'!Z12 -> -0.1 | AA45: =CA!AA45+'T1'!AA12+'T2'!AA12+'T3'!AA12 -> -0.1 | AB45: =CA!AB45+'T1'!AB12+'T2'!AB12+'T3'!AB12 -> -0.1 | AC45: =CA!AC45+'T1'!AC12+'T2'!AC12+'T3'!AC12 -> -0.1 | AD45: =CA!AD45+'T1'!AD12+'T2'!AD12+'T3'!AD12 -> -0.1 | AE45: =CA!AE45+'T1'!AE12+'T2'!AE12+'T3'!AE12 -> -0.1
B46: =CA!B46+'T1'!B13+'T2'!B13+'T3'!B13 -> -0.1 | C46: =CA!C46+'T1'!C13+'T2'!C13+'T3'!C13 -> -0.1 | D46: =CA!D46+'T1'!D13+'T2'!D13+'T3'!D13 -> -0.1 | E46: =CA!E46+'T1'!E13+'T2'!E13+'T3'!E13 -> -0.1 | F46: =CA!F46+'T1'!F13+'T2'!F13+'T3'!F13 -> -0.1 | G46: =CA!G46+'T1'!G13+'T2'!G13+'T3'!G13 -> -0.1 | H46: =CA!H46+'T1'!H13+'T2'!H13+'T3'!H13 -> -0.1 | I46: =CA!I46+'T1'!I13+'T2'!I13+'T3'!I13 -> -0.1 | J46: =CA!J46+'T1'!J13+'T2'!J13+'T3'!J13 -> -0.1 | K46: =CA!K46+'T1'!K13+'T2'!K13+'T3'!K13 -> -0.1 | L46: =CA!L46+'T1'!L13+'T2'!L13+'T3'!L13 -> -0.1 | M46: =CA!M46+'T1'!M13+'T2'!M13+'T3'!M13 -> -0.1 | N46: =CA!N46+'T1'!N13+'T2'!N13+'T3'!N13 -> -0.1 | O46: =CA!O46+'T1'!O13+'T2'!O13+'T3'!O13 -> -0.1 | P46: =CA!P46+'T1'!P13+'T2'!P13+'T3'!P13 -> -0.1 | Q46: =CA!Q46+'T1'!Q13+'T2'!Q13+'T3'!Q13 -> -0.1 | R46: =CA!R46+'T1'!R13+'T2'!R13+'T3'!R13 -> -0.1 | S46: =CA!S46+'T1'!S13+'T2'!S13+'T3'!S13 -> -0.1 | T46: =CA!T46+'T1'!T13+'T2'!T13+'T3'!T13 -> -0.1 | U46: =CA!U46+'T1'!U13+'T2'!U13+'T3'!U13 -> -0.1 | V46: =CA!V46+'T1'!V13+'T2'!V13+'T3'!V13 -> -0.1 | W46: =CA!W46+'T1'!W13+'T2'!W13+'T3'!W13 -> -0.1 | X46: =CA!X46+'T1'!X13+'T2'!X13+'T3'!X13 -> -0.1 | Y46: =CA!Y46+'T1'!Y13+'T2'!Y13+'T3'!Y13 -> -0.1 | Z46: =CA!Z46+'T1'!Z13+'T2'!Z13+'T3'!Z13 -> -0.1 | AA46: =CA!AA46+'T1'!AA13+'T2'!AA13+'T3'!AA13 -> -0.1 | AB46: =CA!AB46+'T1'!AB13+'T2'!AB13+'T3'!AB13 -> -0.1 | AC46: =CA!AC46+'T1'!AC13+'T2'!AC13+'T3'!AC13 -> -0.1 | AD46: =CA!AD46+'T1'!AD13+'T2'!AD13+'T3'!AD13 -> -0.1 | AE46: =CA!AE46+'T1'!AE13+'T2'!AE13+'T3'!AE13 -> -0.1
B47: =CA!B47+'T1'!B14+'T2'!B14+'T3'!B14 -> -0.1 | C47: =CA!C47+'T1'!C14+'T2'!C14+'T3'!C14 -> -0.1 | D47: =CA!D47+'T1'!D14+'T2'!D14+'T3'!D14 -> -0.1 | E47: =CA!E47+'T1'!E14+'T2'!E14+'T3'!E14 -> -0.1 | F47: =CA!F47+'T1'!F14+'T2'!F14+'T3'!F14 -> -0.1 | G47: =CA!G47+'T1'!G14+'T2'!G14+'T3'!G14 -> -0.1 | H47: =CA!H47+'T1'!H14+'T2'!H14+'T3'!H14 -> -0.1 | I47: =CA!I47+'T1'!I14+'T2'!I14+'T3'!I14 -> -0.1 | J47: =CA!J47+'T1'!J14+'T2'!J14+'T3'!J14 -> -0.1 | K47: =CA!K47+'T1'!K14+'T2'!K14+'T3'!K14 -> -0.1 | L47: =CA!L47+'T1'!L14+'T2'!L14+'T3'!L14 -> -0.1 | M47: =CA!M47+'T1'!M14+'T2'!M14+'T3'!M14 -> -0.1 | N47: =CA!N47+'T1'!N14+'T2'!N14+'T3'!N14 -> -0.1 | O47: =CA!O47+'T1'!O14+'T2'!O14+'T3'!O14 -> -0.1 | P47: =CA!P47+'T1'!P14+'T2'!P14+'T3'!P14 -> -0.1 | Q47: =CA!Q47+'T1'!Q14+'T2'!Q14+'T3'!Q14 -> -0.1 | R47: =CA!R47+'T1'!R14+'T2'!R14+'T3'!R14 -> -0.1 | S47: =CA!S47+'T1'!S14+'T2'!S14+'T3'!S14 -> -0.1 | T47: =CA!T47+'T1'!T14+'T2'!T14+'T3'!T14 -> -0.1 | U47: =CA!U47+'T1'!U14+'T2'!U14+'T3'!U14 -> -0.1 | V47: =CA!V47+'T1'!V14+'T2'!V14+'T3'!V14 -> -0.1 | W47: =CA!W47+'T1'!W14+'T2'!W14+'T3'!W14 -> -0.1 | X47: =CA!X47+'T1'!X14+'T2'!X14+'T3'!X14 -> -0.1 | Y47: =CA!Y47+'T1'!Y14+'T2'!Y14+'T3'!Y14 -> -0.1 | Z47: =CA!Z47+'T1'!Z14+'T2'!Z14+'T3'!Z14 -> -0.1 | AA47: =CA!AA47+'T1'!AA14+'T2'!AA14+'T3'!AA14 -> -0.1 | AB47: =CA!AB47+'T1'!AB14+'T2'!AB14+'T3'!AB14 -> -0.1 | AC47: =CA!AC47+'T1'!AC14+'T2'!AC14+'T3'!AC14 -> -0.1 | AD47: =CA!AD47+'T1'!AD14+'T2'!AD14+'T3'!AD14 -> -0.1 | AE47: =CA!AE47+'T1'!AE14+'T2'!AE14+'T3'!AE14 -> -0.1
B48: =CA!B48+'T1'!B15+'T2'!B15+'T3'!B15 -> -0.1 | C48: =CA!C48+'T1'!C15+'T2'!C15+'T3'!C15 -> -0.1 | D48: =CA!D48+'T1'!D15+'T2'!D15+'T3'!D15 -> -0.1 | E48: =CA!E48+'T1'!E15+'T2'!E15+'T3'!E15 -> -0.1 | F48: =CA!F48+'T1'!F15+'T2'!F15+'T3'!F15 -> -0.1 | G48: =CA!G48+'T1'!G15+'T2'!G15+'T3'!G15 -> -0.1 | H48: =CA!H48+'T1'!H15+'T2'!H15+'T3'!H15 -> -0.1 | I48: =CA!I48+'T1'!I15+'T2'!I15+'T3'!I15 -> -0.1 | J48: =CA!J48+'T1'!J15+'T2'!J15+'T3'!J15 -> -0.1 | K48: =CA!K48+'T1'!K15+'T2'!K15+'T3'!K15 -> -0.1 | L48: =CA!L48+'T1'!L15+'T2'!L15+'T3'!L15 -> -0.1 | M48: =CA!M48+'T1'!M15+'T2'!M15+'T3'!M15 -> -0.1 | N48: =CA!N48+'T1'!N15+'T2'!N15+'T3'!N15 -> -0.1 | O48: =CA!O48+'T1'!O15+'T2'!O15+'T3'!O15 -> -0.1 | P48: =CA!P48+'T1'!P15+'T2'!P15+'T3'!P15 -> -0.1 | Q48: =CA!Q48+'T1'!Q15+'T2'!Q15+'T3'!Q15 -> -0.1 | R48: =CA!R48+'T1'!R15+'T2'!R15+'T3'!R15 -> -0.1 | S48: =CA!S48+'T1'!S15+'T2'!S15+'T3'!S15 -> -0.1 | T48: =CA!T48+'T1'!T15+'T2'!T15+'T3'!T15 -> -0.1 | U48: =CA!U48+'T1'!U15+'T2'!U15+'T3'!U15 -> -0.1 | V48: =CA!V48+'T1'!V15+'T2'!V15+'T3'!V15 -> -0.1 | W48: =CA!W48+'T1'!W15+'T2'!W15+'T3'!W15 -> -0.1 | X48: =CA!X48+'T1'!X15+'T2'!X15+'T3'!X15 -> -0.1 | Y48: =CA!Y48+'T1'!Y15+'T2'!Y15+'T3'!Y15 -> -0.1 | Z48: =CA!Z48+'T1'!Z15+'T2'!Z15+'T3'!Z15 -> -0.1 | AA48: =CA!AA48+'T1'!AA15+'T2'!AA15+'T3'!AA15 -> -0.1 | AB48: =CA!AB48+'T1'!AB15+'T2'!AB15+'T3'!AB15 -> -0.1 | AC48: =CA!AC48+'T1'!AC15+'T2'!AC15+'T3'!AC15 -> -0.1 | AD48: =CA!AD48+'T1'!AD15+'T2'!AD15+'T3'!AD15 -> -0.1 | AE48: =CA!AE48+'T1'!AE15+'T2'!AE15+'T3'!AE15 -> -0.1
B49: =CA!B49+'T1'!B16+'T2'!B16+'T3'!B16 -> -0.1 | C49: =CA!C49+'T1'!C16+'T2'!C16+'T3'!C16 -> -0.1 | D49: =CA!D49+'T1'!D16+'T2'!D16+'T3'!D16 -> -0.1 | E49: =CA!E49+'T1'!E16+'T2'!E16+'T3'!E16 -> -0.1 | F49: =CA!F49+'T1'!F16+'T2'!F16+'T3'!F16 -> -0.1 | G49: =CA!G49+'T1'!G16+'T2'!G16+'T3'!G16 -> -0.1 | H49: =CA!H49+'T1'!H16+'T2'!H16+'T3'!H16 -> -0.1 | I49: =CA!I49+'T1'!I16+'T2'!I16+'T3'!I16 -> -0.1 | J49: =CA!J49+'T1'!J16+'T2'!J16+'T3'!J16 -> -0.1 | K49: =CA!K49+'T1'!K16+'T2'!K16+'T3'!K16 -> -0.1 | L49: =CA!L49+'T1'!L16+'T2'!L16+'T3'!L16 -> -0.1 | M49: =CA!M49+'T1'!M16+'T2'!M16+'T3'!M16 -> -0.1 | N49: =CA!N49+'T1'!N16+'T2'!N16+'T3'!N16 -> -0.1 | O49: =CA!O49+'T1'!O16+'T2'!O16+'T3'!O16 -> -0.1 | P49: =CA!P49+'T1'!P16+'T2'!P16+'T3'!P16 -> -0.1 | Q49: =CA!Q49+'T1'!Q16+'T2'!Q16+'T3'!Q16 -> -0.1 | R49: =CA!R49+'T1'!R16+'T2'!R16+'T3'!R16 -> -0.1 | S49: =CA!S49+'T1'!S16+'T2'!S16+'T3'!S16 -> -0.1 | T49: =CA!T49+'T1'!T16+'T2'!T16+'T3'!T16 -> -0.1 | U49: =CA!U49+'T1'!U16+'T2'!U16+'T3'!U16 -> -0.1 | V49: =CA!V49+'T1'!V16+'T2'!V16+'T3'!V16 -> -0.1 | W49: =CA!W49+'T1'!W16+'T2'!W16+'T3'!W16 -> -0.1 | X49: =CA!X49+'T1'!X16+'T2'!X16+'T3'!X16 -> -0.1 | Y49: =CA!Y49+'T1'!Y16+'T2'!Y16+'T3'!Y16 -> -0.1 | Z49: =CA!Z49+'T1'!Z16+'T2'!Z16+'T3'!Z16 -> -0.1 | AA49: =CA!AA49+'T1'!AA16+'T2'!AA16+'T3'!AA16 -> -0.1 | AB49: =CA!AB49+'T1'!AB16+'T2'!AB16+'T3'!AB16 -> -0.1 | AC49: =CA!AC49+'T1'!AC16+'T2'!AC16+'T3'!AC16 -> -0.1 | AD49: =CA!AD49+'T1'!AD16+'T2'!AD16+'T3'!AD16 -> -0.1 | AE49: =CA!AE49+'T1'!AE16+'T2'!AE16+'T3'!AE16 -> -0.1
B50: =CA!B50+'T1'!B17+'T2'!B17+'T3'!B17 -> -0.1 | C50: =CA!C50+'T1'!C17+'T2'!C17+'T3'!C17 -> -0.1 | D50: =CA!D50+'T1'!D17+'T2'!D17+'T3'!D17 -> -0.1 | E50: =CA!E50+'T1'!E17+'T2'!E17+'T3'!E17 -> -0.1 | F50: =CA!F50+'T1'!F17+'T2'!F17+'T3'!F17 -> -0.1 | G50: =CA!G50+'T1'!G17+'T2'!G17+'T3'!G17 -> -0.1 | H50: =CA!H50+'T1'!H17+'T2'!H17+'T3'!H17 -> -0.1 | I50: =CA!I50+'T1'!I17+'T2'!I17+'T3'!I17 -> -0.1 | J50: =CA!J50+'T1'!J17+'T2'!J17+'T3'!J17 -> -0.1 | K50: =CA!K50+'T1'!K17+'T2'!K17+'T3'!K17 -> -0.1 | L50: =CA!L50+'T1'!L17+'T2'!L17+'T3'!L17 -> -0.1 | M50: =CA!M50+'T1'!M17+'T2'!M17+'T3'!M17 -> -0.1 | N50: =CA!N50+'T1'!N17+'T2'!N17+'T3'!N17 -> -0.1 | O50: =CA!O50+'T1'!O17+'T2'!O17+'T3'!O17 -> -0.1 | P50: =CA!P50+'T1'!P17+'T2'!P17+'T3'!P17 -> -0.1 | Q50: =CA!Q50+'T1'!Q17+'T2'!Q17+'T3'!Q17 -> -0.1 | R50: =CA!R50+'T1'!R17+'T2'!R17+'T3'!R17 -> -0.1 | S50: =CA!S50+'T1'!S17+'T2'!S17+'T3'!S17 -> -0.1 | T50: =CA!T50+'T1'!T17+'T2'!T17+'T3'!T17 -> -0.1 | U50: =CA!U50+'T1'!U17+'T2'!U17+'T3'!U17 -> -0.1 | V50: =CA!V50+'T1'!V17+'T2'!V17+'T3'!V17 -> -0.1 | W50: =CA!W50+'T1'!W17+'T2'!W17+'T3'!W17 -> -0.1 | X50: =CA!X50+'T1'!X17+'T2'!X17+'T3'!X17 -> -0.1 | Y50: =CA!Y50+'T1'!Y17+'T2'!Y17+'T3'!Y17 -> -0.1 | Z50: =CA!Z50+'T1'!Z17+'T2'!Z17+'T3'!Z17 -> -0.1 | AA50: =CA!AA50+'T1'!AA17+'T2'!AA17+'T3'!AA17 -> -0.1 | AB50: =CA!AB50+'T1'!AB17+'T2'!AB17+'T3'!AB17 -> -0.1 | AC50: =CA!AC50+'T1'!AC17+'T2'!AC17+'T3'!AC17 -> -0.1 | AD50: =CA!AD50+'T1'!AD17+'T2'!AD17+'T3'!AD17 -> -0.1 | AE50: =CA!AE50+'T1'!AE17+'T2'!AE17+'T3'!AE17 -> -0.1
B51: =CA!B51+'T1'!B18+'T2'!B18+'T3'!B18 -> -0.1 | C51: =CA!C51+'T1'!C18+'T2'!C18+'T3'!C18 -> -0.1 | D51: =CA!D51+'T1'!D18+'T2'!D18+'T3'!D18 -> -0.1 | E51: =CA!E51+'T1'!E18+'T2'!E18+'T3'!E18 -> -0.1 | F51: =CA!F51+'T1'!F18+'T2'!F18+'T3'!F18 -> -0.1 | G51: =CA!G51+'T1'!G18+'T2'!G18+'T3'!G18 -> -0.1 | H51: =CA!H51+'T1'!H18+'T2'!H18+'T3'!H18 -> -0.1 | I51: =CA!I51+'T1'!I18+'T2'!I18+'T3'!I18 -> -0.1 | J51: =CA!J51+'T1'!J18+'T2'!J18+'T3'!J18 -> -0.1 | K51: =CA!K51+'T1'!K18+'T2'!K18+'T3'!K18 -> -0.1 | L51: =CA!L51+'T1'!L18+'T2'!L18+'T3'!L18 -> -0.1 | M51: =CA!M51+'T1'!M18+'T2'!M18+'T3'!M18 -> -0.1 | N51: =CA!N51+'T1'!N18+'T2'!N18+'T3'!N18 -> -0.1 | O51: =CA!O51+'T1'!O18+'T2'!O18+'T3'!O18 -> -0.1 | P51: =CA!P51+'T1'!P18+'T2'!P18+'T3'!P18 -> -0.1 | Q51: =CA!Q51+'T1'!Q18+'T2'!Q18+'T3'!Q18 -> -0.1 | R51: =CA!R51+'T1'!R18+'T2'!R18+'T3'!R18 -> -0.1 | S51: =CA!S51+'T1'!S18+'T2'!S18+'T3'!S18 -> -0.1 | T51: =CA!T51+'T1'!T18+'T2'!T18+'T3'!T18 -> -0.1 | U51: =CA!U51+'T1'!U18+'T2'!U18+'T3'!U18 -> -0.1 | V51: =CA!V51+'T1'!V18+'T2'!V18+'T3'!V18 -> -0.1 | W51: =CA!W51+'T1'!W18+'T2'!W18+'T3'!W18 -> -0.1 | X51: =CA!X51+'T1'!X18+'T2'!X18+'T3'!X18 -> -0.1 | Y51: =CA!Y51+'T1'!Y18+'T2'!Y18+'T3'!Y18 -> -0.1 | Z51: =CA!Z51+'T1'!Z18+'T2'!Z18+'T3'!Z18 -> -0.1 | AA51: =CA!AA51+'T1'!AA18+'T2'!AA18+'T3'!AA18 -> -0.1 | AB51: =CA!AB51+'T1'!AB18+'T2'!AB18+'T3'!AB18 -> -0.1 | AC51: =CA!AC51+'T1'!AC18+'T2'!AC18+'T3'!AC18 -> -0.1 | AD51: =CA!AD51+'T1'!AD18+'T2'!AD18+'T3'!AD18 -> -0.1 | AE51: =CA!AE51+'T1'!AE18+'T2'!AE18+'T3'!AE18 -> -0.1
B52: =CA!B52+'T1'!B19+'T2'!B19+'T3'!B19 -> -0.1 | C52: =CA!C52+'T1'!C19+'T2'!C19+'T3'!C19 -> -0.1 | D52: =CA!D52+'T1'!D19+'T2'!D19+'T3'!D19 -> -0.1 | E52: =CA!E52+'T1'!E19+'T2'!E19+'T3'!E19 -> -0.1 | F52: =CA!F52+'T1'!F19+'T2'!F19+'T3'!F19 -> -0.1 | G52: =CA!G52+'T1'!G19+'T2'!G19+'T3'!G19 -> -0.1 | H52: =CA!H52+'T1'!H19+'T2'!H19+'T3'!H19 -> -0.1 | I52: =CA!I52+'T1'!I19+'T2'!I19+'T3'!I19 -> -0.1 | J52: =CA!J52+'T1'!J19+'T2'!J19+'T3'!J19 -> -0.1 | K52: =CA!K52+'T1'!K19+'T2'!K19+'T3'!K19 -> -0.1 | L52: =CA!L52+'T1'!L19+'T2'!L19+'T3'!L19 -> -0.1 | M52: =CA!M52+'T1'!M19+'T2'!M19+'T3'!M19 -> -0.1 | N52: =CA!N52+'T1'!N19+'T2'!N19+'T3'!N19 -> -0.1 | O52: =CA!O52+'T1'!O19+'T2'!O19+'T3'!O19 -> -0.1 | P52: =CA!P52+'T1'!P19+'T2'!P19+'T3'!P19 -> -0.1 | Q52: =CA!Q52+'T1'!Q19+'T2'!Q19+'T3'!Q19 -> -0.1 | R52: =CA!R52+'T1'!R19+'T2'!R19+'T3'!R19 -> -0.1 | S52: =CA!S52+'T1'!S19+'T2'!S19+'T3'!S19 -> -0.1 | T52: =CA!T52+'T1'!T19+'T2'!T19+'T3'!T19 -> -0.1 | U52: =CA!U52+'T1'!U19+'T2'!U19+'T3'!U19 -> -0.1 | V52: =CA!V52+'T1'!V19+'T2'!V19+'T3'!V19 -> -0.1 | W52: =CA!W52+'T1'!W19+'T2'!W19+'T3'!W19 -> -0.1 | X52: =CA!X52+'T1'!X19+'T2'!X19+'T3'!X19 -> -0.1 | Y52: =CA!Y52+'T1'!Y19+'T2'!Y19+'T3'!Y19 -> -0.1 | Z52: =CA!Z52+'T1'!Z19+'T2'!Z19+'T3'!Z19 -> -0.1 | AA52: =CA!AA52+'T1'!AA19+'T2'!AA19+'T3'!AA19 -> -0.1 | AB52: =CA!AB52+'T1'!AB19+'T2'!AB19+'T3'!AB19 -> -0.1 | AC52: =CA!AC52+'T1'!AC19+'T2'!AC19+'T3'!AC19 -> -0.1 | AD52: =CA!AD52+'T1'!AD19+'T2'!AD19+'T3'!AD19 -> -0.1 | AE52: =CA!AE52+'T1'!AE19+'T2'!AE19+'T3'!AE19 -> -0.1
B53: =CA!B53+'T1'!B20+'T2'!B20+'T3'!B20 -> -0.1 | C53: =CA!C53+'T1'!C20+'T2'!C20+'T3'!C20 -> -0.1 | D53: =CA!D53+'T1'!D20+'T2'!D20+'T3'!D20 -> -0.1 | E53: =CA!E53+'T1'!E20+'T2'!E20+'T3'!E20 -> -0.1 | F53: =CA!F53+'T1'!F20+'T2'!F20+'T3'!F20 -> -0.1 | G53: =CA!G53+'T1'!G20+'T2'!G20+'T3'!G20 -> -0.1 | H53: =CA!H53+'T1'!H20+'T2'!H20+'T3'!H20 -> -0.1 | I53: =CA!I53+'T1'!I20+'T2'!I20+'T3'!I20 -> -0.1 | J53: =CA!J53+'T1'!J20+'T2'!J20+'T3'!J20 -> -0.1 | K53: =CA!K53+'T1'!K20+'T2'!K20+'T3'!K20 -> -0.1 | L53: =CA!L53+'T1'!L20+'T2'!L20+'T3'!L20 -> -0.1 | M53: =CA!M53+'T1'!M20+'T2'!M20+'T3'!M20 -> -0.1 | N53: =CA!N53+'T1'!N20+'T2'!N20+'T3'!N20 -> -0.1 | O53: =CA!O53+'T1'!O20+'T2'!O20+'T3'!O20 -> -0.1 | P53: =CA!P53+'T1'!P20+'T2'!P20+'T3'!P20 -> -0.1 | Q53: =CA!Q53+'T1'!Q20+'T2'!Q20+'T3'!Q20 -> -0.1 | R53: =CA!R53+'T1'!R20+'T2'!R20+'T3'!R20 -> -0.1 | S53: =CA!S53+'T1'!S20+'T2'!S20+'T3'!S20 -> -0.1 | T53: =CA!T53+'T1'!T20+'T2'!T20+'T3'!T20 -> -0.1 | U53: =CA!U53+'T1'!U20+'T2'!U20+'T3'!U20 -> -0.1 | V53: =CA!V53+'T1'!V20+'T2'!V20+'T3'!V20 -> -0.1 | W53: =CA!W53+'T1'!W20+'T2'!W20+'T3'!W20 -> -0.1 | X53: =CA!X53+'T1'!X20+'T2'!X20+'T3'!X20 -> -0.1 | Y53: =CA!Y53+'T1'!Y20+'T2'!Y20+'T3'!Y20 -> -0.1 | Z53: =CA!Z53+'T1'!Z20+'T2'!Z20+'T3'!Z20 -> -0.1 | AA53: =CA!AA53+'T1'!AA20+'T2'!AA20+'T3'!AA20 -> -0.1 | AB53: =CA!AB53+'T1'!AB20+'T2'!AB20+'T3'!AB20 -> -0.1 | AC53: =CA!AC53+'T1'!AC20+'T2'!AC20+'T3'!AC20 -> -0.1 | AD53: =CA!AD53+'T1'!AD20+'T2'!AD20+'T3'!AD20 -> -0.1 | AE53: =CA!AE53+'T1'!AE20+'T2'!AE20+'T3'!AE20 -> -0.1
B54: =CA!B54+'T1'!B21+'T2'!B21+'T3'!B21 -> -0.1 | C54: =CA!C54+'T1'!C21+'T2'!C21+'T3'!C21 -> -0.1 | D54: =CA!D54+'T1'!D21+'T2'!D21+'T3'!D21 -> -0.1 | E54: =CA!E54+'T1'!E21+'T2'!E21+'T3'!E21 -> -0.1 | F54: =CA!F54+'T1'!F21+'T2'!F21+'T3'!F21 -> -0.1 | G54: =CA!G54+'T1'!G21+'T2'!G21+'T3'!G21 -> -0.1 | H54: =CA!H54+'T1'!H21+'T2'!H21+'T3'!H21 -> -0.1 | I54: =CA!I54+'T1'!I21+'T2'!I21+'T3'!I21 -> -0.1 | J54: =CA!J54+'T1'!J21+'T2'!J21+'T3'!J21 -> -0.1 | K54: =CA!K54+'T1'!K21+'T2'!K21+'T3'!K21 -> -0.1 | L54: =CA!L54+'T1'!L21+'T2'!L21+'T3'!L21 -> -0.1 | M54: =CA!M54+'T1'!M21+'T2'!M21+'T3'!M21 -> -0.1 | N54: =CA!N54+'T1'!N21+'T2'!N21+'T3'!N21 -> -0.1 | O54: =CA!O54+'T1'!O21+'T2'!O21+'T3'!O21 -> -0.1 | P54: =CA!P54+'T1'!P21+'T2'!P21+'T3'!P21 -> -0.1 | Q54: =CA!Q54+'T1'!Q21+'T2'!Q21+'T3'!Q21 -> -0.1 | R54: =CA!R54+'T1'!R21+'T2'!R21+'T3'!R21 -> -0.1 | S54: =CA!S54+'T1'!S21+'T2'!S21+'T3'!S21 -> -0.1 | T54: =CA!T54+'T1'!T21+'T2'!T21+'T3'!T21 -> -0.1 | U54: =CA!U54+'T1'!U21+'T2'!U21+'T3'!U21 -> -0.1 | V54: =CA!V54+'T1'!V21+'T2'!V21+'T3'!V21 -> -0.1 | W54: =CA!W54+'T1'!W21+'T2'!W21+'T3'!W21 -> -0.1 | X54: =CA!X54+'T1'!X21+'T2'!X21+'T3'!X21 -> -0.1 | Y54: =CA!Y54+'T1'!Y21+'T2'!Y21+'T3'!Y21 -> -0.1 | Z54: =CA!Z54+'T1'!Z21+'T2'!Z21+'T3'!Z21 -> -0.1 | AA54: =CA!AA54+'T1'!AA21+'T2'!AA21+'T3'!AA21 -> -0.1 | AB54: =CA!AB54+'T1'!AB21+'T2'!AB21+'T3'!AB21 -> -0.1 | AC54: =CA!AC54+'T1'!AC21+'T2'!AC21+'T3'!AC21 -> -0.1 | AD54: =CA!AD54+'T1'!AD21+'T2'!AD21+'T3'!AD21 -> -0.1 | AE54: =CA!AE54+'T1'!AE21+'T2'!AE21+'T3'!AE21 -> -0.1
B55: =CA!B55+'T1'!B22+'T2'!B22+'T3'!B22 -> -0.1 | C55: =CA!C55+'T1'!C22+'T2'!C22+'T3'!C22 -> -0.1 | D55: =CA!D55+'T1'!D22+'T2'!D22+'T3'!D22 -> -0.1 | E55: =CA!E55+'T1'!E22+'T2'!E22+'T3'!E22 -> -0.1 | F55: =CA!F55+'T1'!F22+'T2'!F22+'T3'!F22 -> -0.1 | G55: =CA!G55+'T1'!G22+'T2'!G22+'T3'!G22 -> -0.1 | H55: =CA!H55+'T1'!H22+'T2'!H22+'T3'!H22 -> -0.1 | I55: =CA!I55+'T1'!I22+'T2'!I22+'T3'!I22 -> -0.1 | J55: =CA!J55+'T1'!J22+'T2'!J22+'T3'!J22 -> -0.1 | K55: =CA!K55+'T1'!K22+'T2'!K22+'T3'!K22 -> -0.1 | L55: =CA!L55+'T1'!L22+'T2'!L22+'T3'!L22 -> -0.1 | M55: =CA!M55+'T1'!M22+'T2'!M22+'T3'!M22 -> -0.1 | N55: =CA!N55+'T1'!N22+'T2'!N22+'T3'!N22 -> -0.1 | O55: =CA!O55+'T1'!O22+'T2'!O22+'T3'!O22 -> -0.1 | P55: =CA!P55+'T1'!P22+'T2'!P22+'T3'!P22 -> -0.1 | Q55: =CA!Q55+'T1'!Q22+'T2'!Q22+'T3'!Q22 -> -0.1 | R55: =CA!R55+'T1'!R22+'T2'!R22+'T3'!R22 -> -0.1 | S55: =CA!S55+'T1'!S22+'T2'!S22+'T3'!S22 -> -0.1 | T55: =CA!T55+'T1'!T22+'T2'!T22+'T3'!T22 -> -0.1 | U55: =CA!U55+'T1'!U22+'T2'!U22+'T3'!U22 -> -0.1 | V55: =CA!V55+'T1'!V22+'T2'!V22+'T3'!V22 -> -0.1 | W55: =CA!W55+'T1'!W22+'T2'!W22+'T3'!W22 -> -0.1 | X55: =CA!X55+'T1'!X22+'T2'!X22+'T3'!X22 -> -0.1 | Y55: =CA!Y55+'T1'!Y22+'T2'!Y22+'T3'!Y22 -> -0.1 | Z55: =CA!Z55+'T1'!Z22+'T2'!Z22+'T3'!Z22 -> -0.1 | AA55: =CA!AA55+'T1'!AA22+'T2'!AA22+'T3'!AA22 -> -0.1 | AB55: =CA!AB55+'T1'!AB22+'T2'!AB22+'T3'!AB22 -> -0.1 | AC55: =CA!AC55+'T1'!AC22+'T2'!AC22+'T3'!AC22 -> -0.1 | AD55: =CA!AD55+'T1'!AD22+'T2'!AD22+'T3'!AD22 -> -0.1 | AE55: =CA!AE55+'T1'!AE22+'T2'!AE22+'T3'!AE22 -> -0.1
B56: =CA!B56+'T1'!B23+'T2'!B23+'T3'!B23 -> -0.1 | C56: =CA!C56+'T1'!C23+'T2'!C23+'T3'!C23 -> -0.1 | D56: =CA!D56+'T1'!D23+'T2'!D23+'T3'!D23 -> -0.1 | E56: =CA!E56+'T1'!E23+'T2'!E23+'T3'!E23 -> -0.1 | F56: =CA!F56+'T1'!F23+'T2'!F23+'T3'!F23 -> -0.1 | G56: =CA!G56+'T1'!G23+'T2'!G23+'T3'!G23 -> -0.1 | H56: =CA!H56+'T1'!H23+'T2'!H23+'T3'!H23 -> -0.1 | I56: =CA!I56+'T1'!I23+'T2'!I23+'T3'!I23 -> -0.1 | J56: =CA!J56+'T1'!J23+'T2'!J23+'T3'!J23 -> -0.1 | K56: =CA!K56+'T1'!K23+'T2'!K23+'T3'!K23 -> -0.1 | L56: =CA!L56+'T1'!L23+'T2'!L23+'T3'!L23 -> -0.1 | M56: =CA!M56+'T1'!M23+'T2'!M23+'T3'!M23 -> -0.1 | N56: =CA!N56+'T1'!N23+'T2'!N23+'T3'!N23 -> -0.1 | O56: =CA!O56+'T1'!O23+'T2'!O23+'T3'!O23 -> -0.1 | P56: =CA!P56+'T1'!P23+'T2'!P23+'T3'!P23 -> -0.1 | Q56: =CA!Q56+'T1'!Q23+'T2'!Q23+'T3'!Q23 -> -0.1 | R56: =CA!R56+'T1'!R23+'T2'!R23+'T3'!R23 -> -0.1 | S56: =CA!S56+'T1'!S23+'T2'!S23+'T3'!S23 -> -0.1 | T56: =CA!T56+'T1'!T23+'T2'!T23+'T3'!T23 -> -0.1 | U56: =CA!U56+'T1'!U23+'T2'!U23+'T3'!U23 -> -0.1 | V56: =CA!V56+'T1'!V23+'T2'!V23+'T3'!V23 -> -0.1 | W56: =CA!W56+'T1'!W23+'T2'!W23+'T3'!W23 -> -0.1 | X56: =CA!X56+'T1'!X23+'T2'!X23+'T3'!X23 -> -0.1 | Y56: =CA!Y56+'T1'!Y23+'T2'!Y23+'T3'!Y23 -> -0.1 | Z56: =CA!Z56+'T1'!Z23+'T2'!Z23+'T3'!Z23 -> -0.1 | AA56: =CA!AA56+'T1'!AA23+'T2'!AA23+'T3'!AA23 -> -0.1 | AB56: =CA!AB56+'T1'!AB23+'T2'!AB23+'T3'!AB23 -> -0.1 | AC56: =CA!AC56+'T1'!AC23+'T2'!AC23+'T3'!AC23 -> -0.1 | AD56: =CA!AD56+'T1'!AD23+'T2'!AD23+'T3'!AD23 -> -0.1 | AE56: =CA!AE56+'T1'!AE23+'T2'!AE23+'T3'!AE23 -> -0.1
B57: =CA!B57+'T1'!B24+'T2'!B24+'T3'!B24 -> -0.1 | C57: =CA!C57+'T1'!C24+'T2'!C24+'T3'!C24 -> -0.1 | D57: =CA!D57+'T1'!D24+'T2'!D24+'T3'!D24 -> -0.1 | E57: =CA!E57+'T1'!E24+'T2'!E24+'T3'!E24 -> -0.1 | F57: =CA!F57+'T1'!F24+'T2'!F24+'T3'!F24 -> -0.1 | G57: =CA!G57+'T1'!G24+'T2'!G24+'T3'!G24 -> -0.1 | H57: =CA!H57+'T1'!H24+'T2'!H24+'T3'!H24 -> -0.1 | I57: =CA!I57+'T1'!I24+'T2'!I24+'T3'!I24 -> -0.1 | J57: =CA!J57+'T1'!J24+'T2'!J24+'T3'!J24 -> -0.1 | K57: =CA!K57+'T1'!K24+'T2'!K24+'T3'!K24 -> -0.1 | L57: =CA!L57+'T1'!L24+'T2'!L24+'T3'!L24 -> -0.1 | M57: =CA!M57+'T1'!M24+'T2'!M24+'T3'!M24 -> -0.1 | N57: =CA!N57+'T1'!N24+'T2'!N24+'T3'!N24 -> -0.1 | O57: =CA!O57+'T1'!O24+'T2'!O24+'T3'!O24 -> -0.1 | P57: =CA!P57+'T1'!P24+'T2'!P24+'T3'!P24 -> -0.1 | Q57: =CA!Q57+'T1'!Q24+'T2'!Q24+'T3'!Q24 -> -0.1 | R57: =CA!R57+'T1'!R24+'T2'!R24+'T3'!R24 -> -0.1 | S57: =CA!S57+'T1'!S24+'T2'!S24+'T3'!S24 -> -0.1 | T57: =CA!T57+'T1'!T24+'T2'!T24+'T3'!T24 -> -0.1 | U57: =CA!U57+'T1'!U24+'T2'!U24+'T3'!U24 -> -0.1 | V57: =CA!V57+'T1'!V24+'T2'!V24+'T3'!V24 -> -0.1 | W57: =CA!W57+'T1'!W24+'T2'!W24+'T3'!W24 -> -0.1 | X57: =CA!X57+'T1'!X24+'T2'!X24+'T3'!X24 -> -0.1 | Y57: =CA!Y57+'T1'!Y24+'T2'!Y24+'T3'!Y24 -> -0.1 | Z57: =CA!Z57+'T1'!Z24+'T2'!Z24+'T3'!Z24 -> -0.1 | AA57: =CA!AA57+'T1'!AA24+'T2'!AA24+'T3'!AA24 -> -0.1 | AB57: =CA!AB57+'T1'!AB24+'T2'!AB24+'T3'!AB24 -> -0.1 | AC57: =CA!AC57+'T1'!AC24+'T2'!AC24+'T3'!AC24 -> -0.1 | AD57: =CA!AD57+'T1'!AD24+'T2'!AD24+'T3'!AD24 -> -0.1 | AE57: =CA!AE57+'T1'!AE24+'T2'!AE24+'T3'!AE24 -> -0.1
B58: =CA!B58+'T1'!B25+'T2'!B25+'T3'!B25 -> -0.09805737737 | C58: =CA!C58+'T1'!C25+'T2'!C25+'T3'!C25 -> -0.09805737737 | D58: =CA!D58+'T1'!D25+'T2'!D25+'T3'!D25 -> -0.09805737737 | E58: =CA!E58+'T1'!E25+'T2'!E25+'T3'!E25 -> -0.09805737737 | F58: =CA!F58+'T1'!F25+'T2'!F25+'T3'!F25 -> -0.09805737737 | G58: =CA!G58+'T1'!G25+'T2'!G25+'T3'!G25 -> -0.09805737737 | H58: =CA!H58+'T1'!H25+'T2'!H25+'T3'!H25 -> -0.09805737737 | I58: =CA!I58+'T1'!I25+'T2'!I25+'T3'!I25 -> -0.09805737737 | J58: =CA!J58+'T1'!J25+'T2'!J25+'T3'!J25 -> -0.09805737737 | K58: =CA!K58+'T1'!K25+'T2'!K25+'T3'!K25 -> -0.09805737737 | L58: =CA!L58+'T1'!L25+'T2'!L25+'T3'!L25 -> -0.09805737737 | M58: =CA!M58+'T1'!M25+'T2'!M25+'T3'!M25 -> -0.09805737737 | N58: =CA!N58+'T1'!N25+'T2'!N25+'T3'!N25 -> -0.09805737737 | O58: =CA!O58+'T1'!O25+'T2'!O25+'T3'!O25 -> -0.09805737737 | P58: =CA!P58+'T1'!P25+'T2'!P25+'T3'!P25 -> -0.09805737737 | Q58: =CA!Q58+'T1'!Q25+'T2'!Q25+'T3'!Q25 -> -0.09805737737 | R58: =CA!R58+'T1'!R25+'T2'!R25+'T3'!R25 -> -0.09805737737 | S58: =CA!S58+'T1'!S25+'T2'!S25+'T3'!S25 -> -0.09805737737 | T58: =CA!T58+'T1'!T25+'T2'!T25+'T3'!T25 -> -0.09805737737 | U58: =CA!U58+'T1'!U25+'T2'!U25+'T3'!U25 -> -0.09805737737 | V58: =CA!V58+'T1'!V25+'T2'!V25+'T3'!V25 -> -0.09805737737 | W58: =CA!W58+'T1'!W25+'T2'!W25+'T3'!W25 -> -0.09805737737 | X58: =CA!X58+'T1'!X25+'T2'!X25+'T3'!X25 -> -0.09805737737 | Y58: =CA!Y58+'T1'!Y25+'T2'!Y25+'T3'!Y25 -> -0.09805737737 | Z58: =CA!Z58+'T1'!Z25+'T2'!Z25+'T3'!Z25 -> -0.09805737737 | AA58: =CA!AA58+'T1'!AA25+'T2'!AA25+'T3'!AA25 -> -0.09805737737 | AB58: =CA!AB58+'T1'!AB25+'T2'!AB25+'T3'!AB25 -> -0.09805737737 | AC58: =CA!AC58+'T1'!AC25+'T2'!AC25+'T3'!AC25 -> -0.09805737737 | AD58: =CA!AD58+'T1'!AD25+'T2'!AD25+'T3'!AD25 -> -0.09805737737 | AE58: =CA!AE58+'T1'!AE25+'T2'!AE25+'T3'!AE25 -> -0.09805737737
B59: =CA!B59+'T1'!B26+'T2'!B26+'T3'!B26 -> -0.09805737737 | C59: =CA!C59+'T1'!C26+'T2'!C26+'T3'!C26 -> -0.09805737737 | D59: =CA!D59+'T1'!D26+'T2'!D26+'T3'!D26 -> -0.09805737737 | E59: =CA!E59+'T1'!E26+'T2'!E26+'T3'!E26 -> -0.09805737737 | F59: =CA!F59+'T1'!F26+'T2'!F26+'T3'!F26 -> -0.09805737737 | G59: =CA!G59+'T1'!G26+'T2'!G26+'T3'!G26 -> -0.09805737737 | H59: =CA!H59+'T1'!H26+'T2'!H26+'T3'!H26 -> -0.09805737737 | I59: =CA!I59+'T1'!I26+'T2'!I26+'T3'!I26 -> -0.09805737737 | J59: =CA!J59+'T1'!J26+'T2'!J26+'T3'!J26 -> -0.09805737737 | K59: =CA!K59+'T1'!K26+'T2'!K26+'T3'!K26 -> -0.09805737737 | L59: =CA!L59+'T1'!L26+'T2'!L26+'T3'!L26 -> -0.09805737737 | M59: =CA!M59+'T1'!M26+'T2'!M26+'T3'!M26 -> -0.09805737737 | N59: =CA!N59+'T1'!N26+'T2'!N26+'T3'!N26 -> -0.09805737737 | O59: =CA!O59+'T1'!O26+'T2'!O26+'T3'!O26 -> -0.09805737737 | P59: =CA!P59+'T1'!P26+'T2'!P26+'T3'!P26 -> -0.09805737737 | Q59: =CA!Q59+'T1'!Q26+'T2'!Q26+'T3'!Q26 -> -0.09805737737 | R59: =CA!R59+'T1'!R26+'T2'!R26+'T3'!R26 -> -0.09805737737 | S59: =CA!S59+'T1'!S26+'T2'!S26+'T3'!S26 -> -0.09805737737 | T59: =CA!T59+'T1'!T26+'T2'!T26+'T3'!T26 -> -0.09805737737 | U59: =CA!U59+'T1'!U26+'T2'!U26+'T3'!U26 -> -0.09805737737 | V59: =CA!V59+'T1'!V26+'T2'!V26+'T3'!V26 -> -0.09805737737 | W59: =CA!W59+'T1'!W26+'T2'!W26+'T3'!W26 -> -0.09805737737 | X59: =CA!X59+'T1'!X26+'T2'!X26+'T3'!X26 -> -0.09805737737 | Y59: =CA!Y59+'T1'!Y26+'T2'!Y26+'T3'!Y26 -> -0.09805737737 | Z59: =CA!Z59+'T1'!Z26+'T2'!Z26+'T3'!Z26 -> -0.09805737737 | AA59: =CA!AA59+'T1'!AA26+'T2'!AA26+'T3'!AA26 -> -0.09805737737 | AB59: =CA!AB59+'T1'!AB26+'T2'!AB26+'T3'!AB26 -> -0.09805737737 | AC59: =CA!AC59+'T1'!AC26+'T2'!AC26+'T3'!AC26 -> -0.09805737737 | AD59: =CA!AD59+'T1'!AD26+'T2'!AD26+'T3'!AD26 -> -0.09805737737 | AE59: =CA!AE59+'T1'!AE26+'T2'!AE26+'T3'!AE26 -> -0.09805737737
B60: =CA!B60+'T1'!B27+'T2'!B27+'T3'!B27 -> -0.09805737737 | C60: =CA!C60+'T1'!C27+'T2'!C27+'T3'!C27 -> -0.09805737737 | D60: =CA!D60+'T1'!D27+'T2'!D27+'T3'!D27 -> -0.09805737737 | E60: =CA!E60+'T1'!E27+'T2'!E27+'T3'!E27 -> -0.09805737737 | F60: =CA!F60+'T1'!F27+'T2'!F27+'T3'!F27 -> -0.09805737737 | G60: =CA!G60+'T1'!G27+'T2'!G27+'T3'!G27 -> -0.09805737737 | H60: =CA!H60+'T1'!H27+'T2'!H27+'T3'!H27 -> -0.09805737737 | I60: =CA!I60+'T1'!I27+'T2'!I27+'T3'!I27 -> -0.09805737737 | J60: =CA!J60+'T1'!J27+'T2'!J27+'T3'!J27 -> -0.09805737737 | K60: =CA!K60+'T1'!K27+'T2'!K27+'T3'!K27 -> -0.09805737737 | L60: =CA!L60+'T1'!L27+'T2'!L27+'T3'!L27 -> -0.09805737737 | M60: =CA!M60+'T1'!M27+'T2'!M27+'T3'!M27 -> -0.09805737737 | N60: =CA!N60+'T1'!N27+'T2'!N27+'T3'!N27 -> -0.09805737737 | O60: =CA!O60+'T1'!O27+'T2'!O27+'T3'!O27 -> -0.09805737737 | P60: =CA!P60+'T1'!P27+'T2'!P27+'T3'!P27 -> -0.09805737737 | Q60: =CA!Q60+'T1'!Q27+'T2'!Q27+'T3'!Q27 -> -0.09805737737 | R60: =CA!R60+'T1'!R27+'T2'!R27+'T3'!R27 -> -0.09805737737 | S60: =CA!S60+'T1'!S27+'T2'!S27+'T3'!S27 -> -0.09805737737 | T60: =CA!T60+'T1'!T27+'T2'!T27+'T3'!T27 -> -0.09805737737 | U60: =CA!U60+'T1'!U27+'T2'!U27+'T3'!U27 -> -0.09805737737 | V60: =CA!V60+'T1'!V27+'T2'!V27+'T3'!V27 -> -0.09805737737 | W60: =CA!W60+'T1'!W27+'T2'!W27+'T3'!W27 -> -0.09805737737 | X60: =CA!X60+'T1'!X27+'T2'!X27+'T3'!X27 -> -0.09805737737 | Y60: =CA!Y60+'T1'!Y27+'T2'!Y27+'T3'!Y27 -> -0.09805737737 | Z60: =CA!Z60+'T1'!Z27+'T2'!Z27+'T3'!Z27 -> -0.09805737737 | AA60: =CA!AA60+'T1'!AA27+'T2'!AA27+'T3'!AA27 -> -0.09805737737 | AB60: =CA!AB60+'T1'!AB27+'T2'!AB27+'T3'!AB27 -> -0.09805737737 | AC60: =CA!AC60+'T1'!AC27+'T2'!AC27+'T3'!AC27 -> -0.09805737737 | AD60: =CA!AD60+'T1'!AD27+'T2'!AD27+'T3'!AD27 -> -0.09805737737 | AE60: =CA!AE60+'T1'!AE27+'T2'!AE27+'T3'!AE27 -> -0.09805737737
B61: =CA!B61+'T1'!B28+'T2'!B28+'T3'!B28 -> -0.09805737737 | C61: =CA!C61+'T1'!C28+'T2'!C28+'T3'!C28 -> -0.09805737737 | D61: =CA!D61+'T1'!D28+'T2'!D28+'T3'!D28 -> -0.09805737737 | E61: =CA!E61+'T1'!E28+'T2'!E28+'T3'!E28 -> -0.09805737737 | F61: =CA!F61+'T1'!F28+'T2'!F28+'T3'!F28 -> -0.09805737737 | G61: =CA!G61+'T1'!G28+'T2'!G28+'T3'!G28 -> -0.09805737737 | H61: =CA!H61+'T1'!H28+'T2'!H28+'T3'!H28 -> -0.09805737737 | I61: =CA!I61+'T1'!I28+'T2'!I28+'T3'!I28 -> -0.09805737737 | J61: =CA!J61+'T1'!J28+'T2'!J28+'T3'!J28 -> -0.09805737737 | K61: =CA!K61+'T1'!K28+'T2'!K28+'T3'!K28 -> -0.09805737737 | L61: =CA!L61+'T1'!L28+'T2'!L28+'T3'!L28 -> -0.09805737737 | M61: =CA!M61+'T1'!M28+'T2'!M28+'T3'!M28 -> -0.09805737737 | N61: =CA!N61+'T1'!N28+'T2'!N28+'T3'!N28 -> -0.09805737737 | O61: =CA!O61+'T1'!O28+'T2'!O28+'T3'!O28 -> -0.09805737737 | P61: =CA!P61+'T1'!P28+'T2'!P28+'T3'!P28 -> -0.09805737737 | Q61: =CA!Q61+'T1'!Q28+'T2'!Q28+'T3'!Q28 -> -0.09805737737 | R61: =CA!R61+'T1'!R28+'T2'!R28+'T3'!R28 -> -0.09805737737 | S61: =CA!S61+'T1'!S28+'T2'!S28+'T3'!S28 -> -0.09805737737 | T61: =CA!T61+'T1'!T28+'T2'!T28+'T3'!T28 -> -0.09805737737 | U61: =CA!U61+'T1'!U28+'T2'!U28+'T3'!U28 -> -0.09805737737 | V61: =CA!V61+'T1'!V28+'T2'!V28+'T3'!V28 -> -0.09805737737 | W61: =CA!W61+'T1'!W28+'T2'!W28+'T3'!W28 -> -0.09805737737 | X61: =CA!X61+'T1'!X28+'T2'!X28+'T3'!X28 -> -0.09805737737 | Y61: =CA!Y61+'T1'!Y28+'T2'!Y28+'T3'!Y28 -> -0.09805737737 | Z61: =CA!Z61+'T1'!Z28+'T2'!Z28+'T3'!Z28 -> -0.09805737737 | AA61: =CA!AA61+'T1'!AA28+'T2'!AA28+'T3'!AA28 -> -0.09805737737 | AB61: =CA!AB61+'T1'!AB28+'T2'!AB28+'T3'!AB28 -> -0.09805737737 | AC61: =CA!AC61+'T1'!AC28+'T2'!AC28+'T3'!AC28 -> -0.09805737737 | AD61: =CA!AD61+'T1'!AD28+'T2'!AD28+'T3'!AD28 -> -0.09805737737 | AE61: =CA!AE61+'T1'!AE28+'T2'!AE28+'T3'!AE28 -> -0.09805737737
B62: =CA!B62+'T1'!B29+'T2'!B29+'T3'!B29 -> -0.09805737737 | C62: =CA!C62+'T1'!C29+'T2'!C29+'T3'!C29 -> -0.09805737737 | D62: =CA!D62+'T1'!D29+'T2'!D29+'T3'!D29 -> -0.09805737737 | E62: =CA!E62+'T1'!E29+'T2'!E29+'T3'!E29 -> -0.09805737737 | F62: =CA!F62+'T1'!F29+'T2'!F29+'T3'!F29 -> -0.09805737737 | G62: =CA!G62+'T1'!G29+'T2'!G29+'T3'!G29 -> -0.09805737737 | H62: =CA!H62+'T1'!H29+'T2'!H29+'T3'!H29 -> -0.09805737737 | I62: =CA!I62+'T1'!I29+'T2'!I29+'T3'!I29 -> -0.09805737737 | J62: =CA!J62+'T1'!J29+'T2'!J29+'T3'!J29 -> -0.09805737737 | K62: =CA!K62+'T1'!K29+'T2'!K29+'T3'!K29 -> -0.09805737737 | L62: =CA!L62+'T1'!L29+'T2'!L29+'T3'!L29 -> -0.09805737737 | M62: =CA!M62+'T1'!M29+'T2'!M29+'T3'!M29 -> -0.09805737737 | N62: =CA!N62+'T1'!N29+'T2'!N29+'T3'!N29 -> -0.09805737737 | O62: =CA!O62+'T1'!O29+'T2'!O29+'T3'!O29 -> -0.09805737737 | P62: =CA!P62+'T1'!P29+'T2'!P29+'T3'!P29 -> -0.09805737737 | Q62: =CA!Q62+'T1'!Q29+'T2'!Q29+'T3'!Q29 -> -0.09805737737 | R62: =CA!R62+'T1'!R29+'T2'!R29+'T3'!R29 -> -0.09805737737 | S62: =CA!S62+'T1'!S29+'T2'!S29+'T3'!S29 -> -0.09805737737 | T62: =CA!T62+'T1'!T29+'T2'!T29+'T3'!T29 -> -0.09805737737 | U62: =CA!U62+'T1'!U29+'T2'!U29+'T3'!U29 -> -0.09805737737 | V62: =CA!V62+'T1'!V29+'T2'!V29+'T3'!V29 -> -0.09805737737 | W62: =CA!W62+'T1'!W29+'T2'!W29+'T3'!W29 -> -0.09805737737 | X62: =CA!X62+'T1'!X29+'T2'!X29+'T3'!X29 -> -0.09805737737 | Y62: =CA!Y62+'T1'!Y29+'T2'!Y29+'T3'!Y29 -> -0.09805737737 | Z62: =CA!Z62+'T1'!Z29+'T2'!Z29+'T3'!Z29 -> -0.09805737737 | AA62: =CA!AA62+'T1'!AA29+'T2'!AA29+'T3'!AA29 -> -0.09805737737 | AB62: =CA!AB62+'T1'!AB29+'T2'!AB29+'T3'!AB29 -> -0.09805737737 | AC62: =CA!AC62+'T1'!AC29+'T2'!AC29+'T3'!AC29 -> -0.09805737737 | AD62: =CA!AD62+'T1'!AD29+'T2'!AD29+'T3'!AD29 -> -0.09805737737 | AE62: =CA!AE62+'T1'!AE29+'T2'!AE29+'T3'!AE29 -> -0.09805737737
B63: =CA!B63+'T1'!B30+'T2'!B30+'T3'!B30 -> -0.09805737737 | C63: =CA!C63+'T1'!C30+'T2'!C30+'T3'!C30 -> -0.09805737737 | D63: =CA!D63+'T1'!D30+'T2'!D30+'T3'!D30 -> -0.09805737737 | E63: =CA!E63+'T1'!E30+'T2'!E30+'T3'!E30 -> -0.09805737737 | F63: =CA!F63+'T1'!F30+'T2'!F30+'T3'!F30 -> -0.09805737737 | G63: =CA!G63+'T1'!G30+'T2'!G30+'T3'!G30 -> -0.09805737737 | H63: =CA!H63+'T1'!H30+'T2'!H30+'T3'!H30 -> -0.09805737737 | I63: =CA!I63+'T1'!I30+'T2'!I30+'T3'!I30 -> -0.09805737737 | J63: =CA!J63+'T1'!J30+'T2'!J30+'T3'!J30 -> -0.09805737737 | K63: =CA!K63+'T1'!K30+'T2'!K30+'T3'!K30 -> -0.09805737737 | L63: =CA!L63+'T1'!L30+'T2'!L30+'T3'!L30 -> -0.09805737737 | M63: =CA!M63+'T1'!M30+'T2'!M30+'T3'!M30 -> -0.09805737737 | N63: =CA!N63+'T1'!N30+'T2'!N30+'T3'!N30 -> -0.09805737737 | O63: =CA!O63+'T1'!O30+'T2'!O30+'T3'!O30 -> -0.09805737737 | P63: =CA!P63+'T1'!P30+'T2'!P30+'T3'!P30 -> -0.09805737737 | Q63: =CA!Q63+'T1'!Q30+'T2'!Q30+'T3'!Q30 -> -0.09805737737 | R63: =CA!R63+'T1'!R30+'T2'!R30+'T3'!R30 -> -0.09805737737 | S63: =CA!S63+'T1'!S30+'T2'!S30+'T3'!S30 -> -0.09805737737 | T63: =CA!T63+'T1'!T30+'T2'!T30+'T3'!T30 -> -0.09805737737 | U63: =CA!U63+'T1'!U30+'T2'!U30+'T3'!U30 -> -0.09805737737 | V63: =CA!V63+'T1'!V30+'T2'!V30+'T3'!V30 -> -0.09805737737 | W63: =CA!W63+'T1'!W30+'T2'!W30+'T3'!W30 -> -0.09805737737 | X63: =CA!X63+'T1'!X30+'T2'!X30+'T3'!X30 -> -0.09805737737 | Y63: =CA!Y63+'T1'!Y30+'T2'!Y30+'T3'!Y30 -> -0.09805737737 | Z63: =CA!Z63+'T1'!Z30+'T2'!Z30+'T3'!Z30 -> -0.09805737737 | AA63: =CA!AA63+'T1'!AA30+'T2'!AA30+'T3'!AA30 -> -0.09805737737 | AB63: =CA!AB63+'T1'!AB30+'T2'!AB30+'T3'!AB30 -> -0.09805737737 | AC63: =CA!AC63+'T1'!AC30+'T2'!AC30+'T3'!AC30 -> -0.09805737737 | AD63: =CA!AD63+'T1'!AD30+'T2'!AD30+'T3'!AD30 -> -0.09805737737 | AE63: =CA!AE63+'T1'!AE30+'T2'!AE30+'T3'!AE30 -> -0.09805737737
B64: =CA!B64+'T1'!B31+'T2'!B31+'T3'!B31 -> -0.09805737737 | C64: =CA!C64+'T1'!C31+'T2'!C31+'T3'!C31 -> -0.09805737737 | D64: =CA!D64+'T1'!D31+'T2'!D31+'T3'!D31 -> -0.09805737737 | E64: =CA!E64+'T1'!E31+'T2'!E31+'T3'!E31 -> -0.09805737737 | F64: =CA!F64+'T1'!F31+'T2'!F31+'T3'!F31 -> -0.09805737737 | G64: =CA!G64+'T1'!G31+'T2'!G31+'T3'!G31 -> -0.09805737737 | H64: =CA!H64+'T1'!H31+'T2'!H31+'T3'!H31 -> -0.09805737737 | I64: =CA!I64+'T1'!I31+'T2'!I31+'T3'!I31 -> -0.09805737737 | J64: =CA!J64+'T1'!J31+'T2'!J31+'T3'!J31 -> -0.09805737737 | K64: =CA!K64+'T1'!K31+'T2'!K31+'T3'!K31 -> -0.09805737737 | L64: =CA!L64+'T1'!L31+'T2'!L31+'T3'!L31 -> -0.09805737737 | M64: =CA!M64+'T1'!M31+'T2'!M31+'T3'!M31 -> -0.09805737737 | N64: =CA!N64+'T1'!N31+'T2'!N31+'T3'!N31 -> -0.09805737737 | O64: =CA!O64+'T1'!O31+'T2'!O31+'T3'!O31 -> -0.09805737737 | P64: =CA!P64+'T1'!P31+'T2'!P31+'T3'!P31 -> -0.09805737737 | Q64: =CA!Q64+'T1'!Q31+'T2'!Q31+'T3'!Q31 -> -0.09805737737 | R64: =CA!R64+'T1'!R31+'T2'!R31+'T3'!R31 -> -0.09805737737 | S64: =CA!S64+'T1'!S31+'T2'!S31+'T3'!S31 -> -0.09805737737 | T64: =CA!T64+'T1'!T31+'T2'!T31+'T3'!T31 -> -0.09805737737 | U64: =CA!U64+'T1'!U31+'T2'!U31+'T3'!U31 -> -0.09805737737 | V64: =CA!V64+'T1'!V31+'T2'!V31+'T3'!V31 -> -0.09805737737 | W64: =CA!W64+'T1'!W31+'T2'!W31+'T3'!W31 -> -0.09805737737 | X64: =CA!X64+'T1'!X31+'T2'!X31+'T3'!X31 -> -0.09805737737 | Y64: =CA!Y64+'T1'!Y31+'T2'!Y31+'T3'!Y31 -> -0.09805737737 | Z64: =CA!Z64+'T1'!Z31+'T2'!Z31+'T3'!Z31 -> -0.09805737737 | AA64: =CA!AA64+'T1'!AA31+'T2'!AA31+'T3'!AA31 -> -0.09805737737 | AB64: =CA!AB64+'T1'!AB31+'T2'!AB31+'T3'!AB31 -> -0.09805737737 | AC64: =CA!AC64+'T1'!AC31+'T2'!AC31+'T3'!AC31 -> -0.09805737737 | AD64: =CA!AD64+'T1'!AD31+'T2'!AD31+'T3'!AD31 -> -0.09805737737 | AE64: =CA!AE64+'T1'!AE31+'T2'!AE31+'T3'!AE31 -> -0.09805737737

Sheet S (hidden)
B2: =(CA!A2+CA!C2+CA!B1+CA!B3)*Parameter!$D$11+Shape_edge!A2+Fractuation!A2*Parameter!$D$12+IF(Tilt!B2<0,COS((Tilt!B2-90)*2*PI()/360),0) -> 0 | C2: =(CA!B2+CA!D2+CA!C1+CA!C3)*Parameter!$D$11+Shape_edge!B2+Fractuation!B2*Parameter!$D$12+IF(Tilt!C2<0,COS((Tilt!C2-90)*2*PI()/360),0) -> 0 | D2: =(CA!C2+CA!E2+CA!D1+CA!D3)*Parameter!$D$11+Shape_edge!C2+Fractuation!C2*Parameter!$D$12+IF(Tilt!D2<0,COS((Tilt!D2-90)*2*PI()/360),0) -> 0 | E2: =(CA!D2+CA!F2+CA!E1+CA!E3)*Parameter!$D$11+Shape_edge!D2+Fractuation!D2*Parameter!$D$12+IF(Tilt!E2<0,COS((Tilt!E2-90)*2*PI()/360),0) -> 0 | F2: =(CA!E2+CA!G2+CA!F1+CA!F3)*Parameter!$D$11+Shape_edge!E2+Fractuation!E2*Parameter!$D$12+IF(Tilt!F2<0,COS((Tilt!F2-90)*2*PI()/360),0) -> 0 | G2: =(CA!F2+CA!H2+CA!G1+CA!G3)*Parameter!$D$11+Shape_edge!F2+Fractuation!F2*Parameter!$D$12+IF(Tilt!G2<0,COS((Tilt!G2-90)*2*PI()/360),0) -> 0 | H2: =(CA!G2+CA!I2+CA!H1+CA!H3)*Parameter!$D$11+Shape_edge!G2+Fractuation!G2*Parameter!$D$12+IF(Tilt!H2<0,COS((Tilt!H2-90)*2*PI()/360),0) -> 0 | I2: =(CA!H2+CA!J2+CA!I1+CA!I3)*Parameter!$D$11+Shape_edge!H2+Fractuation!H2*Parameter!$D$12+IF(Tilt!I2<0,COS((Tilt!I2-90)*2*PI()/360),0) -> 0 | J2: =(CA!I2+CA!K2+CA!J1+CA!J3)*Parameter!$D$11+Shape_edge!I2+Fractuation!I2*Parameter!$D$12+IF(Tilt!J2<0,COS((Tilt!J2-90)*2*PI()/360),0) -> 0 | K2: =(CA!J2+CA!L2+CA!K1+CA!K3)*Parameter!$D$11+Shape_edge!J2+Fractuation!J2*Parameter!$D$12+IF(Tilt!K2<0,COS((Tilt!K2-90)*2*PI()/360),0) -> 0 | L2: =(CA!K2+CA!M2+CA!L1+CA!L3)*Parameter!$D$11+Shape_edge!K2+Fractuation!K2*Parameter!$D$12+IF(Tilt!L2<0,COS((Tilt!L2-90)*2*PI()/360),0) -> 0 | M2: =(CA!L2+CA!N2+CA!M1+CA!M3)*Parameter!$D$11+Shape_edge!L2+Fractuation!L2*Parameter!$D$12+IF(Tilt!M2<0,COS((Tilt!M2-90)*2*PI()/360),0) -> 0 | N2: =(CA!M2+CA!O2+CA!N1+CA!N3)*Parameter!$D$11+Shape_edge!M2+Fractuation!M2*Parameter!$D$12+IF(Tilt!N2<0,COS((Tilt!N2-90)*2*PI()/360),0) -> 0 | O2: =(CA!N2+CA!P2+CA!O1+CA!O3)*Parameter!$D$11+Shape_edge!N2+Fractuation!N2*Parameter!$D$12+IF(Tilt!O2<0,COS((Tilt!O2-90)*2*PI()/360),0) -> 0 | P2: =(CA!O2+CA!Q2+CA!P1+CA!P3)*Parameter!$D$11+Shape_edge!O2+Fractuation!O2*Parameter!$D$12+IF(Tilt!P2<0,COS((Tilt!P2-90)*2*PI()/360),0) -> 0 | Q2: =(CA!P2+CA!R2+CA!Q1+CA!Q3)*Parameter!$D$11+Shape_edge!P2+Fractuation!P2*Parameter!$D$12+IF(Tilt!Q2<0,COS((Tilt!Q2-90)*2*PI()/360),0) -> 0 | R2: =(CA!Q2+CA!S2+CA!R1+CA!R3)*Parameter!$D$11+Shape_edge!Q2+Fractuation!Q2*Parameter!$D$12+IF(Tilt!R2<0,COS((Tilt!R2-90)*2*PI()/360),0) -> 0 | S2: =(CA!R2+CA!T2+CA!S1+CA!S3)*Parameter!$D$11+Shape_edge!R2+Fractuation!R2*Parameter!$D$12+IF(Tilt!S2<0,COS((Tilt!S2-90)*2*PI()/360),0) -> 0 | T2: =(CA!S2+CA!U2+CA!T1+CA!T3)*Parameter!$D$11+Shape_edge!S2+Fractuation!S2*Parameter!$D$12+IF(Tilt!T2<0,COS((Tilt!T2-90)*2*PI()/360),0) -> 0 | U2: =(CA!T2+CA!V2+CA!U1+CA!U3)*Parameter!$D$11+Shape_edge!T2+Fractuation!T2*Parameter!$D$12+IF(Tilt!U2<0,COS((Tilt!U2-90)*2*PI()/360),0) -> 0 | V2: =(CA!U2+CA!W2+CA!V1+CA!V3)*Parameter!$D$11+Shape_edge!U2+Fractuation!U2*Parameter!$D$12+IF(Tilt!V2<0,COS((Tilt!V2-90)*2*PI()/360),0) -> 0 | W2: =(CA!V2+CA!X2+CA!W1+CA!W3)*Parameter!$D$11+Shape_edge!V2+Fractuation!V2*Parameter!$D$12+IF(Tilt!W2<0,COS((Tilt!W2-90)*2*PI()/360),0) -> 0 | X2: =(CA!W2+CA!Y2+CA!X1+CA!X3)*Parameter!$D$11+Shape_edge!W2+Fractuation!W2*Parameter!$D$12+IF(Tilt!X2<0,COS((Tilt!X2-90)*2*PI()/360),0) -> 0 | Y2: =(CA!X2+CA!Z2+CA!Y1+CA!Y3)*Parameter!$D$11+Shape_edge!X2+Fractuation!X2*Parameter!$D$12+IF(Tilt!Y2<0,COS((Tilt!Y2-90)*2*PI()/360),0) -> 0 | Z2: =(CA!Y2+CA!AA2+CA!Z1+CA!Z3)*Parameter!$D$11+Shape_edge!Y2+Fractuation!Y2*Parameter!$D$12+IF(Tilt!Z2<0,COS((Tilt!Z2-90)*2*PI()/360),0) -> 0 | AA2: =(CA!Z2+CA!AB2+CA!AA1+CA!AA3)*Parameter!$D$11+Shape_edge!Z2+Fractuation!Z2*Parameter!$D$12+IF(Tilt!AA2<0,COS((Tilt!AA2-90)*2*PI()/360),0) -> 0 | AB2: =(CA!AA2+CA!AC2+CA!AB1+CA!AB3)*Parameter!$D$11+Shape_edge!AA2+Fractuation!AA2*Parameter!$D$12+IF(Tilt!AB2<0,COS((Tilt!AB2-90)*2*PI()/360),0) -> 0 | AC2: =(CA!AB2+CA!AD2+CA!AC1+CA!AC3)*Parameter!$D$11+Shape_edge!AB2+Fractuation!AB2*Parameter!$D$12+IF(Tilt!AC2<0,COS((Tilt!AC2-90)*2*PI()/360),0) -> 0 | AD2: =(CA!AC2+CA!AE2+CA!AD1+CA!AD3)*Parameter!$D$11+Shape_edge!AC2+Fractuation!AC2*Parameter!$D$12+IF(Tilt!AD2<0,COS((Tilt!AD2-90)*2*PI()/360),0) -> 0 | AE2: =(CA!AD2+CA!AF2+CA!AE1+CA!AE3)*Parameter!$D$11+Shape_edge!AD2+Fractuation!AD2*Parameter!$D$12+IF(Tilt!AE2<0,COS((Tilt!AE2-90)*2*PI()/360),0) -> 0
B3: =(CA!A3+CA!C3+CA!B2+CA!B4)*Parameter!$D$11+Shape_edge!A3+Fractuation!A3*Parameter!$D$12+IF(Tilt!B3<0,COS((Tilt!B3-90)*2*PI()/360),0) -> 0 | C3: =(CA!B3+CA!D3+CA!C2+CA!C4)*Parameter!$D$11+Shape_edge!B3+Fractuation!B3*Parameter!$D$12+IF(Tilt!C3<0,COS((Tilt!C3-90)*2*PI()/360),0) -> 0 | D3: =(CA!C3+CA!E3+CA!D2+CA!D4)*Parameter!$D$11+Shape_edge!C3+Fractuation!C3*Parameter!$D$12+IF(Tilt!D3<0,COS((Tilt!D3-90)*2*PI()/360),0) -> 0 | E3: =(CA!D3+CA!F3+CA!E2+CA!E4)*Parameter!$D$11+Shape_edge!D3+Fractuation!D3*Parameter!$D$12+IF(Tilt!E3<0,COS((Tilt!E3-90)*2*PI()/360),0) -> 0 | F3: =(CA!E3+CA!G3+CA!F2+CA!F4)*Parameter!$D$11+Shape_edge!E3+Fractuation!E3*Parameter!$D$12+IF(Tilt!F3<0,COS((Tilt!F3-90)*2*PI()/360),0) -> 0 | G3: =(CA!F3+CA!H3+CA!G2+CA!G4)*Parameter!$D$11+Shape_edge!F3+Fractuation!F3*Parameter!$D$12+IF(Tilt!G3<0,COS((Tilt!G3-90)*2*PI()/360),0) -> 0 | H3: =(CA!G3+CA!I3+CA!H2+CA!H4)*Parameter!$D$11+Shape_edge!G3+Fractuation!G3*Parameter!$D$12+IF(Tilt!H3<0,COS((Tilt!H3-90)*2*PI()/360),0) -> 0 | I3: =(CA!H3+CA!J3+CA!I2+CA!I4)*Parameter!$D$11+Shape_edge!H3+Fractuation!H3*Parameter!$D$12+IF(Tilt!I3<0,COS((Tilt!I3-90)*2*PI()/360),0) -> 0 | J3: =(CA!I3+CA!K3+CA!J2+CA!J4)*Parameter!$D$11+Shape_edge!I3+Fractuation!I3*Parameter!$D$12+IF(Tilt!J3<0,COS((Tilt!J3-90)*2*PI()/360),0) -> 0 | K3: =(CA!J3+CA!L3+CA!K2+CA!K4)*Parameter!$D$11+Shape_edge!J3+Fractuation!J3*Parameter!$D$12+IF(Tilt!K3<0,COS((Tilt!K3-90)*2*PI()/360),0) -> 0 | L3: =(CA!K3+CA!M3+CA!L2+CA!L4)*Parameter!$D$11+Shape_edge!K3+Fractuation!K3*Parameter!$D$12+IF(Tilt!L3<0,COS((Tilt!L3-90)*2*PI()/360),0) -> 0 | M3: =(CA!L3+CA!N3+CA!M2+CA!M4)*Parameter!$D$11+Shape_edge!L3+Fractuation!L3*Parameter!$D$12+IF(Tilt!M3<0,COS((Tilt!M3-90)*2*PI()/360),0) -> 0 | N3: =(CA!M3+CA!O3+CA!N2+CA!N4)*Parameter!$D$11+Shape_edge!M3+Fractuation!M3*Parameter!$D$12+IF(Tilt!N3<0,COS((Tilt!N3-90)*2*PI()/360),0) -> 0 | O3: =(CA!N3+CA!P3+CA!O2+CA!O4)*Parameter!$D$11+Shape_edge!N3+Fractuation!N3*Parameter!$D$12+IF(Tilt!O3<0,COS((Tilt!O3-90)*2*PI()/360),0) -> 0 | P3: =(CA!O3+CA!Q3+CA!P2+CA!P4)*Parameter!$D$11+Shape_edge!O3+Fractuation!O3*Parameter!$D$12+IF(Tilt!P3<0,COS((Tilt!P3-90)*2*PI()/360),0) -> 0 | Q3: =(CA!P3+CA!R3+CA!Q2+CA!Q4)*Parameter!$D$11+Shape_edge!P3+Fractuation!P3*Parameter!$D$12+IF(Tilt!Q3<0,COS((Tilt!Q3-90)*2*PI()/360),0) -> 0 | R3: =(CA!Q3+CA!S3+CA!R2+CA!R4)*Parameter!$D$11+Shape_edge!Q3+Fractuation!Q3*Parameter!$D$12+IF(Tilt!R3<0,COS((Tilt!R3-90)*2*PI()/360),0) -> 0 | S3: =(CA!R3+CA!T3+CA!S2+CA!S4)*Parameter!$D$11+Shape_edge!R3+Fractuation!R3*Parameter!$D$12+IF(Tilt!S3<0,COS((Tilt!S3-90)*2*PI()/360),0) -> 0 | T3: =(CA!S3+CA!U3+CA!T2+CA!T4)*Parameter!$D$11+Shape_edge!S3+Fractuation!S3*Parameter!$D$12+IF(Tilt!T3<0,COS((Tilt!T3-90)*2*PI()/360),0) -> 0 | U3: =(CA!T3+CA!V3+CA!U2+CA!U4)*Parameter!$D$11+Shape_edge!T3+Fractuation!T3*Parameter!$D$12+IF(Tilt!U3<0,COS((Tilt!U3-90)*2*PI()/360),0) -> 0 | V3: =(CA!U3+CA!W3+CA!V2+CA!V4)*Parameter!$D$11+Shape_edge!U3+Fractuation!U3*Parameter!$D$12+IF(Tilt!V3<0,COS((Tilt!V3-90)*2*PI()/360),0) -> 0 | W3: =(CA!V3+CA!X3+CA!W2+CA!W4)*Parameter!$D$11+Shape_edge!V3+Fractuation!V3*Parameter!$D$12+IF(Tilt!W3<0,COS((Tilt!W3-90)*2*PI()/360),0) -> 0 | X3: =(CA!W3+CA!Y3+CA!X2+CA!X4)*Parameter!$D$11+Shape_edge!W3+Fractuation!W3*Parameter!$D$12+IF(Tilt!X3<0,COS((Tilt!X3-90)*2*PI()/360),0) -> 0 | Y3: =(CA!X3+CA!Z3+CA!Y2+CA!Y4)*Parameter!$D$11+Shape_edge!X3+Fractuation!X3*Parameter!$D$12+IF(Tilt!Y3<0,COS((Tilt!Y3-90)*2*PI()/360),0) -> 0 | Z3: =(CA!Y3+CA!AA3+CA!Z2+CA!Z4)*Parameter!$D$11+Shape_edge!Y3+Fractuation!Y3*Parameter!$D$12+IF(Tilt!Z3<0,COS((Tilt!Z3-90)*2*PI()/360),0) -> 0 | AA3: =(CA!Z3+CA!AB3+CA!AA2+CA!AA4)*Parameter!$D$11+Shape_edge!Z3+Fractuation!Z3*Parameter!$D$12+IF(Tilt!AA3<0,COS((Tilt!AA3-90)*2*PI()/360),0) -> 0 | AB3: =(CA!AA3+CA!AC3+CA!AB2+CA!AB4)*Parameter!$D$11+Shape_edge!AA3+Fractuation!AA3*Parameter!$D$12+IF(Tilt!AB3<0,COS((Tilt!AB3-90)*2*PI()/360),0) -> 0 | AC3: =(CA!AB3+CA!AD3+CA!AC2+CA!AC4)*Parameter!$D$11+Shape_edge!AB3+Fractuation!AB3*Parameter!$D$12+IF(Tilt!AC3<0,COS((Tilt!AC3-90)*2*PI()/360),0) -> 0 | AD3: =(CA!AC3+CA!AE3+CA!AD2+CA!AD4)*Parameter!$D$11+Shape_edge!AC3+Fractuation!AC3*Parameter!$D$12+IF(Tilt!AD3<0,COS((Tilt!AD3-90)*2*PI()/360),0) -> 0 | AE3: =(CA!AD3+CA!AF3+CA!AE2+CA!AE4)*Parameter!$D$11+Shape_edge!AD3+Fractuation!AD3*Parameter!$D$12+IF(Tilt!AE3<0,COS((Tilt!AE3-90)*2*PI()/360),0) -> 0
B4: =(CA!A4+CA!C4+CA!B3+CA!B5)*Parameter!$D$11+Shape_edge!A4+Fractuation!A4*Parameter!$D$12+IF(Tilt!B4<0,COS((Tilt!B4-90)*2*PI()/360),0) -> 0 | C4: =(CA!B4+CA!D4+CA!C3+CA!C5)*Parameter!$D$11+Shape_edge!B4+Fractuation!B4*Parameter!$D$12+IF(Tilt!C4<0,COS((Tilt!C4-90)*2*PI()/360),0) -> 0 | D4: =(CA!C4+CA!E4+CA!D3+CA!D5)*Parameter!$D$11+Shape_edge!C4+Fractuation!C4*Parameter!$D$12+IF(Tilt!D4<0,COS((Tilt!D4-90)*2*PI()/360),0) -> 0 | E4: =(CA!D4+CA!F4+CA!E3+CA!E5)*Parameter!$D$11+Shape_edge!D4+Fractuation!D4*Parameter!$D$12+IF(Tilt!E4<0,COS((Tilt!E4-90)*2*PI()/360),0) -> 0 | F4: =(CA!E4+CA!G4+CA!F3+CA!F5)*Parameter!$D$11+Shape_edge!E4+Fractuation!E4*Parameter!$D$12+IF(Tilt!F4<0,COS((Tilt!F4-90)*2*PI()/360),0) -> 0 | G4: =(CA!F4+CA!H4+CA!G3+CA!G5)*Parameter!$D$11+Shape_edge!F4+Fractuation!F4*Parameter!$D$12+IF(Tilt!G4<0,COS((Tilt!G4-90)*2*PI()/360),0) -> 0 | H4: =(CA!G4+CA!I4+CA!H3+CA!H5)*Parameter!$D$11+Shape_edge!G4+Fractuation!G4*Parameter!$D$12+IF(Tilt!H4<0,COS((Tilt!H4-90)*2*PI()/360),0) -> 0 | I4: =(CA!H4+CA!J4+CA!I3+CA!I5)*Parameter!$D$11+Shape_edge!H4+Fractuation!H4*Parameter!$D$12+IF(Tilt!I4<0,COS((Tilt!I4-90)*2*PI()/360),0) -> 0 | J4: =(CA!I4+CA!K4+CA!J3+CA!J5)*Parameter!$D$11+Shape_edge!I4+Fractuation!I4*Parameter!$D$12+IF(Tilt!J4<0,COS((Tilt!J4-90)*2*PI()/360),0) -> 0 | K4: =(CA!J4+CA!L4+CA!K3+CA!K5)*Parameter!$D$11+Shape_edge!J4+Fractuation!J4*Parameter!$D$12+IF(Tilt!K4<0,COS((Tilt!K4-90)*2*PI()/360),0) -> 0 | L4: =(CA!K4+CA!M4+CA!L3+CA!L5)*Parameter!$D$11+Shape_edge!K4+Fractuation!K4*Parameter!$D$12+IF(Tilt!L4<0,COS((Tilt!L4-90)*2*PI()/360),0) -> 0 | M4: =(CA!L4+CA!N4+CA!M3+CA!M5)*Parameter!$D$11+Shape_edge!L4+Fractuation!L4*Parameter!$D$12+IF(Tilt!M4<0,COS((Tilt!M4-90)*2*PI()/360),0) -> 0 | N4: =(CA!M4+CA!O4+CA!N3+CA!N5)*Parameter!$D$11+Shape_edge!M4+Fractuation!M4*Parameter!$D$12+IF(Tilt!N4<0,COS((Tilt!N4-90)*2*PI()/360),0) -> 0 | O4: =(CA!N4+CA!P4+CA!O3+CA!O5)*Parameter!$D$11+Shape_edge!N4+Fractuation!N4*Parameter!$D$12+IF(Tilt!O4<0,COS((Tilt!O4-90)*2*PI()/360),0) -> 0 | P4: =(CA!O4+CA!Q4+CA!P3+CA!P5)*Parameter!$D$11+Shape_edge!O4+Fractuation!O4*Parameter!$D$12+IF(Tilt!P4<0,COS((Tilt!P4-90)*2*PI()/360),0) -> 0 | Q4: =(CA!P4+CA!R4+CA!Q3+CA!Q5)*Parameter!$D$11+Shape_edge!P4+Fractuation!P4*Parameter!$D$12+IF(Tilt!Q4<0,COS((Tilt!Q4-90)*2*PI()/360),0) -> 0 | R4: =(CA!Q4+CA!S4+CA!R3+CA!R5)*Parameter!$D$11+Shape_edge!Q4+Fractuation!Q4*Parameter!$D$12+IF(Tilt!R4<0,COS((Tilt!R4-90)*2*PI()/360),0) -> 0 | S4: =(CA!R4+CA!T4+CA!S3+CA!S5)*Parameter!$D$11+Shape_edge!R4+Fractuation!R4*Parameter!$D$12+IF(Tilt!S4<0,COS((Tilt!S4-90)*2*PI()/360),0) -> 0 | T4: =(CA!S4+CA!U4+CA!T3+CA!T5)*Parameter!$D$11+Shape_edge!S4+Fractuation!S4*Parameter!$D$12+IF(Tilt!T4<0,COS((Tilt!T4-90)*2*PI()/360),0) -> 0 | U4: =(CA!T4+CA!V4+CA!U3+CA!U5)*Parameter!$D$11+Shape_edge!T4+Fractuation!T4*Parameter!$D$12+IF(Tilt!U4<0,COS((Tilt!U4-90)*2*PI()/360),0) -> 0 | V4: =(CA!U4+CA!W4+CA!V3+CA!V5)*Parameter!$D$11+Shape_edge!U4+Fractuation!U4*Parameter!$D$12+IF(Tilt!V4<0,COS((Tilt!V4-90)*2*PI()/360),0) -> 0 | W4: =(CA!V4+CA!X4+CA!W3+CA!W5)*Parameter!$D$11+Shape_edge!V4+Fractuation!V4*Parameter!$D$12+IF(Tilt!W4<0,COS((Tilt!W4-90)*2*PI()/360),0) -> 0 | X4: =(CA!W4+CA!Y4+CA!X3+CA!X5)*Parameter!$D$11+Shape_edge!W4+Fractuation!W4*Parameter!$D$12+IF(Tilt!X4<0,COS((Tilt!X4-90)*2*PI()/360),0) -> 0 | Y4: =(CA!X4+CA!Z4+CA!Y3+CA!Y5)*Parameter!$D$11+Shape_edge!X4+Fractuation!X4*Parameter!$D$12+IF(Tilt!Y4<0,COS((Tilt!Y4-90)*2*PI()/360),0) -> 0 | Z4: =(CA!Y4+CA!AA4+CA!Z3+CA!Z5)*Parameter!$D$11+Shape_edge!Y4+Fractuation!Y4*Parameter!$D$12+IF(Tilt!Z4<0,COS((Tilt!Z4-90)*2*PI()/360),0) -> 0 | AA4: =(CA!Z4+CA!AB4+CA!AA3+CA!AA5)*Parameter!$D$11+Shape_edge!Z4+Fractuation!Z4*Parameter!$D$12+IF(Tilt!AA4<0,COS((Tilt!AA4-90)*2*PI()/360),0) -> 0 | AB4: =(CA!AA4+CA!AC4+CA!AB3+CA!AB5)*Parameter!$D$11+Shape_edge!AA4+Fractuation!AA4*Parameter!$D$12+IF(Tilt!AB4<0,COS((Tilt!AB4-90)*2*PI()/360),0) -> 0 | AC4: =(CA!AB4+CA!AD4+CA!AC3+CA!AC5)*Parameter!$D$11+Shape_edge!AB4+Fractuation!AB4*Parameter!$D$12+IF(Tilt!AC4<0,COS((Tilt!AC4-90)*2*PI()/360),0) -> 0 | AD4: =(CA!AC4+CA!AE4+CA!AD3+CA!AD5)*Parameter!$D$11+Shape_edge!AC4+Fractuation!AC4*Parameter!$D$12+IF(Tilt!AD4<0,COS((Tilt!AD4-90)*2*PI()/360),0) -> 0 | AE4: =(CA!AD4+CA!AF4+CA!AE3+CA!AE5)*Parameter!$D$11+Shape_edge!AD4+Fractuation!AD4*Parameter!$D$12+IF(Tilt!AE4<0,COS((Tilt!AE4-90)*2*PI()/360),0) -> 0
B5: =(CA!A5+CA!C5+CA!B4+CA!B6)*Parameter!$D$11+Shape_edge!A5+Fractuation!A5*Parameter!$D$12+IF(Tilt!B5<0,COS((Tilt!B5-90)*2*PI()/360),0) -> 0 | C5: =(CA!B5+CA!D5+CA!C4+CA!C6)*Parameter!$D$11+Shape_edge!B5+Fractuation!B5*Parameter!$D$12+IF(Tilt!C5<0,COS((Tilt!C5-90)*2*PI()/360),0) -> 0 | D5: =(CA!C5+CA!E5+CA!D4+CA!D6)*Parameter!$D$11+Shape_edge!C5+Fractuation!C5*Parameter!$D$12+IF(Tilt!D5<0,COS((Tilt!D5-90)*2*PI()/360),0) -> 0 | E5: =(CA!D5+CA!F5+CA!E4+CA!E6)*Parameter!$D$11+Shape_edge!D5+Fractuation!D5*Parameter!$D$12+IF(Tilt!E5<0,COS((Tilt!E5-90)*2*PI()/360),0) -> 0 | F5: =(CA!E5+CA!G5+CA!F4+CA!F6)*Parameter!$D$11+Shape_edge!E5+Fractuation!E5*Parameter!$D$12+IF(Tilt!F5<0,COS((Tilt!F5-90)*2*PI()/360),0) -> 0 | G5: =(CA!F5+CA!H5+CA!G4+CA!G6)*Parameter!$D$11+Shape_edge!F5+Fractuation!F5*Parameter!$D$12+IF(Tilt!G5<0,COS((Tilt!G5-90)*2*PI()/360),0) -> 0 | H5: =(CA!G5+CA!I5+CA!H4+CA!H6)*Parameter!$D$11+Shape_edge!G5+Fractuation!G5*Parameter!$D$12+IF(Tilt!H5<0,COS((Tilt!H5-90)*2*PI()/360),0) -> 0 | I5: =(CA!H5+CA!J5+CA!I4+CA!I6)*Parameter!$D$11+Shape_edge!H5+Fractuation!H5*Parameter!$D$12+IF(Tilt!I5<0,COS((Tilt!I5-90)*2*PI()/360),0) -> 0 | J5: =(CA!I5+CA!K5+CA!J4+CA!J6)*Parameter!$D$11+Shape_edge!I5+Fractuation!I5*Parameter!$D$12+IF(Tilt!J5<0,COS((Tilt!J5-90)*2*PI()/360),0) -> 0 | K5: =(CA!J5+CA!L5+CA!K4+CA!K6)*Parameter!$D$11+Shape_edge!J5+Fractuation!J5*Parameter!$D$12+IF(Tilt!K5<0,COS((Tilt!K5-90)*2*PI()/360),0) -> 0 | L5: =(CA!K5+CA!M5+CA!L4+CA!L6)*Parameter!$D$11+Shape_edge!K5+Fractuation!K5*Parameter!$D$12+IF(Tilt!L5<0,COS((Tilt!L5-90)*2*PI()/360),0) -> 0 | M5: =(CA!L5+CA!N5+CA!M4+CA!M6)*Parameter!$D$11+Shape_edge!L5+Fractuation!L5*Parameter!$D$12+IF(Tilt!M5<0,COS((Tilt!M5-90)*2*PI()/360),0) -> 0 | N5: =(CA!M5+CA!O5+CA!N4+CA!N6)*Parameter!$D$11+Shape_edge!M5+Fractuation!M5*Parameter!$D$12+IF(Tilt!N5<0,COS((Tilt!N5-90)*2*PI()/360),0) -> 0 | O5: =(CA!N5+CA!P5+CA!O4+CA!O6)*Parameter!$D$11+Shape_edge!N5+Fractuation!N5*Parameter!$D$12+IF(Tilt!O5<0,COS((Tilt!O5-90)*2*PI()/360),0) -> 0 | P5: =(CA!O5+CA!Q5+CA!P4+CA!P6)*Parameter!$D$11+Shape_edge!O5+Fractuation!O5*Parameter!$D$12+IF(Tilt!P5<0,COS((Tilt!P5-90)*2*PI()/360),0) -> 0 | Q5: =(CA!P5+CA!R5+CA!Q4+CA!Q6)*Parameter!$D$11+Shape_edge!P5+Fractuation!P5*Parameter!$D$12+IF(Tilt!Q5<0,COS((Tilt!Q5-90)*2*PI()/360),0) -> 0 | R5: =(CA!Q5+CA!S5+CA!R4+CA!R6)*Parameter!$D$11+Shape_edge!Q5+Fractuation!Q5*Parameter!$D$12+IF(Tilt!R5<0,COS((Tilt!R5-90)*2*PI()/360),0) -> 0 | S5: =(CA!R5+CA!T5+CA!S4+CA!S6)*Parameter!$D$11+Shape_edge!R5+Fractuation!R5*Parameter!$D$12+IF(Tilt!S5<0,COS((Tilt!S5-90)*2*PI()/360),0) -> 0 | T5: =(CA!S5+CA!U5+CA!T4+CA!T6)*Parameter!$D$11+Shape_edge!S5+Fractuation!S5*Parameter!$D$12+IF(Tilt!T5<0,COS((Tilt!T5-90)*2*PI()/360),0) -> 0 | U5: =(CA!T5+CA!V5+CA!U4+CA!U6)*Parameter!$D$11+Shape_edge!T5+Fractuation!T5*Parameter!$D$12+IF(Tilt!U5<0,COS((Tilt!U5-90)*2*PI()/360),0) -> 0 | V5: =(CA!U5+CA!W5+CA!V4+CA!V6)*Parameter!$D$11+Shape_edge!U5+Fractuation!U5*Parameter!$D$12+IF(Tilt!V5<0,COS((Tilt!V5-90)*2*PI()/360),0) -> 0 | W5: =(CA!V5+CA!X5+CA!W4+CA!W6)*Parameter!$D$11+Shape_edge!V5+Fractuation!V5*Parameter!$D$12+IF(Tilt!W5<0,COS((Tilt!W5-90)*2*PI()/360),0) -> 0 | X5: =(CA!W5+CA!Y5+CA!X4+CA!X6)*Parameter!$D$11+Shape_edge!W5+Fractuation!W5*Parameter!$D$12+IF(Tilt!X5<0,COS((Tilt!X5-90)*2*PI()/360),0) -> 0 | Y5: =(CA!X5+CA!Z5+CA!Y4+CA!Y6)*Parameter!$D$11+Shape_edge!X5+Fractuation!X5*Parameter!$D$12+IF(Tilt!Y5<0,COS((Tilt!Y5-90)*2*PI()/360),0) -> 0 | Z5: =(CA!Y5+CA!AA5+CA!Z4+CA!Z6)*Parameter!$D$11+Shape_edge!Y5+Fractuation!Y5*Parameter!$D$12+IF(Tilt!Z5<0,COS((Tilt!Z5-90)*2*PI()/360),0) -> 0 | AA5: =(CA!Z5+CA!AB5+CA!AA4+CA!AA6)*Parameter!$D$11+Shape_edge!Z5+Fractuation!Z5*Parameter!$D$12+IF(Tilt!AA5<0,COS((Tilt!AA5-90)*2*PI()/360),0) -> 0 | AB5: =(CA!AA5+CA!AC5+CA!AB4+CA!AB6)*Parameter!$D$11+Shape_edge!AA5+Fractuation!AA5*Parameter!$D$12+IF(Tilt!AB5<0,COS((Tilt!AB5-90)*2*PI()/360),0) -> 0 | AC5: =(CA!AB5+CA!AD5+CA!AC4+CA!AC6)*Parameter!$D$11+Shape_edge!AB5+Fractuation!AB5*Parameter!$D$12+IF(Tilt!AC5<0,COS((Tilt!AC5-90)*2*PI()/360),0) -> 0 | AD5: =(CA!AC5+CA!AE5+CA!AD4+CA!AD6)*Parameter!$D$11+Shape_edge!AC5+Fractuation!AC5*Parameter!$D$12+IF(Tilt!AD5<0,COS((Tilt!AD5-90)*2*PI()/360),0) -> 0 | AE5: =(CA!AD5+CA!AF5+CA!AE4+CA!AE6)*Parameter!$D$11+Shape_edge!AD5+Fractuation!AD5*Parameter!$D$12+IF(Tilt!AE5<0,COS((Tilt!AE5-90)*2*PI()/360),0) -> 0
B6: =(CA!A6+CA!C6+CA!B5+CA!B7)*Parameter!$D$11+Shape_edge!A6+Fractuation!A6*Parameter!$D$12+IF(Tilt!B6<0,COS((Tilt!B6-90)*2*PI()/360),0) -> 0 | C6: =(CA!B6+CA!D6+CA!C5+CA!C7)*Parameter!$D$11+Shape_edge!B6+Fractuation!B6*Parameter!$D$12+IF(Tilt!C6<0,COS((Tilt!C6-90)*2*PI()/360),0) -> 0 | D6: =(CA!C6+CA!E6+CA!D5+CA!D7)*Parameter!$D$11+Shape_edge!C6+Fractuation!C6*Parameter!$D$12+IF(Tilt!D6<0,COS((Tilt!D6-90)*2*PI()/360),0) -> 0 | E6: =(CA!D6+CA!F6+CA!E5+CA!E7)*Parameter!$D$11+Shape_edge!D6+Fractuation!D6*Parameter!$D$12+IF(Tilt!E6<0,COS((Tilt!E6-90)*2*PI()/360),0) -> 0 | F6: =(CA!E6+CA!G6+CA!F5+CA!F7)*Parameter!$D$11+Shape_edge!E6+Fractuation!E6*Parameter!$D$12+IF(Tilt!F6<0,COS((Tilt!F6-90)*2*PI()/360),0) -> 0 | G6: =(CA!F6+CA!H6+CA!G5+CA!G7)*Parameter!$D$11+Shape_edge!F6+Fractuation!F6*Parameter!$D$12+IF(Tilt!G6<0,COS((Tilt!G6-90)*2*PI()/360),0) -> 0 | H6: =(CA!G6+CA!I6+CA!H5+CA!H7)*Parameter!$D$11+Shape_edge!G6+Fractuation!G6*Parameter!$D$12+IF(Tilt!H6<0,COS((Tilt!H6-90)*2*PI()/360),0) -> 0 | I6: =(CA!H6+CA!J6+CA!I5+CA!I7)*Parameter!$D$11+Shape_edge!H6+Fractuation!H6*Parameter!$D$12+IF(Tilt!I6<0,COS((Tilt!I6-90)*2*PI()/360),0) -> 0 | J6: =(CA!I6+CA!K6+CA!J5+CA!J7)*Parameter!$D$11+Shape_edge!I6+Fractuation!I6*Parameter!$D$12+IF(Tilt!J6<0,COS((Tilt!J6-90)*2*PI()/360),0) -> 0 | K6: =(CA!J6+CA!L6+CA!K5+CA!K7)*Parameter!$D$11+Shape_edge!J6+Fractuation!J6*Parameter!$D$12+IF(Tilt!K6<0,COS((Tilt!K6-90)*2*PI()/360),0) -> 0 | L6: =(CA!K6+CA!M6+CA!L5+CA!L7)*Parameter!$D$11+Shape_edge!K6+Fractuation!K6*Parameter!$D$12+IF(Tilt!L6<0,COS((Tilt!L6-90)*2*PI()/360),0) -> 0 | M6: =(CA!L6+CA!N6+CA!M5+CA!M7)*Parameter!$D$11+Shape_edge!L6+Fractuation!L6*Parameter!$D$12+IF(Tilt!M6<0,COS((Tilt!M6-90)*2*PI()/360),0) -> 0 | N6: =(CA!M6+CA!O6+CA!N5+CA!N7)*Parameter!$D$11+Shape_edge!M6+Fractuation!M6*Parameter!$D$12+IF(Tilt!N6<0,COS((Tilt!N6-90)*2*PI()/360),0) -> 0 | O6: =(CA!N6+CA!P6+CA!O5+CA!O7)*Parameter!$D$11+Shape_edge!N6+Fractuation!N6*Parameter!$D$12+IF(Tilt!O6<0,COS((Tilt!O6-90)*2*PI()/360),0) -> 0 | P6: =(CA!O6+CA!Q6+CA!P5+CA!P7)*Parameter!$D$11+Shape_edge!O6+Fractuation!O6*Parameter!$D$12+IF(Tilt!P6<0,COS((Tilt!P6-90)*2*PI()/360),0) -> 0 | Q6: =(CA!P6+CA!R6+CA!Q5+CA!Q7)*Parameter!$D$11+Shape_edge!P6+Fractuation!P6*Parameter!$D$12+IF(Tilt!Q6<0,COS((Tilt!Q6-90)*2*PI()/360),0) -> 0 | R6: =(CA!Q6+CA!S6+CA!R5+CA!R7)*Parameter!$D$11+Shape_edge!Q6+Fractuation!Q6*Parameter!$D$12+IF(Tilt!R6<0,COS((Tilt!R6-90)*2*PI()/360),0) -> 0 | S6: =(CA!R6+CA!T6+CA!S5+CA!S7)*Parameter!$D$11+Shape_edge!R6+Fractuation!R6*Parameter!$D$12+IF(Tilt!S6<0,COS((Tilt!S6-90)*2*PI()/360),0) -> 0 | T6: =(CA!S6+CA!U6+CA!T5+CA!T7)*Parameter!$D$11+Shape_edge!S6+Fractuation!S6*Parameter!$D$12+IF(Tilt!T6<0,COS((Tilt!T6-90)*2*PI()/360),0) -> 0 | U6: =(CA!T6+CA!V6+CA!U5+CA!U7)*Parameter!$D$11+Shape_edge!T6+Fractuation!T6*Parameter!$D$12+IF(Tilt!U6<0,COS((Tilt!U6-90)*2*PI()/360),0) -> 0 | V6: =(CA!U6+CA!W6+CA!V5+CA!V7)*Parameter!$D$11+Shape_edge!U6+Fractuation!U6*Parameter!$D$12+IF(Tilt!V6<0,COS((Tilt!V6-90)*2*PI()/360),0) -> 0 | W6: =(CA!V6+CA!X6+CA!W5+CA!W7)*Parameter!$D$11+Shape_edge!V6+Fractuation!V6*Parameter!$D$12+IF(Tilt!W6<0,COS((Tilt!W6-90)*2*PI()/360),0) -> 0 | X6: =(CA!W6+CA!Y6+CA!X5+CA!X7)*Parameter!$D$11+Shape_edge!W6+Fractuation!W6*Parameter!$D$12+IF(Tilt!X6<0,COS((Tilt!X6-90)*2*PI()/360),0) -> 0 | Y6: =(CA!X6+CA!Z6+CA!Y5+CA!Y7)*Parameter!$D$11+Shape_edge!X6+Fractuation!X6*Parameter!$D$12+IF(Tilt!Y6<0,COS((Tilt!Y6-90)*2*PI()/360),0) -> 0 | Z6: =(CA!Y6+CA!AA6+CA!Z5+CA!Z7)*Parameter!$D$11+Shape_edge!Y6+Fractuation!Y6*Parameter!$D$12+IF(Tilt!Z6<0,COS((Tilt!Z6-90)*2*PI()/360),0) -> 0 | AA6: =(CA!Z6+CA!AB6+CA!AA5+CA!AA7)*Parameter!$D$11+Shape_edge!Z6+Fractuation!Z6*Parameter!$D$12+IF(Tilt!AA6<0,COS((Tilt!AA6-90)*2*PI()/360),0) -> 0 | AB6: =(CA!AA6+CA!AC6+CA!AB5+CA!AB7)*Parameter!$D$11+Shape_edge!AA6+Fractuation!AA6*Parameter!$D$12+IF(Tilt!AB6<0,COS((Tilt!AB6-90)*2*PI()/360),0) -> 0 | AC6: =(CA!AB6+CA!AD6+CA!AC5+CA!AC7)*Parameter!$D$11+Shape_edge!AB6+Fractuation!AB6*Parameter!$D$12+IF(Tilt!AC6<0,COS((Tilt!AC6-90)*2*PI()/360),0) -> 0 | AD6: =(CA!AC6+CA!AE6+CA!AD5+CA!AD7)*Parameter!$D$11+Shape_edge!AC6+Fractuation!AC6*Parameter!$D$12+IF(Tilt!AD6<0,COS((Tilt!AD6-90)*2*PI()/360),0) -> 0 | AE6: =(CA!AD6+CA!AF6+CA!AE5+CA!AE7)*Parameter!$D$11+Shape_edge!AD6+Fractuation!AD6*Parameter!$D$12+IF(Tilt!AE6<0,COS((Tilt!AE6-90)*2*PI()/360),0) -> 0
